Workbook

Sheet PI vs x
A1: Measurement | B1: Hall
A2: Type | B2: Off-axis
A4: Project | B4: ='10 x=-2'!B5 -> 504314
A5: PS serial no | B5: ='10 x=-2'!B7 -> 2410087
A7: Measurement date | B7: =LEFT('10 x=-2'!B4,10) -> 29-08-2024
C11: Nominal gap [mm] | D11: Encoder [counts] | E11: Encoder [mm] | F11: PI [T^2mm^3] | G11: x [mm] | H11: Encoder value at 10 mm gap:
B12: ='PI vs x'!$C$12 & "mm gap" -> 10mm gap | C12: ='10 x=-2'!B48 -> 10 | D12: ='10 x=-2'!$B$50 -> 20.0459 | E12: =D12-$H$12+10 -> 9.9982 | F12: ='10 x=-2'!$K$3 -> 10595.40431 | G12: -2 | H12: 20.0477
C13: =C12 -> 10 | D13: ='10 x=-1'!$B$50 -> 20.0459 | E13: =D13-$H$12+10 -> 9.9982 | F13: ='10 x=-1'!$K$3 -> 10598.4817 | G13: -1
C14: =C13 -> 10 | D14: ='10 x=0'!$B$50 -> 20.0459 | E14: 9.9982 | F14: ='10 x=0'!$K$3 -> 10599.33576 | G14: 0
C15: 10 | D15: ='10 x=1'!$B$50 -> 20.0459 | E15: 9.9982 | F15: ='10 x=1'!$K$3 -> 10594.52506 | G15: 1
C16: 10 | D16: ='10 x=2'!$B$50 -> 20.0459 | E16: 9.9982 | F16: ='10 x=2'!$K$3 -> 10588.6653 | G16: 2
B17: ='PI vs x'!$C$17 & "mm gap" -> 30mm gap | C17: ='30 x=-2'!B48 -> 30 | D17: ='30 x=-2'!$B$50 -> 40.1088 | E17: 30.0611 | F17: ='30 x=-2'!$K$3 -> 2467.094496 | G17: =G12 -> -2
C18: 30 | D18: ='30 x=-1'!$B$50 -> 40.1088 | E18: 30.0611 | F18: ='30 x=-1'!$K$3 -> 2469.91284 | G18: =G13 -> -1
C19: 30 | D19: ='30 x=0'!$B$50 -> 40.1088 | E19: 30.0611 | F19: ='30 x=0'!$K$3 -> 2469.038973 | G19: 0
C20: 30 | D20: ='30 x=1'!$B$50 -> 40.1088 | E20: 30.0611 | F20: ='30 x=1'!$K$3 -> 2466.352939 | G20: 1
C21: 30 | D21: ='30 x=2'!$B$50 -> 40.1088 | E21: 30.0611 | F21: ='30 x=2'!$K$3 -> 2461.026903 | G21: 2

Sheet 10 x=-2
A1: =IF('DF raw data'!A1="","",'DF raw data'!A1) -> Number of header lines | B1: =IF('DF raw data'!B1="","",'DF raw data'!B1) -> 54 | C1: =IF('DF raw data'!C1="","",'DF raw data'!C1) ->  | D1: =IF('DF raw data'!D1="","",'DF raw data'!D1) ->  | F1: T_coeff | G1: -0.001 | H1: /degC | J1: IBy total | K1: =J1262*1000 -> 1.988671837 | L1: muTm | M1: =L1262*1000 -> 52.50128918 | R1: DF ref | S1: 1
A2: =IF('DF raw data'!A2="","",'DF raw data'!A2) -> Measured by | B2: =IF('DF raw data'!B2="","",'DF raw data'!B2) -> Danfysik | C2: =IF('DF raw data'!C2="","",'DF raw data'!C2) ->  | D2: =IF('DF raw data'!D2="","",'DF raw data'!D2) ->  | F2: Tcorr | G2: 20 | H2: degC | J2: JBy total | K2: =K1262 -> -1.067167726 | L2: muTm^2 | M2: =M1262 -> 20.68559025
A3: =IF('DF raw data'!A3="","",'DF raw data'!A3) -> Operator | B3: =IF('DF raw data'!B3="","",'DF raw data'!B3) -> PMHA | C3: =IF('DF raw data'!C3="","",'DF raw data'!C3) ->  | D3: =IF('DF raw data'!D3="","",'DF raw data'!D3) ->  | F3: Step | G3: =A63-A62 -> 0.5 | H3: mm | J3: PI total | K3: =N1262 -> 10595.40431 | L3: T^2mm^3
A4: =IF('DF raw data'!A4="","",'DF raw data'!A4) -> Data-time | B4: =IF('DF raw data'!B4="","",'DF raw data'!B4) -> 29-08-2024, 12:01:46 | C4: =IF('DF raw data'!C4="","",'DF raw data'!C4) ->  | D4: =IF('DF raw data'!D4="","",'DF raw data'!D4) -> 
A5: =IF('DF raw data'!A5="","",'DF raw data'!A5) -> Project | B5: =IF('DF raw data'!B5="","",'DF raw data'!B5) -> 504314 | C5: =IF('DF raw data'!C5="","",'DF raw data'!C5) ->  | D5: =IF('DF raw data'!D5="","",'DF raw data'!D5) -> 
A6: =IF('DF raw data'!A6="","",'DF raw data'!A6) -> Magnet type | B6: =IF('DF raw data'!B6="","",'DF raw data'!B6) -> Dipole | C6: =IF('DF raw data'!C6="","",'DF raw data'!C6) ->  | D6: =IF('DF raw data'!D6="","",'DF raw data'!D6) -> 
A7: =IF('DF raw data'!A7="","",'DF raw data'!A7) -> Magnet nr. | B7: =IF('DF raw data'!B7="","",'DF raw data'!B7) -> 2410087 | C7: =IF('DF raw data'!C7="","",'DF raw data'!C7) ->  | D7: =IF('DF raw data'!D7="","",'DF raw data'!D7) -> 
A8: =IF('DF raw data'!A8="","",'DF raw data'!A8) -> Meas. number | B8: =IF('DF raw data'!B8="","",'DF raw data'!B8) -> 241 | C8: =IF('DF raw data'!C8="","",'DF raw data'!C8) ->  | D8: =IF('DF raw data'!D8="","",'DF raw data'!D8) -> 
A9: =IF('DF raw data'!A9="","",'DF raw data'!A9) -> Add. info | B9: =IF('DF raw data'!B9="","",'DF raw data'!B9) -> X-alignment scan 1) | C9: =IF('DF raw data'!C9="","",'DF raw data'!C9) ->  | D9: =IF('DF raw data'!D9="","",'DF raw data'!D9) -> 
A10: =IF('DF raw data'!A10="","",'DF raw data'!A10) -> Device | B10: =IF('DF raw data'!B10="","",'DF raw data'!B10) -> (HAL) HALL-PROBE | C10: =IF('DF raw data'!C10="","",'DF raw data'!C10) ->  | D10: =IF('DF raw data'!D10="","",'DF raw data'!D10) -> 
A11: =IF('DF raw data'!A11="","",'DF raw data'!A11) -> Goal | B11: =IF('DF raw data'!B11="","",'DF raw data'!B11) -> (AXI) AXis Integral (Line, EFB) | C11: =IF('DF raw data'!C11="","",'DF raw data'!C11) ->  | D11: =IF('DF raw data'!D11="","",'DF raw data'!D11) -> 
A12: =IF('DF raw data'!A12="","",'DF raw data'!A12) -> Power supply mode | B12: =IF('DF raw data'!B12="","",'DF raw data'!B12) -> (PM) Permanent Magnet (no MPS in use) | C12: =IF('DF raw data'!C12="","",'DF raw data'!C12) ->  | D12: =IF('DF raw data'!D12="","",'DF raw data'!D12) -> 
A13: =IF('DF raw data'!A13="","",'DF raw data'!A13) -> Data format | B13: =IF('DF raw data'!B13="","",'DF raw data'!B13) -> Raw data text file | C13: =IF('DF raw data'!C13="","",'DF raw data'!C13) ->  | D13: =IF('DF raw data'!D13="","",'DF raw data'!D13) -> 
A14: =IF('DF raw data'!A14="","",'DF raw data'!A14) -> Direction of the pos. x-axis | B14: =IF('DF raw data'!B14="","",'DF raw data'!B14) -> See test program | C14: =IF('DF raw data'!C14="","",'DF raw data'!C14) ->  | D14: =IF('DF raw data'!D14="","",'DF raw data'!D14) -> 
A15: =IF('DF raw data'!A15="","",'DF raw data'!A15) -> Direction of the pos. y-axis | B15: =IF('DF raw data'!B15="","",'DF raw data'!B15) -> Vertical up | C15: =IF('DF raw data'!C15="","",'DF raw data'!C15) ->  | D15: =IF('DF raw data'!D15="","",'DF raw data'!D15) -> 
A16: =IF('DF raw data'!A16="","",'DF raw data'!A16) -> Direction of the pos. z-axis | B16: =IF('DF raw data'!B16="","",'DF raw data'!B16) -> See test program | C16: =IF('DF raw data'!C16="","",'DF raw data'!C16) ->  | D16: =IF('DF raw data'!D16="","",'DF raw data'!D16) -> 
A17: =IF('DF raw data'!A17="","",'DF raw data'!A17) -> Mapper type | B17: =IF('DF raw data'!B17="","",'DF raw data'!B17) -> Precision Hall Mapper | C17: =IF('DF raw data'!C17="","",'DF raw data'!C17) ->  | D17: =IF('DF raw data'!D17="","",'DF raw data'!D17) -> 
A18: =IF('DF raw data'!A18="","",'DF raw data'!A18) -> Mapper Danfysik Reg. Number | B18: =IF('DF raw data'!B18="","",'DF raw data'!B18) -> 2033-D (mapper 1) | C18: =IF('DF raw data'!C18="","",'DF raw data'!C18) ->  | D18: =IF('DF raw data'!D18="","",'DF raw data'!D18) -> 
A19: =IF('DF raw data'!A19="","",'DF raw data'!A19) -> Measurement consept | B19: =IF('DF raw data'!B19="","",'DF raw data'!B19) -> Square line grid | C19: =IF('DF raw data'!C19="","",'DF raw data'!C19) ->  | D19: =IF('DF raw data'!D19="","",'DF raw data'!D19) -> 
A20: =IF('DF raw data'!A20="","",'DF raw data'!A20) -> Mode | B20: =IF('DF raw data'!B20="","",'DF raw data'!B20) -> On-the-fly measurement | C20: =IF('DF raw data'!C20="","",'DF raw data'!C20) ->  | D20: =IF('DF raw data'!D20="","",'DF raw data'!D20) -> 
A21: =IF('DF raw data'!A21="","",'DF raw data'!A21) ->  | B21: =IF('DF raw data'!B21="","",'DF raw data'!B21) ->  | C21: =IF('DF raw data'!C21="","",'DF raw data'!C21) ->  | D21: =IF('DF raw data'!D21="","",'DF raw data'!D21) -> 
A22: =IF('DF raw data'!A22="","",'DF raw data'!A22) -> Probe Name | B22: =IF('DF raw data'!B22="","",'DF raw data'!B22) -> ID12_By | C22: =IF('DF raw data'!C22="","",'DF raw data'!C22) ->  | D22: =IF('DF raw data'!D22="","",'DF raw data'!D22) -> 
A23: =IF('DF raw data'!A23="","",'DF raw data'!A23) -> Probe Type | B23: =IF('DF raw data'!B23="","",'DF raw data'!B23) -> DF_ID_3D_Bxyz | C23: =IF('DF raw data'!C23="","",'DF raw data'!C23) ->  | D23: =IF('DF raw data'!D23="","",'DF raw data'!D23) -> 
A24: =IF('DF raw data'!A24="","",'DF raw data'!A24) -> Probe Danfysik Reg. Number | B24: =IF('DF raw data'!B24="","",'DF raw data'!B24) -> 2277 | C24: =IF('DF raw data'!C24="","",'DF raw data'!C24) ->  | D24: =IF('DF raw data'!D24="","",'DF raw data'!D24) -> 
A25: =IF('DF raw data'!A25="","",'DF raw data'!A25) -> Probe Axis | B25: =IF('DF raw data'!B25="","",'DF raw data'!B25) -> By | C25: =IF('DF raw data'!C25="","",'DF raw data'!C25) ->  | D25: =IF('DF raw data'!D25="","",'DF raw data'!D25) -> 
A26: =IF('DF raw data'!A26="","",'DF raw data'!A26) -> Probe Current Supply | B26: =IF('DF raw data'!B26="","",'DF raw data'!B26) -> 1825-D | C26: =IF('DF raw data'!C26="","",'DF raw data'!C26) ->  | D26: =IF('DF raw data'!D26="","",'DF raw data'!D26) -> 
A27: =IF('DF raw data'!A27="","",'DF raw data'!A27) -> Probe Gain Correction | B27: =IF('DF raw data'!B27="","",'DF raw data'!B27) -> 0.99617 | C27: =IF('DF raw data'!C27="","",'DF raw data'!C27) ->  | D27: =IF('DF raw data'!D27="","",'DF raw data'!D27) -> 
A28: =IF('DF raw data'!A28="","",'DF raw data'!A28) -> Probe Offset Correction | B28: =IF('DF raw data'!B28="","",'DF raw data'!B28) -> 0.0027239 | C28: =IF('DF raw data'!C28="","",'DF raw data'!C28) ->  | D28: =IF('DF raw data'!D28="","",'DF raw data'!D28) -> 
A29: =IF('DF raw data'!A29="","",'DF raw data'!A29) -> DVM Number | B29: =IF('DF raw data'!B29="","",'DF raw data'!B29) -> 2 | C29: =IF('DF raw data'!C29="","",'DF raw data'!C29) ->  | D29: =IF('DF raw data'!D29="","",'DF raw data'!D29) -> 
A30: =IF('DF raw data'!A30="","",'DF raw data'!A30) -> DVM Type | B30: =IF('DF raw data'!B30="","",'DF raw data'!B30) -> K2701 | C30: =IF('DF raw data'!C30="","",'DF raw data'!C30) ->  | D30: =IF('DF raw data'!D30="","",'DF raw data'!D30) -> 
A31: =IF('DF raw data'!A31="","",'DF raw data'!A31) -> DVM Danfysik Reg. Number | B31: =IF('DF raw data'!B31="","",'DF raw data'!B31) -> 1743-D | C31: =IF('DF raw data'!C31="","",'DF raw data'!C31) ->  | D31: =IF('DF raw data'!D31="","",'DF raw data'!D31) -> 
A32: =IF('DF raw data'!A32="","",'DF raw data'!A32) -> Probe Name | B32: =IF('DF raw data'!B32="","",'DF raw data'!B32) -> ID12_Bx | C32: =IF('DF raw data'!C32="","",'DF raw data'!C32) ->  | D32: =IF('DF raw data'!D32="","",'DF raw data'!D32) -> 
A33: =IF('DF raw data'!A33="","",'DF raw data'!A33) -> Probe Type | B33: =IF('DF raw data'!B33="","",'DF raw data'!B33) -> DF_ID_3D_Bxyz | C33: =IF('DF raw data'!C33="","",'DF raw data'!C33) ->  | D33: =IF('DF raw data'!D33="","",'DF raw data'!D33) -> 
A34: =IF('DF raw data'!A34="","",'DF raw data'!A34) -> Probe Danfysik Reg. Number | B34: =IF('DF raw data'!B34="","",'DF raw data'!B34) -> 2277 | C34: =IF('DF raw data'!C34="","",'DF raw data'!C34) ->  | D34: =IF('DF raw data'!D34="","",'DF raw data'!D34) -> 
A35: =IF('DF raw data'!A35="","",'DF raw data'!A35) -> Probe Axis | B35: =IF('DF raw data'!B35="","",'DF raw data'!B35) -> Bx | C35: =IF('DF raw data'!C35="","",'DF raw data'!C35) ->  | D35: =IF('DF raw data'!D35="","",'DF raw data'!D35) -> 
A36: =IF('DF raw data'!A36="","",'DF raw data'!A36) -> Probe Current Supply | B36: =IF('DF raw data'!B36="","",'DF raw data'!B36) -> 1825-D | C36: =IF('DF raw data'!C36="","",'DF raw data'!C36) ->  | D36: =IF('DF raw data'!D36="","",'DF raw data'!D36) -> 
A37: =IF('DF raw data'!A37="","",'DF raw data'!A37) -> Probe Gain Correction | B37: =IF('DF raw data'!B37="","",'DF raw data'!B37) -> 1 | C37: =IF('DF raw data'!C37="","",'DF raw data'!C37) ->  | D37: =IF('DF raw data'!D37="","",'DF raw data'!D37) -> 
A38: =IF('DF raw data'!A38="","",'DF raw data'!A38) -> Probe Offset Correction | B38: =IF('DF raw data'!B38="","",'DF raw data'!B38) -> -0.17561 | C38: =IF('DF raw data'!C38="","",'DF raw data'!C38) ->  | D38: =IF('DF raw data'!D38="","",'DF raw data'!D38) -> 
A39: =IF('DF raw data'!A39="","",'DF raw data'!A39) -> DVM Number | B39: =IF('DF raw data'!B39="","",'DF raw data'!B39) -> 3 | C39: =IF('DF raw data'!C39="","",'DF raw data'!C39) ->  | D39: =IF('DF raw data'!D39="","",'DF raw data'!D39) -> 
A40: =IF('DF raw data'!A40="","",'DF raw data'!A40) -> DVM Type | B40: =IF('DF raw data'!B40="","",'DF raw data'!B40) -> K2701 | C40: =IF('DF raw data'!C40="","",'DF raw data'!C40) ->  | D40: =IF('DF raw data'!D40="","",'DF raw data'!D40) -> 
A41: =IF('DF raw data'!A41="","",'DF raw data'!A41) -> DVM Danfysik Reg. Number | B41: =IF('DF raw data'!B41="","",'DF raw data'!B41) -> 1744-D | C41: =IF('DF raw data'!C41="","",'DF raw data'!C41) ->  | D41: =IF('DF raw data'!D41="","",'DF raw data'!D41) -> 
A42: =IF('DF raw data'!A42="","",'DF raw data'!A42) -> Probe Name | B42: =IF('DF raw data'!B42="","",'DF raw data'!B42) -> ID12_Bz | C42: =IF('DF raw data'!C42="","",'DF raw data'!C42) ->  | D42: =IF('DF raw data'!D42="","",'DF raw data'!D42) -> 
A43: =IF('DF raw data'!A43="","",'DF raw data'!A43) -> Probe Type | B43: =IF('DF raw data'!B43="","",'DF raw data'!B43) -> DF_ID_3D_Bxyz | C43: =IF('DF raw data'!C43="","",'DF raw data'!C43) ->  | D43: =IF('DF raw data'!D43="","",'DF raw data'!D43) -> 
A44: =IF('DF raw data'!A44="","",'DF raw data'!A44) -> Probe Danfysik Reg. Number | B44: =IF('DF raw data'!B44="","",'DF raw data'!B44) -> 2277 | C44: =IF('DF raw data'!C44="","",'DF raw data'!C44) ->  | D44: =IF('DF raw data'!D44="","",'DF raw data'!D44) -> 
A45: =IF('DF raw data'!A45="","",'DF raw data'!A45) -> Probe Axis | B45: =IF('DF raw data'!B45="","",'DF raw data'!B45) -> Bz | C45: =IF('DF raw data'!C45="","",'DF raw data'!C45) ->  | D45: =IF('DF raw data'!D45="","",'DF raw data'!D45) -> 
A46: =IF('DF raw data'!A46="","",'DF raw data'!A46) -> Probe Current Supply | B46: =IF('DF raw data'!B46="","",'DF raw data'!B46) -> 1825-D | C46: =IF('DF raw data'!C46="","",'DF raw data'!C46) ->  | D46: =IF('DF raw data'!D46="","",'DF raw data'!D46) -> 
A47: =IF('DF raw data'!A47="","",'DF raw data'!A47) -> Probe Gain Correction | B47: =IF('DF raw data'!B47="","",'DF raw data'!B47) -> 1 | C47: =IF('DF raw data'!C47="","",'DF raw data'!C47) ->  | D47: =IF('DF raw data'!D47="","",'DF raw data'!D47) -> 
A48: =IF('DF raw data'!A53="","",'DF raw data'!A53) -> PS-Gap: | B48: =IF('DF raw data'!B53="","",'DF raw data'!B53) -> 10 | C48: =IF('DF raw data'!C53="","",'DF raw data'!C53) ->  | D48: =IF('DF raw data'!D53="","",'DF raw data'!D53) -> 
A49: =IF('DF raw data'!A54="","",'DF raw data'!A54) -> PS-Temperature: | B49: =IF('DF raw data'!B54="","",'DF raw data'!B54) -> 24.6 | C49: =IF('DF raw data'!C54="","",'DF raw data'!C54) ->  | D49: =IF('DF raw data'!D54="","",'DF raw data'!D54) -> 
A50: =IF('DF raw data'!A55="","",'DF raw data'!A55) -> PS-Encoder: | B50: =IF('DF raw data'!B55="","",'DF raw data'!B55) -> 20.0459 | C50: =IF('DF raw data'!C55="","",'DF raw data'!C55) ->  | D50: =IF('DF raw data'!D55="","",'DF raw data'!D55) -> 
A51: =IF('DF raw data'!A56="","",'DF raw data'!A56) ->  | B51: =IF('DF raw data'!B56="","",'DF raw data'!B56) ->  | C51: =IF('DF raw data'!C56="","",'DF raw data'!C56) ->  | D51: =IF('DF raw data'!D56="","",'DF raw data'!D56) -> 
A52: =IF('DF raw data'!A57="","",'DF raw data'!A57) -> Monitor-Index | B52: =IF('DF raw data'!B57="","",'DF raw data'!B57) -> [1,1,4] | C52: =IF('DF raw data'!C57="","",'DF raw data'!C57) ->  | D52: =IF('DF raw data'!D57="","",'DF raw data'!D57) -> 
A53: =IF('DF raw data'!A58="","",'DF raw data'!A58) ->  | B53: =IF('DF raw data'!B58="","",'DF raw data'!B58) ->  | C53: =IF('DF raw data'!C58="","",'DF raw data'!C58) ->  | D53: =IF('DF raw data'!D58="","",'DF raw data'!D58) -> 
A54: =IF('DF raw data'!A59="","",'DF raw data'!A59) -> Time [s] | B54: =IF('DF raw data'!B59="","",'DF raw data'!B59) -> Y [mm] | C54: =IF('DF raw data'!C59="","",'DF raw data'!C59) -> X [mm] | D54: =IF('DF raw data'!D59="","",'DF raw data'!D59) -> Nominal current [A]
A55: =IF('DF raw data'!A60="","",'DF raw data'!A60) ->  | B55: =IF('DF raw data'!B60="","",'DF raw data'!B60) ->  | C55: =IF('DF raw data'!C60="","",'DF raw data'!C60) ->  | D55: =IF('DF raw data'!D60="","",'DF raw data'!D60) -> 
A56: =IF('DF raw data'!A61="","",'DF raw data'!A61) -> 215.1 | B56: =IF('DF raw data'!B61="","",'DF raw data'!B61) -> 31.16 | C56: =IF('DF raw data'!C61="","",'DF raw data'!C61) -> 299.8 | D56: =IF('DF raw data'!D61="","",'DF raw data'!D61) -> 0
A57: =IF('DF raw data'!A62="","",'DF raw data'!A62) ->  | B57: =IF('DF raw data'!B62="","",'DF raw data'!B62) ->  | C57: =IF('DF raw data'!C62="","",'DF raw data'!C62) ->  | D57: =IF('DF raw data'!D62="","",'DF raw data'!D62) -> 
A58: =IF('DF raw data'!A63="","",'DF raw data'!A63) -> Measurement-Index | B58: =IF('DF raw data'!B63="","",'DF raw data'!B63) -> [1,1,1201,2] | C58: =IF('DF raw data'!C63="","",'DF raw data'!C63) ->  | D58: =IF('DF raw data'!D63="","",'DF raw data'!D63) -> 
A59: =IF('DF raw data'!A64="","",'DF raw data'!A64) ->  | B59: =IF('DF raw data'!B64="","",'DF raw data'!B64) ->  | C59: =IF('DF raw data'!C64="","",'DF raw data'!C64) ->  | D59: =IF('DF raw data'!D64="","",'DF raw data'!D64) -> 
A60: =IF('DF raw data'!A65="","",'DF raw data'!A65) -> Z [mm] | B60: =IF('DF raw data'!B65="","",'DF raw data'!B65) -> By [T] | C60: =IF('DF raw data'!C65="","",'DF raw data'!C65) -> Bx [T] | D60: =IF('DF raw data'!D65="","",'DF raw data'!D65) -> Bz [T] | F60: By_corr | G60: Bx_corr | H60: Bz_corr | J60: Iy | K60: Jy | L60: Ix | M60: Jx | N60: PI
A62: =IF('DF raw data'!A67="","",'DF raw data'!A67) -> -300 | B62: =IF('DF raw data'!B67="","",'DF raw data'!B67) -> -1.95962e-05 | C62: =IF('DF raw data'!C67="","",'DF raw data'!C67) -> 0.000116245 | D62: =IF('DF raw data'!D67="","",'DF raw data'!D67) -> 2.00291e-06 | F62: =(1-$G$1*($B$49))*B62 -> -2.007826652e-05 | G62: =(1-$G$1*($B$49-$G$2))*C62 -> 0.000116779727 | H62: =(1-$G$1*($B$49-$G$2))*D62 -> 2.012123386e-06 | J62: =F62*$G$3 -> -1.003913326e-05 | K62: =J62*$G$3 -> -5.01956663e-06 | L62: =G62*$G$3 -> 5.83898635e-05 | M62: =L62*$G$3 -> 2.919493175e-05 | N62: =(J62^2+L62^2)*$G$3 -> 1.755080178e-09
A63: =IF('DF raw data'!A68="","",'DF raw data'!A68) -> -299.5 | B63: =IF('DF raw data'!B68="","",'DF raw data'!B68) -> -1.53651e-05 | C63: =IF('DF raw data'!C68="","",'DF raw data'!C68) -> 0.000112824 | D63: =IF('DF raw data'!D68="","",'DF raw data'!D68) -> 1.33902e-06 | F63: =(1-$G$1*($B$49-$G$2))*B63 -> -1.543577946e-05 | G63: =(1-$G$1*($B$49-$G$2))*C63 -> 0.0001133429904 | H63: 1.345179492e-06 | J63: =F63*$G$3+J62 -> -1.775702299e-05 | K63: =J63*$G$3+K62 -> -1.389807812e-05 | L63: =G63*$G$3+L62 -> 0.0001150613587 | M63: =L63*$G$3+M62 -> 8.67256111e-05 | N63: =(J63^2+L63^2)*$G$3+N62 -> 8.532294244e-09
A64: =IF('DF raw data'!A69="","",'DF raw data'!A69) -> -299 | B64: =IF('DF raw data'!B69="","",'DF raw data'!B69) -> -9.97966e-06 | C64: =IF('DF raw data'!C69="","",'DF raw data'!C69) -> 0.000114021 | D64: =IF('DF raw data'!D69="","",'DF raw data'!D69) -> 1.42707e-07 | F64: =(1-$G$1*($B$49-$G$2))*B64 -> -1.002556644e-05 | G64: 0.0001145454966 | H64: 1.433634522e-07 | J64: =F64*$G$3+J63 -> -2.276980621e-05 | K64: =J64*$G$3+K63 -> -2.528298123e-05 | L64: =G64*$G$3+L63 -> 0.000172334107 | M64: =L64*$G$3+M63 -> 0.0001728926646 | N64: =(J64^2+L64^2)*$G$3+N63 -> 2.36410485e-08
A65: =IF('DF raw data'!A70="","",'DF raw data'!A70) -> -298.5 | B65: =IF('DF raw data'!B70="","",'DF raw data'!B70) -> -2.69029e-05 | C65: =IF('DF raw data'!C70="","",'DF raw data'!C70) -> 0.000116034 | D65: =IF('DF raw data'!D70="","",'DF raw data'!D70) -> -3.60257e-08 | F65: -2.702665334e-05 | G65: 0.0001165677564 | H65: -3.619141822e-08 | J65: -3.628313288e-05 | K65: -4.342454767e-05 | L65: 0.0002306179852 | M65: 0.0002882016572 | N65: 5.089160891e-08
A66: =IF('DF raw data'!A71="","",'DF raw data'!A71) -> -298 | B66: =IF('DF raw data'!B71="","",'DF raw data'!B71) -> -2.50442e-05 | C66: =IF('DF raw data'!C71="","",'DF raw data'!C71) -> 0.000111388 | D66: =IF('DF raw data'!D71="","",'DF raw data'!D71) -> 6.24373e-07 | F66: -2.515940332e-05 | G66: 0.0001119003848 | H66: 6.272451158e-07 | J66: -4.886283454e-05 | K66: -6.785596494e-05 | L66: 0.0002865681776 | M66: 0.000431485746 | N66: 9.314605742e-08
A67: =IF('DF raw data'!A72="","",'DF raw data'!A72) -> -297.5 | B67: =IF('DF raw data'!B72="","",'DF raw data'!B72) -> -2.16468e-05 | C67: =IF('DF raw data'!C72="","",'DF raw data'!C72) -> 0.000106348 | D67: =IF('DF raw data'!D72="","",'DF raw data'!D72) -> 6.1314e-07 | F67: -2.174637528e-05 | G67: 0.0001068372008 | H67: 6.15960444e-07 | J67: -5.973602218e-05 | K67: -9.772397603e-05 | L67: 0.000339986778 | M67: 0.000601479135 | N67: 1.527257582e-07
A68: =IF('DF raw data'!A73="","",'DF raw data'!A73) -> -297 | B68: =IF('DF raw data'!B73="","",'DF raw data'!B73) -> -1.94667e-05 | C68: =IF('DF raw data'!C73="","",'DF raw data'!C73) -> 0.000111193 | D68: =IF('DF raw data'!D73="","",'DF raw data'!D73) -> -2.82487e-08 | F68: -1.955624682e-05 | G68: 0.0001117044878 | H68: -2.837864402e-08 | J68: -6.951414559e-05 | K68: -0.0001324810488 | L68: 0.0003958390219 | M68: 0.000799398646 | N68: 2.33486132e-07
A69: =IF('DF raw data'!A74="","",'DF raw data'!A74) -> -296.5 | B69: =IF('DF raw data'!B74="","",'DF raw data'!B74) -> -3.78004e-05 | C69: =IF('DF raw data'!C74="","",'DF raw data'!C74) -> 0.000119191 | D69: =IF('DF raw data'!D74="","",'DF raw data'!D74) -> 2.46896e-07 | F69: -3.797428184e-05 | G69: 0.0001197392786 | H69: 2.480317216e-07 | J69: -8.850128651e-05 | K69: -0.0001767316921 | L69: 0.0004557086612 | M69: 0.001027252977 | N69: 3.412375629e-07
A70: =IF('DF raw data'!A75="","",'DF raw data'!A75) -> -296 | B70: =IF('DF raw data'!B75="","",'DF raw data'!B75) -> -2.8442e-05 | C70: =IF('DF raw data'!C75="","",'DF raw data'!C75) -> 0.000119454 | D70: =IF('DF raw data'!D75="","",'DF raw data'!D75) -> 1.15862e-06 | F70: -2.85728332e-05 | G70: 0.0001200034884 | H70: 1.163949652e-06 | J70: -0.0001027877031 | K70: -0.0002281255436 | L70: 0.0005157104054 | M70: 0.001285108179 | N70: 4.794988299e-07
A71: =IF('DF raw data'!A76="","",'DF raw data'!A76) -> -295.5 | B71: =IF('DF raw data'!B76="","",'DF raw data'!B76) -> -2.97883e-05 | C71: =IF('DF raw data'!C76="","",'DF raw data'!C76) -> 0.000119713 | D71: =IF('DF raw data'!D76="","",'DF raw data'!D76) -> 1.59491e-06 | F71: -2.992532618e-05 | G71: 0.0001202636798 | H71: 1.602246586e-06 | J71: -0.0001177503662 | K71: -0.0002870007267 | L71: 0.0005758422453 | M71: 0.001573029302 | N71: 6.5222855e-07
A72: =IF('DF raw data'!A77="","",'DF raw data'!A77) -> -295 | B72: =IF('DF raw data'!B77="","",'DF raw data'!B77) -> -2.31857e-05 | C72: =IF('DF raw data'!C77="","",'DF raw data'!C77) -> 0.000119653 | D72: =IF('DF raw data'!D77="","",'DF raw data'!D77) -> 1.47694e-06 | F72: -2.329235422e-05 | G72: 0.0001202034038 | H72: 1.483733924e-06 | J72: -0.0001293965433 | K72: -0.0003516989984 | L72: 0.0006359439472 | M72: 0.001891001276 | N72: 8.628126347e-07
A73: =IF('DF raw data'!A78="","",'DF raw data'!A78) -> -294.5 | B73: =IF('DF raw data'!B78="","",'DF raw data'!B78) -> -2.88908e-05 | C73: =IF('DF raw data'!C78="","",'DF raw data'!C78) -> 0.000107319 | D73: =IF('DF raw data'!D78="","",'DF raw data'!D78) -> 1.49022e-06 | F73: -2.902369768e-05 | G73: 0.0001078126674 | H73: 1.497075012e-06 | J73: -0.0001439083921 | K73: -0.0004236531945 | L73: 0.0006898502809 | M73: 0.002235926416 | N73: 1.111114152e-06
A74: =IF('DF raw data'!A79="","",'DF raw data'!A79) -> -294 | B74: =IF('DF raw data'!B79="","",'DF raw data'!B79) -> -2.04933e-05 | C74: =IF('DF raw data'!C79="","",'DF raw data'!C79) -> 0.00010986 | D74: =IF('DF raw data'!D79="","",'DF raw data'!D79) -> 1.55302e-06 | F74: -2.058756918e-05 | G74: 0.000110365356 | H74: 1.560163892e-06 | J74: -0.0001542021767 | K74: -0.0005007542828 | L74: 0.0007450329589 | M74: 0.002608442895 | N74: 1.400540363e-06
A75: =IF('DF raw data'!A80="","",'DF raw data'!A80) -> -293.5 | B75: =IF('DF raw data'!B80="","",'DF raw data'!B80) -> -2.28652e-05 | C75: =IF('DF raw data'!C80="","",'DF raw data'!C80) -> 0.000114091 | D75: =IF('DF raw data'!D80="","",'DF raw data'!D80) -> 1.5675e-06 | F75: -2.297037992e-05 | G75: 0.0001146158186 | H75: 1.5747105e-06 | J75: -0.0001656873667 | K75: -0.0005835979662 | L75: 0.0008023408682 | M75: 0.00300961333 | N75: 1.736141949e-06
A76: =IF('DF raw data'!A81="","",'DF raw data'!A81) -> -293 | B76: =IF('DF raw data'!B81="","",'DF raw data'!B81) -> -1.88267e-05 | C76: =IF('DF raw data'!C81="","",'DF raw data'!C81) -> 0.000121366 | D76: =IF('DF raw data'!D81="","",'DF raw data'!D81) -> 1.51685e-06 | F76: -1.891330282e-05 | G76: 0.0001219242836 | H76: 1.52382751e-06 | J76: -0.0001751440181 | K76: -0.0006711699752 | L76: 0.00086330301 | M76: 0.003441264835 | N76: 2.124125706e-06
A77: =IF('DF raw data'!A82="","",'DF raw data'!A82) -> -292.5 | B77: =IF('DF raw data'!B82="","",'DF raw data'!B82) -> -1.7737e-05 | C77: =IF('DF raw data'!C82="","",'DF raw data'!C82) -> 0.000132029 | D77: =IF('DF raw data'!D82="","",'DF raw data'!D82) -> 1.42705e-06 | F77: -1.78185902e-05 | G77: 0.0001326363334 | H77: 1.43361443e-06 | J77: -0.0001840533132 | K77: -0.0007631966318 | L77: 0.0009296211767 | M77: 0.003906075423 | N77: 2.573161283e-06
A78: =IF('DF raw data'!A83="","",'DF raw data'!A83) -> -292 | B78: =IF('DF raw data'!B83="","",'DF raw data'!B83) -> -1.58137e-05 | C78: =IF('DF raw data'!C83="","",'DF raw data'!C83) -> 0.00012565 | D78: =IF('DF raw data'!D83="","",'DF raw data'!D83) -> 1.29208e-06 | F78: -1.588644302e-05 | G78: 0.00012622799 | H78: 1.298023568e-06 | J78: -0.0001919965347 | K78: -0.0008591948992 | L78: 0.0009927351717 | M78: 0.004402443009 | N78: 3.084354179e-06
A79: =IF('DF raw data'!A84="","",'DF raw data'!A84) -> -291.5 | B79: =IF('DF raw data'!B84="","",'DF raw data'!B84) -> -1.66974e-05 | C79: =IF('DF raw data'!C84="","",'DF raw data'!C84) -> 0.000117878 | D79: =IF('DF raw data'!D84="","",'DF raw data'!D84) -> -1.98444e-05 | F79: -1.677420804e-05 | G79: 0.0001184202388 | H79: -1.993568424e-05 | J79: -0.0002003836387 | K79: -0.0009593867186 | L79: 0.001051945291 | M79: 0.004928415654 | N79: 3.657725428e-06
A80: =IF('DF raw data'!A85="","",'DF raw data'!A85) -> -291 | B80: =IF('DF raw data'!B85="","",'DF raw data'!B85) -> -1.2214e-05 | C80: =IF('DF raw data'!C85="","",'DF raw data'!C85) -> 0.000120914 | D80: =IF('DF raw data'!D85="","",'DF raw data'!D85) -> -1.41946e-05 | F80: -1.22701844e-05 | G80: 0.0001214702044 | H80: -1.425989516e-05 | J80: -0.0002065187309 | K80: -0.001062646084 | L80: 0.001112680393 | M80: 0.005484755851 | N80: 4.29807925e-06
A81: =IF('DF raw data'!A86="","",'DF raw data'!A86) -> -290.5 | B81: =IF('DF raw data'!B86="","",'DF raw data'!B86) -> -1.92612e-05 | C81: =IF('DF raw data'!C86="","",'DF raw data'!C86) -> 0.000131437 | D81: =IF('DF raw data'!D86="","",'DF raw data'!D86) -> -2.05026e-05 | F81: -1.934980152e-05 | G81: 0.0001320416102 | H81: -2.059691196e-05 | J81: -0.0002161936317 | K81: -0.0011707429 | L81: 0.001178701198 | M81: 0.00607410645 | N81: 5.01611735e-06
A82: =IF('DF raw data'!A87="","",'DF raw data'!A87) -> -290 | B82: =IF('DF raw data'!B87="","",'DF raw data'!B87) -> -1.74613e-05 | C82: =IF('DF raw data'!C87="","",'DF raw data'!C87) -> 0.000127082 | D82: =IF('DF raw data'!D87="","",'DF raw data'!D87) -> -2.8311e-05 | F82: -1.754162198e-05 | G82: 0.0001276665772 | H82: -2.84412306e-05 | J82: -0.0002249644427 | K82: -0.001283225121 | L82: 0.001242534487 | M82: 0.006695373694 | N82: 5.813367826e-06
A83: =IF('DF raw data'!A88="","",'DF raw data'!A88) -> -289.5 | B83: =IF('DF raw data'!B88="","",'DF raw data'!B88) -> -1.75367e-05 | C83: =IF('DF raw data'!C88="","",'DF raw data'!C88) -> 0.000123441 | D83: =IF('DF raw data'!D88="","",'DF raw data'!D88) -> -1.07039e-05 | F83: -1.761736882e-05 | G83: 0.0001240088286 | H83: -1.075313794e-05 | J83: -0.0002337731271 | K83: -0.001400111685 | L83: 0.001304538901 | M83: 0.007347643144 | N83: 6.691603636e-06
A84: =IF('DF raw data'!A89="","",'DF raw data'!A89) -> -289 | B84: =IF('DF raw data'!B89="","",'DF raw data'!B89) -> -1.72145e-05 | C84: =IF('DF raw data'!C89="","",'DF raw data'!C89) -> 0.000117821 | D84: =IF('DF raw data'!D89="","",'DF raw data'!D89) -> -1.3163e-05 | F84: -1.72936867e-05 | G84: 0.0001183629766 | H84: -1.32235498e-05 | J84: -0.0002424199704 | K84: -0.00152132167 | L84: 0.00136372039 | M84: 0.008029503339 | N84: 7.650854008e-06
A85: =IF('DF raw data'!A90="","",'DF raw data'!A90) -> -288.5 | B85: =IF('DF raw data'!B90="","",'DF raw data'!B90) -> -2.29221e-05 | C85: =IF('DF raw data'!C90="","",'DF raw data'!C90) -> 0.00011672 | D85: =IF('DF raw data'!D90="","",'DF raw data'!D90) -> -9.71782e-06 | F85: -2.302754166e-05 | G85: 0.000117256912 | H85: -9.762521972e-06 | J85: -0.0002539337413 | K85: -0.001648288541 | L85: 0.001422348846 | M85: 0.008740677762 | N85: 8.6946333e-06
A86: =IF('DF raw data'!A91="","",'DF raw data'!A91) -> -288 | B86: =IF('DF raw data'!B91="","",'DF raw data'!B91) -> -2.75311e-05 | C86: =IF('DF raw data'!C91="","",'DF raw data'!C91) -> 0.000124685 | D86: =IF('DF raw data'!D91="","",'DF raw data'!D91) -> -1.97129e-05 | F86: -2.765774306e-05 | G86: 0.000125258551 | H86: -1.980357934e-05 | J86: -0.0002677626128 | K86: -0.001782169847 | L86: 0.001484978121 | M86: 0.009483166822 | N86: 9.833061718e-06
A87: =IF('DF raw data'!A92="","",'DF raw data'!A92) -> -287.5 | B87: =IF('DF raw data'!B92="","",'DF raw data'!B92) -> -1.21495e-05 | C87: =IF('DF raw data'!C92="","",'DF raw data'!C92) -> 0.000127608 | D87: =IF('DF raw data'!D92="","",'DF raw data'!D92) -> -1.4549e-05 | F87: -1.22053877e-05 | G87: 0.0001281949968 | H87: -1.46159254e-05 | J87: -0.0002738653067 | K87: -0.0019191025 | L87: 0.001549075619 | M87: 0.01025770463 | N87: 1.107038046e-05
A88: =IF('DF raw data'!A93="","",'DF raw data'!A93) -> -287 | B88: =IF('DF raw data'!B93="","",'DF raw data'!B93) -> -1.47781e-05 | C88: =IF('DF raw data'!C93="","",'DF raw data'!C93) -> 0.000125966 | D88: =IF('DF raw data'!D93="","",'DF raw data'!D93) -> -1.41432e-05 | F88: -1.484607926e-05 | G88: 0.0001265454436 | H88: -1.420825872e-05 | J88: -0.0002812883463 | K88: -0.002059746674 | L88: 0.001612348341 | M88: 0.0110638788 | N88: 1.240977561e-05
A89: =IF('DF raw data'!A94="","",'DF raw data'!A94) -> -286.5 | B89: =IF('DF raw data'!B94="","",'DF raw data'!B94) -> -1.67628e-05 | C89: =IF('DF raw data'!C94="","",'DF raw data'!C94) -> 0.000118653 | D89: =IF('DF raw data'!D94="","",'DF raw data'!D94) -> -1.80256e-05 | F89: -1.683990888e-05 | G89: 0.0001191988038 | H89: -1.810851776e-05 | J89: -0.0002897083007 | K89: -0.002204600824 | L89: 0.001671947743 | M89: 0.01189985267 | N89: 1.384944569e-05
A90: =IF('DF raw data'!A95="","",'DF raw data'!A95) -> -286 | B90: =IF('DF raw data'!B95="","",'DF raw data'!B95) -> -2.23399e-05 | C90: =IF('DF raw data'!C95="","",'DF raw data'!C95) -> 0.000118588 | D90: =IF('DF raw data'!D95="","",'DF raw data'!D95) -> -1.76392e-05 | F90: -2.244266354e-05 | G90: 0.0001191335048 | H90: -1.772034032e-05 | J90: -0.0003009296325 | K90: -0.00235506564 | L90: 0.001731514496 | M90: 0.01276560992 | N90: 1.539379624e-05
A91: =IF('DF raw data'!A96="","",'DF raw data'!A96) -> -285.5 | B91: =IF('DF raw data'!B96="","",'DF raw data'!B96) -> -1.84259e-05 | C91: =IF('DF raw data'!C96="","",'DF raw data'!C96) -> 0.000118449 | D91: =IF('DF raw data'!D96="","",'DF raw data'!D96) -> -2.34433e-05 | F91: -1.851065914e-05 | G91: 0.0001189938654 | H91: -2.355113918e-05 | J91: -0.0003101849621 | K91: -0.002510158121 | L91: 0.001791011428 | M91: 0.01366111564 | N91: 1.704576456e-05
A92: =IF('DF raw data'!A97="","",'DF raw data'!A97) -> -285 | B92: =IF('DF raw data'!B97="","",'DF raw data'!B97) -> -1.76628e-05 | C92: =IF('DF raw data'!C97="","",'DF raw data'!C97) -> 0.000115056 | D92: =IF('DF raw data'!D97="","",'DF raw data'!D97) -> -1.40562e-05 | F92: -1.774404888e-05 | G92: 0.0001155852576 | H92: -1.412085852e-05 | J92: -0.0003190569865 | K92: -0.002669686614 | L92: 0.001848804057 | M92: 0.01458551766 | N92: 1.880570146e-05
A93: =IF('DF raw data'!A98="","",'DF raw data'!A98) -> -284.5 | B93: =IF('DF raw data'!B98="","",'DF raw data'!B98) -> -2.04792e-05 | C93: =IF('DF raw data'!C98="","",'DF raw data'!C98) -> 0.000121034 | D93: =IF('DF raw data'!D98="","",'DF raw data'!D98) -> -2.02408e-05 | F93: -2.057340432e-05 | G93: 0.0001215907564 | H93: -2.033390768e-05 | J93: -0.0003293436887 | K93: -0.002834358459 | L93: 0.001909599435 | M93: 0.01554031738 | N93: 2.06832201e-05
A94: =IF('DF raw data'!A99="","",'DF raw data'!A99) -> -284 | B94: =IF('DF raw data'!B99="","",'DF raw data'!B99) -> -3.13871e-05 | C94: =IF('DF raw data'!C99="","",'DF raw data'!C99) -> 0.000125857 | D94: =IF('DF raw data'!D99="","",'DF raw data'!D99) -> -4.33365e-06 | F94: -3.153148066e-05 | G94: 0.0001264359422 | H94: -4.35358479e-06 | J94: -0.000345109429 | K94: -0.003006913173 | L94: 0.001972817406 | M94: 0.01652672609 | N94: 2.268877461e-05
A95: =IF('DF raw data'!A100="","",'DF raw data'!A100) -> -283.5 | B95: =IF('DF raw data'!B100="","",'DF raw data'!B100) -> -2.06106e-05 | C95: =IF('DF raw data'!C100="","",'DF raw data'!C100) -> 0.000122292 | D95: =IF('DF raw data'!D100="","",'DF raw data'!D100) -> -1.56693e-05 | F95: -2.070540876e-05 | G95: 0.0001228545432 | H95: -1.574137878e-05 | J95: -0.0003554621334 | K95: -0.00318464424 | L95: 0.002034244678 | M95: 0.01754384842 | N95: 2.482102698e-05
A96: =IF('DF raw data'!A101="","",'DF raw data'!A101) -> -283 | B96: =IF('DF raw data'!B101="","",'DF raw data'!B101) -> -1.83037e-05 | C96: =IF('DF raw data'!C101="","",'DF raw data'!C101) -> 0.000121958 | D96: =IF('DF raw data'!D101="","",'DF raw data'!D101) -> -1.4166e-05 | F96: -1.838789702e-05 | G96: 0.0001225190068 | H96: -1.42311636e-05 | J96: -0.0003646560819 | K96: -0.003366972281 | L96: 0.002095504181 | M96: 0.01859160052 | N96: 2.70830829e-05
A97: =IF('DF raw data'!A102="","",'DF raw data'!A102) -> -282.5 | B97: =IF('DF raw data'!B102="","",'DF raw data'!B102) -> -3.35646e-05 | C97: =IF('DF raw data'!C102="","",'DF raw data'!C102) -> 0.000113654 | D97: =IF('DF raw data'!D102="","",'DF raw data'!D102) -> -7.67468e-06 | F97: -3.371899716e-05 | G97: 0.0001141768084 | H97: -7.709983528e-06 | J97: -0.0003815155805 | K97: -0.003557730071 | L97: 0.002152592586 | M97: 0.01966789681 | N97: 2.947268739e-05
A98: =IF('DF raw data'!A103="","",'DF raw data'!A103) -> -282 | B98: =IF('DF raw data'!B103="","",'DF raw data'!B103) -> -1.9393e-05 | C98: =IF('DF raw data'!C103="","",'DF raw data'!C103) -> 0.000120421 | D98: =IF('DF raw data'!D103="","",'DF raw data'!D103) -> -1.50369e-05 | F98: -1.94822078e-05 | G98: 0.0001209749366 | H98: -1.510606974e-05 | J98: -0.0003912566844 | K98: -0.003753358413 | L98: 0.002213080054 | M98: 0.02077443684 | N98: 3.199808995e-05
A99: =IF('DF raw data'!A104="","",'DF raw data'!A104) -> -281.5 | B99: =IF('DF raw data'!B104="","",'DF raw data'!B104) -> -2.31808e-05 | C99: =IF('DF raw data'!C104="","",'DF raw data'!C104) -> 0.000119238 | D99: =IF('DF raw data'!D104="","",'DF raw data'!D104) -> -6.04529e-06 | F99: -2.328743168e-05 | G99: 0.0001197864948 | H99: -6.073098334e-06 | J99: -0.0004029004002 | K99: -0.003954808613 | L99: 0.002272973301 | M99: 0.02191092349 | N99: 3.466245813e-05
A100: =IF('DF raw data'!A105="","",'DF raw data'!A105) -> -281 | B100: =IF('DF raw data'!B105="","",'DF raw data'!B105) -> -1.69547e-05 | C100: =IF('DF raw data'!C105="","",'DF raw data'!C105) -> 0.000116453 | D100: =IF('DF raw data'!D105="","",'DF raw data'!D105) -> -1.84092e-05 | F100: -1.703269162e-05 | G100: 0.0001169886838 | H100: -1.849388232e-05 | J100: -0.000411416746 | K100: -0.004160516986 | L100: 0.002331467643 | M100: 0.02307665731 | N100: 3.746496068e-05
A101: =IF('DF raw data'!A106="","",'DF raw data'!A106) -> -280.5 | B101: =IF('DF raw data'!B106="","",'DF raw data'!B106) -> -1.15725e-05 | C101: =IF('DF raw data'!C106="","",'DF raw data'!C106) -> 0.000111201 | D101: =IF('DF raw data'!D106="","",'DF raw data'!D106) -> -1.48998e-05 | F101: -1.16257335e-05 | G101: 0.0001117125246 | H101: -1.496833908e-05 | J101: -0.0004172296128 | K101: -0.004369131793 | L101: 0.002387323905 | M101: 0.02427031926 | N101: 4.040165867e-05
A102: =IF('DF raw data'!A107="","",'DF raw data'!A107) -> -280 | B102: =IF('DF raw data'!B107="","",'DF raw data'!B107) -> -1.41391e-05 | C102: =IF('DF raw data'!C107="","",'DF raw data'!C107) -> 0.000116538 | D102: =IF('DF raw data'!D107="","",'DF raw data'!D107) -> -1.09104e-05 | F102: -1.420413986e-05 | G102: 0.0001170740748 | H102: -1.096058784e-05 | J102: -0.0004243316827 | K102: -0.004581297634 | L102: 0.002445860943 | M102: 0.02549324973 | N102: 4.348280524e-05
A103: =IF('DF raw data'!A108="","",'DF raw data'!A108) -> -279.5 | B103: =IF('DF raw data'!B108="","",'DF raw data'!B108) -> -2.58071e-05 | C103: =IF('DF raw data'!C108="","",'DF raw data'!C108) -> 0.000116685 | D103: =IF('DF raw data'!D108="","",'DF raw data'!D108) -> -9.06578e-06 | F103: -2.592581266e-05 | G103: 0.000117221751 | H103: -9.107482588e-06 | J103: -0.000437294589 | K103: -0.004799944929 | L103: 0.002504471818 | M103: 0.02674548564 | N103: 4.671460806e-05
A104: =IF('DF raw data'!A109="","",'DF raw data'!A109) -> -279 | B104: =IF('DF raw data'!B109="","",'DF raw data'!B109) -> -2.72211e-05 | C104: =IF('DF raw data'!C109="","",'DF raw data'!C109) -> 0.000127242 | D104: =IF('DF raw data'!D109="","",'DF raw data'!D109) -> -3.31363e-06 | F104: -2.734631706e-05 | G104: 0.0001278273132 | H104: -3.328872698e-06 | J104: -0.0004509677476 | K104: -0.005025428802 | L104: 0.002568385475 | M104: 0.02802967838 | N104: 5.011459599e-05
A105: =IF('DF raw data'!A110="","",'DF raw data'!A110) -> -278.5 | B105: =IF('DF raw data'!B110="","",'DF raw data'!B110) -> -8.62451e-06 | C105: =IF('DF raw data'!C110="","",'DF raw data'!C110) -> 0.000118825 | D105: =IF('DF raw data'!D110="","",'DF raw data'!D110) -> -1.35841e-05 | F105: -8.664182746e-06 | G105: 0.000119371595 | H105: -1.364658686e-05 | J105: -0.0004552998389 | K105: -0.005253078722 | L105: 0.002628071273 | M105: 0.02934371401 | N105: 5.367162427e-05
A106: =IF('DF raw data'!A111="","",'DF raw data'!A111) -> -278 | B106: =IF('DF raw data'!B111="","",'DF raw data'!B111) -> -1.09923e-05 | C106: =IF('DF raw data'!C111="","",'DF raw data'!C111) -> 0.000111376 | D106: =IF('DF raw data'!D111="","",'DF raw data'!D111) -> -1.98283e-05 | F106: -1.104286458e-05 | G106: 0.0001118883296 | H106: -1.991951018e-05 | J106: -0.0004608212712 | K106: -0.005483489358 | L106: 0.002684015437 | M106: 0.03068572173 | N106: 5.737977182e-05
A107: =IF('DF raw data'!A112="","",'DF raw data'!A112) -> -277.5 | B107: =IF('DF raw data'!B112="","",'DF raw data'!B112) -> -1.70237e-05 | C107: =IF('DF raw data'!C112="","",'DF raw data'!C112) -> 0.000114397 | D107: =IF('DF raw data'!D112="","",'DF raw data'!D112) -> -1.10613e-05 | F107: -1.710200902e-05 | G107: 0.0001149232262 | H107: -1.111218198e-05 | J107: -0.0004693722757 | K107: -0.005718175495 | L107: 0.00274147705 | M107: 0.03205646026 | N107: 6.12477752e-05
A108: =IF('DF raw data'!A113="","",'DF raw data'!A113) -> -277 | B108: =IF('DF raw data'!B113="","",'DF raw data'!B113) -> -2.44503e-05 | C108: =IF('DF raw data'!C113="","",'DF raw data'!C113) -> 0.000113842 | D108: =IF('DF raw data'!D113="","",'DF raw data'!D113) -> -2.53651e-05 | F108: -2.456277138e-05 | G108: 0.0001143656732 | H108: -2.548177946e-05 | J108: -0.0004816536614 | K108: -0.005959002326 | L108: 0.002798659887 | M108: 0.0334557902 | N108: 6.52800189e-05
A109: =IF('DF raw data'!A114="","",'DF raw data'!A114) -> -276.5 | B109: =IF('DF raw data'!B114="","",'DF raw data'!B114) -> -1.99051e-05 | C109: =IF('DF raw data'!C114="","",'DF raw data'!C114) -> 0.000115671 | D109: =IF('DF raw data'!D114="","",'DF raw data'!D114) -> -1.60869e-05 | F109: -1.999666346e-05 | G109: 0.0001162030866 | H109: -1.616089974e-05 | J109: -0.0004916519932 | K109: -0.006204828323 | L109: 0.00285676143 | M109: 0.03488417092 | N109: 6.948142268e-05
A110: =IF('DF raw data'!A115="","",'DF raw data'!A115) -> -276 | B110: =IF('DF raw data'!B115="","",'DF raw data'!B115) -> -1.15719e-05 | C110: =IF('DF raw data'!C115="","",'DF raw data'!C115) -> 0.000110236 | D110: =IF('DF raw data'!D115="","",'DF raw data'!D115) -> -1.58924e-05 | F110: -1.162513074e-05 | G110: 0.0001107430856 | H110: -1.596550504e-05 | J110: -0.0004974645585 | K110: -0.006453560602 | L110: 0.002912132973 | M110: 0.0363402374 | N110: 7.38454174e-05
A111: =IF('DF raw data'!A116="","",'DF raw data'!A116) -> -275.5 | B111: =IF('DF raw data'!B116="","",'DF raw data'!B116) -> -2.25967e-05 | C111: =IF('DF raw data'!C116="","",'DF raw data'!C116) -> 0.000112681 | D111: =IF('DF raw data'!D116="","",'DF raw data'!D116) -> -1.69493e-05 | F111: -2.270064482e-05 | G111: 0.0001131993326 | H111: -1.702726678e-05 | J111: -0.0005088148809 | K111: -0.006707968042 | L111: 0.002968732639 | M111: 0.03782460372 | N111: 7.838155043e-05
A112: =IF('DF raw data'!A117="","",'DF raw data'!A117) -> -275 | B112: =IF('DF raw data'!B117="","",'DF raw data'!B117) -> -2.36224e-05 | C112: =IF('DF raw data'!C117="","",'DF raw data'!C117) -> 0.000115318 | D112: =IF('DF raw data'!D117="","",'DF raw data'!D117) -> -1.69067e-05 | F112: -2.373106304e-05 | G112: 0.0001158484628 | H112: -1.698447082e-05 | J112: -0.0005206804125 | K112: -0.006968308249 | L112: 0.003026656871 | M112: 0.03933793216 | N112: 8.309743039e-05
A113: =IF('DF raw data'!A118="","",'DF raw data'!A118) -> -274.5 | B113: =IF('DF raw data'!B118="","",'DF raw data'!B118) -> -1.60001e-05 | C113: =IF('DF raw data'!C118="","",'DF raw data'!C118) -> 0.000119286 | D113: =IF('DF raw data'!D118="","",'DF raw data'!D118) -> -7.98098e-06 | F113: -1.607370046e-05 | G113: 0.0001198347156 | H113: -8.017692508e-06 | J113: -0.0005287172627 | K113: -0.00723266688 | L113: 0.003086574229 | M113: 0.04088121927 | N113: 8.800067159e-05
A114: =IF('DF raw data'!A119="","",'DF raw data'!A119) -> -274 | B114: =IF('DF raw data'!B119="","",'DF raw data'!B119) -> -2.73404e-05 | C114: =IF('DF raw data'!C119="","",'DF raw data'!C119) -> 0.000118798 | D114: =IF('DF raw data'!D119="","",'DF raw data'!D119) -> -1.69611e-05 | F114: -2.746616584e-05 | G114: 0.0001193444708 | H114: -1.703912106e-05 | J114: -0.0005424503456 | K114: -0.007503892053 | L114: 0.003146246464 | M114: 0.04245434251 | N114: 9.309723119e-05
A115: =IF('DF raw data'!A120="","",'DF raw data'!A120) -> -273.5 | B115: =IF('DF raw data'!B120="","",'DF raw data'!B120) -> -2.28528e-05 | C115: =IF('DF raw data'!C120="","",'DF raw data'!C120) -> 0.000120662 | D115: =IF('DF raw data'!D120="","",'DF raw data'!D120) -> -1.74454e-05 | F115: -2.295792288e-05 | G115: 0.0001212170452 | H115: -1.752564884e-05 | J115: -0.000553929307 | K115: -0.007780856706 | L115: 0.003206854987 | M115: 0.04405777 | N115: 9.839260948e-05
A116: =IF('DF raw data'!A121="","",'DF raw data'!A121) -> -273 | B116: =IF('DF raw data'!B121="","",'DF raw data'!B121) -> -1.77941e-05 | C116: =IF('DF raw data'!C121="","",'DF raw data'!C121) -> 0.000119027 | D116: =IF('DF raw data'!D121="","",'DF raw data'!D121) -> -9.22308e-06 | F116: -1.787595286e-05 | G116: 0.0001195745242 | H116: -9.265506168e-06 | J116: -0.0005628672835 | K116: -0.008062290348 | L116: 0.003266642249 | M116: 0.04569109112 | N116: 0.0001038864951
A117: =IF('DF raw data'!A122="","",'DF raw data'!A122) -> -272.5 | B117: =IF('DF raw data'!B122="","",'DF raw data'!B122) -> -2.40834e-05 | C117: =IF('DF raw data'!C122="","",'DF raw data'!C122) -> 0.000117811 | D117: =IF('DF raw data'!D122="","",'DF raw data'!D122) -> 1.95336e-06 | F117: -2.419418364e-05 | G117: 0.0001183529306 | H117: 1.962345456e-06 | J117: -0.0005749643753 | K117: -0.008349772536 | L117: 0.003325818714 | M117: 0.04735400048 | N117: 0.0001095823221
A118: =IF('DF raw data'!A123="","",'DF raw data'!A123) -> -272 | B118: =IF('DF raw data'!B123="","",'DF raw data'!B123) -> -1.45267e-05 | C118: =IF('DF raw data'!C123="","",'DF raw data'!C123) -> 0.000129072 | D118: =IF('DF raw data'!D123="","",'DF raw data'!D123) -> -6.31547e-06 | F118: -1.459352282e-05 | G118: 0.0001296657312 | H118: -6.344521162e-06 | J118: -0.0005822611367 | K118: -0.008640903104 | L118: 0.00339065158 | M118: 0.04904932627 | N118: 0.0001155000952
A119: =IF('DF raw data'!A124="","",'DF raw data'!A124) -> -271.5 | B119: =IF('DF raw data'!B124="","",'DF raw data'!B124) -> -2.9654e-05 | C119: =IF('DF raw data'!C124="","",'DF raw data'!C124) -> 0.000119836 | D119: =IF('DF raw data'!D124="","",'DF raw data'!D124) -> -7.7363e-06 | F119: -2.97904084e-05 | G119: 0.0001203872456 | H119: -7.77188698e-06 | J119: -0.0005971563409 | K119: -0.008939481274 | L119: 0.003450845202 | M119: 0.05077474887 | N119: 0.0001216325594
A120: =IF('DF raw data'!A125="","",'DF raw data'!A125) -> -271 | B120: =IF('DF raw data'!B125="","",'DF raw data'!B125) -> -2.92688e-05 | C120: =IF('DF raw data'!C125="","",'DF raw data'!C125) -> 0.000115416 | D120: =IF('DF raw data'!D125="","",'DF raw data'!D125) -> -8.68433e-06 | F120: -2.940343648e-05 | G120: 0.0001159469136 | H120: -8.724277918e-06 | J120: -0.0006118580591 | K120: -0.009245410304 | L120: 0.003508818659 | M120: 0.0525291582 | N120: 0.0001279756487
A121: =IF('DF raw data'!A126="","",'DF raw data'!A126) -> -270.5 | B121: =IF('DF raw data'!B126="","",'DF raw data'!B126) -> -2.53558e-05 | C121: =IF('DF raw data'!C126="","",'DF raw data'!C126) -> 0.000111428 | D121: =IF('DF raw data'!D126="","",'DF raw data'!D126) -> -1.28502e-05 | F121: -2.547243668e-05 | G121: 0.0001119405688 | H121: -1.290931092e-05 | J121: -0.0006245942775 | K121: -0.009557707443 | L121: 0.003564788944 | M121: 0.05431155267 | N121: 0.0001345245678
A122: =IF('DF raw data'!A127="","",'DF raw data'!A127) -> -270 | B122: =IF('DF raw data'!B127="","",'DF raw data'!B127) -> -1.722e-05 | C122: =IF('DF raw data'!C127="","",'DF raw data'!C127) -> 0.000107103 | D122: =IF('DF raw data'!D127="","",'DF raw data'!D127) -> -4.64081e-06 | F122: -1.7299212e-05 | G122: 0.0001075956738 | H122: -4.662157726e-06 | J122: -0.0006332438835 | K122: -0.009874329385 | L122: 0.003618586781 | M122: 0.05612084606 | N122: 0.0001412721519
A123: =IF('DF raw data'!A128="","",'DF raw data'!A128) -> -269.5 | B123: =IF('DF raw data'!B128="","",'DF raw data'!B128) -> -2.6959e-05 | C123: =IF('DF raw data'!C128="","",'DF raw data'!C128) -> 0.000109404 | D123: =IF('DF raw data'!D128="","",'DF raw data'!D128) -> -1.20433e-05 | F123: -2.70830114e-05 | G123: 0.0001099072584 | H123: -1.209869918e-05 | J123: -0.0006467853892 | K123: -0.01019772208 | L123: 0.00367354041 | M123: 0.05795761627 | N123: 0.0001482287671
A124: =IF('DF raw data'!A129="","",'DF raw data'!A129) -> -269 | B124: =IF('DF raw data'!B129="","",'DF raw data'!B129) -> -2.56714e-05 | C124: =IF('DF raw data'!C129="","",'DF raw data'!C129) -> 0.000109137 | D124: =IF('DF raw data'!D129="","",'DF raw data'!D129) -> -2.05824e-05 | F124: -2.578948844e-05 | G124: 0.0001096390302 | H124: -2.067707904e-05 | J124: -0.0006596801334 | K124: -0.01052756215 | L124: 0.003728359925 | M124: 0.05982179623 | N124: 0.0001553966899
A125: =IF('DF raw data'!A130="","",'DF raw data'!A130) -> -268.5 | B125: =IF('DF raw data'!B130="","",'DF raw data'!B130) -> -2.68201e-05 | C125: =IF('DF raw data'!C130="","",'DF raw data'!C130) -> 0.000113064 | D125: =IF('DF raw data'!D130="","",'DF raw data'!D130) -> -2.84684e-05 | F125: -2.694347246e-05 | G125: 0.0001135840944 | H125: -2.859935464e-05 | J125: -0.0006731518696 | K125: -0.01086413808 | L125: 0.003785151972 | M125: 0.06171437222 | N125: 0.0001627869444
A126: =IF('DF raw data'!A131="","",'DF raw data'!A131) -> -268 | B126: =IF('DF raw data'!B131="","",'DF raw data'!B131) -> -2.88855e-05 | C126: =IF('DF raw data'!C131="","",'DF raw data'!C131) -> 0.000119686 | D126: =IF('DF raw data'!D131="","",'DF raw data'!D131) -> -6.69069e-06 | F126: -2.90183733e-05 | G126: 0.0001202365556 | H126: -6.721467174e-06 | J126: -0.0006876610563 | K126: -0.01120796861 | L126: 0.00384527025 | M126: 0.06363700734 | N126: 0.0001704164349
A127: =IF('DF raw data'!A132="","",'DF raw data'!A132) -> -267.5 | B127: =IF('DF raw data'!B132="","",'DF raw data'!B132) -> -2.90109e-05 | C127: =IF('DF raw data'!C132="","",'DF raw data'!C132) -> 0.000107423 | D127: =IF('DF raw data'!D132="","",'DF raw data'!D132) -> -1.09795e-05 | F127: -2.914435014e-05 | G127: 0.0001079171458 | H127: -1.10300057e-05 | J127: -0.0007022332314 | K127: -0.01155908522 | L127: 0.003899228823 | M127: 0.06558662175 | N127: 0.0001782649933
A128: =IF('DF raw data'!A133="","",'DF raw data'!A133) -> -267 | B128: =IF('DF raw data'!B133="","",'DF raw data'!B133) -> -3.4906e-05 | C128: =IF('DF raw data'!C133="","",'DF raw data'!C133) -> 0.000109411 | D128: =IF('DF raw data'!D133="","",'DF raw data'!D133) -> -1.46288e-05 | F128: =(1-$G$1*($B$49-$G$2))*B128 -> -3.50665676e-05 | G128: 0.0001099142906 | H128: -1.469609248e-05 | J128: =F128*$G$3+J127 -> -0.0007197665152 | K128: =J128*$G$3+K127 -> -0.01191896848 | L128: =G128*$G$3+L127 -> 0.003954185968 | M128: =L128*$G$3+M127 -> 0.06756371474 | N128: =(J128^2+L128^2)*$G$3+N127 -> 0.0001863418186
A129: =IF('DF raw data'!A134="","",'DF raw data'!A134) -> -266.5 | B129: =IF('DF raw data'!B134="","",'DF raw data'!B134) -> -2.5166e-05 | C129: =IF('DF raw data'!C134="","",'DF raw data'!C134) -> 0.000117713 | D129: =IF('DF raw data'!D134="","",'DF raw data'!D134) -> -9.19161e-06 | F129: -2.52817636e-05 | G129: 0.0001182544798 | H129: -9.233891406e-06 | J129: -0.000732407397 | K129: -0.01228517218 | L129: 0.004013313208 | M129: 0.06957037134 | N129: 0.0001946633703
A130: =IF('DF raw data'!A135="","",'DF raw data'!A135) -> -266 | B130: =IF('DF raw data'!B135="","",'DF raw data'!B135) -> -1.64455e-05 | C130: =IF('DF raw data'!C135="","",'DF raw data'!C135) -> 0.000122196 | D130: =IF('DF raw data'!D135="","",'DF raw data'!D135) -> -1.27647e-05 | F130: -1.65211493e-05 | G130: 0.0001227581016 | H130: -1.282341762e-05 | J130: -0.0007406679716 | K130: -0.01265550617 | L130: 0.004074692259 | M130: 0.07160771747 | N130: 0.0002032392234
A131: =IF('DF raw data'!A136="","",'DF raw data'!A136) -> -265.5 | B131: =IF('DF raw data'!B136="","",'DF raw data'!B136) -> -2.05482e-05 | C131: =IF('DF raw data'!C136="","",'DF raw data'!C136) -> 0.000120799 | D131: =IF('DF raw data'!D136="","",'DF raw data'!D136) -> -1.28374e-05 | F131: -2.064272172e-05 | G131: 0.0001213546754 | H131: -1.289645204e-05 | J131: -0.0007509893325 | K131: -0.01303100083 | L131: 0.004135369596 | M131: 0.07367540227 | N131: 0.0002120718567
A132: =IF('DF raw data'!A137="","",'DF raw data'!A137) -> -265 | B132: =IF('DF raw data'!B137="","",'DF raw data'!B137) -> -2.50456e-05 | C132: =IF('DF raw data'!C137="","",'DF raw data'!C137) -> 0.000117648 | D132: =IF('DF raw data'!D137="","",'DF raw data'!D137) -> 2.8142e-06 | F132: -2.516080976e-05 | G132: 0.0001181891808 | H132: 2.82714532e-06 | J132: -0.0007635697373 | K132: -0.0134127857 | L132: 0.004194464187 | M132: 0.07577263436 | N132: 0.000221160141
A133: =IF('DF raw data'!A138="","",'DF raw data'!A138) -> -264.5 | B133: =IF('DF raw data'!B138="","",'DF raw data'!B138) -> -1.8311e-05 | C133: =IF('DF raw data'!C138="","",'DF raw data'!C138) -> 0.000111205 | D133: =IF('DF raw data'!D138="","",'DF raw data'!D138) -> -2.80125e-06 | F133: -1.83952306e-05 | G133: 0.000111716543 | H133: -2.81413575e-06 | J133: -0.0007727673526 | K133: -0.01379916938 | L133: 0.004250322458 | M133: 0.07789779559 | N133: 0.0002304913462
A134: =IF('DF raw data'!A139="","",'DF raw data'!A139) -> -264 | B134: =IF('DF raw data'!B139="","",'DF raw data'!B139) -> -1.91454e-05 | C134: =IF('DF raw data'!C139="","",'DF raw data'!C139) -> 0.000120212 | D134: =IF('DF raw data'!D139="","",'DF raw data'!D139) -> -1.30323e-06 | F134: -1.923346884e-05 | G134: 0.0001207649752 | H134: -1.309224858e-06 | J134: -0.0007823840871 | K134: -0.01419036142 | L134: 0.004310704946 | M134: 0.08005314806 | N134: 0.0002400884972
A135: =IF('DF raw data'!A140="","",'DF raw data'!A140) -> -263.5 | B135: =IF('DF raw data'!B140="","",'DF raw data'!B140) -> -2.18339e-05 | C135: =IF('DF raw data'!C140="","",'DF raw data'!C140) -> 0.000123694 | D135: =IF('DF raw data'!D140="","",'DF raw data'!D140) -> -7.12558e-06 | F135: -2.193433594e-05 | G135: 0.0001242629924 | H135: -7.158357668e-06 | J135: -0.000793351255 | K135: -0.01458703705 | L135: 0.004372836442 | M135: 0.08223956628 | N135: 0.0002499640495
A136: =IF('DF raw data'!A141="","",'DF raw data'!A141) -> -263 | B136: =IF('DF raw data'!B141="","",'DF raw data'!B141) -> -2.50387e-05 | C136: =IF('DF raw data'!C141="","",'DF raw data'!C141) -> 0.00012373 | D136: =IF('DF raw data'!D141="","",'DF raw data'!D141) -> -7.77004e-06 | F136: -2.515387802e-05 | G136: 0.000124299158 | H136: -7.805782184e-06 | J136: -0.000805928194 | K136: -0.01499000115 | L136: 0.004434986021 | M136: 0.08445705929 | N136: 0.0002601233602
A137: =IF('DF raw data'!A142="","",'DF raw data'!A142) -> -262.5 | B137: =IF('DF raw data'!B142="","",'DF raw data'!B142) -> -1.89454e-05 | C137: =IF('DF raw data'!C142="","",'DF raw data'!C142) -> 0.000117572 | D137: =IF('DF raw data'!D142="","",'DF raw data'!D142) -> -1.30809e-05 | F137: -1.903254884e-05 | G137: 0.0001181128312 | H137: -1.314107214e-05 | J137: -0.0008154444685 | K137: -0.01539772338 | L137: 0.004494042437 | M137: 0.08670408051 | N137: 0.0002705540437
A138: =IF('DF raw data'!A143="","",'DF raw data'!A143) -> -262 | B138: =IF('DF raw data'!B143="","",'DF raw data'!B143) -> -2.9079e-05 | C138: =IF('DF raw data'!C143="","",'DF raw data'!C143) -> 0.000124586 | D138: =IF('DF raw data'!D143="","",'DF raw data'!D143) -> -5.02259e-06 | F138: -2.92127634e-05 | G138: 0.0001251590956 | H138: -5.045693914e-06 | J138: -0.0008300508502 | K138: -0.0158127488 | L138: 0.004556621985 | M138: 0.08898239151 | N138: 0.0002812799379
A139: =IF('DF raw data'!A144="","",'DF raw data'!A144) -> -261.5 | B139: =IF('DF raw data'!B144="","",'DF raw data'!B144) -> -1.99808e-05 | C139: =IF('DF raw data'!C144="","",'DF raw data'!C144) -> 0.000132351 | D139: =IF('DF raw data'!D144="","",'DF raw data'!D144) -> 2.10721e-06 | F139: -2.007271168e-05 | G139: 0.0001329598146 | H139: 2.116903166e-06 | J139: -0.000840087206 | K139: -0.01623279241 | L139: 0.004623101892 | M139: 0.09129394245 | N139: 0.0002923193467
A140: =IF('DF raw data'!A145="","",'DF raw data'!A145) -> -261 | B140: =IF('DF raw data'!B145="","",'DF raw data'!B145) -> -2.85005e-05 | C140: =IF('DF raw data'!C145="","",'DF raw data'!C145) -> 0.000126047 | D140: =IF('DF raw data'!D145="","",'DF raw data'!D145) -> -7.22733e-06 | F140: -2.86316023e-05 | G140: 0.0001266268162 | H140: -7.260575718e-06 | J140: -0.0008544030072 | K140: -0.01665999391 | L140: 0.0046864153 | M140: 0.0936371501 | N140: 0.0003036655931
A141: =IF('DF raw data'!A146="","",'DF raw data'!A146) -> -260.5 | B141: =IF('DF raw data'!B146="","",'DF raw data'!B146) -> -2.72833e-05 | C141: =IF('DF raw data'!C146="","",'DF raw data'!C146) -> 0.000129091 | D141: =IF('DF raw data'!D146="","",'DF raw data'!D146) -> -6.24906e-06 | F141: -2.740880318e-05 | G141: 0.0001296848186 | H141: -6.277805676e-06 | J141: -0.0008681074087 | K141: -0.01709404762 | L141: 0.004751257709 | M141: 0.09601277896 | N141: 0.0003153296233
A142: =IF('DF raw data'!A147="","",'DF raw data'!A147) -> -260 | B142: =IF('DF raw data'!B147="","",'DF raw data'!B147) -> -2.67656e-05 | C142: =IF('DF raw data'!C147="","",'DF raw data'!C147) -> 0.000126882 | D142: =IF('DF raw data'!D147="","",'DF raw data'!D147) -> -1.35275e-05 | F142: -2.688872176e-05 | G142: 0.0001274656572 | H142: -1.35897265e-05 | J142: -0.0008815517696 | K142: -0.0175348235 | L142: 0.004814990538 | M142: 0.09842027422 | N142: 0.000327310257
A143: =IF('DF raw data'!A148="","",'DF raw data'!A148) -> -259.5 | B143: =IF('DF raw data'!B148="","",'DF raw data'!B148) -> -2.38778e-05 | C143: =IF('DF raw data'!C148="","",'DF raw data'!C148) -> 0.000121624 | D143: =IF('DF raw data'!D148="","",'DF raw data'!D148) -> -1.87448e-05 | F143: -2.398763788e-05 | G143: 0.0001221834704 | H143: -1.883102608e-05 | J143: -0.0008935455886 | K143: -0.01798159629 | L143: 0.004876082273 | M143: 0.1008583154 | N143: 0.000339597558
A144: =IF('DF raw data'!A149="","",'DF raw data'!A149) -> -259 | B144: =IF('DF raw data'!B149="","",'DF raw data'!B149) -> -1.7792e-05 | C144: =IF('DF raw data'!C149="","",'DF raw data'!C149) -> 0.00012225 | D144: =IF('DF raw data'!D149="","",'DF raw data'!D149) -> -1.23587e-05 | F144: -1.78738432e-05 | G144: 0.00012281235 | H144: -1.241555002e-05 | J144: -0.0009024825102 | K144: -0.01843283755 | L144: 0.004937488448 | M144: 0.1033270596 | N144: 0.0003521941914
A145: =IF('DF raw data'!A150="","",'DF raw data'!A150) -> -258.5 | B145: =IF('DF raw data'!B150="","",'DF raw data'!B150) -> -2.92676e-05 | C145: =IF('DF raw data'!C150="","",'DF raw data'!C150) -> 0.000125046 | D145: =IF('DF raw data'!D150="","",'DF raw data'!D150) -> -1.04751e-05 | F145: -2.940223096e-05 | G145: 0.0001256212116 | H145: -1.052328546e-05 | J145: -0.0009171836256 | K145: -0.01889142936 | L145: 0.005000299054 | M145: 0.1058272091 | N145: 0.0003651162996
A146: =IF('DF raw data'!A151="","",'DF raw data'!A151) -> -258 | B146: =IF('DF raw data'!B151="","",'DF raw data'!B151) -> -2.63904e-05 | C146: =IF('DF raw data'!C151="","",'DF raw data'!C151) -> 0.000134558 | D146: =IF('DF raw data'!D151="","",'DF raw data'!D151) -> 1.12254e-06 | F146: -2.651179584e-05 | G146: 0.0001351769668 | H146: 1.127703684e-06 | J146: -0.0009304395236 | K146: -0.01935664912 | L146: 0.005067887537 | M146: 0.1083611529 | N146: 0.0003783909005
A147: =IF('DF raw data'!A152="","",'DF raw data'!A152) -> -257.5 | B147: =IF('DF raw data'!B152="","",'DF raw data'!B152) -> -2.11926e-05 | C147: =IF('DF raw data'!C152="","",'DF raw data'!C152) -> 0.000134267 | D147: =IF('DF raw data'!D152="","",'DF raw data'!D152) -> -7.5783e-06 | F147: -2.129008596e-05 | G147: 0.0001348846282 | H147: -7.61316018e-06 | J147: -0.0009410845665 | K147: -0.01982719141 | L147: 0.005135329851 | M147: 0.1109288178 | N147: 0.000392019527
A148: =IF('DF raw data'!A153="","",'DF raw data'!A153) -> -257 | B148: =IF('DF raw data'!B153="","",'DF raw data'!B153) -> -3.08708e-05 | C148: =IF('DF raw data'!C153="","",'DF raw data'!C153) -> 0.000124455 | D148: =IF('DF raw data'!D153="","",'DF raw data'!D153) -> -9.50284e-06 | F148: -3.101280568e-05 | G148: 0.000125027493 | H148: -9.546553064e-06 | J148: -0.0009565909694 | K148: -0.02030548689 | L148: 0.005197843598 | M148: 0.1135277396 | N148: 0.0004059858491
A149: =IF('DF raw data'!A154="","",'DF raw data'!A154) -> -256.5 | B149: =IF('DF raw data'!B154="","",'DF raw data'!B154) -> -1.99752e-05 | C149: =IF('DF raw data'!C154="","",'DF raw data'!C154) -> 0.000120345 | D149: =IF('DF raw data'!D154="","",'DF raw data'!D154) -> -6.47848e-06 | F149: -2.006708592e-05 | G149: 0.000120898587 | H149: -6.508281008e-06 | J149: -0.0009666245123 | K149: -0.02078879915 | L149: 0.005258292891 | M149: 0.1161568861 | N149: 0.0004202778527
A150: =IF('DF raw data'!A155="","",'DF raw data'!A155) -> -256 | B150: =IF('DF raw data'!B155="","",'DF raw data'!B155) -> -2.17753e-05 | C150: =IF('DF raw data'!C155="","",'DF raw data'!C155) -> 0.000124692 | D150: =IF('DF raw data'!D155="","",'DF raw data'!D155) -> 1.22452e-06 | F150: -2.187546638e-05 | G150: 0.0001252655832 | H150: 1.230152792e-06 | J150: -0.0009775622455 | K150: -0.02127758027 | L150: 0.005320925683 | M150: 0.1188173489 | N150: 0.0004349117917
A151: =IF('DF raw data'!A156="","",'DF raw data'!A156) -> -255.5 | B151: =IF('DF raw data'!B156="","",'DF raw data'!B156) -> -2.08065e-05 | C151: =IF('DF raw data'!C156="","",'DF raw data'!C156) -> 0.000127356 | D151: =IF('DF raw data'!D156="","",'DF raw data'!D156) -> -9.87514e-06 | F151: -2.09022099e-05 | G151: 0.0001279418376 | H151: -9.920565644e-06 | J151: -0.0009880133505 | K151: -0.02177158695 | L151: 0.005384896602 | M151: 0.1215097972 | N151: 0.0004498984326
A152: =IF('DF raw data'!A157="","",'DF raw data'!A157) -> -255 | B152: =IF('DF raw data'!B157="","",'DF raw data'!B157) -> -2.22827e-05 | C152: =IF('DF raw data'!C157="","",'DF raw data'!C157) -> 0.000116446 | D152: =IF('DF raw data'!D157="","",'DF raw data'!D157) -> -7.13762e-06 | F152: -2.238520042e-05 | G152: 0.0001169816516 | H152: -7.170453052e-06 | J152: -0.0009992059507 | K152: -0.02227118992 | L152: 0.005443387427 | M152: 0.1242314909 | N152: 0.0004652128722
A153: =IF('DF raw data'!A158="","",'DF raw data'!A158) -> -254.5 | B153: =IF('DF raw data'!B158="","",'DF raw data'!B158) -> -2.2022e-05 | C153: =IF('DF raw data'!C158="","",'DF raw data'!C158) -> 0.000111107 | D153: =IF('DF raw data'!D158="","",'DF raw data'!D158) -> -1.3698e-05 | F153: -2.21233012e-05 | G153: 0.0001116180922 | H153: -1.37610108e-05 | J153: -0.001010267601 | K153: -0.02277632372 | L153: 0.005499196474 | M153: 0.1269810891 | N153: 0.0004808437735
A154: =IF('DF raw data'!A159="","",'DF raw data'!A159) -> -254 | B154: =IF('DF raw data'!B159="","",'DF raw data'!B159) -> -3.10642e-05 | C154: =IF('DF raw data'!C159="","",'DF raw data'!C159) -> 0.000118411 | D154: =IF('DF raw data'!D159="","",'DF raw data'!D159) -> -8.09468e-06 | F154: -3.120709532e-05 | G154: 0.0001189556906 | H154: -8.131915528e-06 | J154: -0.001025871149 | K154: -0.0232892593 | L154: 0.005558674319 | M154: 0.1297604263 | N154: 0.0004968194094
A155: =IF('DF raw data'!A160="","",'DF raw data'!A160) -> -253.5 | B155: =IF('DF raw data'!B160="","",'DF raw data'!B160) -> -2.30487e-05 | C155: =IF('DF raw data'!C160="","",'DF raw data'!C160) -> 0.000122121 | D155: =IF('DF raw data'!D160="","",'DF raw data'!D160) -> -1.19573e-05 | F155: -2.315472402e-05 | G155: 0.0001226827566 | H155: -1.201230358e-05 | J155: -0.001037448511 | K155: -0.02380798355 | L155: 0.005620015697 | M155: 0.1325704342 | N155: 0.0005131498473
A156: =IF('DF raw data'!A161="","",'DF raw data'!A161) -> -253 | B156: =IF('DF raw data'!B161="","",'DF raw data'!B161) -> -1.39431e-05 | C156: =IF('DF raw data'!C161="","",'DF raw data'!C161) -> 0.000119237 | D156: =IF('DF raw data'!D161="","",'DF raw data'!D161) -> -1.64089e-05 | F156: -1.400723826e-05 | G156: 0.0001197854902 | H156: -1.648438094e-05 | J156: -0.00104445213 | K156: -0.02433020962 | L156: 0.005679908442 | M156: 0.1354103884 | N156: 0.0005298259674
A157: =IF('DF raw data'!A162="","",'DF raw data'!A162) -> -252.5 | B157: =IF('DF raw data'!B162="","",'DF raw data'!B162) -> -2.7786e-05 | C157: =IF('DF raw data'!C162="","",'DF raw data'!C162) -> 0.00011568 | D157: =IF('DF raw data'!D162="","",'DF raw data'!D162) -> -2.19078e-05 | F157: -2.79138156e-05 | G157: 0.000116212128 | H157: -2.200857588e-05 | J157: -0.001058409038 | K157: -0.02485941414 | L157: 0.005738014506 | M157: 0.1382793956 | N157: 0.0005468484874
A158: =IF('DF raw data'!A163="","",'DF raw data'!A163) -> -252 | B158: =IF('DF raw data'!B163="","",'DF raw data'!B163) -> -1.11257e-05 | C158: =IF('DF raw data'!C163="","",'DF raw data'!C163) -> 0.000122382 | D158: =IF('DF raw data'!D163="","",'DF raw data'!D163) -> -1.17276e-05 | F158: -1.117687822e-05 | G158: 0.0001229449572 | H158: -1.178154696e-05 | J158: -0.001063997477 | K158: -0.02539141288 | L158: 0.005799486985 | M158: 0.1411791391 | N158: 0.0005642315574
A159: =IF('DF raw data'!A164="","",'DF raw data'!A164) -> -251.5 | B159: =IF('DF raw data'!B164="","",'DF raw data'!B164) -> -2.85658e-05 | C159: =IF('DF raw data'!C164="","",'DF raw data'!C164) -> 0.00012304 | D159: =IF('DF raw data'!D164="","",'DF raw data'!D164) -> -5.43567e-06 | F159: -2.869720268e-05 | G159: 0.000123605984 | H159: -5.460674082e-06 | J159: -0.001078346078 | K159: -0.02593058591 | L159: 0.005861289977 | M159: 0.1441097841 | N159: 0.0005819903326
A160: =IF('DF raw data'!A165="","",'DF raw data'!A165) -> -251 | B160: =IF('DF raw data'!B165="","",'DF raw data'!B165) -> -1.62569e-05 | C160: =IF('DF raw data'!C165="","",'DF raw data'!C165) -> 0.000127552 | D160: =IF('DF raw data'!D165="","",'DF raw data'!D165) -> -7.27053e-06 | F160: -1.633168174e-05 | G160: 0.0001281387392 | H160: -7.303974438e-06 | J160: -0.001086511919 | K160: -0.02647384187 | L160: 0.005925359346 | M160: 0.1470724638 | N160: 0.0006001355284
A161: =IF('DF raw data'!A166="","",'DF raw data'!A166) -> -250.5 | B161: =IF('DF raw data'!B166="","",'DF raw data'!B166) -> -2.75447e-05 | C161: =IF('DF raw data'!C166="","",'DF raw data'!C166) -> 0.000116181 | D161: =IF('DF raw data'!D166="","",'DF raw data'!D166) -> 1.49336e-06 | F161: -2.767140562e-05 | G161: 0.0001167154326 | H161: 1.500229456e-06 | J161: -0.001100347622 | K161: -0.02702401568 | L161: 0.005983717063 | M161: 0.1500643223 | N161: 0.0006186433458
A162: =IF('DF raw data'!A167="","",'DF raw data'!A167) -> -250 | B162: =IF('DF raw data'!B167="","",'DF raw data'!B167) -> -2.36947e-05 | C162: =IF('DF raw data'!C167="","",'DF raw data'!C167) -> 0.000123487 | D162: =IF('DF raw data'!D167="","",'DF raw data'!D167) -> -4.32084e-06 | F162: -2.380369562e-05 | G162: 0.0001240550402 | H162: -4.340715864e-06 | J162: -0.00111224947 | K162: -0.02758014042 | L162: 0.006045744583 | M162: 0.1530871946 | N162: 0.000637537409
A163: =IF('DF raw data'!A168="","",'DF raw data'!A168) -> -249.5 | B163: =IF('DF raw data'!B168="","",'DF raw data'!B168) -> -3.66365e-05 | C163: =IF('DF raw data'!C168="","",'DF raw data'!C168) -> 0.000129407 | D163: =IF('DF raw data'!D168="","",'DF raw data'!D168) -> -1.49653e-05 | F163: -3.68050279e-05 | G163: 0.0001300022722 | H163: -1.503414038e-05 | J163: -0.001130651984 | K163: -0.02814546641 | L163: 0.006110745719 | M163: 0.1561425675 | N163: 0.0006568472026
A164: =IF('DF raw data'!A169="","",'DF raw data'!A169) -> -249 | B164: =IF('DF raw data'!B169="","",'DF raw data'!B169) -> -3.79184e-05 | C164: =IF('DF raw data'!C169="","",'DF raw data'!C169) -> 0.000126322 | D164: =IF('DF raw data'!D169="","",'DF raw data'!D169) -> -1.5231e-05 | F164: -3.809282464e-05 | G164: 0.0001269030812 | H164: -1.53010626e-05 | J164: -0.001149698396 | K164: -0.02872031561 | L164: 0.00617419726 | M164: 0.1592296661 | N164: 0.0006765684617
A165: =IF('DF raw data'!A170="","",'DF raw data'!A170) -> -248.5 | B165: =IF('DF raw data'!B170="","",'DF raw data'!B170) -> -2.85659e-05 | C165: =IF('DF raw data'!C170="","",'DF raw data'!C170) -> 0.000130921 | D165: =IF('DF raw data'!D170="","",'DF raw data'!D170) -> -5.28371e-06 | F165: -2.869730314e-05 | G165: 0.0001315232366 | H165: -5.308015066e-06 | J165: -0.001164047048 | K165: -0.02930233913 | L165: 0.006239958878 | M165: 0.1623496455 | N165: 0.0006967145079
A166: =IF('DF raw data'!A171="","",'DF raw data'!A171) -> -248 | B166: =IF('DF raw data'!B171="","",'DF raw data'!B171) -> -2.5297e-05 | C166: =IF('DF raw data'!C171="","",'DF raw data'!C171) -> 0.000132209 | D166: =IF('DF raw data'!D171="","",'DF raw data'!D171) -> -4.73259e-06 | F166: -2.54133662e-05 | G166: 0.0001328171614 | H166: -4.754359914e-06 | J166: -0.001176753731 | K166: -0.029890716 | L166: 0.006306367459 | M166: 0.1655028293 | N166: 0.0007172920178
A167: =IF('DF raw data'!A172="","",'DF raw data'!A172) -> -247.5 | B167: =IF('DF raw data'!B172="","",'DF raw data'!B172) -> -2.40108e-05 | C167: =IF('DF raw data'!C172="","",'DF raw data'!C172) -> 0.00013108 | D167: =IF('DF raw data'!D172="","",'DF raw data'!D172) -> -1.12995e-05 | F167: -2.412124968e-05 | G167: 0.000131682968 | H167: -1.13514777e-05 | J167: -0.001188814356 | K167: -0.03048512318 | L167: 0.006372208943 | M167: 0.1686889337 | N167: 0.000738301181
A168: =IF('DF raw data'!A173="","",'DF raw data'!A173) -> -247 | B168: =IF('DF raw data'!B173="","",'DF raw data'!B173) -> -2.65102e-05 | C168: =IF('DF raw data'!C173="","",'DF raw data'!C173) -> 0.000127614 | D168: =IF('DF raw data'!D173="","",'DF raw data'!D173) -> -1.18139e-05 | F168: -2.663214692e-05 | G168: 0.0001282010244 | H168: -1.186824394e-05 | J168: -0.001202130429 | K168: -0.03108618839 | L168: 0.006436309455 | M168: 0.1719070885 | N168: 0.0007597367795
A169: =IF('DF raw data'!A174="","",'DF raw data'!A174) -> -246.5 | B169: =IF('DF raw data'!B174="","",'DF raw data'!B174) -> -2.47841e-05 | C169: =IF('DF raw data'!C174="","",'DF raw data'!C174) -> 0.000122073 | D169: =IF('DF raw data'!D174="","",'DF raw data'!D174) -> -4.88435e-06 | F169: -2.489810686e-05 | G169: 0.0001226345358 | H169: -4.90681801e-06 | J169: -0.001214579483 | K169: -0.03169347813 | L169: 0.006497626723 | M169: 0.1751559018 | N169: 0.0007815839576
A170: =IF('DF raw data'!A175="","",'DF raw data'!A175) -> -246 | B170: =IF('DF raw data'!B175="","",'DF raw data'!B175) -> -3.98533e-05 | C170: =IF('DF raw data'!C175="","",'DF raw data'!C175) -> 0.000127389 | D170: =IF('DF raw data'!D175="","",'DF raw data'!D175) -> 2.84372e-06 | F170: -4.003662518e-05 | G170: 0.0001279749894 | H170: 2.856801112e-06 | J170: -0.001234597795 | K170: -0.03231077703 | L170: 0.006561614217 | M170: 0.1784367089 | N170: 0.0008038734641
A171: =IF('DF raw data'!A176="","",'DF raw data'!A176) -> -245.5 | B171: =IF('DF raw data'!B176="","",'DF raw data'!B176) -> -2.96581e-05 | C171: =IF('DF raw data'!C176="","",'DF raw data'!C176) -> 0.000129576 | D171: =IF('DF raw data'!D176="","",'DF raw data'!D176) -> -1.21363e-06 | F171: -2.979452726e-05 | G171: 0.0001301720496 | H171: -1.219212698e-06 | J171: -0.001249495059 | K171: -0.03293552456 | L171: 0.006626700242 | M171: 0.1817500591 | N171: 0.0008266106611
A172: =IF('DF raw data'!A177="","",'DF raw data'!A177) -> -245 | B172: =IF('DF raw data'!B177="","",'DF raw data'!B177) -> -2.82556e-05 | C172: =IF('DF raw data'!C177="","",'DF raw data'!C177) -> 0.000131199 | D172: =IF('DF raw data'!D177="","",'DF raw data'!D177) -> 1.06643e-05 | F172: -2.838557576e-05 | G172: 0.0001318025154 | H172: 1.071335578e-05 | J172: -0.001263687847 | K172: -0.03356736848 | L172: 0.0066926015 | M172: 0.1850963598 | N172: 0.000849804572
A173: =IF('DF raw data'!A178="","",'DF raw data'!A178) -> -244.5 | B173: =IF('DF raw data'!B178="","",'DF raw data'!B178) -> -2.07399e-05 | C173: =IF('DF raw data'!C178="","",'DF raw data'!C178) -> 0.000135546 | D173: =IF('DF raw data'!D178="","",'DF raw data'!D178) -> -1.38353e-05 | F173: -2.083530354e-05 | G173: 0.0001361695116 | H173: -1.389894238e-05 | J173: -0.001274105498 | K173: -0.03420442123 | L173: 0.006760686256 | M173: 0.1884767029 | N173: 0.0008734696837
A174: =IF('DF raw data'!A179="","",'DF raw data'!A179) -> -244 | B174: =IF('DF raw data'!B179="","",'DF raw data'!B179) -> -2.73462e-05 | C174: =IF('DF raw data'!C179="","",'DF raw data'!C179) -> 0.000124282 | D174: =IF('DF raw data'!D179="","",'DF raw data'!D179) -> -7.8884e-06 | F174: -2.747199252e-05 | G174: 0.0001248536972 | H174: -7.92468664e-06 | J174: -0.001287841495 | K174: -0.03484834198 | L174: 0.006823113104 | M174: 0.1918882595 | N174: 0.0008975763878
A175: =IF('DF raw data'!A180="","",'DF raw data'!A180) -> -243.5 | B175: =IF('DF raw data'!B180="","",'DF raw data'!B180) -> -2.40212e-05 | C175: =IF('DF raw data'!C180="","",'DF raw data'!C180) -> 0.000124314 | D175: =IF('DF raw data'!D180="","",'DF raw data'!D180) -> 4.74846e-06 | F175: -2.413169752e-05 | G175: 0.0001248858444 | H175: 4.770302916e-06 | J175: -0.001299907343 | K175: -0.03549829565 | L175: 0.006885556027 | M175: 0.1953310375 | N175: 0.0009221267082
A176: =IF('DF raw data'!A181="","",'DF raw data'!A181) -> -243 | B176: =IF('DF raw data'!B181="","",'DF raw data'!B181) -> -3.53584e-05 | C176: =IF('DF raw data'!C181="","",'DF raw data'!C181) -> 0.000128508 | D176: =IF('DF raw data'!D181="","",'DF raw data'!D181) -> -8.97147e-06 | F176: -3.552104864e-05 | G176: 0.0001290991368 | H176: -9.012738762e-06 | J176: -0.001317667868 | K176: -0.03615712958 | L176: 0.006950105595 | M176: 0.1988060903 | N176: 0.0009471468164
A177: =IF('DF raw data'!A182="","",'DF raw data'!A182) -> -242.5 | B177: =IF('DF raw data'!B182="","",'DF raw data'!B182) -> -3.29929e-05 | C177: =IF('DF raw data'!C182="","",'DF raw data'!C182) -> 0.000134007 | D177: =IF('DF raw data'!D182="","",'DF raw data'!D182) -> 8.86059e-07 | F177: -3.314466734e-05 | G177: 0.0001346234322 | H177: 8.901348714e-07 | J177: -0.001334240201 | K177: -0.03682424969 | L177: 0.007017417311 | M177: 0.2023147989 | N177: 0.0009726589877
A178: =IF('DF raw data'!A183="","",'DF raw data'!A183) -> -242 | B178: =IF('DF raw data'!B183="","",'DF raw data'!B183) -> -3.03028e-05 | C178: =IF('DF raw data'!C183="","",'DF raw data'!C183) -> 0.000126258 | D178: =IF('DF raw data'!D183="","",'DF raw data'!D183) -> 4.14258e-06 | F178: -3.044219288e-05 | G178: 0.0001268387868 | H178: 4.161635868e-06 | J178: -0.001349461298 | K178: -0.03749898033 | L178: 0.007080836704 | M178: 0.2058552173 | N178: 0.0009986386348
A179: =IF('DF raw data'!A184="","",'DF raw data'!A184) -> -241.5 | B179: =IF('DF raw data'!B184="","",'DF raw data'!B184) -> -3.22257e-05 | C179: =IF('DF raw data'!C184="","",'DF raw data'!C184) -> 0.000133251 | D179: =IF('DF raw data'!D184="","",'DF raw data'!D184) -> 3.93588e-06 | F179: -3.237393822e-05 | G179: 0.0001338639546 | H179: 3.953985048e-06 | J179: -0.001365648267 | K179: -0.03818180447 | L179: 0.007147768682 | M179: 0.2094291016 | N179: 0.001025116431
A180: =IF('DF raw data'!A185="","",'DF raw data'!A185) -> -241 | B180: =IF('DF raw data'!B185="","",'DF raw data'!B185) -> -4.03729e-05 | C180: =IF('DF raw data'!C185="","",'DF raw data'!C185) -> 0.000135852 | D180: =IF('DF raw data'!D185="","",'DF raw data'!D185) -> 1.32808e-05 | F180: -4.055861534e-05 | G180: 0.0001364769192 | H180: 1.334189168e-05 | J180: -0.001385927575 | K180: -0.03887476826 | L180: 0.007216007141 | M180: 0.2130371052 | N180: 0.001052112208
A181: =IF('DF raw data'!A186="","",'DF raw data'!A186) -> -240.5 | B181: =IF('DF raw data'!B186="","",'DF raw data'!B186) -> -3.58823e-05 | C181: =IF('DF raw data'!C186="","",'DF raw data'!C186) -> 0.00013152 | D181: =IF('DF raw data'!D186="","",'DF raw data'!D186) -> 8.18012e-06 | F181: -3.604735858e-05 | G181: 0.000132124992 | H181: 8.217748552e-06 | J181: -0.001403951254 | K181: -0.03957674388 | L181: 0.007282069637 | M181: 0.21667814 | N181: 0.001079612017
A182: =IF('DF raw data'!A187="","",'DF raw data'!A187) -> -240 | B182: =IF('DF raw data'!B187="","",'DF raw data'!B187) -> -3.47252e-05 | C182: =IF('DF raw data'!C187="","",'DF raw data'!C187) -> 0.000129993 | D182: =IF('DF raw data'!D187="","",'DF raw data'!D187) -> 3.0716e-06 | F182: -3.488493592e-05 | G182: 0.0001305909678 | H182: 3.08572936e-06 | J182: -0.001421393722 | K182: -0.04028744074 | L182: 0.007347365121 | M182: 0.2203518226 | N182: 0.001107614084
A183: =IF('DF raw data'!A188="","",'DF raw data'!A188) -> -239.5 | B183: =IF('DF raw data'!B188="","",'DF raw data'!B188) -> -3.17177e-05 | C183: =IF('DF raw data'!C188="","",'DF raw data'!C188) -> 0.000131476 | D183: =IF('DF raw data'!D188="","",'DF raw data'!D188) -> 1.13641e-05 | F183: -3.186360142e-05 | G183: 0.0001320807896 | H183: 1.141637486e-05 | J183: -0.001437325523 | K183: -0.0410061035 | L183: 0.007413405516 | M183: 0.2240585253 | N183: 0.001136126327
A184: =IF('DF raw data'!A189="","",'DF raw data'!A189) -> -239 | B184: =IF('DF raw data'!B189="","",'DF raw data'!B189) -> -2.93346e-05 | C184: =IF('DF raw data'!C189="","",'DF raw data'!C189) -> 0.000136624 | D184: =IF('DF raw data'!D189="","",'DF raw data'!D189) -> -6.08786e-06 | F184: -2.946953916e-05 | G184: 0.0001372524704 | H184: -6.115864156e-06 | J184: -0.001452060292 | K184: -0.04173213365 | L184: 0.007482031751 | M184: 0.2277995412 | N184: 0.001165170966
A185: =IF('DF raw data'!A190="","",'DF raw data'!A190) -> -238.5 | B185: =IF('DF raw data'!B190="","",'DF raw data'!B190) -> -3.06178e-05 | C185: =IF('DF raw data'!C190="","",'DF raw data'!C190) -> 0.000144886 | D185: =IF('DF raw data'!D190="","",'DF raw data'!D190) -> -4.194e-06 | F185: -3.075864188e-05 | G185: 0.0001455524756 | H185: -4.2132924e-06 | J185: -0.001467439613 | K185: -0.04246585346 | L185: 0.007554807989 | M185: 0.2315769452 | N185: 0.001194785217
A186: =IF('DF raw data'!A191="","",'DF raw data'!A191) -> -238 | B186: =IF('DF raw data'!B191="","",'DF raw data'!B191) -> -3.93969e-05 | C186: =IF('DF raw data'!C191="","",'DF raw data'!C191) -> 0.000136728 | D186: =IF('DF raw data'!D191="","",'DF raw data'!D191) -> -8.74748e-06 | F186: -3.957812574e-05 | G186: 0.0001373569488 | H186: -8.787718408e-06 | J186: -0.001487228676 | K186: -0.04320946779 | L186: 0.007623486463 | M186: 0.2353886884 | N186: 0.001224949915
A187: =IF('DF raw data'!A192="","",'DF raw data'!A192) -> -237.5 | B187: =IF('DF raw data'!B192="","",'DF raw data'!B192) -> -3.68985e-05 | C187: =IF('DF raw data'!C192="","",'DF raw data'!C192) -> 0.000128458 | D187: =IF('DF raw data'!D192="","",'DF raw data'!D192) -> -6.25501e-06 | F187: -3.70682331e-05 | G187: 0.0001290489068 | H187: -6.283783046e-06 | J187: -0.001505762793 | K187: -0.04396234919 | L187: 0.007688010917 | M187: 0.2392326939 | N187: 0.001255636332
A188: =IF('DF raw data'!A193="","",'DF raw data'!A193) -> -237 | B188: =IF('DF raw data'!B193="","",'DF raw data'!B193) -> -3.18382e-05 | C188: =IF('DF raw data'!C193="","",'DF raw data'!C193) -> 0.000120226 | D188: =IF('DF raw data'!D193="","",'DF raw data'!D193) -> -5.86975e-07 | F188: -3.198465572e-05 | G188: 0.0001207790396 | H188: -5.89675085e-07 | J188: -0.00152175512 | K188: -0.04472322675 | L188: 0.007748400437 | M188: 0.2431068941 | N188: 0.001286813056
A189: =IF('DF raw data'!A194="","",'DF raw data'!A194) -> -236.5 | B189: =IF('DF raw data'!B194="","",'DF raw data'!B194) -> -3.89522e-05 | C189: =IF('DF raw data'!C194="","",'DF raw data'!C194) -> 0.00013203 | D189: =IF('DF raw data'!D194="","",'DF raw data'!D194) -> -2.40276e-06 | F189: -3.913138012e-05 | G189: 0.000132637338 | H189: -2.413812696e-06 | J189: -0.00154132081 | K189: -0.04549388716 | L189: 0.007814719106 | M189: 0.2470142537 | N189: 0.001318535808
A190: =IF('DF raw data'!A195="","",'DF raw data'!A195) -> -236 | B190: =IF('DF raw data'!B195="","",'DF raw data'!B195) -> -3.21552e-05 | C190: =IF('DF raw data'!C195="","",'DF raw data'!C195) -> 0.000132721 | D190: =IF('DF raw data'!D195="","",'DF raw data'!D195) -> -5.78132e-06 | F190: -3.230311392e-05 | G190: 0.0001333315166 | H190: -5.807914072e-06 | J190: -0.001557472367 | K190: -0.04627262334 | L190: 0.007881384864 | M190: 0.2509549461 | N190: 0.001350806782
A191: =IF('DF raw data'!A196="","",'DF raw data'!A196) -> -235.5 | B191: =IF('DF raw data'!B196="","",'DF raw data'!B196) -> -3.86981e-05 | C191: =IF('DF raw data'!C196="","",'DF raw data'!C196) -> 0.000134986 | D191: =IF('DF raw data'!D196="","",'DF raw data'!D196) -> 1.15665e-06 | F191: -3.887611126e-05 | G191: 0.0001356069356 | H191: 1.16197059e-06 | J191: -0.001576910423 | K191: -0.04706107855 | L191: 0.007949188332 | M191: 0.2549295403 | N191: 0.001383644903
A192: =IF('DF raw data'!A197="","",'DF raw data'!A197) -> -235 | B192: =IF('DF raw data'!B197="","",'DF raw data'!B197) -> -3.63304e-05 | C192: =IF('DF raw data'!C197="","",'DF raw data'!C197) -> 0.000133982 | D192: =IF('DF raw data'!D197="","",'DF raw data'!D197) -> 7.04033e-06 | F192: =(1-$G$1*($B$49-$G$2))*B192 -> -3.649751984e-05 | G192: 0.0001345983172 | H192: 7.072715518e-06 | J192: =F192*$G$3+J191 -> -0.001595159183 | K192: =J192*$G$3+K191 -> -0.04785865814 | L192: =G192*$G$3+L191 -> 0.00801648749 | M192: =L192*$G$3+M191 -> 0.258937784 | N192: =(J192^2+L192^2)*$G$3+N191 -> 0.001417049205
A193: =IF('DF raw data'!A198="","",'DF raw data'!A198) -> -234.5 | B193: =IF('DF raw data'!B198="","",'DF raw data'!B198) -> -3.21642e-05 | C193: =IF('DF raw data'!C198="","",'DF raw data'!C198) -> 0.000135921 | D193: =IF('DF raw data'!D198="","",'DF raw data'!D198) -> 8.1475e-06 | F193: -3.231215532e-05 | G193: 0.0001365462366 | H193: 8.1849785e-06 | J193: -0.001611315261 | K193: -0.04866431577 | L193: 0.008084760609 | M193: 0.2629801643 | N193: 0.00145102905
A194: =IF('DF raw data'!A199="","",'DF raw data'!A199) -> -234 | B194: =IF('DF raw data'!B199="","",'DF raw data'!B199) -> -3.79894e-05 | C194: =IF('DF raw data'!C199="","",'DF raw data'!C199) -> 0.000128157 | D194: =IF('DF raw data'!D199="","",'DF raw data'!D199) -> -4.6617e-06 | F194: -3.816415124e-05 | G194: 0.0001287465222 | H194: -4.68314382e-06 | J194: -0.001630397336 | K194: -0.04947951444 | L194: 0.00814913387 | M194: 0.2670547313 | N194: 0.001485562339
A195: =IF('DF raw data'!A200="","",'DF raw data'!A200) -> -233.5 | B195: =IF('DF raw data'!B200="","",'DF raw data'!B200) -> -3.87025e-05 | C195: =IF('DF raw data'!C200="","",'DF raw data'!C200) -> 0.000124395 | D195: =IF('DF raw data'!D200="","",'DF raw data'!D200) -> 7.97208e-06 | F195: -3.88805315e-05 | G195: 0.000124967217 | H195: 8.008751568e-06 | J195: -0.001649837602 | K195: -0.05030443324 | L195: 0.008211617478 | M195: 0.27116054 | N195: 0.001520638652
A196: =IF('DF raw data'!A201="","",'DF raw data'!A201) -> -233 | B196: =IF('DF raw data'!B201="","",'DF raw data'!B201) -> -4.35689e-05 | C196: =IF('DF raw data'!C201="","",'DF raw data'!C201) -> 0.000126172 | D196: =IF('DF raw data'!D201="","",'DF raw data'!D201) -> -4.82156e-07 | F196: -4.376931694e-05 | G196: 0.0001267523912 | H196: -4.843739176e-07 | J196: -0.00167172226 | K196: -0.05114029437 | L196: 0.008274993674 | M196: 0.2752980368 | N196: 0.00155627374
A197: =IF('DF raw data'!A202="","",'DF raw data'!A202) -> -232.5 | B197: =IF('DF raw data'!B202="","",'DF raw data'!B202) -> -3.60721e-05 | C197: =IF('DF raw data'!C202="","",'DF raw data'!C202) -> 0.000127773 | D197: =IF('DF raw data'!D202="","",'DF raw data'!D202) -> 4.62783e-06 | F197: -3.623803166e-05 | G197: 0.0001283607558 | H197: 4.649118018e-06 | J197: -0.001689841276 | K197: -0.05198521501 | L197: 0.008339174052 | M197: 0.2794676239 | N197: 0.001592472434
A198: =IF('DF raw data'!A203="","",'DF raw data'!A203) -> -232 | B198: =IF('DF raw data'!B203="","",'DF raw data'!B203) -> -2.966e-05 | C198: =IF('DF raw data'!C203="","",'DF raw data'!C203) -> 0.000131007 | D198: =IF('DF raw data'!D203="","",'DF raw data'!D203) -> 1.70403e-06 | F198: -2.9796436e-05 | G198: 0.0001316096322 | H198: 1.711868538e-06 | J198: -0.001704739494 | K198: -0.05283758476 | L198: 0.008404978868 | M198: 0.2836701133 | N198: 0.001629247337
A199: =IF('DF raw data'!A204="","",'DF raw data'!A204) -> -231.5 | B199: =IF('DF raw data'!B204="","",'DF raw data'!B204) -> -2.53031e-05 | C199: =IF('DF raw data'!C204="","",'DF raw data'!C204) -> 0.000141646 | D199: =IF('DF raw data'!D204="","",'DF raw data'!D204) -> 4.6898e-06 | F199: -2.541949426e-05 | G199: 0.0001422975716 | H199: 4.71137308e-06 | J199: -0.001717449241 | K199: -0.05369630938 | L199: 0.008476127654 | M199: 0.2879081771 | N199: 0.001666644523
A200: =IF('DF raw data'!A205="","",'DF raw data'!A205) -> -231 | B200: =IF('DF raw data'!B205="","",'DF raw data'!B205) -> -2.7161e-05 | C200: =IF('DF raw data'!C205="","",'DF raw data'!C205) -> 0.00013862 | D200: =IF('DF raw data'!D205="","",'DF raw data'!D205) -> 2.91493e-06 | F200: -2.72859406e-05 | G200: 0.000139257652 | H200: 2.928338678e-06 | J200: -0.001731092212 | K200: -0.05456185548 | L200: 0.00854575648 | M200: 0.2921810554 | N200: 0.00170465784
A201: =IF('DF raw data'!A206="","",'DF raw data'!A206) -> -230.5 | B201: =IF('DF raw data'!B206="","",'DF raw data'!B206) -> -2.75526e-05 | C201: =IF('DF raw data'!C206="","",'DF raw data'!C206) -> 0.00014117 | D201: =IF('DF raw data'!D206="","",'DF raw data'!D206) -> 1.37049e-05 | F201: -2.767934196e-05 | G201: 0.000141819382 | H201: 1.376794254e-05 | J201: -0.001744931883 | K201: -0.05543432143 | L201: 0.008616666171 | M201: 0.2964893884 | N201: 0.001743303702
... 1061 more rows

Sheet 10 x=-1
A1: =IF('DF raw data'!E1="","",'DF raw data'!E1) -> Number of header lines | B1: =IF('DF raw data'!F1="","",'DF raw data'!F1) -> 54 | C1: =IF('DF raw data'!G1="","",'DF raw data'!G1) ->  | D1: =IF('DF raw data'!H1="","",'DF raw data'!H1) ->  | F1: T_coeff | G1: -0.001 | H1: /degC | J1: IBy total | K1: =J1262*1000 -> 0.9407301612 | L1: muTm | M1: =L1262*1000 -> 65.68100177 | R1: DF ref | S1: ='10 x=-2'!S1 -> 1
A2: =IF('DF raw data'!E2="","",'DF raw data'!E2) -> Measured by | B2: =IF('DF raw data'!F2="","",'DF raw data'!F2) -> Danfysik | C2: =IF('DF raw data'!G2="","",'DF raw data'!G2) ->  | D2: =IF('DF raw data'!H2="","",'DF raw data'!H2) ->  | F2: Tcorr | G2: 20 | H2: degC | J2: JBy total | K2: =K1262 -> -1.030842679 | L2: muTm^2 | M2: =M1262 -> 23.22730178
A3: =IF('DF raw data'!E3="","",'DF raw data'!E3) -> Operator | B3: =IF('DF raw data'!F3="","",'DF raw data'!F3) -> PMHA | C3: =IF('DF raw data'!G3="","",'DF raw data'!G3) ->  | D3: =IF('DF raw data'!H3="","",'DF raw data'!H3) ->  | F3: Step | G3: =A63-A62 -> 0.5 | H3: mm | J3: PI total | K3: =N1262 -> 10598.4817 | L3: T^2mm^3
A4: =IF('DF raw data'!E4="","",'DF raw data'!E4) -> Data-time | B4: =IF('DF raw data'!F4="","",'DF raw data'!F4) -> 29-08-2024, 12:05:14 | C4: =IF('DF raw data'!G4="","",'DF raw data'!G4) ->  | D4: =IF('DF raw data'!H4="","",'DF raw data'!H4) -> 
A5: =IF('DF raw data'!E5="","",'DF raw data'!E5) -> Project | B5: =IF('DF raw data'!F5="","",'DF raw data'!F5) -> 504314 | C5: =IF('DF raw data'!G5="","",'DF raw data'!G5) ->  | D5: =IF('DF raw data'!H5="","",'DF raw data'!H5) -> 
A6: =IF('DF raw data'!E6="","",'DF raw data'!E6) -> Magnet type | B6: =IF('DF raw data'!F6="","",'DF raw data'!F6) -> Dipole | C6: =IF('DF raw data'!G6="","",'DF raw data'!G6) ->  | D6: =IF('DF raw data'!H6="","",'DF raw data'!H6) -> 
A7: =IF('DF raw data'!E7="","",'DF raw data'!E7) -> Magnet nr. | B7: =IF('DF raw data'!F7="","",'DF raw data'!F7) -> 2410087 | C7: =IF('DF raw data'!G7="","",'DF raw data'!G7) ->  | D7: =IF('DF raw data'!H7="","",'DF raw data'!H7) -> 
A8: =IF('DF raw data'!E8="","",'DF raw data'!E8) -> Meas. number | B8: =IF('DF raw data'!F8="","",'DF raw data'!F8) -> 242 | C8: =IF('DF raw data'!G8="","",'DF raw data'!G8) ->  | D8: =IF('DF raw data'!H8="","",'DF raw data'!H8) -> 
A9: =IF('DF raw data'!E9="","",'DF raw data'!E9) -> Add. info | B9: =IF('DF raw data'!F9="","",'DF raw data'!F9) -> X-alignment scan 2) | C9: =IF('DF raw data'!G9="","",'DF raw data'!G9) ->  | D9: =IF('DF raw data'!H9="","",'DF raw data'!H9) -> 
A10: =IF('DF raw data'!E10="","",'DF raw data'!E10) -> Device | B10: =IF('DF raw data'!F10="","",'DF raw data'!F10) -> (HAL) HALL-PROBE | C10: =IF('DF raw data'!G10="","",'DF raw data'!G10) ->  | D10: =IF('DF raw data'!H10="","",'DF raw data'!H10) -> 
A11: =IF('DF raw data'!E11="","",'DF raw data'!E11) -> Goal | B11: =IF('DF raw data'!F11="","",'DF raw data'!F11) -> (AXI) AXis Integral (Line, EFB) | C11: =IF('DF raw data'!G11="","",'DF raw data'!G11) ->  | D11: =IF('DF raw data'!H11="","",'DF raw data'!H11) -> 
A12: =IF('DF raw data'!E12="","",'DF raw data'!E12) -> Power supply mode | B12: =IF('DF raw data'!F12="","",'DF raw data'!F12) -> (PM) Permanent Magnet (no MPS in use) | C12: =IF('DF raw data'!G12="","",'DF raw data'!G12) ->  | D12: =IF('DF raw data'!H12="","",'DF raw data'!H12) -> 
A13: =IF('DF raw data'!E13="","",'DF raw data'!E13) -> Data format | B13: =IF('DF raw data'!F13="","",'DF raw data'!F13) -> Raw data text file | C13: =IF('DF raw data'!G13="","",'DF raw data'!G13) ->  | D13: =IF('DF raw data'!H13="","",'DF raw data'!H13) -> 
A14: =IF('DF raw data'!E14="","",'DF raw data'!E14) -> Direction of the pos. x-axis | B14: =IF('DF raw data'!F14="","",'DF raw data'!F14) -> See test program | C14: =IF('DF raw data'!G14="","",'DF raw data'!G14) ->  | D14: =IF('DF raw data'!H14="","",'DF raw data'!H14) -> 
A15: =IF('DF raw data'!E15="","",'DF raw data'!E15) -> Direction of the pos. y-axis | B15: =IF('DF raw data'!F15="","",'DF raw data'!F15) -> Vertical up | C15: =IF('DF raw data'!G15="","",'DF raw data'!G15) ->  | D15: =IF('DF raw data'!H15="","",'DF raw data'!H15) -> 
A16: =IF('DF raw data'!E16="","",'DF raw data'!E16) -> Direction of the pos. z-axis | B16: =IF('DF raw data'!F16="","",'DF raw data'!F16) -> See test program | C16: =IF('DF raw data'!G16="","",'DF raw data'!G16) ->  | D16: =IF('DF raw data'!H16="","",'DF raw data'!H16) -> 
A17: =IF('DF raw data'!E17="","",'DF raw data'!E17) -> Mapper type | B17: =IF('DF raw data'!F17="","",'DF raw data'!F17) -> Precision Hall Mapper | C17: =IF('DF raw data'!G17="","",'DF raw data'!G17) ->  | D17: =IF('DF raw data'!H17="","",'DF raw data'!H17) -> 
A18: =IF('DF raw data'!E18="","",'DF raw data'!E18) -> Mapper Danfysik Reg. Number | B18: =IF('DF raw data'!F18="","",'DF raw data'!F18) -> 2033-D (mapper 1) | C18: =IF('DF raw data'!G18="","",'DF raw data'!G18) ->  | D18: =IF('DF raw data'!H18="","",'DF raw data'!H18) -> 
A19: =IF('DF raw data'!E19="","",'DF raw data'!E19) -> Measurement consept | B19: =IF('DF raw data'!F19="","",'DF raw data'!F19) -> Square line grid | C19: =IF('DF raw data'!G19="","",'DF raw data'!G19) ->  | D19: =IF('DF raw data'!H19="","",'DF raw data'!H19) -> 
A20: =IF('DF raw data'!E20="","",'DF raw data'!E20) -> Mode | B20: =IF('DF raw data'!F20="","",'DF raw data'!F20) -> On-the-fly measurement | C20: =IF('DF raw data'!G20="","",'DF raw data'!G20) ->  | D20: =IF('DF raw data'!H20="","",'DF raw data'!H20) -> 
A21: =IF('DF raw data'!E21="","",'DF raw data'!E21) ->  | B21: =IF('DF raw data'!F21="","",'DF raw data'!F21) ->  | C21: =IF('DF raw data'!G21="","",'DF raw data'!G21) ->  | D21: =IF('DF raw data'!H21="","",'DF raw data'!H21) -> 
A22: =IF('DF raw data'!E22="","",'DF raw data'!E22) -> Probe Name | B22: =IF('DF raw data'!F22="","",'DF raw data'!F22) -> ID12_By | C22: =IF('DF raw data'!G22="","",'DF raw data'!G22) ->  | D22: =IF('DF raw data'!H22="","",'DF raw data'!H22) -> 
A23: =IF('DF raw data'!E23="","",'DF raw data'!E23) -> Probe Type | B23: =IF('DF raw data'!F23="","",'DF raw data'!F23) -> DF_ID_3D_Bxyz | C23: =IF('DF raw data'!G23="","",'DF raw data'!G23) ->  | D23: =IF('DF raw data'!H23="","",'DF raw data'!H23) -> 
A24: =IF('DF raw data'!E24="","",'DF raw data'!E24) -> Probe Danfysik Reg. Number | B24: =IF('DF raw data'!F24="","",'DF raw data'!F24) -> 2277 | C24: =IF('DF raw data'!G24="","",'DF raw data'!G24) ->  | D24: =IF('DF raw data'!H24="","",'DF raw data'!H24) -> 
A25: =IF('DF raw data'!E25="","",'DF raw data'!E25) -> Probe Axis | B25: =IF('DF raw data'!F25="","",'DF raw data'!F25) -> By | C25: =IF('DF raw data'!G25="","",'DF raw data'!G25) ->  | D25: =IF('DF raw data'!H25="","",'DF raw data'!H25) -> 
A26: =IF('DF raw data'!E26="","",'DF raw data'!E26) -> Probe Current Supply | B26: =IF('DF raw data'!F26="","",'DF raw data'!F26) -> 1825-D | C26: =IF('DF raw data'!G26="","",'DF raw data'!G26) ->  | D26: =IF('DF raw data'!H26="","",'DF raw data'!H26) -> 
A27: =IF('DF raw data'!E27="","",'DF raw data'!E27) -> Probe Gain Correction | B27: =IF('DF raw data'!F27="","",'DF raw data'!F27) -> 0.99617 | C27: =IF('DF raw data'!G27="","",'DF raw data'!G27) ->  | D27: =IF('DF raw data'!H27="","",'DF raw data'!H27) -> 
A28: =IF('DF raw data'!E28="","",'DF raw data'!E28) -> Probe Offset Correction | B28: =IF('DF raw data'!F28="","",'DF raw data'!F28) -> 0.0027239 | C28: =IF('DF raw data'!G28="","",'DF raw data'!G28) ->  | D28: =IF('DF raw data'!H28="","",'DF raw data'!H28) -> 
A29: =IF('DF raw data'!E29="","",'DF raw data'!E29) -> DVM Number | B29: =IF('DF raw data'!F29="","",'DF raw data'!F29) -> 2 | C29: =IF('DF raw data'!G29="","",'DF raw data'!G29) ->  | D29: =IF('DF raw data'!H29="","",'DF raw data'!H29) -> 
A30: =IF('DF raw data'!E30="","",'DF raw data'!E30) -> DVM Type | B30: =IF('DF raw data'!F30="","",'DF raw data'!F30) -> K2701 | C30: =IF('DF raw data'!G30="","",'DF raw data'!G30) ->  | D30: =IF('DF raw data'!H30="","",'DF raw data'!H30) -> 
A31: =IF('DF raw data'!E31="","",'DF raw data'!E31) -> DVM Danfysik Reg. Number | B31: =IF('DF raw data'!F31="","",'DF raw data'!F31) -> 1743-D | C31: =IF('DF raw data'!G31="","",'DF raw data'!G31) ->  | D31: =IF('DF raw data'!H31="","",'DF raw data'!H31) -> 
A32: =IF('DF raw data'!E32="","",'DF raw data'!E32) -> Probe Name | B32: =IF('DF raw data'!F32="","",'DF raw data'!F32) -> ID12_Bx | C32: =IF('DF raw data'!G32="","",'DF raw data'!G32) ->  | D32: =IF('DF raw data'!H32="","",'DF raw data'!H32) -> 
A33: =IF('DF raw data'!E33="","",'DF raw data'!E33) -> Probe Type | B33: =IF('DF raw data'!F33="","",'DF raw data'!F33) -> DF_ID_3D_Bxyz | C33: =IF('DF raw data'!G33="","",'DF raw data'!G33) ->  | D33: =IF('DF raw data'!H33="","",'DF raw data'!H33) -> 
A34: =IF('DF raw data'!E34="","",'DF raw data'!E34) -> Probe Danfysik Reg. Number | B34: =IF('DF raw data'!F34="","",'DF raw data'!F34) -> 2277 | C34: =IF('DF raw data'!G34="","",'DF raw data'!G34) ->  | D34: =IF('DF raw data'!H34="","",'DF raw data'!H34) -> 
A35: =IF('DF raw data'!E35="","",'DF raw data'!E35) -> Probe Axis | B35: =IF('DF raw data'!F35="","",'DF raw data'!F35) -> Bx | C35: =IF('DF raw data'!G35="","",'DF raw data'!G35) ->  | D35: =IF('DF raw data'!H35="","",'DF raw data'!H35) -> 
A36: =IF('DF raw data'!E36="","",'DF raw data'!E36) -> Probe Current Supply | B36: =IF('DF raw data'!F36="","",'DF raw data'!F36) -> 1825-D | C36: =IF('DF raw data'!G36="","",'DF raw data'!G36) ->  | D36: =IF('DF raw data'!H36="","",'DF raw data'!H36) -> 
A37: =IF('DF raw data'!E37="","",'DF raw data'!E37) -> Probe Gain Correction | B37: =IF('DF raw data'!F37="","",'DF raw data'!F37) -> 1 | C37: =IF('DF raw data'!G37="","",'DF raw data'!G37) ->  | D37: =IF('DF raw data'!H37="","",'DF raw data'!H37) -> 
A38: =IF('DF raw data'!E38="","",'DF raw data'!E38) -> Probe Offset Correction | B38: =IF('DF raw data'!F38="","",'DF raw data'!F38) -> -0.17561 | C38: =IF('DF raw data'!G38="","",'DF raw data'!G38) ->  | D38: =IF('DF raw data'!H38="","",'DF raw data'!H38) -> 
A39: =IF('DF raw data'!E39="","",'DF raw data'!E39) -> DVM Number | B39: =IF('DF raw data'!F39="","",'DF raw data'!F39) -> 3 | C39: =IF('DF raw data'!G39="","",'DF raw data'!G39) ->  | D39: =IF('DF raw data'!H39="","",'DF raw data'!H39) -> 
A40: =IF('DF raw data'!E40="","",'DF raw data'!E40) -> DVM Type | B40: =IF('DF raw data'!F40="","",'DF raw data'!F40) -> K2701 | C40: =IF('DF raw data'!G40="","",'DF raw data'!G40) ->  | D40: =IF('DF raw data'!H40="","",'DF raw data'!H40) -> 
A41: =IF('DF raw data'!E41="","",'DF raw data'!E41) -> DVM Danfysik Reg. Number | B41: =IF('DF raw data'!F41="","",'DF raw data'!F41) -> 1744-D | C41: =IF('DF raw data'!G41="","",'DF raw data'!G41) ->  | D41: =IF('DF raw data'!H41="","",'DF raw data'!H41) -> 
A42: =IF('DF raw data'!E42="","",'DF raw data'!E42) -> Probe Name | B42: =IF('DF raw data'!F42="","",'DF raw data'!F42) -> ID12_Bz | C42: =IF('DF raw data'!G42="","",'DF raw data'!G42) ->  | D42: =IF('DF raw data'!H42="","",'DF raw data'!H42) -> 
A43: =IF('DF raw data'!E43="","",'DF raw data'!E43) -> Probe Type | B43: =IF('DF raw data'!F43="","",'DF raw data'!F43) -> DF_ID_3D_Bxyz | C43: =IF('DF raw data'!G43="","",'DF raw data'!G43) ->  | D43: =IF('DF raw data'!H43="","",'DF raw data'!H43) -> 
A44: =IF('DF raw data'!E44="","",'DF raw data'!E44) -> Probe Danfysik Reg. Number | B44: =IF('DF raw data'!F44="","",'DF raw data'!F44) -> 2277 | C44: =IF('DF raw data'!G44="","",'DF raw data'!G44) ->  | D44: =IF('DF raw data'!H44="","",'DF raw data'!H44) -> 
A45: =IF('DF raw data'!E45="","",'DF raw data'!E45) -> Probe Axis | B45: =IF('DF raw data'!F45="","",'DF raw data'!F45) -> Bz | C45: =IF('DF raw data'!G45="","",'DF raw data'!G45) ->  | D45: =IF('DF raw data'!H45="","",'DF raw data'!H45) -> 
A46: =IF('DF raw data'!E46="","",'DF raw data'!E46) -> Probe Current Supply | B46: =IF('DF raw data'!F46="","",'DF raw data'!F46) -> 1825-D | C46: =IF('DF raw data'!G46="","",'DF raw data'!G46) ->  | D46: =IF('DF raw data'!H46="","",'DF raw data'!H46) -> 
A47: =IF('DF raw data'!E47="","",'DF raw data'!E47) -> Probe Gain Correction | B47: =IF('DF raw data'!F47="","",'DF raw data'!F47) -> 1 | C47: =IF('DF raw data'!G47="","",'DF raw data'!G47) ->  | D47: =IF('DF raw data'!H47="","",'DF raw data'!H47) -> 
A48: =IF('DF raw data'!E53="","",'DF raw data'!E53) -> PS-Gap: | B48: =IF('DF raw data'!F53="","",'DF raw data'!F53) -> 10 | C48: =IF('DF raw data'!G53="","",'DF raw data'!G53) ->  | D48: =IF('DF raw data'!H53="","",'DF raw data'!H53) -> 
A49: =IF('DF raw data'!E54="","",'DF raw data'!E54) -> PS-Temperature: | B49: =IF('DF raw data'!F54="","",'DF raw data'!F54) -> 24.6 | C49: =IF('DF raw data'!G54="","",'DF raw data'!G54) ->  | D49: =IF('DF raw data'!H54="","",'DF raw data'!H54) -> 
A50: =IF('DF raw data'!E55="","",'DF raw data'!E55) -> PS-Encoder: | B50: =IF('DF raw data'!F55="","",'DF raw data'!F55) -> 20.0459 | C50: =IF('DF raw data'!G55="","",'DF raw data'!G55) ->  | D50: =IF('DF raw data'!H55="","",'DF raw data'!H55) -> 
A51: =IF('DF raw data'!E56="","",'DF raw data'!E56) ->  | B51: =IF('DF raw data'!F56="","",'DF raw data'!F56) ->  | C51: =IF('DF raw data'!G56="","",'DF raw data'!G56) ->  | D51: =IF('DF raw data'!H56="","",'DF raw data'!H56) -> 
A52: =IF('DF raw data'!E57="","",'DF raw data'!E57) -> Monitor-Index | B52: =IF('DF raw data'!F57="","",'DF raw data'!F57) -> [1,1,4] | C52: =IF('DF raw data'!G57="","",'DF raw data'!G57) ->  | D52: =IF('DF raw data'!H57="","",'DF raw data'!H57) -> 
A53: =IF('DF raw data'!E58="","",'DF raw data'!E58) ->  | B53: =IF('DF raw data'!F58="","",'DF raw data'!F58) ->  | C53: =IF('DF raw data'!G58="","",'DF raw data'!G58) ->  | D53: =IF('DF raw data'!H58="","",'DF raw data'!H58) -> 
A54: =IF('DF raw data'!E59="","",'DF raw data'!E59) -> Time [s] | B54: =IF('DF raw data'!F59="","",'DF raw data'!F59) -> Y [mm] | C54: =IF('DF raw data'!G59="","",'DF raw data'!G59) -> X [mm] | D54: =IF('DF raw data'!H59="","",'DF raw data'!H59) -> Nominal current [A]
A55: =IF('DF raw data'!E60="","",'DF raw data'!E60) ->  | B55: =IF('DF raw data'!F60="","",'DF raw data'!F60) ->  | C55: =IF('DF raw data'!G60="","",'DF raw data'!G60) ->  | D55: =IF('DF raw data'!H60="","",'DF raw data'!H60) -> 
A56: =IF('DF raw data'!E61="","",'DF raw data'!E61) -> 207.6 | B56: =IF('DF raw data'!F61="","",'DF raw data'!F61) -> 31.16 | C56: =IF('DF raw data'!G61="","",'DF raw data'!G61) -> 300.8 | D56: =IF('DF raw data'!H61="","",'DF raw data'!H61) -> 0
A57: =IF('DF raw data'!E62="","",'DF raw data'!E62) ->  | B57: =IF('DF raw data'!F62="","",'DF raw data'!F62) ->  | C57: =IF('DF raw data'!G62="","",'DF raw data'!G62) ->  | D57: =IF('DF raw data'!H62="","",'DF raw data'!H62) -> 
A58: =IF('DF raw data'!E63="","",'DF raw data'!E63) -> Measurement-Index | B58: =IF('DF raw data'!F63="","",'DF raw data'!F63) -> [1,1,1201,2] | C58: =IF('DF raw data'!G63="","",'DF raw data'!G63) ->  | D58: =IF('DF raw data'!H63="","",'DF raw data'!H63) -> 
A59: =IF('DF raw data'!E64="","",'DF raw data'!E64) ->  | B59: =IF('DF raw data'!F64="","",'DF raw data'!F64) ->  | C59: =IF('DF raw data'!G64="","",'DF raw data'!G64) ->  | D59: =IF('DF raw data'!H64="","",'DF raw data'!H64) -> 
A60: =IF('DF raw data'!E65="","",'DF raw data'!E65) -> Z [mm] | B60: By [T] | C60: Bx [T] | D60: Bz [T] | F60: By_corr | G60: Bx_corr | H60: Bz_corr | J60: Iy | K60: Jy | L60: Ix | M60: Jx | N60: PI
A62: =IF('DF raw data'!E67="","",'DF raw data'!E67) -> -300 | B62: =IF('DF raw data'!F67="","",'DF raw data'!F67) -> -1.3172e-05 | C62: =IF('DF raw data'!G67="","",'DF raw data'!G67) -> 0.00016231 | D62: =IF('DF raw data'!H67="","",'DF raw data'!H67) -> -8.35836e-06 | F62: =(1-$G$1*($B$49))*B62 -> -1.34960312e-05 | G62: =(1-$G$1*($B$49-$G$2))*C62 -> 0.000163056626 | H62: =(1-$G$1*($B$49-$G$2))*D62 -> -8.396808456e-06 | J62: =F62*$G$3 -> -6.7480156e-06 | K62: =J62*$G$3 -> -3.3740078e-06 | L62: =G62*$G$3 -> 8.1528313e-05 | M62: =L62*$G$3 -> 4.07641565e-05 | N62: =(J62^2+L62^2)*$G$3 -> 3.346200768e-09
A63: =IF('DF raw data'!E68="","",'DF raw data'!E68) -> -299.5 | B63: =IF('DF raw data'!F68="","",'DF raw data'!F68) -> -1.68898e-05 | C63: =IF('DF raw data'!G68="","",'DF raw data'!G68) -> 0.000149486 | D63: =IF('DF raw data'!H68="","",'DF raw data'!H68) -> -8.25842e-06 | F63: =(1-$G$1*($B$49-$G$2))*B63 -> -1.696749308e-05 | G63: =(1-$G$1*($B$49-$G$2))*C63 -> 0.0001501736356 | H63: -8.296408732e-06 | J63: =F63*$G$3+J62 -> -1.523176214e-05 | K63: =J63*$G$3+K62 -> -1.098988887e-05 | L63: =G63*$G$3+L62 -> 0.0001566151308 | M63: =L63*$G$3+M62 -> 0.0001190717219 | N63: =(J63^2+L63^2)*$G$3+N62 -> 1.572635365e-08
A64: =IF('DF raw data'!E69="","",'DF raw data'!E69) -> -299 | B64: =IF('DF raw data'!F69="","",'DF raw data'!F69) -> -6.71844e-07 | C64: =IF('DF raw data'!G69="","",'DF raw data'!G69) -> 0.00015401 | D64: =IF('DF raw data'!H69="","",'DF raw data'!H69) -> -8.65661e-06 | F64: =(1-$G$1*($B$49-$G$2))*B64 -> -6.749344824e-07 | G64: 0.000154718446 | H64: -8.696430406e-06 | J64: =F64*$G$3+J63 -> -1.556922938e-05 | K64: =J64*$G$3+K63 -> -1.877450356e-05 | L64: =G64*$G$3+L63 -> 0.0002339743538 | M64: =L64*$G$3+M63 -> 0.0002360588988 | N64: =(J64^2+L64^2)*$G$3+N63 -> 4.321955322e-08
A65: =IF('DF raw data'!E70="","",'DF raw data'!E70) -> -298.5 | B65: =IF('DF raw data'!F70="","",'DF raw data'!F70) -> -7.72258e-06 | C65: =IF('DF raw data'!G70="","",'DF raw data'!G70) -> 0.00015148 | D65: =IF('DF raw data'!H70="","",'DF raw data'!H70) -> -9.31628e-06 | F65: -7.758103868e-06 | G65: 0.000152176808 | H65: -9.359134888e-06 | J65: -1.944828132e-05 | K65: -2.849864422e-05 | L65: 0.0003100627578 | M65: 0.0003910902777 | N65: 9.147812793e-08
A66: =IF('DF raw data'!E71="","",'DF raw data'!E71) -> -298 | B66: =IF('DF raw data'!F71="","",'DF raw data'!F71) -> -1.25945e-05 | C66: =IF('DF raw data'!G71="","",'DF raw data'!G71) -> 0.000144338 | D66: =IF('DF raw data'!H71="","",'DF raw data'!H71) -> -9.16631e-06 | F66: -1.26524347e-05 | G66: 0.0001450019548 | H66: -9.208475026e-06 | J66: -2.577449867e-05 | K66: -4.138589355e-05 | L66: 0.0003825637352 | M66: 0.0005823721453 | N66: 1.649877961e-07
A67: =IF('DF raw data'!E72="","",'DF raw data'!E72) -> -297.5 | B67: =IF('DF raw data'!F72="","",'DF raw data'!F72) -> -9.64624e-06 | C67: =IF('DF raw data'!G72="","",'DF raw data'!G72) -> 0.000152259 | D67: =IF('DF raw data'!H72="","",'DF raw data'!H72) -> -8.65701e-06 | F67: -9.690612704e-06 | G67: 0.0001529593914 | H67: -8.696832246e-06 | J67: -3.061980502e-05 | K67: -5.669579606e-05 | L67: 0.0004590434309 | M67: 0.0008118938607 | N67: 2.70817018e-07
A68: =IF('DF raw data'!E73="","",'DF raw data'!E73) -> -297 | B68: =IF('DF raw data'!F73="","",'DF raw data'!F73) -> -2.3382e-06 | C68: =IF('DF raw data'!G73="","",'DF raw data'!G73) -> 0.000152713 | D68: =IF('DF raw data'!H73="","",'DF raw data'!H73) -> -8.98935e-06 | F68: -2.34895572e-06 | G68: 0.0001534154798 | H68: -9.03070101e-06 | J68: -3.179428288e-05 | K68: -7.25929375e-05 | L68: 0.0005357511708 | M68: 0.001079769446 | N68: 4.148371147e-07
A69: =IF('DF raw data'!E74="","",'DF raw data'!E74) -> -296.5 | B69: =IF('DF raw data'!F74="","",'DF raw data'!F74) -> -7.01726e-06 | C69: =IF('DF raw data'!G74="","",'DF raw data'!G74) -> 0.000147591 | D69: =IF('DF raw data'!H74="","",'DF raw data'!H74) -> -9.87116e-06 | F69: -7.049539396e-06 | G69: 0.0001482699186 | H69: -9.916567336e-06 | J69: -3.531905258e-05 | K69: -9.025246379e-05 | L69: 0.0006098861301 | M69: 0.001384712511 | N69: 6.014413783e-07
A70: =IF('DF raw data'!E75="","",'DF raw data'!E75) -> -296 | B70: =IF('DF raw data'!F75="","",'DF raw data'!F75) -> -9.64522e-06 | C70: =IF('DF raw data'!G75="","",'DF raw data'!G75) -> 0.000148455 | D70: =IF('DF raw data'!H75="","",'DF raw data'!H75) -> -1.02434e-05 | F70: -9.689588012e-06 | G70: 0.000149137893 | H70: -1.029051964e-05 | J70: -4.016384658e-05 | K70: -0.0001103343871 | L70: 0.0006844550766 | M70: 0.00172694005 | N70: 8.364873216e-07
A71: =IF('DF raw data'!E76="","",'DF raw data'!E76) -> -295.5 | B71: =IF('DF raw data'!F76="","",'DF raw data'!F76) -> -1.82994e-05 | C71: =IF('DF raw data'!G76="","",'DF raw data'!G76) -> 0.000154925 | D71: =IF('DF raw data'!H76="","",'DF raw data'!H76) -> -9.54512e-06 | F71: -1.838357724e-05 | G71: 0.000155637655 | H71: -9.589027552e-06 | J71: -4.93556352e-05 | K71: -0.0001350122047 | L71: 0.0007622739041 | M71: 0.002108077002 | N71: 1.128236063e-06
A72: =IF('DF raw data'!E77="","",'DF raw data'!E77) -> -295 | B72: =IF('DF raw data'!F77="","",'DF raw data'!F77) -> -1.61848e-05 | C72: =IF('DF raw data'!G77="","",'DF raw data'!G77) -> 0.000151619 | D72: =IF('DF raw data'!H77="","",'DF raw data'!H77) -> -8.3722e-06 | F72: -1.625925008e-05 | G72: 0.0001523164474 | H72: -8.41071212e-06 | J72: -5.748526024e-05 | K72: -0.0001637548348 | L72: 0.0008384321278 | M72: 0.002527293065 | N72: 1.481372557e-06
A73: =IF('DF raw data'!E78="","",'DF raw data'!E78) -> -294.5 | B73: =IF('DF raw data'!F78="","",'DF raw data'!F78) -> -1.04159e-05 | C73: =IF('DF raw data'!G78="","",'DF raw data'!G78) -> 0.000145682 | D73: =IF('DF raw data'!H78="","",'DF raw data'!H78) -> -7.97875e-06 | F73: -1.046381314e-05 | G73: 0.0001463521372 | H73: -8.01545225e-06 | J73: -6.271716681e-05 | K73: -0.0001951134182 | L73: 0.0009116081964 | M73: 0.002983097164 | N73: 1.898854031e-06
A74: =IF('DF raw data'!E79="","",'DF raw data'!E79) -> -294 | B74: =IF('DF raw data'!F79="","",'DF raw data'!F79) -> -1.88969e-06 | C74: =IF('DF raw data'!G79="","",'DF raw data'!G79) -> 0.000152401 | D74: =IF('DF raw data'!H79="","",'DF raw data'!H79) -> -8.91141e-06 | F74: -1.898382574e-06 | G74: 0.0001531020446 | H74: -8.952402486e-06 | J74: -6.36663581e-05 | K74: -0.0002269465973 | L74: 0.0009881592187 | M74: 0.003477176773 | N74: 2.389110054e-06
A75: =IF('DF raw data'!E80="","",'DF raw data'!E80) -> -293.5 | B75: =IF('DF raw data'!F80="","",'DF raw data'!F80) -> -6.05559e-06 | C75: =IF('DF raw data'!G80="","",'DF raw data'!G80) -> 0.000161209 | D75: =IF('DF raw data'!H80="","",'DF raw data'!H80) -> -9.95475e-06 | F75: -6.083445714e-06 | G75: 0.0001619505614 | H75: -1.000054185e-05 | J75: -6.670808096e-05 | K75: -0.0002603006377 | L75: 0.001069134499 | M75: 0.004011744023 | N75: 2.962859327e-06
A76: =IF('DF raw data'!E81="","",'DF raw data'!E81) -> -293 | B76: =IF('DF raw data'!F81="","",'DF raw data'!F81) -> -1.77861e-05 | C76: =IF('DF raw data'!G81="","",'DF raw data'!G81) -> 0.000168052 | D76: =IF('DF raw data'!H81="","",'DF raw data'!H81) -> -9.94655e-06 | F76: -1.786791606e-05 | G76: 0.0001688250392 | H76: -9.99230413e-06 | J76: -7.564203899e-05 | K76: -0.0002981216572 | L76: 0.001153547019 | M76: 0.004588517532 | N76: 3.631055549e-06
A77: =IF('DF raw data'!E82="","",'DF raw data'!E82) -> -292.5 | B77: =IF('DF raw data'!F82="","",'DF raw data'!F82) -> -1.14405e-05 | C77: =IF('DF raw data'!G82="","",'DF raw data'!G82) -> 0.000160942 | D77: =IF('DF raw data'!H82="","",'DF raw data'!H82) -> -9.43496e-06 | F77: -1.14931263e-05 | G77: 0.0001616823332 | H77: -9.478360816e-06 | J77: -8.138860214e-05 | K77: -0.0003388159583 | L77: 0.001234388186 | M77: 0.005205711625 | N77: 4.396224697e-06
A78: =IF('DF raw data'!E83="","",'DF raw data'!E83) -> -292 | B78: =IF('DF raw data'!F83="","",'DF raw data'!F83) -> -1.53509e-05 | C78: =IF('DF raw data'!G83="","",'DF raw data'!G83) -> 0.000157802 | D78: =IF('DF raw data'!H83="","",'DF raw data'!H83) -> -9.04228e-06 | F78: -1.542151414e-05 | G78: 0.0001585278892 | H78: -9.083874488e-06 | J78: -8.909935921e-05 | K78: -0.0003833656379 | L78: 0.00131365213 | M78: 0.00586253769 | N78: 5.263035005e-06
A79: =IF('DF raw data'!E84="","",'DF raw data'!E84) -> -291.5 | B79: =IF('DF raw data'!F84="","",'DF raw data'!F84) -> -1.52242e-05 | C79: =IF('DF raw data'!G84="","",'DF raw data'!G84) -> 0.000153446 | D79: =IF('DF raw data'!H84="","",'DF raw data'!H84) -> -6.76317e-06 | F79: -1.529423132e-05 | G79: 0.0001541518516 | H79: -6.794280582e-06 | J79: -9.674647487e-05 | K79: -0.0004317388753 | L79: 0.001390728056 | M79: 0.006557901718 | N79: 6.234777208e-06
A80: =IF('DF raw data'!E85="","",'DF raw data'!E85) -> -291 | B80: =IF('DF raw data'!F85="","",'DF raw data'!F85) -> -1.0158e-05 | C80: =IF('DF raw data'!G85="","",'DF raw data'!G85) -> 0.000149349 | D80: =IF('DF raw data'!H85="","",'DF raw data'!H85) -> -1.0179e-05 | F80: -1.02047268e-05 | G80: 0.0001500360054 | H80: -1.02258234e-05 | J80: -0.0001018488383 | K80: -0.0004826632945 | L80: 0.001465746059 | M80: 0.007290774747 | N80: 7.314169555e-06
A81: =IF('DF raw data'!E86="","",'DF raw data'!E86) -> -290.5 | B81: =IF('DF raw data'!F86="","",'DF raw data'!F86) -> -1.25962e-05 | C81: =IF('DF raw data'!G86="","",'DF raw data'!G86) -> 0.000149318 | D81: =IF('DF raw data'!H86="","",'DF raw data'!H86) -> -6.52771e-06 | F81: -1.265414252e-05 | G81: 0.0001500048628 | H81: -6.557737466e-06 | J81: -0.0001081759095 | K81: -0.0005367512492 | L81: 0.00154074849 | M81: 0.008061148993 | N81: 8.506973524e-06
A82: =IF('DF raw data'!E87="","",'DF raw data'!E87) -> -290 | B82: =IF('DF raw data'!F87="","",'DF raw data'!F87) -> -1.65685e-05 | C82: =IF('DF raw data'!G87="","",'DF raw data'!G87) -> 0.000146289 | D82: =IF('DF raw data'!H87="","",'DF raw data'!H87) -> -9.82686e-06 | F82: -1.66447151e-05 | G82: 0.0001469619294 | H82: -9.872063556e-06 | J82: -0.0001164982671 | K82: -0.0005950003828 | L82: 0.001614229455 | M82: 0.00886826372 | N82: 9.816627813e-06
A83: =IF('DF raw data'!E88="","",'DF raw data'!E88) -> -289.5 | B83: =IF('DF raw data'!F88="","",'DF raw data'!F88) -> -1.25327e-05 | C83: =IF('DF raw data'!G88="","",'DF raw data'!G88) -> 0.00014464 | D83: =IF('DF raw data'!H88="","",'DF raw data'!H88) -> -5.73299e-06 | F83: -1.259035042e-05 | G83: 0.000145305344 | H83: -5.759361754e-06 | J83: -0.0001227934423 | K83: -0.0006563971039 | L83: 0.001686882127 | M83: 0.009711704783 | N83: 1.124695258e-05
A84: =IF('DF raw data'!E89="","",'DF raw data'!E89) -> -289 | B84: =IF('DF raw data'!F89="","",'DF raw data'!F89) -> -1.98373e-05 | C84: =IF('DF raw data'!G89="","",'DF raw data'!G89) -> 0.000139071 | D84: =IF('DF raw data'!H89="","",'DF raw data'!H89) -> -1.03572e-05 | F84: -1.992855158e-05 | G84: 0.0001397107266 | H84: -1.040484312e-05 | J84: -0.0001327577181 | K84: -0.0007227759629 | L84: 0.00175673749 | M84: 0.01059007353 | N84: 1.279882819e-05
A85: =IF('DF raw data'!E90="","",'DF raw data'!E90) -> -288.5 | B85: =IF('DF raw data'!F90="","",'DF raw data'!F90) -> -1.77229e-05 | C85: =IF('DF raw data'!G90="","",'DF raw data'!G90) -> 0.000149091 | D85: =IF('DF raw data'!H90="","",'DF raw data'!H90) -> -8.72671e-06 | F85: -1.780442534e-05 | G85: 0.0001497768186 | H85: -8.766852866e-06 | J85: -0.0001416599307 | K85: -0.0007936059283 | L85: 0.001831625899 | M85: 0.01150588648 | N85: 1.448628868e-05
A86: =IF('DF raw data'!E91="","",'DF raw data'!E91) -> -288 | B86: =IF('DF raw data'!F91="","",'DF raw data'!F91) -> -1.81628e-05 | C86: =IF('DF raw data'!G91="","",'DF raw data'!G91) -> 0.000142933 | D86: =IF('DF raw data'!H91="","",'DF raw data'!H91) -> -2.25996e-05 | F86: -1.824634888e-05 | G86: 0.0001435904918 | H86: -2.270355816e-05 | J86: -0.0001507831052 | K86: -0.0008689974809 | L86: 0.001903421145 | M86: 0.01245759705 | N86: 1.630916248e-05
A87: =IF('DF raw data'!E92="","",'DF raw data'!E92) -> -287.5 | B87: =IF('DF raw data'!F92="","",'DF raw data'!F92) -> -5.65925e-06 | C87: =IF('DF raw data'!G92="","",'DF raw data'!G92) -> 0.000135956 | D87: =IF('DF raw data'!H92="","",'DF raw data'!H92) -> -2.80662e-05 | F87: -5.68528255e-06 | G87: 0.0001365813976 | H87: -2.819530452e-05 | J87: -0.0001536257465 | K87: -0.0009458103541 | L87: 0.001971711844 | M87: 0.01344345297 | N87: 1.826478671e-05
A88: =IF('DF raw data'!E93="","",'DF raw data'!E93) -> -287 | B88: =IF('DF raw data'!F93="","",'DF raw data'!F93) -> -1.95186e-05 | C88: =IF('DF raw data'!G93="","",'DF raw data'!G93) -> 0.000141688 | D88: =IF('DF raw data'!H93="","",'DF raw data'!H93) -> -7.34477e-06 | F88: -1.960838556e-05 | G88: 0.0001423397648 | H88: -7.378555942e-06 | J88: -0.0001634299392 | K88: -0.001027525324 | L88: 0.002042881727 | M88: 0.01446489384 | N88: 2.036482426e-05
A89: =IF('DF raw data'!E94="","",'DF raw data'!E94) -> -286.5 | B89: =IF('DF raw data'!F94="","",'DF raw data'!F94) -> -1.86088e-05 | C89: =IF('DF raw data'!G94="","",'DF raw data'!G94) -> 0.000149668 | D89: =IF('DF raw data'!H94="","",'DF raw data'!H94) -> -2.65748e-05 | F89: -1.869440048e-05 | G89: 0.0001503564728 | H89: -2.669704408e-05 | J89: -0.0001727771395 | K89: -0.001113913893 | L89: 0.002118059963 | M89: 0.01552392382 | N89: 2.262283923e-05
A90: =IF('DF raw data'!E95="","",'DF raw data'!E95) -> -286 | B90: =IF('DF raw data'!F95="","",'DF raw data'!F95) -> -1.37485e-05 | C90: =IF('DF raw data'!G95="","",'DF raw data'!G95) -> 0.000151582 | D90: =IF('DF raw data'!H95="","",'DF raw data'!H95) -> -8.74249e-06 | F90: -1.38117431e-05 | G90: 0.0001522792772 | H90: -8.782705454e-06 | J90: -0.000179683011 | K90: -0.001203755399 | L90: 0.002194199601 | M90: 0.01662102362 | N90: 2.504623817e-05
A91: =IF('DF raw data'!E96="","",'DF raw data'!E96) -> -285.5 | B91: =IF('DF raw data'!F96="","",'DF raw data'!F96) -> -7.26369e-06 | C91: =IF('DF raw data'!G96="","",'DF raw data'!G96) -> 0.000155912 | D91: =IF('DF raw data'!H96="","",'DF raw data'!H96) -> -2.5243e-05 | F91: -7.297102974e-06 | G91: 0.0001566291952 | H91: -2.53591178e-05 | J91: -0.0001833315625 | K91: -0.00129542118 | L91: 0.002272514199 | M91: 0.01775728072 | N91: 2.764520379e-05
A92: =IF('DF raw data'!E97="","",'DF raw data'!E97) -> -285 | B92: =IF('DF raw data'!F97="","",'DF raw data'!F97) -> -1.89281e-05 | C92: =IF('DF raw data'!G97="","",'DF raw data'!G97) -> 0.000157236 | D92: =IF('DF raw data'!H97="","",'DF raw data'!H97) -> -2.85655e-05 | F92: -1.901516926e-05 | G92: 0.0001579592856 | H92: -2.86969013e-05 | J92: -0.0001928391471 | K92: -0.001391840754 | L92: 0.002351493842 | M92: 0.01893302764 | N92: 3.042855891e-05
A93: =IF('DF raw data'!E98="","",'DF raw data'!E98) -> -284.5 | B93: =IF('DF raw data'!F98="","",'DF raw data'!F98) -> -1.19487e-05 | C93: =IF('DF raw data'!G98="","",'DF raw data'!G98) -> 0.000151426 | D93: =IF('DF raw data'!H98="","",'DF raw data'!H98) -> -1.65279e-05 | F93: -1.200366402e-05 | G93: 0.0001521225596 | H93: -1.660392834e-05 | J93: -0.0001988409792 | K93: -0.001491261243 | L93: 0.002427555122 | M93: 0.0201468052 | N93: 3.339483971e-05
A94: =IF('DF raw data'!E99="","",'DF raw data'!E99) -> -284 | B94: =IF('DF raw data'!F99="","",'DF raw data'!F99) -> -1.56083e-05 | C94: =IF('DF raw data'!G99="","",'DF raw data'!G99) -> 0.000148258 | D94: =IF('DF raw data'!H99="","",'DF raw data'!H99) -> -7.55525e-06 | F94: -1.568009818e-05 | G94: 0.0001489399868 | H94: -7.59000415e-06 | J94: -0.0002066810282 | K94: -0.001594601758 | L94: 0.002502025115 | M94: 0.02139781776 | N94: 3.654626307e-05
A95: =IF('DF raw data'!E100="","",'DF raw data'!E100) -> -283.5 | B95: =IF('DF raw data'!F100="","",'DF raw data'!F100) -> -1.94521e-05 | C95: =IF('DF raw data'!G100="","",'DF raw data'!G100) -> 0.000144991 | D95: =IF('DF raw data'!H100="","",'DF raw data'!H100) -> -1.13138e-05 | F95: -1.954157966e-05 | G95: 0.0001456579586 | H95: -1.136584348e-05 | J95: -0.0002164518181 | K95: -0.001702827667 | L95: 0.002574854094 | M95: 0.0226852448 | N95: 3.988462557e-05
A96: =IF('DF raw data'!E101="","",'DF raw data'!E101) -> -283 | B96: =IF('DF raw data'!F101="","",'DF raw data'!F101) -> -2.19503e-05 | C96: =IF('DF raw data'!G101="","",'DF raw data'!G101) -> 0.000152253 | D96: =IF('DF raw data'!H101="","",'DF raw data'!H101) -> -1.39978e-05 | F96: -2.205127138e-05 | G96: 0.0001529533638 | H96: -1.406218988e-05 | J96: -0.0002274774538 | K96: -0.001816566393 | L96: 0.002651330776 | M96: 0.02401091019 | N96: 4.342527601e-05
A97: =IF('DF raw data'!E102="","",'DF raw data'!E102) -> -282.5 | B97: =IF('DF raw data'!F102="","",'DF raw data'!F102) -> -2.69456e-05 | C97: =IF('DF raw data'!G102="","",'DF raw data'!G102) -> 0.000163146 | D97: =IF('DF raw data'!H102="","",'DF raw data'!H102) -> -2.13416e-05 | F97: -2.706954976e-05 | G97: 0.0001638964716 | H97: -2.143977136e-05 | J97: -0.0002410122286 | K97: -0.001937072508 | L97: 0.002733279012 | M97: 0.0253775497 | N97: 4.718972653e-05
A98: =IF('DF raw data'!E103="","",'DF raw data'!E103) -> -282 | B98: =IF('DF raw data'!F103="","",'DF raw data'!F103) -> -1.60479e-05 | C98: =IF('DF raw data'!G103="","",'DF raw data'!G103) -> 0.000155771 | D98: =IF('DF raw data'!H103="","",'DF raw data'!H103) -> -2.18319e-05 | F98: -1.612172034e-05 | G98: 0.0001564875466 | H98: -2.193232674e-05 | J98: -0.0002490730888 | K98: -0.002061609052 | L98: 0.002811522785 | M98: 0.02678331109 | N98: 5.117307542e-05
A99: =IF('DF raw data'!E104="","",'DF raw data'!E104) -> -281.5 | B99: =IF('DF raw data'!F104="","",'DF raw data'!F104) -> -1.63138e-05 | C99: =IF('DF raw data'!G104="","",'DF raw data'!G104) -> 0.000150885 | D99: =IF('DF raw data'!H104="","",'DF raw data'!H104) -> -7.12364e-06 | F99: -1.638884348e-05 | G99: 0.000151579071 | H99: -7.156408744e-06 | J99: -0.0002572675106 | K99: -0.002190242807 | L99: 0.002887312321 | M99: 0.02822696725 | N99: 5.537445493e-05
A100: =IF('DF raw data'!E105="","",'DF raw data'!E105) -> -281 | B100: =IF('DF raw data'!F105="","",'DF raw data'!F105) -> -1.18867e-05 | C100: =IF('DF raw data'!G105="","",'DF raw data'!G105) -> 0.000147195 | D100: =IF('DF raw data'!H105="","",'DF raw data'!H105) -> -1.31527e-05 | F100: -1.194137882e-05 | G100: 0.000147872097 | H100: -1.321320242e-05 | J100: -0.0002632382 | K100: -0.002321861907 | L100: 0.002961248369 | M100: 0.02970759144 | N100: 5.979359805e-05
A101: =IF('DF raw data'!E106="","",'DF raw data'!E106) -> -280.5 | B101: =IF('DF raw data'!F106="","",'DF raw data'!F106) -> -1.12454e-05 | C101: =IF('DF raw data'!G106="","",'DF raw data'!G106) -> 0.000152532 | D101: =IF('DF raw data'!H106="","",'DF raw data'!H106) -> -1.36337e-05 | F101: -1.129712884e-05 | G101: 0.0001532336472 | H101: -1.369641502e-05 | J101: -0.0002688867644 | K101: -0.00245630529 | L101: 0.003037865193 | M101: 0.03122652403 | N101: 6.444406057e-05
A102: =IF('DF raw data'!E107="","",'DF raw data'!E107) -> -280 | B102: =IF('DF raw data'!F107="","",'DF raw data'!F107) -> -1.98335e-05 | C102: =IF('DF raw data'!G107="","",'DF raw data'!G107) -> 0.000156511 | D102: =IF('DF raw data'!H107="","",'DF raw data'!H107) -> -1.61389e-05 | F102: -1.99247341e-05 | G102: 0.0001572309506 | H102: -1.621313894e-05 | J102: -0.0002788491314 | K102: -0.002595729855 | L102: 0.003116480668 | M102: 0.03278476437 | N102: 6.933916486e-05
A103: =IF('DF raw data'!E108="","",'DF raw data'!E108) -> -279.5 | B103: =IF('DF raw data'!F108="","",'DF raw data'!F108) -> -1.16907e-05 | C103: =IF('DF raw data'!G108="","",'DF raw data'!G108) -> 0.000154617 | D103: =IF('DF raw data'!H108="","",'DF raw data'!H108) -> -1.90265e-05 | F103: -1.174447722e-05 | G103: 0.0001553282382 | H103: -1.91140219e-05 | J103: -0.00028472137 | K103: -0.00273809054 | L103: 0.003194144787 | M103: 0.03438183676 | N103: 7.448097845e-05
A104: =IF('DF raw data'!E109="","",'DF raw data'!E109) -> -279 | B104: =IF('DF raw data'!F109="","",'DF raw data'!F109) -> -1.97069e-05 | C104: =IF('DF raw data'!G109="","",'DF raw data'!G109) -> 0.000148304 | D104: =IF('DF raw data'!H109="","",'DF raw data'!H109) -> -1.3784e-05 | F104: -1.979755174e-05 | G104: 0.0001489861984 | H104: -1.38474064e-05 | J104: -0.0002946201459 | K104: -0.002885400613 | L104: 0.003268637887 | M104: 0.0360161557 | N104: 7.986637579e-05
A105: =IF('DF raw data'!E110="","",'DF raw data'!E110) -> -278.5 | B105: =IF('DF raw data'!F110="","",'DF raw data'!F110) -> -1.2845e-05 | C105: =IF('DF raw data'!G110="","",'DF raw data'!G110) -> 0.000148403 | D105: =IF('DF raw data'!H110="","",'DF raw data'!H110) -> -1.82815e-05 | F105: -1.2904087e-05 | G105: 0.0001490856538 | H105: -1.83655949e-05 | J105: -0.0003010721894 | K105: -0.003035936708 | L105: 0.003343180714 | M105: 0.03768774606 | N105: 8.550012666e-05
A106: =IF('DF raw data'!E111="","",'DF raw data'!E111) -> -278 | B106: =IF('DF raw data'!F111="","",'DF raw data'!F111) -> -1.32344e-05 | C106: =IF('DF raw data'!G111="","",'DF raw data'!G111) -> 0.000150629 | D106: =IF('DF raw data'!H111="","",'DF raw data'!H111) -> -1.08733e-05 | F106: -1.329527824e-05 | G106: 0.0001513218934 | H106: -1.092331718e-05 | J106: -0.0003077198285 | K106: -0.003189796622 | L106: 0.00341884166 | M106: 0.03939716689 | N106: 9.139171155e-05
A107: =IF('DF raw data'!E112="","",'DF raw data'!E112) -> -277.5 | B107: =IF('DF raw data'!F112="","",'DF raw data'!F112) -> -1.74038e-05 | C107: =IF('DF raw data'!G112="","",'DF raw data'!G112) -> 0.00015718 | D107: =IF('DF raw data'!H112="","",'DF raw data'!H112) -> -6.5103e-06 | F107: -1.748385748e-05 | G107: 0.000157903028 | H107: -6.54024738e-06 | J107: -0.0003164617573 | K107: -0.003348027501 | L107: 0.003497793174 | M107: 0.04114606348 | N107: 9.755906412e-05
A108: =IF('DF raw data'!E113="","",'DF raw data'!E113) -> -277 | B108: =IF('DF raw data'!F113="","",'DF raw data'!F113) -> -1.89341e-05 | C108: =IF('DF raw data'!G113="","",'DF raw data'!G113) -> 0.00015367 | D108: =IF('DF raw data'!H113="","",'DF raw data'!H113) -> -1.92538e-05 | F108: -1.902119686e-05 | G108: 0.000154376882 | H108: -1.934236748e-05 | J108: -0.0003259723557 | K108: -0.003511013679 | L108: 0.003574981615 | M108: 0.04293355429 | N108: 0.0001040024399
A109: =IF('DF raw data'!E114="","",'DF raw data'!E114) -> -276.5 | B109: =IF('DF raw data'!F114="","",'DF raw data'!F114) -> -1.41875e-05 | C109: =IF('DF raw data'!G114="","",'DF raw data'!G114) -> 0.000157136 | D109: =IF('DF raw data'!H114="","",'DF raw data'!H114) -> -2.39678e-05 | F109: -1.42527625e-05 | G109: 0.0001578588256 | H109: -2.407805188e-05 | J109: -0.000333098737 | K109: -0.003677563047 | L109: 0.003653911028 | M109: 0.0447605098 | N109: 0.0001107334502
A110: =IF('DF raw data'!E115="","",'DF raw data'!E115) -> -276 | B110: =IF('DF raw data'!F115="","",'DF raw data'!F115) -> -1.95224e-05 | C110: =IF('DF raw data'!G115="","",'DF raw data'!G115) -> 0.000147447 | D110: =IF('DF raw data'!H115="","",'DF raw data'!H115) -> -1.43998e-06 | F110: -1.961220304e-05 | G110: 0.0001481252562 | H110: -1.446603908e-06 | J110: -0.0003429048385 | K110: -0.003849015467 | L110: 0.003727973656 | M110: 0.04662449663 | N110: 0.0001177411358
A111: =IF('DF raw data'!E116="","",'DF raw data'!E116) -> -275.5 | B111: =IF('DF raw data'!F116="","",'DF raw data'!F116) -> -7.07941e-06 | C111: =IF('DF raw data'!G116="","",'DF raw data'!G116) -> 0.000145635 | D111: =IF('DF raw data'!H116="","",'DF raw data'!H116) -> -1.26705e-05 | F111: -7.111975286e-06 | G111: 0.000146304921 | H111: -1.27287843e-05 | J111: -0.0003464608261 | K111: -0.00402224588 | L111: 0.003801126117 | M111: 0.04852505969 | N111: 0.0001250254333
A112: =IF('DF raw data'!E117="","",'DF raw data'!E117) -> -275 | B112: =IF('DF raw data'!F117="","",'DF raw data'!F117) -> -1.33584e-05 | C112: =IF('DF raw data'!G117="","",'DF raw data'!G117) -> 0.000144652 | D112: =IF('DF raw data'!H117="","",'DF raw data'!H117) -> -1.7319e-05 | F112: -1.341984864e-05 | G112: 0.0001453173992 | H112: -1.73986674e-05 | J112: -0.0003531707504 | K112: -0.004198831255 | L112: 0.003873784816 | M112: 0.05046195209 | N112: 0.0001325909024
A113: =IF('DF raw data'!E118="","",'DF raw data'!E118) -> -274.5 | B113: =IF('DF raw data'!F118="","",'DF raw data'!F118) -> -2.42628e-05 | C113: =IF('DF raw data'!G118="","",'DF raw data'!G118) -> 0.000135066 | D113: =IF('DF raw data'!H118="","",'DF raw data'!H118) -> -6.41413e-06 | F113: -2.437440888e-05 | G113: 0.0001356873036 | H113: -6.443634998e-06 | J113: -0.0003653579549 | K113: -0.004381510232 | L113: 0.003941628468 | M113: 0.05243276633 | N113: 0.0001404258631
A114: =IF('DF raw data'!E119="","",'DF raw data'!E119) -> -274 | B114: =IF('DF raw data'!F119="","",'DF raw data'!F119) -> -1.11198e-05 | C114: =IF('DF raw data'!G119="","",'DF raw data'!G119) -> 0.000141829 | D114: =IF('DF raw data'!H119="","",'DF raw data'!H119) -> -9.50239e-06 | F114: -1.117095108e-05 | G114: 0.0001424814134 | H114: -9.546100994e-06 | J114: -0.0003709434304 | K114: -0.004566981947 | L114: 0.004012869175 | M114: 0.05443920092 | N114: 0.0001485462222
A115: =IF('DF raw data'!E120="","",'DF raw data'!E120) -> -273.5 | B115: =IF('DF raw data'!F120="","",'DF raw data'!F120) -> -2.51562e-05 | C115: =IF('DF raw data'!G120="","",'DF raw data'!G120) -> 0.000148628 | D115: =IF('DF raw data'!H120="","",'DF raw data'!H120) -> -1.25149e-05 | F115: -2.527191852e-05 | G115: 0.0001493116888 | H115: -1.257246854e-05 | J115: -0.0003835793897 | K115: -0.004758771642 | L115: 0.004087525019 | M115: 0.05648296342 | N115: 0.0001569737191
A116: =IF('DF raw data'!E121="","",'DF raw data'!E121) -> -273 | B116: =IF('DF raw data'!F121="","",'DF raw data'!F121) -> -5.34521e-06 | C116: =IF('DF raw data'!G121="","",'DF raw data'!G121) -> 0.000144542 | D116: =IF('DF raw data'!H121="","",'DF raw data'!H121) -> -1.79012e-05 | F116: -5.369797966e-06 | G116: 0.0001452068932 | H116: -1.798354552e-05 | J116: -0.0003862642887 | K116: -0.004951903787 | L116: 0.004160128466 | M116: 0.05856302766 | N116: 0.0001657016536
A117: =IF('DF raw data'!E122="","",'DF raw data'!E122) -> -272.5 | B117: =IF('DF raw data'!F122="","",'DF raw data'!F122) -> -1.73379e-05 | C117: =IF('DF raw data'!G122="","",'DF raw data'!G122) -> 0.00015056 | D117: =IF('DF raw data'!H122="","",'DF raw data'!H122) -> -9.49717e-06 | F117: -1.741765434e-05 | G117: 0.000151252576 | H117: -9.540856982e-06 | J117: -0.0003949731158 | K117: -0.005149390345 | L117: 0.004235754754 | M117: 0.06068090503 | N117: 0.0001747504647
A118: =IF('DF raw data'!E123="","",'DF raw data'!E123) -> -272 | B118: =IF('DF raw data'!F123="","",'DF raw data'!F123) -> -1.83627e-05 | C118: =IF('DF raw data'!G123="","",'DF raw data'!G123) -> 0.000150967 | D118: =IF('DF raw data'!H123="","",'DF raw data'!H123) -> -1.06756e-05 | F118: -1.844716842e-05 | G118: 0.0001516614482 | H118: -1.072470776e-05 | J118: -0.0004041967 | K118: -0.005351488695 | L118: 0.004311585478 | M118: 0.06283669777 | N118: 0.0001841270368
A119: =IF('DF raw data'!E124="","",'DF raw data'!E124) -> -271.5 | B119: =IF('DF raw data'!F124="","",'DF raw data'!F124) -> -1.48381e-05 | C119: =IF('DF raw data'!G124="","",'DF raw data'!G124) -> 0.00015189 | D119: =IF('DF raw data'!H124="","",'DF raw data'!H124) -> -9.12856e-06 | F119: -1.490635526e-05 | G119: 0.000152588694 | H119: -9.170551376e-06 | J119: -0.0004116498777 | K119: -0.005557313633 | L119: 0.004387879825 | M119: 0.06503063769 | N119: 0.0001938385093
A120: =IF('DF raw data'!E125="","",'DF raw data'!E125) -> -271 | B120: =IF('DF raw data'!F125="","",'DF raw data'!F125) -> -9.57682e-06 | C120: =IF('DF raw data'!G125="","",'DF raw data'!G125) -> 0.000146484 | D120: =IF('DF raw data'!H125="","",'DF raw data'!H125) -> -1.66631e-05 | F120: -9.620873372e-06 | G120: 0.0001471578264 | H120: -1.673975026e-05 | J120: -0.0004164603144 | K120: -0.005765543791 | L120: 0.004461458738 | M120: 0.06726136705 | N120: 0.0002038775359
A121: =IF('DF raw data'!E126="","",'DF raw data'!E126) -> -270.5 | B121: =IF('DF raw data'!F126="","",'DF raw data'!F126) -> -1.32924e-05 | C121: =IF('DF raw data'!G126="","",'DF raw data'!G126) -> 0.00014643 | D121: =IF('DF raw data'!H126="","",'DF raw data'!H126) -> -2.04765e-05 | F121: -1.335354504e-05 | G121: 0.000147103578 | H121: -2.05706919e-05 | J121: -0.0004231370869 | K121: -0.005977112334 | L121: 0.004535010527 | M121: 0.06952887232 | N121: 0.0002142502187
A122: =IF('DF raw data'!E127="","",'DF raw data'!E127) -> -270 | B122: =IF('DF raw data'!F127="","",'DF raw data'!F127) -> -1.07928e-05 | C122: =IF('DF raw data'!G127="","",'DF raw data'!G127) -> 0.00015447 | D122: =IF('DF raw data'!H127="","",'DF raw data'!H127) -> -1.98045e-05 | F122: -1.084244688e-05 | G122: 0.000155180562 | H122: -1.98956007e-05 | J122: -0.0004285583103 | K122: -0.006191391489 | L122: 0.004612600808 | M122: 0.07183517272 | N122: 0.0002249800929
A123: =IF('DF raw data'!E128="","",'DF raw data'!E128) -> -269.5 | B123: =IF('DF raw data'!F128="","",'DF raw data'!F128) -> -7.07985e-06 | C123: =IF('DF raw data'!G128="","",'DF raw data'!G128) -> 0.000156961 | D123: =IF('DF raw data'!H128="","",'DF raw data'!H128) -> -1.19959e-05 | F123: -7.11241731e-06 | G123: 0.0001576830206 | H123: -1.205108114e-05 | J123: -0.000432114519 | K123: -0.006407448749 | L123: 0.004691442318 | M123: 0.07418089388 | N123: 0.0002360782699
A124: =IF('DF raw data'!E129="","",'DF raw data'!E129) -> -269 | B124: =IF('DF raw data'!F129="","",'DF raw data'!F129) -> -2.20802e-05 | C124: =IF('DF raw data'!G129="","",'DF raw data'!G129) -> 0.000144812 | D124: =IF('DF raw data'!H129="","",'DF raw data'!H129) -> -1.14028e-05 | F124: -2.218176892e-05 | G124: 0.0001454781352 | H124: -1.145525288e-05 | J124: -0.0004432054034 | K124: -0.00662905145 | L124: 0.004764181386 | M124: 0.07656298457 | N124: 0.0002475251975
A125: =IF('DF raw data'!E130="","",'DF raw data'!E130) -> -268.5 | B125: =IF('DF raw data'!F130="","",'DF raw data'!F130) -> -2.00968e-05 | C125: =IF('DF raw data'!G130="","",'DF raw data'!G130) -> 0.000137885 | D125: =IF('DF raw data'!H130="","",'DF raw data'!H130) -> -5.51638e-06 | F125: -2.018924528e-05 | G125: 0.000138519271 | H125: -5.541755348e-06 | J125: -0.0004533000261 | K125: -0.006855701463 | L125: 0.004833441021 | M125: 0.07897970509 | N125: 0.000259309014
A126: =IF('DF raw data'!E131="","",'DF raw data'!E131) -> -268 | B126: =IF('DF raw data'!F131="","",'DF raw data'!F131) -> -6.6331e-06 | C126: =IF('DF raw data'!G131="","",'DF raw data'!G131) -> 0.000149438 | D126: =IF('DF raw data'!H131="","",'DF raw data'!H131) -> -9.20844e-06 | F126: -6.66361226e-06 | G126: 0.0001501254148 | H126: -9.250798824e-06 | J126: -0.0004566318322 | K126: -0.00708401738 | L126: 0.004908503729 | M126: 0.08143395695 | N126: 0.0002714599748
A127: =IF('DF raw data'!E132="","",'DF raw data'!E132) -> -267.5 | B127: =IF('DF raw data'!F132="","",'DF raw data'!F132) -> -1.27876e-05 | C127: =IF('DF raw data'!G132="","",'DF raw data'!G132) -> 0.000148937 | D127: =IF('DF raw data'!H132="","",'DF raw data'!H132) -> -8.05073e-06 | F127: -1.284642296e-05 | G127: 0.0001496221102 | H127: -8.087763358e-06 | J127: -0.0004630550437 | K127: -0.007315544901 | L127: 0.004983314784 | M127: 0.08392561434 | N127: 0.0002839838979
A128: =IF('DF raw data'!E133="","",'DF raw data'!E133) -> -267 | B128: =IF('DF raw data'!F133="","",'DF raw data'!F133) -> -2.44565e-05 | C128: =IF('DF raw data'!G133="","",'DF raw data'!G133) -> 0.000139817 | D128: =IF('DF raw data'!H133="","",'DF raw data'!H133) -> -4.40876e-06 | F128: =(1-$G$1*($B$49-$G$2))*B128 -> -2.45689999e-05 | G128: 0.0001404601582 | H128: -4.429040296e-06 | J128: =F128*$G$3+J127 -> -0.0004753395436 | K128: =J128*$G$3+K127 -> -0.007553214673 | L128: =G128*$G$3+L127 -> 0.005053544863 | M128: =L128*$G$3+M127 -> 0.08645238677 | N128: =(J128^2+L128^2)*$G$3+N127 -> 0.0002968660296
A129: =IF('DF raw data'!E134="","",'DF raw data'!E134) -> -266.5 | B129: =IF('DF raw data'!F134="","",'DF raw data'!F134) -> -1.24279e-06 | C129: =IF('DF raw data'!G134="","",'DF raw data'!G134) -> 0.00014836 | D129: =IF('DF raw data'!H134="","",'DF raw data'!H134) -> -1.80312e-05 | F129: -1.248506834e-06 | G129: 0.000149042456 | H129: -1.811414352e-05 | J129: -0.0004759637971 | K129: -0.007791196572 | L129: 0.005128066091 | M129: 0.08901641982 | N129: 0.0003101278313
A130: =IF('DF raw data'!E135="","",'DF raw data'!E135) -> -266 | B130: =IF('DF raw data'!F135="","",'DF raw data'!F135) -> -9.90449e-06 | C130: =IF('DF raw data'!G135="","",'DF raw data'!G135) -> 0.000151455 | D130: =IF('DF raw data'!H135="","",'DF raw data'!H135) -> -5.7985e-06 | F130: -9.950050654e-06 | G130: 0.000152151693 | H130: -5.8251731e-06 | J130: -0.0004809388224 | K130: -0.008031665983 | L130: 0.005204141938 | M130: 0.09161849079 | N130: 0.000323785029
A131: =IF('DF raw data'!E136="","",'DF raw data'!E136) -> -265.5 | B131: =IF('DF raw data'!F136="","",'DF raw data'!F136) -> -1.59901e-05 | C131: =IF('DF raw data'!G136="","",'DF raw data'!G136) -> 0.000139071 | D131: =IF('DF raw data'!H136="","",'DF raw data'!H136) -> -1.18196e-05 | F131: -1.606365446e-05 | G131: 0.0001397107266 | H131: -1.187397016e-05 | J131: -0.0004889706496 | K131: -0.008276151308 | L131: 0.005273997301 | M131: 0.09425548944 | N131: 0.0003378120989
A132: =IF('DF raw data'!E137="","",'DF raw data'!E137) -> -265 | B132: =IF('DF raw data'!F137="","",'DF raw data'!F137) -> -8.55123e-06 | C132: =IF('DF raw data'!G137="","",'DF raw data'!G137) -> 0.00013634 | D132: =IF('DF raw data'!H137="","",'DF raw data'!H137) -> -1.66761e-05 | F132: -8.590565658e-06 | G132: 0.000136967164 | H132: -1.675281006e-05 | J132: -0.0004932659324 | K132: -0.008522784274 | L132: 0.005342480883 | M132: 0.09692672988 | N132: 0.0003522048055
A133: =IF('DF raw data'!E138="","",'DF raw data'!E138) -> -264.5 | B133: =IF('DF raw data'!F138="","",'DF raw data'!F138) -> -1.95104e-05 | C133: =IF('DF raw data'!G138="","",'DF raw data'!G138) -> 0.000145848 | D133: =IF('DF raw data'!H138="","",'DF raw data'!H138) -> -2.00033e-05 | F133: -1.960014784e-05 | G133: 0.0001465189008 | H133: -2.009531518e-05 | J133: -0.0005030660064 | K133: -0.008774317277 | L133: 0.005415740333 | M133: 0.09963460005 | N133: 0.0003669964649
A134: =IF('DF raw data'!E139="","",'DF raw data'!E139) -> -264 | B134: =IF('DF raw data'!F139="","",'DF raw data'!F139) -> -1.93906e-05 | C134: =IF('DF raw data'!G139="","",'DF raw data'!G139) -> 0.000144518 | D134: =IF('DF raw data'!H139="","",'DF raw data'!H139) -> -7.11817e-06 | F134: -1.947979676e-05 | G134: 0.0001451827828 | H134: -7.150913582e-06 | J134: -0.0005128059047 | K134: -0.009030720229 | L134: 0.005488331725 | M134: 0.1023787659 | N134: 0.0003821888424
A135: =IF('DF raw data'!E140="","",'DF raw data'!E140) -> -263.5 | B135: =IF('DF raw data'!F140="","",'DF raw data'!F140) -> -1.89495e-05 | C135: =IF('DF raw data'!G140="","",'DF raw data'!G140) -> 0.000146389 | D135: =IF('DF raw data'!H140="","",'DF raw data'!H140) -> 4.39338e-06 | F135: -1.90366677e-05 | G135: 0.0001470623894 | H135: 4.413589548e-06 | J135: -0.0005223242386 | K135: -0.009291882349 | L135: 0.005561862919 | M135: 0.1051596974 | N135: 0.0003977924133
A136: =IF('DF raw data'!E141="","",'DF raw data'!E141) -> -263 | B136: =IF('DF raw data'!F141="","",'DF raw data'!F141) -> -2.03524e-05 | C136: =IF('DF raw data'!G141="","",'DF raw data'!G141) -> 0.000150596 | D136: =IF('DF raw data'!H141="","",'DF raw data'!H141) -> -6.7265e-06 | F136: -2.044602104e-05 | G136: 0.0001512887416 | H136: -6.7574419e-06 | J136: -0.0005325472491 | K136: -0.009558155973 | L136: 0.00563750729 | M136: 0.107978451 | N136: 0.0004138249608
A137: =IF('DF raw data'!E142="","",'DF raw data'!E142) -> -262.5 | B137: =IF('DF raw data'!F142="","",'DF raw data'!F142) -> -6.88595e-06 | C137: =IF('DF raw data'!G142="","",'DF raw data'!G142) -> 0.000156524 | D137: =IF('DF raw data'!H142="","",'DF raw data'!H142) -> -1.4676e-05 | F137: -6.91762537e-06 | G137: 0.0001572440104 | H137: -1.47435096e-05 | J137: -0.0005360060618 | K137: -0.009826159004 | L137: 0.005716129295 | M137: 0.1108365157 | N137: 0.0004303056791
A138: =IF('DF raw data'!E143="","",'DF raw data'!E143) -> -262 | B138: =IF('DF raw data'!F143="","",'DF raw data'!F143) -> -2.43831e-05 | C138: =IF('DF raw data'!G143="","",'DF raw data'!G143) -> 0.000150562 | D138: =IF('DF raw data'!H143="","",'DF raw data'!H143) -> -1.85641e-05 | F138: -2.449526226e-05 | G138: 0.0001512545852 | H138: -1.864949486e-05 | J138: -0.0005482536929 | K138: -0.01010028585 | L138: 0.005791756588 | M138: 0.113732394 | N138: 0.0004472281924
A139: =IF('DF raw data'!E144="","",'DF raw data'!E144) -> -261.5 | B139: =IF('DF raw data'!F144="","",'DF raw data'!F144) -> -1.87468e-05 | C139: =IF('DF raw data'!G144="","",'DF raw data'!G144) -> 0.000145087 | D139: =IF('DF raw data'!H144="","",'DF raw data'!H144) -> -1.13217e-05 | F139: -1.883303528e-05 | G139: 0.0001457544002 | H139: -1.137377982e-05 | J139: -0.0005576702106 | K139: -0.01037912096 | L139: 0.005864633788 | M139: 0.1166647108 | N139: 0.0004645806551
A140: =IF('DF raw data'!E145="","",'DF raw data'!E145) -> -261 | B140: =IF('DF raw data'!F145="","",'DF raw data'!F145) -> -7.6587e-06 | C140: =IF('DF raw data'!G145="","",'DF raw data'!G145) -> 0.000143459 | D140: =IF('DF raw data'!H145="","",'DF raw data'!H145) -> -9.17254e-06 | F140: -7.69393002e-06 | G140: 0.0001441189114 | H140: -9.214733684e-06 | J140: -0.0005615171756 | K140: -0.01065987954 | L140: 0.005936693244 | M140: 0.1196330575 | N140: 0.0004823604692
A141: =IF('DF raw data'!E146="","",'DF raw data'!E146) -> -260.5 | B141: =IF('DF raw data'!F146="","",'DF raw data'!F146) -> -1.66951e-05 | C141: =IF('DF raw data'!G146="","",'DF raw data'!G146) -> 0.000139109 | D141: =IF('DF raw data'!H146="","",'DF raw data'!H146) -> -1.22713e-05 | F141: -1.677189746e-05 | G141: 0.0001397489014 | H141: -1.232774798e-05 | J141: -0.0005699031243 | K141: -0.01094483111 | L141: 0.006006567694 | M141: 0.1226363413 | N141: 0.0005005622917
A142: =IF('DF raw data'!E147="","",'DF raw data'!E147) -> -260 | B142: =IF('DF raw data'!F147="","",'DF raw data'!F147) -> -5.09008e-06 | C142: =IF('DF raw data'!G147="","",'DF raw data'!G147) -> 0.000138812 | D142: =IF('DF raw data'!H147="","",'DF raw data'!H147) -> -1.59564e-05 | F142: -5.113494368e-06 | G142: 0.0001394505352 | H142: -1.602979944e-05 | J142: -0.0005724598715 | K142: -0.01123106104 | L142: 0.006076292962 | M142: 0.1256744878 | N142: 0.000519186815
A143: =IF('DF raw data'!E148="","",'DF raw data'!E148) -> -259.5 | B143: =IF('DF raw data'!F148="","",'DF raw data'!F148) -> -2.08635e-05 | C143: =IF('DF raw data'!G148="","",'DF raw data'!G148) -> 0.00014055 | D143: =IF('DF raw data'!H148="","",'DF raw data'!H148) -> -9.45134e-06 | F143: -2.09594721e-05 | G143: 0.00014119653 | H143: -9.494816164e-06 | J143: -0.0005829396075 | K143: -0.01152253085 | L143: 0.006146891227 | M143: 0.1287479334 | N143: 0.0005382488601
A144: =IF('DF raw data'!E149="","",'DF raw data'!E149) -> -259 | B144: =IF('DF raw data'!F149="","",'DF raw data'!F149) -> -2.12489e-05 | C144: =IF('DF raw data'!G149="","",'DF raw data'!G149) -> 0.000137937 | D144: =IF('DF raw data'!H149="","",'DF raw data'!H149) -> -8.21236e-06 | F144: -2.134664494e-05 | G144: 0.0001385715102 | H144: -8.250136856e-06 | J144: -0.00059361293 | K144: -0.01181933731 | L144: 0.006216176982 | M144: 0.1318560219 | N144: 0.0005577454764
A145: =IF('DF raw data'!E150="","",'DF raw data'!E150) -> -258.5 | B145: =IF('DF raw data'!F150="","",'DF raw data'!F150) -> -1.41323e-05 | C145: =IF('DF raw data'!G150="","",'DF raw data'!G150) -> 0.000146533 | D145: =IF('DF raw data'!H150="","",'DF raw data'!H150) -> -1.00195e-05 | F145: -1.419730858e-05 | G145: 0.0001472070518 | H145: -1.00655897e-05 | J145: -0.0006007115843 | K145: -0.0121196931 | L145: 0.006289780508 | M145: 0.1350009122 | N145: 0.0005777065731
A146: =IF('DF raw data'!E151="","",'DF raw data'!E151) -> -258 | B146: =IF('DF raw data'!F151="","",'DF raw data'!F151) -> -2.14467e-05 | C146: =IF('DF raw data'!G151="","",'DF raw data'!G151) -> 0.000148706 | D146: =IF('DF raw data'!H151="","",'DF raw data'!H151) -> 5.73272e-08 | F146: -2.154535482e-05 | G146: 0.0001493900476 | H146: 5.759090512e-08 | J146: -0.0006114842617 | K146: -0.01242543523 | L146: 0.006364475532 | M146: 0.1381831499 | N146: 0.000598146804
A147: =IF('DF raw data'!E152="","",'DF raw data'!E152) -> -257.5 | B147: =IF('DF raw data'!F152="","",'DF raw data'!F152) -> -9.71799e-06 | C147: =IF('DF raw data'!G152="","",'DF raw data'!G152) -> 0.000148687 | D147: =IF('DF raw data'!H152="","",'DF raw data'!H152) -> 3.3291e-06 | F147: -9.762692754e-06 | G147: 0.0001493709602 | H147: 3.34441386e-06 | J147: -0.0006163656081 | K147: -0.01273361804 | L147: 0.006439161012 | M147: 0.1414027304 | N147: 0.0006190681545
A148: =IF('DF raw data'!E153="","",'DF raw data'!E153) -> -257 | B148: =IF('DF raw data'!F153="","",'DF raw data'!F153) -> -2.56121e-05 | C148: =IF('DF raw data'!G153="","",'DF raw data'!G153) -> 0.000142078 | D148: =IF('DF raw data'!H153="","",'DF raw data'!H153) -> -1.671e-06 | F148: -2.572991566e-05 | G148: 0.0001427315588 | H148: -1.6786866e-06 | J148: -0.0006292305659 | K148: -0.01304823332 | L148: 0.006510526791 | M148: 0.1446579938 | N148: 0.0006404595996
A149: =IF('DF raw data'!E154="","",'DF raw data'!E154) -> -256.5 | B149: =IF('DF raw data'!F154="","",'DF raw data'!F154) -> -2.715e-05 | C149: =IF('DF raw data'!G154="","",'DF raw data'!G154) -> 0.00013112 | D149: =IF('DF raw data'!H154="","",'DF raw data'!H154) -> -2.45595e-06 | F149: -2.727489e-05 | G149: 0.000131723152 | H149: -2.46724737e-06 | J149: -0.0006428680109 | K149: -0.01336966733 | L149: 0.006576388367 | M149: 0.147946188 | N149: 0.0006622906812
A150: =IF('DF raw data'!E155="","",'DF raw data'!E155) -> -256 | B150: =IF('DF raw data'!F155="","",'DF raw data'!F155) -> -5.79878e-06 | C150: =IF('DF raw data'!G155="","",'DF raw data'!G155) -> 0.000136267 | D150: =IF('DF raw data'!H155="","",'DF raw data'!H155) -> -1.05867e-05 | F150: -5.825454388e-06 | G150: 0.0001368938282 | H150: -1.063539882e-05 | J150: -0.0006457807381 | K150: -0.01369255769 | L150: 0.006644835281 | M150: 0.1512686056 | N150: 0.0006845761156
A151: =IF('DF raw data'!E156="","",'DF raw data'!E156) -> -255.5 | B151: =IF('DF raw data'!F156="","",'DF raw data'!F156) -> -1.86183e-05 | C151: =IF('DF raw data'!G156="","",'DF raw data'!G156) -> 0.000149777 | D151: =IF('DF raw data'!H156="","",'DF raw data'!H156) -> -1.18971e-05 | F151: -1.870394418e-05 | G151: 0.0001504659742 | H151: -1.195182666e-05 | J151: -0.0006551327102 | K151: -0.01402012405 | L151: 0.006720068269 | M151: 0.1546286398 | N151: 0.0007073703738
A152: =IF('DF raw data'!E157="","",'DF raw data'!E157) -> -255 | B152: =IF('DF raw data'!F157="","",'DF raw data'!F157) -> -2.11262e-05 | C152: =IF('DF raw data'!G157="","",'DF raw data'!G157) -> 0.000156282 | D152: =IF('DF raw data'!H157="","",'DF raw data'!H157) -> 3.41292e-07 | F152: -2.122338052e-05 | G152: 0.0001570008972 | H152: 3.428619432e-07 | J152: -0.0006657444005 | K152: -0.01435299625 | L152: 0.006798568717 | M152: 0.1580279241 | N152: 0.0007307022499
A153: =IF('DF raw data'!E158="","",'DF raw data'!E158) -> -254.5 | B153: =IF('DF raw data'!F158="","",'DF raw data'!F158) -> -2.0797e-05 | C153: =IF('DF raw data'!G158="","",'DF raw data'!G158) -> 0.000151747 | D153: =IF('DF raw data'!H158="","",'DF raw data'!H158) -> -1.29026e-05 | F153: -2.08926662e-05 | G153: 0.0001524450362 | H153: -1.296195196e-05 | J153: -0.0006761907336 | K153: -0.01469109162 | L153: 0.006874791235 | M153: 0.1614653198 | N153: 0.0007545622441
A154: =IF('DF raw data'!E159="","",'DF raw data'!E159) -> -254 | B154: =IF('DF raw data'!F159="","",'DF raw data'!F159) -> -1.75317e-05 | C154: =IF('DF raw data'!G159="","",'DF raw data'!G159) -> 0.000151415 | D154: =IF('DF raw data'!H159="","",'DF raw data'!H159) -> -6.9348e-06 | F154: -1.761234582e-05 | G154: 0.000152111509 | H154: -6.96670008e-06 | J154: -0.0006849969065 | K154: -0.01503359007 | L154: 0.00695084699 | M154: 0.1649407433 | N154: 0.0007789539914
A155: =IF('DF raw data'!E160="","",'DF raw data'!E160) -> -253.5 | B155: =IF('DF raw data'!F160="","",'DF raw data'!F160) -> -1.7149e-05 | C155: =IF('DF raw data'!G160="","",'DF raw data'!G160) -> 0.00015877 | D155: =IF('DF raw data'!H160="","",'DF raw data'!H160) -> -4.03567e-06 | F155: -1.72278854e-05 | G155: 0.000159500342 | H155: -4.054234082e-06 | J155: -0.0006936108492 | K155: -0.01538039549 | L155: 0.007030597161 | M155: 0.1684560418 | N155: 0.0008039091876
A156: =IF('DF raw data'!E161="","",'DF raw data'!E161) -> -253 | B156: =IF('DF raw data'!F161="","",'DF raw data'!F161) -> -2.52841e-05 | C156: =IF('DF raw data'!G161="","",'DF raw data'!G161) -> 0.00015957 | D156: =IF('DF raw data'!H161="","",'DF raw data'!H161) -> -1.2982e-05 | F156: -2.540040686e-05 | G156: 0.000160304022 | H156: -1.30417172e-05 | J156: -0.0007063110526 | K156: -0.01573355102 | L156: 0.007110749172 | M156: 0.1720114164 | N156: 0.0008294400022
A157: =IF('DF raw data'!E162="","",'DF raw data'!E162) -> -252.5 | B157: =IF('DF raw data'!F162="","",'DF raw data'!F162) -> -1.34945e-05 | C157: =IF('DF raw data'!G162="","",'DF raw data'!G162) -> 0.00015009 | D157: =IF('DF raw data'!H162="","",'DF raw data'!H162) -> -5.06884e-06 | F157: -1.35565747e-05 | G157: 0.000150780414 | H157: -5.092156664e-06 | J157: -0.0007130893399 | K157: -0.01609009569 | L157: 0.007186139379 | M157: 0.1756044861 | N157: 0.00085551455
A158: =IF('DF raw data'!E163="","",'DF raw data'!E163) -> -252 | B158: =IF('DF raw data'!F163="","",'DF raw data'!F163) -> -7.72894e-06 | C158: =IF('DF raw data'!G163="","",'DF raw data'!G163) -> 0.000147977 | D158: =IF('DF raw data'!H163="","",'DF raw data'!H163) -> 4.92678e-07 | F158: -7.764493124e-06 | G158: 0.0001486576942 | H158: 4.949443188e-07 | J158: -0.0007169715865 | K158: -0.01644858148 | L158: 0.007260468226 | M158: 0.1792347202 | N158: 0.0008821287735
A159: =IF('DF raw data'!E164="","",'DF raw data'!E164) -> -251.5 | B159: =IF('DF raw data'!F164="","",'DF raw data'!F164) -> -1.30516e-05 | C159: =IF('DF raw data'!G164="","",'DF raw data'!G164) -> 0.000152337 | D159: =IF('DF raw data'!H164="","",'DF raw data'!H164) -> 3.68282e-06 | F159: -1.311163736e-05 | G159: 0.0001530377502 | H159: 3.699760972e-06 | J159: -0.0007235274052 | K159: -0.01681034519 | L159: 0.007336987101 | M159: 0.1829032138 | N159: 0.0009093062093
A160: =IF('DF raw data'!E165="","",'DF raw data'!E165) -> -251 | B160: =IF('DF raw data'!F165="","",'DF raw data'!F165) -> -7.20972e-06 | C160: =IF('DF raw data'!G165="","",'DF raw data'!G165) -> 0.000151421 | D160: =IF('DF raw data'!H165="","",'DF raw data'!H165) -> -9.42299e-06 | F160: -7.242884712e-06 | G160: 0.0001521175366 | H160: -9.466335754e-06 | J160: -0.0007271488475 | K160: -0.01717391961 | L160: 0.007413045869 | M160: 0.1866097367 | N160: 0.0009370472066
A161: =IF('DF raw data'!E166="","",'DF raw data'!E166) -> -250.5 | B161: =IF('DF raw data'!F166="","",'DF raw data'!F166) -> -1.20892e-05 | C161: =IF('DF raw data'!G166="","",'DF raw data'!G166) -> 0.000154188 | D161: =IF('DF raw data'!H166="","",'DF raw data'!H166) -> 2.41183e-06 | F161: -1.214481032e-05 | G161: 0.0001548972648 | H161: 2.422924418e-06 | J161: -0.0007332212527 | K161: -0.01754053024 | L161: 0.007490494502 | M161: 0.190354984 | N161: 0.0009653697672
A162: =IF('DF raw data'!E167="","",'DF raw data'!E167) -> -250 | B162: =IF('DF raw data'!F167="","",'DF raw data'!F167) -> -1.76071e-05 | C162: =IF('DF raw data'!G167="","",'DF raw data'!G167) -> 0.000151645 | D162: =IF('DF raw data'!H167="","",'DF raw data'!H167) -> 1.02369e-05 | F162: -1.768809266e-05 | G162: 0.000152342567 | H162: 1.028398974e-05 | J162: -0.000742065299 | K162: -0.01791156289 | L162: 0.007566665785 | M162: 0.1941383169 | N162: 0.0009942723132
A163: =IF('DF raw data'!E168="","",'DF raw data'!E168) -> -249.5 | B163: =IF('DF raw data'!F168="","",'DF raw data'!F168) -> -9.59397e-06 | C163: =IF('DF raw data'!G168="","",'DF raw data'!G168) -> 0.000147121 | D163: =IF('DF raw data'!H168="","",'DF raw data'!H168) -> 9.77471e-06 | F163: -9.638102262e-06 | G163: 0.0001477977566 | H163: 9.819673666e-06 | J163: -0.0007468843502 | K163: -0.01828500506 | L163: 0.007640564663 | M163: 0.1979585992 | N163: 0.001023740346
A164: =IF('DF raw data'!E169="","",'DF raw data'!E169) -> -249 | B164: =IF('DF raw data'!F169="","",'DF raw data'!F169) -> -2.74792e-05 | C164: =IF('DF raw data'!G169="","",'DF raw data'!G169) -> 0.000147812 | D164: =IF('DF raw data'!H169="","",'DF raw data'!H169) -> 1.07548e-05 | F164: -2.760560432e-05 | G164: 0.0001484919352 | H164: 1.080427208e-05 | J164: -0.0007606871523 | K164: -0.01866534864 | L164: 0.007714810631 | M164: 0.2018160045 | N164: 0.00105378882
A165: =IF('DF raw data'!E170="","",'DF raw data'!E170) -> -248.5 | B165: =IF('DF raw data'!F170="","",'DF raw data'!F170) -> -2.29908e-05 | C165: =IF('DF raw data'!G170="","",'DF raw data'!G170) -> 0.000147944 | D165: =IF('DF raw data'!H170="","",'DF raw data'!H170) -> 8.91543e-06 | F165: -2.309655768e-05 | G165: 0.0001486245424 | H165: 8.956440978e-06 | J165: -0.0007722354312 | K165: -0.01905146635 | L165: 0.007789122902 | M165: 0.2057105659 | N165: 0.001084422211
A166: =IF('DF raw data'!E171="","",'DF raw data'!E171) -> -248 | B166: =IF('DF raw data'!F171="","",'DF raw data'!F171) -> -1.49111e-05 | C166: =IF('DF raw data'!G171="","",'DF raw data'!G171) -> 0.000152664 | D166: =IF('DF raw data'!H171="","",'DF raw data'!H171) -> 4.87113e-06 | F166: -1.497969106e-05 | G166: 0.0001533662544 | H166: 4.893537198e-06 | J166: -0.0007797252767 | K166: -0.01944132899 | L166: 0.007865806029 | M166: 0.209643469 | N166: 0.001115661649
A167: =IF('DF raw data'!E172="","",'DF raw data'!E172) -> -247.5 | B167: =IF('DF raw data'!F172="","",'DF raw data'!F172) -> -1.79915e-05 | C167: =IF('DF raw data'!G172="","",'DF raw data'!G172) -> 0.000151027 | D167: =IF('DF raw data'!H172="","",'DF raw data'!H172) -> 1.00095e-05 | F167: -1.80742609e-05 | G167: 0.0001517217242 | H167: 1.00555437e-05 | J167: -0.0007887624071 | K167: -0.0198357102 | L167: 0.007941666892 | M167: 0.2136143024 | N167: 0.001147507759
A168: =IF('DF raw data'!E173="","",'DF raw data'!E173) -> -247 | B168: =IF('DF raw data'!F173="","",'DF raw data'!F173) -> -1.55486e-05 | C168: =IF('DF raw data'!G173="","",'DF raw data'!G173) -> 0.000161537 | D168: =IF('DF raw data'!H173="","",'DF raw data'!H173) -> -1.02784e-06 | F168: -1.562012356e-05 | G168: 0.0001622800702 | H168: -1.032568064e-06 | J168: -0.0007965724689 | K168: -0.02023399643 | L168: 0.008022806927 | M168: 0.2176257059 | N168: 0.001180007738
A169: =IF('DF raw data'!E174="","",'DF raw data'!E174) -> -246.5 | B169: =IF('DF raw data'!F174="","",'DF raw data'!F174) -> -1.90731e-05 | C169: =IF('DF raw data'!G174="","",'DF raw data'!G174) -> 0.000160508 | D169: =IF('DF raw data'!H174="","",'DF raw data'!H174) -> -2.65897e-06 | F169: -1.916083626e-05 | G169: 0.0001612463368 | H169: -2.671201262e-06 | J169: -0.0008061528871 | K169: -0.02063707287 | L169: 0.008103430095 | M169: 0.2216774209 | N169: 0.001213165469
A170: =IF('DF raw data'!E175="","",'DF raw data'!E175) -> -246 | B170: =IF('DF raw data'!F175="","",'DF raw data'!F175) -> -1.36914e-05 | C170: =IF('DF raw data'!G175="","",'DF raw data'!G175) -> 0.000154375 | D170: =IF('DF raw data'!H175="","",'DF raw data'!H175) -> 1.81517e-06 | F170: -1.375438044e-05 | G170: 0.000155085125 | H170: 1.823519782e-06 | J170: -0.0008130300773 | K170: -0.02104358791 | L170: 0.008180972658 | M170: 0.2257679072 | N170: 0.001246960135
A171: =IF('DF raw data'!E176="","",'DF raw data'!E176) -> -245.5 | B171: =IF('DF raw data'!F176="","",'DF raw data'!F176) -> -5.17081e-06 | C171: =IF('DF raw data'!G176="","",'DF raw data'!G176) -> 0.000146874 | D171: =IF('DF raw data'!H176="","",'DF raw data'!H176) -> 9.47828e-06 | F171: -5.194595726e-06 | G171: 0.0001475496204 | H171: 9.521880088e-06 | J171: -0.0008156273751 | K171: -0.0214514016 | L171: 0.008254747468 | M171: 0.229895281 | N171: 0.001281363187
A172: =IF('DF raw data'!E177="","",'DF raw data'!E177) -> -245 | B172: =IF('DF raw data'!F177="","",'DF raw data'!F177) -> -1.66359e-05 | C172: =IF('DF raw data'!G177="","",'DF raw data'!G177) -> 0.000145882 | D172: =IF('DF raw data'!H177="","",'DF raw data'!H177) -> -4.49554e-06 | F172: -1.671242514e-05 | G172: 0.0001465530572 | H172: -4.516219484e-06 | J172: -0.0008239835877 | K172: -0.02186339339 | L172: 0.008328023996 | M172: 0.234059293 | N172: 0.001316380653
A173: =IF('DF raw data'!E178="","",'DF raw data'!E178) -> -244.5 | B173: =IF('DF raw data'!F178="","",'DF raw data'!F178) -> -4.78024e-06 | C173: =IF('DF raw data'!G178="","",'DF raw data'!G178) -> 0.000146743 | D173: =IF('DF raw data'!H178="","",'DF raw data'!H178) -> 2.65528e-07 | F173: -4.802229104e-06 | G173: 0.0001474180178 | H173: 2.667494288e-07 | J173: -0.0008263847023 | K173: -0.02227658574 | L173: 0.008401733005 | M173: 0.2382601595 | N173: 0.001352016667
A174: =IF('DF raw data'!E179="","",'DF raw data'!E179) -> -244 | B174: =IF('DF raw data'!F179="","",'DF raw data'!F179) -> -1.74713e-05 | C174: =IF('DF raw data'!G179="","",'DF raw data'!G179) -> 0.000144021 | D174: =IF('DF raw data'!H179="","",'DF raw data'!H179) -> -1.42246e-06 | F174: -1.755166798e-05 | G174: 0.0001446834966 | H174: -1.429003316e-06 | J174: -0.0008351605363 | K174: -0.02269416601 | L174: 0.008474074754 | M174: 0.2424971969 | N174: 0.001388270386
A175: =IF('DF raw data'!E180="","",'DF raw data'!E180) -> -243.5 | B175: =IF('DF raw data'!F180="","",'DF raw data'!F180) -> -1.68294e-05 | C175: =IF('DF raw data'!G180="","",'DF raw data'!G180) -> 0.000145658 | D175: =IF('DF raw data'!H180="","",'DF raw data'!H180) -> -2.817e-06 | F175: -1.690681524e-05 | G175: 0.0001463280268 | H175: -2.8299582e-06 | J175: -0.0008436139439 | K175: -0.02311597298 | L175: 0.008547238767 | M175: 0.2467708162 | N175: 0.001425153873
A176: =IF('DF raw data'!E181="","",'DF raw data'!E181) -> -243 | B176: =IF('DF raw data'!F181="","",'DF raw data'!F181) -> -1.72085e-05 | C176: =IF('DF raw data'!G181="","",'DF raw data'!G181) -> 0.00014619 | D176: =IF('DF raw data'!H181="","",'DF raw data'!H181) -> -1.13618e-05 | F176: -1.72876591e-05 | G176: 0.000146862474 | H176: -1.141406428e-05 | J176: -0.0008522577734 | K176: -0.02354210187 | L176: 0.008620670004 | M176: 0.2510811512 | N176: 0.00146267502
A177: =IF('DF raw data'!E182="","",'DF raw data'!E182) -> -242.5 | B177: =IF('DF raw data'!F182="","",'DF raw data'!F182) -> -1.3301e-05 | C177: =IF('DF raw data'!G182="","",'DF raw data'!G182) -> 0.000150124 | D177: =IF('DF raw data'!H182="","",'DF raw data'!H182) -> -7.1486e-06 | F177: -1.33621846e-05 | G177: 0.0001508145704 | H177: -7.18148356e-06 | J177: -0.0008589388657 | K177: -0.0239715713 | L177: 0.008696077289 | M177: 0.2554291899 | N177: 0.001500854788
A178: =IF('DF raw data'!E183="","",'DF raw data'!E183) -> -242 | B178: =IF('DF raw data'!F183="","",'DF raw data'!F183) -> -2.26697e-05 | C178: =IF('DF raw data'!G183="","",'DF raw data'!G183) -> 0.000149328 | D178: =IF('DF raw data'!H183="","",'DF raw data'!H183) -> 8.24757e-06 | F178: -2.277398062e-05 | G178: 0.0001500149088 | H178: 8.285508822e-06 | J178: -0.000870325856 | K178: -0.02440673423 | L178: 0.008771084744 | M178: 0.2598147323 | N178: 0.001539699486
A179: =IF('DF raw data'!E184="","",'DF raw data'!E184) -> -241.5 | B179: =IF('DF raw data'!F184="","",'DF raw data'!F184) -> -2.54868e-05 | C179: =IF('DF raw data'!G184="","",'DF raw data'!G184) -> 0.000147335 | D179: =IF('DF raw data'!H184="","",'DF raw data'!H184) -> 2.73861e-06 | F179: -2.560403928e-05 | G179: 0.000148012741 | H179: 2.751207606e-06 | J179: -0.0008831278757 | K179: -0.02484829817 | L179: 0.008845091114 | M179: 0.2642372778 | N179: 0.001579207262
A180: =IF('DF raw data'!E185="","",'DF raw data'!E185) -> -241 | B180: =IF('DF raw data'!F185="","",'DF raw data'!F185) -> -1.21544e-05 | C180: =IF('DF raw data'!G185="","",'DF raw data'!G185) -> 0.000149838 | D180: =IF('DF raw data'!H185="","",'DF raw data'!H185) -> 3.97219e-06 | F180: -1.221031024e-05 | G180: 0.0001505272548 | H180: 3.990462074e-06 | J180: -0.0008892330308 | K180: -0.02529291469 | L180: 0.008920354741 | M180: 0.2686974552 | N180: 0.001619388994
A181: =IF('DF raw data'!E186="","",'DF raw data'!E186) -> -240.5 | B181: =IF('DF raw data'!F186="","",'DF raw data'!F186) -> -2.11991e-05 | C181: =IF('DF raw data'!G186="","",'DF raw data'!G186) -> 0.000142882 | D181: =IF('DF raw data'!H186="","",'DF raw data'!H186) -> 1.37147e-05 | F181: -2.129661586e-05 | G181: 0.0001435392572 | H181: 1.377778762e-05 | J181: -0.0008998813387 | K181: -0.02574285535 | L181: 0.00899212437 | M181: 0.2731935174 | N181: 0.001660223037
A182: =IF('DF raw data'!E187="","",'DF raw data'!E187) -> -240 | B182: =IF('DF raw data'!F187="","",'DF raw data'!F187) -> -1.86281e-05 | C182: =IF('DF raw data'!G187="","",'DF raw data'!G187) -> 0.00014766 | D182: =IF('DF raw data'!H187="","",'DF raw data'!H187) -> 3.20618e-06 | F182: -1.871378926e-05 | G182: 0.000148339236 | H182: 3.220928428e-06 | J182: -0.0009092382334 | K182: -0.02619747447 | L182: 0.009066293988 | M182: 0.2777266644 | N182: 0.001701735238
A183: =IF('DF raw data'!E188="","",'DF raw data'!E188) -> -239.5 | B183: =IF('DF raw data'!F188="","",'DF raw data'!F188) -> -1.8306e-05 | C183: =IF('DF raw data'!G188="","",'DF raw data'!G188) -> 0.000147783 | D183: =IF('DF raw data'!H188="","",'DF raw data'!H188) -> 4.8125e-07 | F183: -1.83902076e-05 | G183: 0.0001484628018 | H183: 4.8346375e-07 | J183: -0.0009184333372 | K183: -0.02665669114 | L183: 0.009140525389 | M183: 0.2822969271 | N183: 0.0017439316
A184: =IF('DF raw data'!E189="","",'DF raw data'!E189) -> -239 | B184: =IF('DF raw data'!F189="","",'DF raw data'!F189) -> -1.34341e-05 | C184: =IF('DF raw data'!G189="","",'DF raw data'!G189) -> 0.00014847 | D184: =IF('DF raw data'!H189="","",'DF raw data'!H189) -> 4.41412e-07 | F184: -1.349589686e-05 | G184: 0.000149152962 | H184: 4.434424952e-07 | J184: -0.0009251812856 | K184: -0.02711928178 | L184: 0.00921510187 | M184: 0.286904478 | N184: 0.001786818631
A185: =IF('DF raw data'!E190="","",'DF raw data'!E190) -> -238.5 | B185: =IF('DF raw data'!F190="","",'DF raw data'!F190) -> -1.3367e-05 | C185: =IF('DF raw data'!G190="","",'DF raw data'!G190) -> 0.000146255 | D185: =IF('DF raw data'!H190="","",'DF raw data'!H190) -> -4.03797e-06 | F185: -1.34284882e-05 | G185: 0.000146927773 | H185: -4.056544662e-06 | J185: -0.0009318955297 | K185: -0.02758522955 | L185: 0.009288565756 | M185: 0.2915487609 | N185: 0.001830391573
A186: =IF('DF raw data'!E191="","",'DF raw data'!E191) -> -238 | B186: =IF('DF raw data'!F191="","",'DF raw data'!F191) -> -9.39737e-06 | C186: =IF('DF raw data'!G191="","",'DF raw data'!G191) -> 0.000150617 | D186: =IF('DF raw data'!H191="","",'DF raw data'!H191) -> 2.9325e-06 | F186: -9.440597902e-06 | G186: 0.0001513098382 | H186: 2.9459895e-06 | J186: -0.0009366158286 | K186: -0.02805353746 | L186: 0.009364220676 | M186: 0.2962308712 | N186: 0.001874674512
A187: =IF('DF raw data'!E192="","",'DF raw data'!E192) -> -237.5 | B187: =IF('DF raw data'!F192="","",'DF raw data'!F192) -> -1.5159e-05 | C187: =IF('DF raw data'!G192="","",'DF raw data'!G192) -> 0.000148268 | D187: =IF('DF raw data'!H192="","",'DF raw data'!H192) -> -8.69771e-06 | F187: -1.52287314e-05 | G187: 0.0001489500328 | H187: -8.737719466e-06 | J187: -0.0009442301943 | K187: -0.02852565256 | L187: 0.009438695692 | M187: 0.3009502191 | N187: 0.001919664785
A188: =IF('DF raw data'!E193="","",'DF raw data'!E193) -> -237 | B188: =IF('DF raw data'!F193="","",'DF raw data'!F193) -> -1.7023e-05 | C188: =IF('DF raw data'!G193="","",'DF raw data'!G193) -> 0.000142735 | D188: =IF('DF raw data'!H193="","",'DF raw data'!H193) -> -6.51886e-07 | F188: -1.71013058e-05 | G188: 0.000143391581 | H188: -6.548846756e-07 | J188: -0.0009527808472 | K188: -0.02900204298 | L188: 0.009510391482 | M188: 0.3057054148 | N188: 0.001965342454
A189: =IF('DF raw data'!E194="","",'DF raw data'!E194) -> -236.5 | B189: =IF('DF raw data'!F194="","",'DF raw data'!F194) -> -2.23452e-05 | C189: =IF('DF raw data'!G194="","",'DF raw data'!G194) -> 0.000146487 | D189: =IF('DF raw data'!H194="","",'DF raw data'!H194) -> 1.81151e-06 | F189: -2.244798792e-05 | G189: 0.0001471608402 | H189: 1.819842946e-06 | J189: -0.0009640048412 | K189: -0.0294840454 | L189: 0.009583971903 | M189: 0.3104974008 | N189: 0.002011733365
A190: =IF('DF raw data'!E195="","",'DF raw data'!E195) -> -236 | B190: =IF('DF raw data'!F195="","",'DF raw data'!F195) -> -2.24705e-05 | C190: =IF('DF raw data'!G195="","",'DF raw data'!G195) -> 0.00015506 | D190: =IF('DF raw data'!H195="","",'DF raw data'!H195) -> -2.62021e-06 | F190: -2.25738643e-05 | G190: 0.000155773276 | H190: -2.632262966e-06 | J190: -0.0009752917733 | K190: -0.02997169129 | L190: 0.009661858541 | M190: 0.31532833 | N190: 0.002058884718
A191: =IF('DF raw data'!E196="","",'DF raw data'!E196) -> -235.5 | B191: =IF('DF raw data'!F196="","",'DF raw data'!F196) -> -1.8618e-05 | C191: =IF('DF raw data'!G196="","",'DF raw data'!G196) -> 0.000158872 | D191: =IF('DF raw data'!H196="","",'DF raw data'!H196) -> -1.23747e-05 | F191: -1.87036428e-05 | G191: 0.0001596028112 | H191: -1.243162362e-05 | J191: -0.0009846435947 | K191: -0.03046401309 | L191: 0.009741659946 | M191: 0.32019916 | N191: 0.002106819448
A192: =IF('DF raw data'!E197="","",'DF raw data'!E197) -> -235 | B192: =IF('DF raw data'!F197="","",'DF raw data'!F197) -> -2.45235e-05 | C192: =IF('DF raw data'!G197="","",'DF raw data'!G197) -> 0.000157736 | D192: =IF('DF raw data'!H197="","",'DF raw data'!H197) -> 2.10338e-07 | F192: =(1-$G$1*($B$49-$G$2))*B192 -> -2.46363081e-05 | G192: 0.0001584615856 | H192: 2.113055548e-07 | J192: =F192*$G$3+J191 -> -0.0009969617488 | K192: =J192*$G$3+K191 -> -0.03096249396 | L192: =G192*$G$3+L191 -> 0.009820890739 | M192: =L192*$G$3+M191 -> 0.3251096054 | N192: =(J192^2+L192^2)*$G$3+N191 -> 0.002155541362
A193: =IF('DF raw data'!E198="","",'DF raw data'!E198) -> -234.5 | B193: =IF('DF raw data'!F198="","",'DF raw data'!F198) -> -1.10025e-05 | C193: =IF('DF raw data'!G198="","",'DF raw data'!G198) -> 0.00015235 | D193: =IF('DF raw data'!H198="","",'DF raw data'!H198) -> 7.13996e-06 | F193: -1.10531115e-05 | G193: 0.00015305081 | H193: 7.172803816e-06 | J193: -0.001002488305 | K193: -0.03146373811 | L193: 0.009897416144 | M193: 0.3300583134 | N193: 0.002205023277
A194: =IF('DF raw data'!E199="","",'DF raw data'!E199) -> -234 | B194: =IF('DF raw data'!F199="","",'DF raw data'!F199) -> -2.95241e-05 | C194: =IF('DF raw data'!G199="","",'DF raw data'!G199) -> 0.000151235 | D194: =IF('DF raw data'!H199="","",'DF raw data'!H199) -> 1.00643e-06 | F194: -2.965991086e-05 | G194: 0.000151930681 | H194: 1.011059578e-06 | J194: -0.00101731826 | K194: -0.03197239724 | L194: 0.009973381484 | M194: 0.3350450042 | N194: 0.002255274914
A195: =IF('DF raw data'!E200="","",'DF raw data'!E200) -> -233.5 | B195: =IF('DF raw data'!F200="","",'DF raw data'!F200) -> -2.45858e-05 | C195: =IF('DF raw data'!G200="","",'DF raw data'!G200) -> 0.000152712 | D195: =IF('DF raw data'!H200="","",'DF raw data'!H200) -> -2.90749e-06 | F195: -2.469889468e-05 | G195: 0.0001534144752 | H195: -2.920864454e-06 | J195: -0.001029667707 | K195: -0.0324872311 | L195: 0.01005008872 | M195: 0.3400700485 | N195: 0.002306307164
A196: =IF('DF raw data'!E201="","",'DF raw data'!E201) -> -233 | B196: =IF('DF raw data'!F201="","",'DF raw data'!F201) -> -3.1767e-05 | C196: =IF('DF raw data'!G201="","",'DF raw data'!G201) -> 0.000150483 | D196: =IF('DF raw data'!H201="","",'DF raw data'!H201) -> -9.51956e-08 | F196: -3.19131282e-05 | G196: 0.0001511752218 | H196: -9.563349976e-08 | J196: -0.001045624271 | K196: -0.03301004323 | L196: 0.01012567633 | M196: 0.3451328867 | N196: 0.002358118489
A197: =IF('DF raw data'!E202="","",'DF raw data'!E202) -> -232.5 | B197: =IF('DF raw data'!F202="","",'DF raw data'!F202) -> -2.52935e-05 | C197: =IF('DF raw data'!G202="","",'DF raw data'!G202) -> 0.000150403 | D197: =IF('DF raw data'!H202="","",'DF raw data'!H202) -> 1.41699e-06 | F197: -2.54098501e-05 | G197: 0.0001510948538 | H197: 1.423508154e-06 | J197: -0.001058329196 | K197: -0.03353920783 | L197: 0.01020122376 | M197: 0.3502334986 | N197: 0.002410711003
A198: =IF('DF raw data'!E203="","",'DF raw data'!E203) -> -232 | B198: =IF('DF raw data'!F203="","",'DF raw data'!F203) -> -2.76623e-05 | C198: =IF('DF raw data'!G203="","",'DF raw data'!G203) -> 0.000158501 | D198: =IF('DF raw data'!H203="","",'DF raw data'!H203) -> -3.30485e-06 | F198: -2.778954658e-05 | G198: 0.0001592301046 | H198: -3.32005231e-06 | J198: -0.00107222397 | K198: -0.03407531982 | L198: 0.01028083881 | M198: 0.355373918 | N198: 0.002464133658
A199: =IF('DF raw data'!E204="","",'DF raw data'!E204) -> -231.5 | B199: =IF('DF raw data'!F204="","",'DF raw data'!F204) -> -3.30469e-05 | C199: =IF('DF raw data'!G204="","",'DF raw data'!G204) -> 0.000155842 | D199: =IF('DF raw data'!H204="","",'DF raw data'!H204) -> -3.28352e-06 | F199: -3.319891574e-05 | G199: 0.0001565588732 | H199: -3.298624192e-06 | J199: -0.001088823428 | K199: -0.03461973153 | L199: 0.01035911825 | M199: 0.3605534771 | N199: 0.002518382092
A200: =IF('DF raw data'!E205="","",'DF raw data'!E205) -> -231 | B200: =IF('DF raw data'!F205="","",'DF raw data'!F205) -> -2.68261e-05 | C200: =IF('DF raw data'!G205="","",'DF raw data'!G205) -> 0.000152824 | D200: =IF('DF raw data'!H205="","",'DF raw data'!H205) -> -7.52913e-06 | F200: -2.694950006e-05 | G200: 0.0001535269904 | H200: -7.563763998e-06 | J200: -0.001102298178 | K200: -0.03517088062 | L200: 0.01043588174 | M200: 0.365771418 | N200: 0.002573443436
A201: =IF('DF raw data'!E206="","",'DF raw data'!E206) -> -230.5 | B201: =IF('DF raw data'!F206="","",'DF raw data'!F206) -> -2.45846e-05 | C201: =IF('DF raw data'!G206="","",'DF raw data'!G206) -> 0.000147809 | D201: =IF('DF raw data'!H206="","",'DF raw data'!H206) -> -4.68375e-06 | F201: -2.469768916e-05 | G201: 0.0001484889214 | H201: -4.70529525e-06 | J201: -0.001114647022 | K201: -0.03572820413 | L201: 0.0105101262 | M201: 0.3710264811 | N201: 0.002629296032
... 1061 more rows

Sheet 10 x=0
A1: =IF('DF raw data'!I1="","",'DF raw data'!I1) -> Number of header lines | B1: =IF('DF raw data'!J1="","",'DF raw data'!J1) -> 54 | C1: =IF('DF raw data'!K1="","",'DF raw data'!K1) ->  | D1: =IF('DF raw data'!L1="","",'DF raw data'!L1) ->  | F1: T_coeff | G1: -0.001 | H1: /degC | J1: IBy total | K1: =J1262*1000 -> -0.5389966855 | L1: muTm | M1: =L1262*1000 -> 71.6822342 | R1: DF ref | S1: ='10 x=-2'!S1 -> 1
A2: =IF('DF raw data'!I2="","",'DF raw data'!I2) -> Measured by | B2: =IF('DF raw data'!J2="","",'DF raw data'!J2) -> Danfysik | C2: =IF('DF raw data'!K2="","",'DF raw data'!K2) ->  | D2: =IF('DF raw data'!L2="","",'DF raw data'!L2) ->  | F2: Tcorr | G2: 20 | H2: degC | J2: JBy total | K2: =K1262 -> -1.414124039 | L2: muTm^2 | M2: =M1262 -> 23.58150903
A3: =IF('DF raw data'!I3="","",'DF raw data'!I3) -> Operator | B3: =IF('DF raw data'!J3="","",'DF raw data'!J3) -> PMHA | C3: =IF('DF raw data'!K3="","",'DF raw data'!K3) ->  | D3: =IF('DF raw data'!L3="","",'DF raw data'!L3) ->  | F3: Step | G3: =A63-A62 -> 0.5 | H3: mm | J3: PI total | K3: =N1262 -> 10599.33576 | L3: T^2mm^3
A4: =IF('DF raw data'!I4="","",'DF raw data'!I4) -> Data-time | B4: =IF('DF raw data'!J4="","",'DF raw data'!J4) -> 29-08-2024, 12:08:42 | C4: =IF('DF raw data'!K4="","",'DF raw data'!K4) ->  | D4: =IF('DF raw data'!L4="","",'DF raw data'!L4) -> 
A5: =IF('DF raw data'!I5="","",'DF raw data'!I5) -> Project | B5: =IF('DF raw data'!J5="","",'DF raw data'!J5) -> 504314 | C5: =IF('DF raw data'!K5="","",'DF raw data'!K5) ->  | D5: =IF('DF raw data'!L5="","",'DF raw data'!L5) -> 
A6: =IF('DF raw data'!I6="","",'DF raw data'!I6) -> Magnet type | B6: =IF('DF raw data'!J6="","",'DF raw data'!J6) -> Dipole | C6: =IF('DF raw data'!K6="","",'DF raw data'!K6) ->  | D6: =IF('DF raw data'!L6="","",'DF raw data'!L6) -> 
A7: =IF('DF raw data'!I7="","",'DF raw data'!I7) -> Magnet nr. | B7: =IF('DF raw data'!J7="","",'DF raw data'!J7) -> 2410087 | C7: =IF('DF raw data'!K7="","",'DF raw data'!K7) ->  | D7: =IF('DF raw data'!L7="","",'DF raw data'!L7) -> 
A8: =IF('DF raw data'!I8="","",'DF raw data'!I8) -> Meas. number | B8: =IF('DF raw data'!J8="","",'DF raw data'!J8) -> 243 | C8: =IF('DF raw data'!K8="","",'DF raw data'!K8) ->  | D8: =IF('DF raw data'!L8="","",'DF raw data'!L8) -> 
A9: =IF('DF raw data'!I9="","",'DF raw data'!I9) -> Add. info | B9: =IF('DF raw data'!J9="","",'DF raw data'!J9) -> X-alignment scan 3) | C9: =IF('DF raw data'!K9="","",'DF raw data'!K9) ->  | D9: =IF('DF raw data'!L9="","",'DF raw data'!L9) -> 
A10: =IF('DF raw data'!I10="","",'DF raw data'!I10) -> Device | B10: =IF('DF raw data'!J10="","",'DF raw data'!J10) -> (HAL) HALL-PROBE | C10: =IF('DF raw data'!K10="","",'DF raw data'!K10) ->  | D10: =IF('DF raw data'!L10="","",'DF raw data'!L10) -> 
A11: =IF('DF raw data'!I11="","",'DF raw data'!I11) -> Goal | B11: =IF('DF raw data'!J11="","",'DF raw data'!J11) -> (AXI) AXis Integral (Line, EFB) | C11: =IF('DF raw data'!K11="","",'DF raw data'!K11) ->  | D11: =IF('DF raw data'!L11="","",'DF raw data'!L11) -> 
A12: =IF('DF raw data'!I12="","",'DF raw data'!I12) -> Power supply mode | B12: =IF('DF raw data'!J12="","",'DF raw data'!J12) -> (PM) Permanent Magnet (no MPS in use) | C12: =IF('DF raw data'!K12="","",'DF raw data'!K12) ->  | D12: =IF('DF raw data'!L12="","",'DF raw data'!L12) -> 
A13: =IF('DF raw data'!I13="","",'DF raw data'!I13) -> Data format | B13: =IF('DF raw data'!J13="","",'DF raw data'!J13) -> Raw data text file | C13: =IF('DF raw data'!K13="","",'DF raw data'!K13) ->  | D13: =IF('DF raw data'!L13="","",'DF raw data'!L13) -> 
A14: =IF('DF raw data'!I14="","",'DF raw data'!I14) -> Direction of the pos. x-axis | B14: =IF('DF raw data'!J14="","",'DF raw data'!J14) -> See test program | C14: =IF('DF raw data'!K14="","",'DF raw data'!K14) ->  | D14: =IF('DF raw data'!L14="","",'DF raw data'!L14) -> 
A15: =IF('DF raw data'!I15="","",'DF raw data'!I15) -> Direction of the pos. y-axis | B15: =IF('DF raw data'!J15="","",'DF raw data'!J15) -> Vertical up | C15: =IF('DF raw data'!K15="","",'DF raw data'!K15) ->  | D15: =IF('DF raw data'!L15="","",'DF raw data'!L15) -> 
A16: =IF('DF raw data'!I16="","",'DF raw data'!I16) -> Direction of the pos. z-axis | B16: =IF('DF raw data'!J16="","",'DF raw data'!J16) -> See test program | C16: =IF('DF raw data'!K16="","",'DF raw data'!K16) ->  | D16: =IF('DF raw data'!L16="","",'DF raw data'!L16) -> 
A17: =IF('DF raw data'!I17="","",'DF raw data'!I17) -> Mapper type | B17: =IF('DF raw data'!J17="","",'DF raw data'!J17) -> Precision Hall Mapper | C17: =IF('DF raw data'!K17="","",'DF raw data'!K17) ->  | D17: =IF('DF raw data'!L17="","",'DF raw data'!L17) -> 
A18: =IF('DF raw data'!I18="","",'DF raw data'!I18) -> Mapper Danfysik Reg. Number | B18: =IF('DF raw data'!J18="","",'DF raw data'!J18) -> 2033-D (mapper 1) | C18: =IF('DF raw data'!K18="","",'DF raw data'!K18) ->  | D18: =IF('DF raw data'!L18="","",'DF raw data'!L18) -> 
A19: =IF('DF raw data'!I19="","",'DF raw data'!I19) -> Measurement consept | B19: =IF('DF raw data'!J19="","",'DF raw data'!J19) -> Square line grid | C19: =IF('DF raw data'!K19="","",'DF raw data'!K19) ->  | D19: =IF('DF raw data'!L19="","",'DF raw data'!L19) -> 
A20: =IF('DF raw data'!I20="","",'DF raw data'!I20) -> Mode | B20: =IF('DF raw data'!J20="","",'DF raw data'!J20) -> On-the-fly measurement | C20: =IF('DF raw data'!K20="","",'DF raw data'!K20) ->  | D20: =IF('DF raw data'!L20="","",'DF raw data'!L20) -> 
A21: =IF('DF raw data'!I21="","",'DF raw data'!I21) ->  | B21: =IF('DF raw data'!J21="","",'DF raw data'!J21) ->  | C21: =IF('DF raw data'!K21="","",'DF raw data'!K21) ->  | D21: =IF('DF raw data'!L21="","",'DF raw data'!L21) -> 
A22: =IF('DF raw data'!I22="","",'DF raw data'!I22) -> Probe Name | B22: =IF('DF raw data'!J22="","",'DF raw data'!J22) -> ID12_By | C22: =IF('DF raw data'!K22="","",'DF raw data'!K22) ->  | D22: =IF('DF raw data'!L22="","",'DF raw data'!L22) -> 
A23: =IF('DF raw data'!I23="","",'DF raw data'!I23) -> Probe Type | B23: =IF('DF raw data'!J23="","",'DF raw data'!J23) -> DF_ID_3D_Bxyz | C23: =IF('DF raw data'!K23="","",'DF raw data'!K23) ->  | D23: =IF('DF raw data'!L23="","",'DF raw data'!L23) -> 
A24: =IF('DF raw data'!I24="","",'DF raw data'!I24) -> Probe Danfysik Reg. Number | B24: =IF('DF raw data'!J24="","",'DF raw data'!J24) -> 2277 | C24: =IF('DF raw data'!K24="","",'DF raw data'!K24) ->  | D24: =IF('DF raw data'!L24="","",'DF raw data'!L24) -> 
A25: =IF('DF raw data'!I25="","",'DF raw data'!I25) -> Probe Axis | B25: =IF('DF raw data'!J25="","",'DF raw data'!J25) -> By | C25: =IF('DF raw data'!K25="","",'DF raw data'!K25) ->  | D25: =IF('DF raw data'!L25="","",'DF raw data'!L25) -> 
A26: =IF('DF raw data'!I26="","",'DF raw data'!I26) -> Probe Current Supply | B26: =IF('DF raw data'!J26="","",'DF raw data'!J26) -> 1825-D | C26: =IF('DF raw data'!K26="","",'DF raw data'!K26) ->  | D26: =IF('DF raw data'!L26="","",'DF raw data'!L26) -> 
A27: =IF('DF raw data'!I27="","",'DF raw data'!I27) -> Probe Gain Correction | B27: =IF('DF raw data'!J27="","",'DF raw data'!J27) -> 0.99617 | C27: =IF('DF raw data'!K27="","",'DF raw data'!K27) ->  | D27: =IF('DF raw data'!L27="","",'DF raw data'!L27) -> 
A28: =IF('DF raw data'!I28="","",'DF raw data'!I28) -> Probe Offset Correction | B28: =IF('DF raw data'!J28="","",'DF raw data'!J28) -> 0.0027239 | C28: =IF('DF raw data'!K28="","",'DF raw data'!K28) ->  | D28: =IF('DF raw data'!L28="","",'DF raw data'!L28) -> 
A29: =IF('DF raw data'!I29="","",'DF raw data'!I29) -> DVM Number | B29: =IF('DF raw data'!J29="","",'DF raw data'!J29) -> 2 | C29: =IF('DF raw data'!K29="","",'DF raw data'!K29) ->  | D29: =IF('DF raw data'!L29="","",'DF raw data'!L29) -> 
A30: =IF('DF raw data'!I30="","",'DF raw data'!I30) -> DVM Type | B30: =IF('DF raw data'!J30="","",'DF raw data'!J30) -> K2701 | C30: =IF('DF raw data'!K30="","",'DF raw data'!K30) ->  | D30: =IF('DF raw data'!L30="","",'DF raw data'!L30) -> 
A31: =IF('DF raw data'!I31="","",'DF raw data'!I31) -> DVM Danfysik Reg. Number | B31: =IF('DF raw data'!J31="","",'DF raw data'!J31) -> 1743-D | C31: =IF('DF raw data'!K31="","",'DF raw data'!K31) ->  | D31: =IF('DF raw data'!L31="","",'DF raw data'!L31) -> 
A32: =IF('DF raw data'!I32="","",'DF raw data'!I32) -> Probe Name | B32: =IF('DF raw data'!J32="","",'DF raw data'!J32) -> ID12_Bx | C32: =IF('DF raw data'!K32="","",'DF raw data'!K32) ->  | D32: =IF('DF raw data'!L32="","",'DF raw data'!L32) -> 
A33: =IF('DF raw data'!I33="","",'DF raw data'!I33) -> Probe Type | B33: =IF('DF raw data'!J33="","",'DF raw data'!J33) -> DF_ID_3D_Bxyz | C33: =IF('DF raw data'!K33="","",'DF raw data'!K33) ->  | D33: =IF('DF raw data'!L33="","",'DF raw data'!L33) -> 
A34: =IF('DF raw data'!I34="","",'DF raw data'!I34) -> Probe Danfysik Reg. Number | B34: =IF('DF raw data'!J34="","",'DF raw data'!J34) -> 2277 | C34: =IF('DF raw data'!K34="","",'DF raw data'!K34) ->  | D34: =IF('DF raw data'!L34="","",'DF raw data'!L34) -> 
A35: =IF('DF raw data'!I35="","",'DF raw data'!I35) -> Probe Axis | B35: =IF('DF raw data'!J35="","",'DF raw data'!J35) -> Bx | C35: =IF('DF raw data'!K35="","",'DF raw data'!K35) ->  | D35: =IF('DF raw data'!L35="","",'DF raw data'!L35) -> 
A36: =IF('DF raw data'!I36="","",'DF raw data'!I36) -> Probe Current Supply | B36: =IF('DF raw data'!J36="","",'DF raw data'!J36) -> 1825-D | C36: =IF('DF raw data'!K36="","",'DF raw data'!K36) ->  | D36: =IF('DF raw data'!L36="","",'DF raw data'!L36) -> 
A37: =IF('DF raw data'!I37="","",'DF raw data'!I37) -> Probe Gain Correction | B37: =IF('DF raw data'!J37="","",'DF raw data'!J37) -> 1 | C37: =IF('DF raw data'!K37="","",'DF raw data'!K37) ->  | D37: =IF('DF raw data'!L37="","",'DF raw data'!L37) -> 
A38: =IF('DF raw data'!I38="","",'DF raw data'!I38) -> Probe Offset Correction | B38: =IF('DF raw data'!J38="","",'DF raw data'!J38) -> -0.17561 | C38: =IF('DF raw data'!K38="","",'DF raw data'!K38) ->  | D38: =IF('DF raw data'!L38="","",'DF raw data'!L38) -> 
A39: =IF('DF raw data'!I39="","",'DF raw data'!I39) -> DVM Number | B39: =IF('DF raw data'!J39="","",'DF raw data'!J39) -> 3 | C39: =IF('DF raw data'!K39="","",'DF raw data'!K39) ->  | D39: =IF('DF raw data'!L39="","",'DF raw data'!L39) -> 
A40: =IF('DF raw data'!I40="","",'DF raw data'!I40) -> DVM Type | B40: =IF('DF raw data'!J40="","",'DF raw data'!J40) -> K2701 | C40: =IF('DF raw data'!K40="","",'DF raw data'!K40) ->  | D40: =IF('DF raw data'!L40="","",'DF raw data'!L40) -> 
A41: =IF('DF raw data'!I41="","",'DF raw data'!I41) -> DVM Danfysik Reg. Number | B41: =IF('DF raw data'!J41="","",'DF raw data'!J41) -> 1744-D | C41: =IF('DF raw data'!K41="","",'DF raw data'!K41) ->  | D41: =IF('DF raw data'!L41="","",'DF raw data'!L41) -> 
A42: =IF('DF raw data'!I42="","",'DF raw data'!I42) -> Probe Name | B42: =IF('DF raw data'!J42="","",'DF raw data'!J42) -> ID12_Bz | C42: =IF('DF raw data'!K42="","",'DF raw data'!K42) ->  | D42: =IF('DF raw data'!L42="","",'DF raw data'!L42) -> 
A43: =IF('DF raw data'!I43="","",'DF raw data'!I43) -> Probe Type | B43: =IF('DF raw data'!J43="","",'DF raw data'!J43) -> DF_ID_3D_Bxyz | C43: =IF('DF raw data'!K43="","",'DF raw data'!K43) ->  | D43: =IF('DF raw data'!L43="","",'DF raw data'!L43) -> 
A44: =IF('DF raw data'!I44="","",'DF raw data'!I44) -> Probe Danfysik Reg. Number | B44: =IF('DF raw data'!J44="","",'DF raw data'!J44) -> 2277 | C44: =IF('DF raw data'!K44="","",'DF raw data'!K44) ->  | D44: =IF('DF raw data'!L44="","",'DF raw data'!L44) -> 
A45: =IF('DF raw data'!I45="","",'DF raw data'!I45) -> Probe Axis | B45: =IF('DF raw data'!J45="","",'DF raw data'!J45) -> Bz | C45: =IF('DF raw data'!K45="","",'DF raw data'!K45) ->  | D45: =IF('DF raw data'!L45="","",'DF raw data'!L45) -> 
A46: =IF('DF raw data'!I46="","",'DF raw data'!I46) -> Probe Current Supply | B46: =IF('DF raw data'!J46="","",'DF raw data'!J46) -> 1825-D | C46: =IF('DF raw data'!K46="","",'DF raw data'!K46) ->  | D46: =IF('DF raw data'!L46="","",'DF raw data'!L46) -> 
A47: =IF('DF raw data'!I47="","",'DF raw data'!I47) -> Probe Gain Correction | B47: =IF('DF raw data'!J47="","",'DF raw data'!J47) -> 1 | C47: =IF('DF raw data'!K47="","",'DF raw data'!K47) ->  | D47: =IF('DF raw data'!L47="","",'DF raw data'!L47) -> 
A48: =IF('DF raw data'!I53="","",'DF raw data'!I53) -> PS-Gap: | B48: =IF('DF raw data'!J53="","",'DF raw data'!J53) -> 10 | C48: =IF('DF raw data'!K53="","",'DF raw data'!K53) ->  | D48: =IF('DF raw data'!L53="","",'DF raw data'!L53) -> 
A49: =IF('DF raw data'!I54="","",'DF raw data'!I54) -> PS-Temperature: | B49: =IF('DF raw data'!J54="","",'DF raw data'!J54) -> 24.6 | C49: =IF('DF raw data'!K54="","",'DF raw data'!K54) ->  | D49: =IF('DF raw data'!L54="","",'DF raw data'!L54) -> 
A50: =IF('DF raw data'!I55="","",'DF raw data'!I55) -> PS-Encoder: | B50: =IF('DF raw data'!J55="","",'DF raw data'!J55) -> 20.0459 | C50: =IF('DF raw data'!K55="","",'DF raw data'!K55) ->  | D50: =IF('DF raw data'!L55="","",'DF raw data'!L55) -> 
A51: =IF('DF raw data'!I56="","",'DF raw data'!I56) ->  | B51: =IF('DF raw data'!J56="","",'DF raw data'!J56) ->  | C51: =IF('DF raw data'!K56="","",'DF raw data'!K56) ->  | D51: =IF('DF raw data'!L56="","",'DF raw data'!L56) -> 
A52: =IF('DF raw data'!I57="","",'DF raw data'!I57) -> Monitor-Index | B52: =IF('DF raw data'!J57="","",'DF raw data'!J57) -> [1,1,4] | C52: =IF('DF raw data'!K57="","",'DF raw data'!K57) ->  | D52: =IF('DF raw data'!L57="","",'DF raw data'!L57) -> 
A53: =IF('DF raw data'!I58="","",'DF raw data'!I58) ->  | B53: =IF('DF raw data'!J58="","",'DF raw data'!J58) ->  | C53: =IF('DF raw data'!K58="","",'DF raw data'!K58) ->  | D53: =IF('DF raw data'!L58="","",'DF raw data'!L58) -> 
A54: =IF('DF raw data'!I59="","",'DF raw data'!I59) -> Time [s] | B54: =IF('DF raw data'!J59="","",'DF raw data'!J59) -> Y [mm] | C54: =IF('DF raw data'!K59="","",'DF raw data'!K59) -> X [mm] | D54: =IF('DF raw data'!L59="","",'DF raw data'!L59) -> Nominal current [A]
A55: =IF('DF raw data'!I60="","",'DF raw data'!I60) ->  | B55: =IF('DF raw data'!J60="","",'DF raw data'!J60) ->  | C55: =IF('DF raw data'!K60="","",'DF raw data'!K60) ->  | D55: =IF('DF raw data'!L60="","",'DF raw data'!L60) -> 
A56: =IF('DF raw data'!I61="","",'DF raw data'!I61) -> 207.9 | B56: =IF('DF raw data'!J61="","",'DF raw data'!J61) -> 31.16 | C56: =IF('DF raw data'!K61="","",'DF raw data'!K61) -> 301.8 | D56: =IF('DF raw data'!L61="","",'DF raw data'!L61) -> 0
A57: =IF('DF raw data'!I62="","",'DF raw data'!I62) ->  | B57: =IF('DF raw data'!J62="","",'DF raw data'!J62) ->  | C57: =IF('DF raw data'!K62="","",'DF raw data'!K62) ->  | D57: =IF('DF raw data'!L62="","",'DF raw data'!L62) -> 
A58: =IF('DF raw data'!I63="","",'DF raw data'!I63) -> Measurement-Index | B58: =IF('DF raw data'!J63="","",'DF raw data'!J63) -> [1,1,1201,2] | C58: =IF('DF raw data'!K63="","",'DF raw data'!K63) ->  | D58: =IF('DF raw data'!L63="","",'DF raw data'!L63) -> 
A59: =IF('DF raw data'!I64="","",'DF raw data'!I64) ->  | B59: =IF('DF raw data'!J64="","",'DF raw data'!J64) ->  | C59: =IF('DF raw data'!K64="","",'DF raw data'!K64) ->  | D59: =IF('DF raw data'!L64="","",'DF raw data'!L64) -> 
A60: =IF('DF raw data'!I65="","",'DF raw data'!I65) -> Z [mm] | B60: By [T] | C60: Bx [T] | D60: Bz [T] | F60: By_corr | G60: Bx_corr | H60: Bz_corr | J60: Iy | K60: Jy | L60: Ix | M60: Jx | N60: PI
A62: =IF('DF raw data'!I67="","",'DF raw data'!I67) -> -300 | B62: =IF('DF raw data'!J67="","",'DF raw data'!J67) -> -7.02365e-06 | C62: =IF('DF raw data'!K67="","",'DF raw data'!K67) -> 0.00011092 | D62: =IF('DF raw data'!L67="","",'DF raw data'!L67) -> -1.55562e-05 | F62: =(1-$G$1*($B$49))*B62 -> -7.19643179e-06 | G62: =(1-$G$1*($B$49-$G$2))*C62 -> 0.000111430232 | H62: =(1-$G$1*($B$49-$G$2))*D62 -> -1.562775852e-05 | J62: =F62*$G$3 -> -3.598215895e-06 | K62: =J62*$G$3 -> -1.799107947e-06 | L62: =G62*$G$3 -> 5.5715116e-05 | M62: =L62*$G$3 -> 2.7857558e-05 | N62: =(J62^2+L62^2)*$G$3 -> 1.558560654e-09
A63: =IF('DF raw data'!I68="","",'DF raw data'!I68) -> -299.5 | B63: =IF('DF raw data'!J68="","",'DF raw data'!J68) -> -6.51091e-06 | C63: =IF('DF raw data'!K68="","",'DF raw data'!K68) -> 0.000120188 | D63: =IF('DF raw data'!L68="","",'DF raw data'!L68) -> -1.54701e-05 | F63: =(1-$G$1*($B$49-$G$2))*B63 -> -6.540860186e-06 | G63: =(1-$G$1*($B$49-$G$2))*C63 -> 0.0001207408648 | H63: -1.554126246e-05 | J63: =F63*$G$3+J62 -> -6.868645988e-06 | K63: =J63*$G$3+K62 -> -5.233430941e-06 | L63: =G63*$G$3+L62 -> 0.0001160855484 | M63: =L63*$G$3+M62 -> 8.59003322e-05 | N63: =(J63^2+L63^2)*$G$3+N62 -> 8.320077077e-09
A64: =IF('DF raw data'!I69="","",'DF raw data'!I69) -> -299 | B64: =IF('DF raw data'!J69="","",'DF raw data'!J69) -> -1.93957e-05 | C64: =IF('DF raw data'!K69="","",'DF raw data'!K69) -> 0.000129529 | D64: =IF('DF raw data'!L69="","",'DF raw data'!L69) -> -1.48057e-05 | F64: =(1-$G$1*($B$49-$G$2))*B64 -> -1.948492022e-05 | G64: 0.0001301248334 | H64: -1.487380622e-05 | J64: =F64*$G$3+J63 -> -1.66111061e-05 | K64: =J64*$G$3+K63 -> -1.353898399e-05 | L64: =G64*$G$3+L63 -> 0.0001811479651 | M64: =L64*$G$3+M63 -> 0.0001764743147 | N64: =(J64^2+L64^2)*$G$3+N63 -> 2.486533413e-08
A65: =IF('DF raw data'!I70="","",'DF raw data'!I70) -> -298.5 | B65: =IF('DF raw data'!J70="","",'DF raw data'!J70) -> -1.34988e-05 | C65: =IF('DF raw data'!K70="","",'DF raw data'!K70) -> 0.000129795 | D65: =IF('DF raw data'!L70="","",'DF raw data'!L70) -> -1.39928e-05 | F65: -1.356089448e-05 | G65: 0.000130392057 | H65: -1.405716688e-05 | J65: -2.339155334e-05 | K65: -2.523476066e-05 | L65: 0.0002463439936 | M65: 0.0002996463115 | N65: 5.54815981e-08
A66: =IF('DF raw data'!I71="","",'DF raw data'!I71) -> -298 | B66: =IF('DF raw data'!J71="","",'DF raw data'!J71) -> -7.02461e-06 | C66: =IF('DF raw data'!K71="","",'DF raw data'!K71) -> 0.000121384 | D66: =IF('DF raw data'!L71="","",'DF raw data'!L71) -> -1.40814e-05 | F66: -7.056923206e-06 | G66: 0.0001219423664 | H66: -1.414617444e-05 | J66: -2.692001494e-05 | K66: -3.869476813e-05 | L66: 0.0003073151768 | M66: 0.0004533038999 | N66: 1.030652507e-07
A67: =IF('DF raw data'!I72="","",'DF raw data'!I72) -> -297.5 | B67: =IF('DF raw data'!J72="","",'DF raw data'!J72) -> -8.62676e-06 | C67: =IF('DF raw data'!K72="","",'DF raw data'!K72) -> 0.00012007 | D67: =IF('DF raw data'!L72="","",'DF raw data'!L72) -> -1.47967e-05 | F67: -8.666443096e-06 | G67: 0.000120622322 | H67: -1.486476482e-05 | J67: -3.125323649e-05 | K67: -5.432138637e-05 | L67: 0.0003676263378 | M67: 0.0006371170688 | N67: 1.711281952e-07
A68: =IF('DF raw data'!I73="","",'DF raw data'!I73) -> -297 | B68: =IF('DF raw data'!J73="","",'DF raw data'!J73) -> -1.38188e-05 | C68: =IF('DF raw data'!K73="","",'DF raw data'!K73) -> 0.000124739 | D68: =IF('DF raw data'!L73="","",'DF raw data'!L73) -> -1.50842e-05 | F68: -1.388236648e-05 | G68: 0.0001253127994 | H68: -1.515358732e-05 | J68: -3.819441973e-05 | K68: -7.341859624e-05 | L68: 0.0004302827375 | M68: 0.0008522584376 | N68: 2.644292191e-07
A69: =IF('DF raw data'!I74="","",'DF raw data'!I74) -> -296.5 | B69: =IF('DF raw data'!J74="","",'DF raw data'!J74) -> -1.33701e-05 | C69: =IF('DF raw data'!K74="","",'DF raw data'!K74) -> 0.000132011 | D69: =IF('DF raw data'!L74="","",'DF raw data'!L74) -> -1.48141e-05 | F69: -1.343160246e-05 | G69: 0.0001326182506 | H69: -1.488224486e-05 | J69: -4.491022096e-05 | K69: -9.587370672e-05 | L69: 0.0004965918628 | M69: 0.001100554369 | N69: 3.887394222e-07
A70: =IF('DF raw data'!I75="","",'DF raw data'!I75) -> -296 | B70: =IF('DF raw data'!J75="","",'DF raw data'!J75) -> -1.77293e-05 | C70: =IF('DF raw data'!K75="","",'DF raw data'!K75) -> 0.000126975 | D70: =IF('DF raw data'!L75="","",'DF raw data'!L75) -> -1.45175e-05 | F70: -1.781085478e-05 | G70: 0.000127559085 | H70: -1.45842805e-05 | J70: -5.381564835e-05 | K70: -0.0001227815309 | L70: 0.0005603714053 | M70: 0.001380740072 | N70: 5.471955401e-07
A71: =IF('DF raw data'!I76="","",'DF raw data'!I76) -> -295.5 | B71: =IF('DF raw data'!J76="","",'DF raw data'!J76) -> -8.94741e-06 | C71: =IF('DF raw data'!K76="","",'DF raw data'!K76) -> 0.000123461 | D71: =IF('DF raw data'!L76="","",'DF raw data'!L76) -> -1.43585e-05 | F71: -8.988568086e-06 | G71: 0.0001240289206 | H71: -1.44245491e-05 | J71: -5.830993239e-05 | K71: -0.0001519364971 | L71: 0.0006223858656 | M71: 0.001691933004 | N71: 7.425776471e-07
A72: =IF('DF raw data'!I77="","",'DF raw data'!I77) -> -295 | B72: =IF('DF raw data'!J77="","",'DF raw data'!J77) -> -2.11913e-05 | C72: =IF('DF raw data'!K77="","",'DF raw data'!K77) -> 0.000128716 | D72: =IF('DF raw data'!L77="","",'DF raw data'!L77) -> -1.39101e-05 | F72: -2.128877998e-05 | G72: 0.0001293080936 | H72: -1.397408646e-05 | J72: -6.895432238e-05 | K72: -0.0001864136583 | L72: 0.0006870399124 | M72: 0.002035452961 | N72: 9.80966917e-07
A73: =IF('DF raw data'!I78="","",'DF raw data'!I78) -> -294.5 | B73: =IF('DF raw data'!J78="","",'DF raw data'!J78) -> -8.11434e-06 | C73: =IF('DF raw data'!K78="","",'DF raw data'!K78) -> 0.000135314 | D73: =IF('DF raw data'!L78="","",'DF raw data'!L78) -> -1.38052e-05 | F73: -8.151665964e-06 | G73: 0.0001359364444 | H73: -1.386870392e-05 | J73: -7.303015536e-05 | K73: -0.000222928736 | L73: 0.0007550081346 | M73: 0.002412957028 | N73: 1.26865226e-06
A74: =IF('DF raw data'!I79="","",'DF raw data'!I79) -> -294 | B74: =IF('DF raw data'!J79="","",'DF raw data'!J79) -> -5.87062e-06 | C74: =IF('DF raw data'!K79="","",'DF raw data'!K79) -> 0.000140217 | D74: =IF('DF raw data'!L79="","",'DF raw data'!L79) -> -1.43958e-05 | F74: -5.897624852e-06 | G74: 0.0001408619982 | H74: -1.446202068e-05 | J74: -7.597896779e-05 | K74: -0.0002609182199 | L74: 0.0008254391337 | M74: 0.002825676595 | N74: 1.612213544e-06
A75: =IF('DF raw data'!I80="","",'DF raw data'!I80) -> -293.5 | B75: =IF('DF raw data'!J80="","",'DF raw data'!J80) -> -1.2537e-05 | C75: =IF('DF raw data'!K80="","",'DF raw data'!K80) -> 0.000138115 | D75: =IF('DF raw data'!L80="","",'DF raw data'!L80) -> -1.46942e-05 | F75: -1.25946702e-05 | G75: 0.000138750329 | H75: -1.476179332e-05 | J75: -8.227630289e-05 | K75: -0.0003020563713 | L75: 0.0008948142982 | M75: 0.003273083744 | N75: 2.015944553e-06
A76: =IF('DF raw data'!I81="","",'DF raw data'!I81) -> -293 | B76: =IF('DF raw data'!J81="","",'DF raw data'!J81) -> -1.30502e-05 | C76: =IF('DF raw data'!K81="","",'DF raw data'!K81) -> 0.000135809 | D76: =IF('DF raw data'!L81="","",'DF raw data'!L81) -> -1.40477e-05 | F76: -1.311023092e-05 | G76: 0.0001364337214 | H76: -1.411231942e-05 | J76: -8.883141835e-05 | K76: -0.0003464720805 | L76: 0.0009630311589 | M76: 0.003754599323 | N76: 2.48360457e-06
A77: =IF('DF raw data'!I82="","",'DF raw data'!I82) -> -292.5 | B77: =IF('DF raw data'!J82="","",'DF raw data'!J82) -> -1.04863e-05 | C77: =IF('DF raw data'!K82="","",'DF raw data'!K82) -> 0.000132686 | D77: =IF('DF raw data'!L82="","",'DF raw data'!L82) -> -1.35469e-05 | F77: -1.053453698e-05 | G77: 0.0001332963556 | H77: -1.360921574e-05 | J77: -9.409868684e-05 | K77: -0.0003935214239 | L77: 0.001029679337 | M77: 0.004269438992 | N77: 3.01815162e-06
A78: =IF('DF raw data'!I83="","",'DF raw data'!I83) -> -292 | B78: =IF('DF raw data'!J83="","",'DF raw data'!J83) -> 1.37293e-06 | C78: =IF('DF raw data'!K83="","",'DF raw data'!K83) -> 0.000130879 | D78: =IF('DF raw data'!L83="","",'DF raw data'!L83) -> -1.42797e-05 | F78: 1.379245478e-06 | G78: 0.0001314810434 | H78: -1.434538662e-05 | J78: -9.34090641e-05 | K78: -0.0004402259559 | L78: 0.001095419858 | M78: 0.004817148921 | N78: 3.622486579e-06
A79: =IF('DF raw data'!I84="","",'DF raw data'!I84) -> -291.5 | B79: =IF('DF raw data'!J84="","",'DF raw data'!J84) -> -6.06016e-06 | C79: =IF('DF raw data'!K84="","",'DF raw data'!K84) -> 0.000125468 | D79: =IF('DF raw data'!L84="","",'DF raw data'!L84) -> -1.84446e-05 | F79: -6.088036736e-06 | G79: 0.0001260451528 | H79: -1.852944516e-05 | J79: -9.645308247e-05 | K79: -0.0004884524972 | L79: 0.001158442435 | M79: 0.005396370138 | N79: 4.298132615e-06
A80: =IF('DF raw data'!I85="","",'DF raw data'!I85) -> -291 | B80: =IF('DF raw data'!J85="","",'DF raw data'!J85) -> -1.20228e-05 | C80: =IF('DF raw data'!K85="","",'DF raw data'!K85) -> 0.000120116 | D80: =IF('DF raw data'!L85="","",'DF raw data'!L85) -> -1.6917e-05 | F80: -1.207810488e-05 | G80: 0.0001206685336 | H80: -1.69948182e-05 | J80: -0.0001024921349 | K80: -0.0005396985646 | L80: 0.001218776702 | M80: 0.006005758489 | N80: 5.046093258e-06
A81: =IF('DF raw data'!I86="","",'DF raw data'!I86) -> -290.5 | B81: =IF('DF raw data'!J86="","",'DF raw data'!J86) -> -1.60587e-05 | C81: =IF('DF raw data'!K86="","",'DF raw data'!K86) -> 0.00011305 | D81: =IF('DF raw data'!L86="","",'DF raw data'!L86) -> -2.0714e-05 | F81: -1.613257002e-05 | G81: 0.00011357003 | H81: -2.08092844e-05 | J81: -0.0001105584199 | K81: -0.0005949777746 | L81: 0.001275561717 | M81: 0.006643539347 | N81: 5.865733687e-06
A82: =IF('DF raw data'!I87="","",'DF raw data'!I87) -> -290 | B82: =IF('DF raw data'!J87="","",'DF raw data'!J87) -> -2.11252e-05 | C82: =IF('DF raw data'!K87="","",'DF raw data'!K87) -> 0.00011733 | D82: =IF('DF raw data'!L87="","",'DF raw data'!L87) -> -1.69151e-05 | F82: -2.122237592e-05 | G82: 0.000117869718 | H82: -1.699290946e-05 | J82: -0.0001211696079 | K82: -0.0006555625785 | L82: 0.001334496576 | M82: 0.007310787635 | N82: 6.763515279e-06
A83: =IF('DF raw data'!I88="","",'DF raw data'!I88) -> -289.5 | B83: =IF('DF raw data'!J88="","",'DF raw data'!J88) -> -1.831e-05 | C83: =IF('DF raw data'!K88="","",'DF raw data'!K88) -> 0.000122676 | D83: =IF('DF raw data'!L88="","",'DF raw data'!L88) -> -8.94877e-06 | F83: -1.8394226e-05 | G83: 0.0001232403096 | H83: -8.989934342e-06 | J83: -0.0001303667209 | K83: -0.000720745939 | L83: 0.00139611673 | M83: 0.008008846 | N83: 7.746583982e-06
A84: =IF('DF raw data'!I89="","",'DF raw data'!I89) -> -289 | B84: =IF('DF raw data'!J89="","",'DF raw data'!J89) -> -4.32865e-06 | C84: =IF('DF raw data'!K89="","",'DF raw data'!K89) -> 0.00012491 | D84: =IF('DF raw data'!L89="","",'DF raw data'!L89) -> -1.95085e-05 | F84: -4.34856179e-06 | G84: 0.000125484586 | H84: -1.95982391e-05 | J84: -0.0001325410018 | K84: -0.0007870164399 | L84: 0.001458859023 | M84: 0.008738275512 | N84: 8.819502366e-06
A85: =IF('DF raw data'!I90="","",'DF raw data'!I90) -> -288.5 | B85: =IF('DF raw data'!J90="","",'DF raw data'!J90) -> -1.57994e-05 | C85: =IF('DF raw data'!K90="","",'DF raw data'!K90) -> 0.000122811 | D85: =IF('DF raw data'!L90="","",'DF raw data'!L90) -> -2.52577e-05 | F85: -1.587207724e-05 | G85: 0.0001233759306 | H85: -2.537388542e-05 | J85: -0.0001404770404 | K85: -0.0008572549601 | L85: 0.001520546989 | M85: 0.009498549006 | N85: 9.985400838e-06
A86: =IF('DF raw data'!I91="","",'DF raw data'!I91) -> -288 | B86: =IF('DF raw data'!J91="","",'DF raw data'!J91) -> -5.86993e-06 | C86: =IF('DF raw data'!K91="","",'DF raw data'!K91) -> 0.000113664 | D86: =IF('DF raw data'!L91="","",'DF raw data'!L91) -> -1.54601e-05 | F86: -5.896931678e-06 | G86: 0.0001141868544 | H86: -1.553121646e-05 | J86: -0.0001434255062 | K86: -0.0009289677132 | L86: 0.001577640416 | M86: 0.01028736921 | N86: 1.124016092e-05
A87: =IF('DF raw data'!I92="","",'DF raw data'!I92) -> -287.5 | B87: =IF('DF raw data'!J92="","",'DF raw data'!J92) -> -1.07405e-05 | C87: =IF('DF raw data'!K92="","",'DF raw data'!K92) -> 0.000111146 | D87: =IF('DF raw data'!L92="","",'DF raw data'!L92) -> -1.69217e-05 | F87: -1.07899063e-05 | G87: 0.0001116572716 | H87: -1.699953982e-05 | J87: -0.0001488204594 | K87: -0.001003377943 | L87: 0.001633469052 | M87: 0.01110410374 | N87: 1.258534525e-05
A88: =IF('DF raw data'!I93="","",'DF raw data'!I93) -> -287 | B88: =IF('DF raw data'!J93="","",'DF raw data'!J93) -> -1.38139e-06 | C88: =IF('DF raw data'!K93="","",'DF raw data'!K93) -> 0.000106903 | D88: =IF('DF raw data'!L93="","",'DF raw data'!L93) -> -1.74884e-05 | F88: -1.387744394e-06 | G88: 0.0001073947538 | H88: -1.756884664e-05 | J88: -0.0001495143316 | K88: -0.001078135109 | L88: 0.001687166429 | M88: 0.01194768695 | N88: 1.40197878e-05
A89: =IF('DF raw data'!I94="","",'DF raw data'!I94) -> -286.5 | B89: =IF('DF raw data'!J94="","",'DF raw data'!J94) -> -3.30473e-06 | C89: =IF('DF raw data'!K94="","",'DF raw data'!K94) -> 0.000105439 | D89: =IF('DF raw data'!L94="","",'DF raw data'!L94) -> -1.6935e-05 | F89: -3.319931758e-06 | G89: 0.0001059240194 | H89: -1.7012901e-05 | J89: -0.0001511742975 | K89: -0.001153722257 | L89: 0.001740128438 | M89: 0.01281775117 | N89: 1.554523812e-05
A90: =IF('DF raw data'!I95="","",'DF raw data'!I95) -> -286 | B90: =IF('DF raw data'!J95="","",'DF raw data'!J95) -> -1.32381e-05 | C90: =IF('DF raw data'!K95="","",'DF raw data'!K95) -> 0.000116519 | D90: =IF('DF raw data'!L95="","",'DF raw data'!L95) -> -2.06685e-05 | F90: -1.329899526e-05 | G90: 0.0001170549874 | H90: -2.07635751e-05 | J90: -0.0001578237951 | K90: -0.001232634155 | L90: 0.001798655932 | M90: 0.01371707914 | N90: 1.717527388e-05
A91: =IF('DF raw data'!I96="","",'DF raw data'!I96) -> -285.5 | B91: =IF('DF raw data'!J96="","",'DF raw data'!J96) -> -9.51832e-06 | C91: =IF('DF raw data'!K96="","",'DF raw data'!K96) -> 0.0001121 | D91: =IF('DF raw data'!L96="","",'DF raw data'!L96) -> -2.38015e-05 | F91: -9.562104272e-06 | G91: 0.00011261566 | H91: -2.39109869e-05 | J91: -0.0001626048472 | K91: -0.001313936579 | L91: 0.001854963762 | M91: 0.01464456102 | N91: 1.890893933e-05
A92: =IF('DF raw data'!I97="","",'DF raw data'!I97) -> -285 | B92: =IF('DF raw data'!J97="","",'DF raw data'!J97) -> -3.07088e-08 | C92: =IF('DF raw data'!K97="","",'DF raw data'!K97) -> 0.000109493 | D92: =IF('DF raw data'!L97="","",'DF raw data'!L97) -> -2.43691e-05 | F92: -3.085006048e-08 | G92: 0.0001099966678 | H92: -2.448119786e-05 | J92: -0.0001626202723 | K92: -0.001395246715 | L92: 0.001909962096 | M92: 0.01559954207 | N92: 2.074613961e-05
A93: =IF('DF raw data'!I98="","",'DF raw data'!I98) -> -284.5 | B93: =IF('DF raw data'!J98="","",'DF raw data'!J98) -> -9.20586e-06 | C93: =IF('DF raw data'!K98="","",'DF raw data'!K98) -> 0.000109719 | D93: =IF('DF raw data'!L98="","",'DF raw data'!L98) -> -1.11991e-05 | F93: -9.248206956e-06 | G93: 0.0001102237074 | H93: -1.125061586e-05 | J93: -0.0001672443757 | K93: -0.001478868903 | L93: 0.00196507395 | M93: 0.01658207904 | N93: 2.269088276e-05
A94: =IF('DF raw data'!I99="","",'DF raw data'!I99) -> -284 | B94: =IF('DF raw data'!J99="","",'DF raw data'!J99) -> -1.36278e-05 | C94: =IF('DF raw data'!K99="","",'DF raw data'!K99) -> 0.000108693 | D94: =IF('DF raw data'!L99="","",'DF raw data'!L99) -> -1.28658e-05 | F94: -1.369048788e-05 | G94: 0.0001091929878 | H94: -1.292498268e-05 | J94: -0.0001740896197 | K94: -0.001565913712 | L94: 0.002019670444 | M94: 0.01759191427 | N94: 2.474557071e-05
A95: =IF('DF raw data'!I100="","",'DF raw data'!I100) -> -283.5 | B95: =IF('DF raw data'!J100="","",'DF raw data'!J100) -> -3.62593e-06 | C95: =IF('DF raw data'!K100="","",'DF raw data'!K100) -> 0.000114089 | D95: =IF('DF raw data'!L100="","",'DF raw data'!L100) -> -1.60616e-05 | F95: -3.642609278e-06 | G95: 0.0001146138094 | H95: -1.613548336e-05 | J95: -0.0001759109243 | K95: -0.001653869175 | L95: 0.002076977348 | M95: 0.01863040294 | N95: 2.691796049e-05
A96: =IF('DF raw data'!I101="","",'DF raw data'!I101) -> -283 | B96: =IF('DF raw data'!J101="","",'DF raw data'!J101) -> -1.02928e-05 | C96: =IF('DF raw data'!K101="","",'DF raw data'!K101) -> 0.00011561 | D96: =IF('DF raw data'!L101="","",'DF raw data'!L101) -> -1.5565e-05 | F96: -1.034014688e-05 | G96: 0.000116141806 | H96: -1.5636599e-05 | J96: -0.0001810809978 | K96: -0.001744409673 | L96: 0.002135048251 | M96: 0.01969792706 | N96: 2.921357117e-05
A97: =IF('DF raw data'!I102="","",'DF raw data'!I102) -> -282.5 | B97: =IF('DF raw data'!J102="","",'DF raw data'!J102) -> -1.2339e-05 | C97: =IF('DF raw data'!K102="","",'DF raw data'!K102) -> 0.000113445 | D97: =IF('DF raw data'!L102="","",'DF raw data'!L102) -> -2.33679e-05 | F97: -1.23957594e-05 | G97: 0.000113966847 | H97: -2.347539234e-05 | J97: -0.0001872788775 | K97: -0.001838049112 | L97: 0.002192031675 | M97: 0.0207939429 | N97: 3.163360929e-05
A98: =IF('DF raw data'!I103="","",'DF raw data'!I103) -> -282 | B98: =IF('DF raw data'!J103="","",'DF raw data'!J103) -> -7.41225e-06 | C98: =IF('DF raw data'!K103="","",'DF raw data'!K103) -> 0.000108984 | D98: =IF('DF raw data'!L103="","",'DF raw data'!L103) -> -9.39154e-06 | F98: -7.44634635e-06 | G98: 0.0001094853264 | H98: -9.434741084e-06 | J98: -0.0001910020506 | K98: -0.001933550137 | L98: 0.002246774338 | M98: 0.02191733007 | N98: 3.417584765e-05
A99: =IF('DF raw data'!I104="","",'DF raw data'!I104) -> -281.5 | B99: =IF('DF raw data'!J104="","",'DF raw data'!J104) -> -6.70681e-06 | C99: =IF('DF raw data'!K104="","",'DF raw data'!K104) -> 0.000120225 | D99: =IF('DF raw data'!L104="","",'DF raw data'!L104) -> -9.72362e-06 | F99: -6.737661326e-06 | G99: 0.000120778035 | H99: -9.768348652e-06 | J99: -0.0001943708813 | K99: -0.002030735578 | L99: 0.002307163355 | M99: 0.02307091175 | N99: 3.685623904e-05
A100: =IF('DF raw data'!I105="","",'DF raw data'!I105) -> -281 | B100: =IF('DF raw data'!J105="","",'DF raw data'!J105) -> -6.51052e-06 | C100: =IF('DF raw data'!K105="","",'DF raw data'!K105) -> 0.000115127 | D100: =IF('DF raw data'!L105="","",'DF raw data'!L105) -> -1.60857e-05 | F100: -6.540468392e-06 | G100: 0.0001156565842 | H100: -1.615969422e-05 | J100: -0.0001976411155 | K100: -0.002129556136 | L100: 0.002364991647 | M100: 0.02425340757 | N100: 3.967236279e-05
A101: =IF('DF raw data'!I106="","",'DF raw data'!I106) -> -280.5 | B101: =IF('DF raw data'!J106="","",'DF raw data'!J106) -> -2.62617e-05 | C101: =IF('DF raw data'!K106="","",'DF raw data'!K106) -> 0.000105394 | D101: =IF('DF raw data'!L106="","",'DF raw data'!L106) -> -4.10128e-06 | F101: -2.638250382e-05 | G101: 0.0001058788124 | H101: -4.120145888e-06 | J101: -0.0002108323674 | K101: -0.00223497232 | L101: 0.002417931054 | M101: 0.0254623731 | N101: 4.261778323e-05
A102: =IF('DF raw data'!I107="","",'DF raw data'!I107) -> -280 | B102: =IF('DF raw data'!J107="","",'DF raw data'!J107) -> -2.28641e-05 | C102: =IF('DF raw data'!K107="","",'DF raw data'!K107) -> 0.000117599 | D102: =IF('DF raw data'!L107="","",'DF raw data'!L107) -> -4.47696e-06 | F102: -2.296927486e-05 | G102: 0.0001181399554 | H102: -4.497554016e-06 | J102: -0.0002223170048 | K102: -0.002346130822 | L102: 0.002477001031 | M102: 0.02670087362 | N102: 4.571026271e-05
A103: =IF('DF raw data'!I108="","",'DF raw data'!I108) -> -279.5 | B103: =IF('DF raw data'!J108="","",'DF raw data'!J108) -> -2.29834e-05 | C103: =IF('DF raw data'!K108="","",'DF raw data'!K108) -> 0.000121685 | D103: =IF('DF raw data'!L108="","",'DF raw data'!L108) -> -1.81194e-05 | F103: -2.308912364e-05 | G103: 0.000122244751 | H103: -1.820274924e-05 | J103: -0.0002338615666 | K103: -0.002463061605 | L103: 0.002538123407 | M103: 0.02796993532 | N103: 4.895864354e-05
A104: =IF('DF raw data'!I109="","",'DF raw data'!I109) -> -279 | B104: =IF('DF raw data'!J109="","",'DF raw data'!J109) -> -6.2593e-06 | C104: =IF('DF raw data'!K109="","",'DF raw data'!K109) -> 0.000125217 | D104: =IF('DF raw data'!L109="","",'DF raw data'!L109) -> -8.10125e-06 | F104: -6.28809278e-06 | G104: 0.0001257929982 | H104: -8.13851575e-06 | J104: -0.000237005613 | K104: -0.002581564412 | L104: 0.002601019906 | M104: 0.02927044527 | N104: 5.236938164e-05
A105: =IF('DF raw data'!I110="","",'DF raw data'!I110) -> -278.5 | B105: =IF('DF raw data'!J110="","",'DF raw data'!J110) -> -3.30994e-06 | C105: =IF('DF raw data'!K110="","",'DF raw data'!K110) -> 0.00011951 | D105: =IF('DF raw data'!L110="","",'DF raw data'!L110) -> -8.90597e-06 | F105: -3.325165724e-06 | G105: 0.000120059746 | H105: -8.946937462e-06 | J105: -0.0002386681959 | K105: -0.00270089851 | L105: 0.002661049779 | M105: 0.03060097016 | N105: 5.593845586e-05
A106: =IF('DF raw data'!I111="","",'DF raw data'!I111) -> -278 | B106: =IF('DF raw data'!J111="","",'DF raw data'!J111) -> -1.61893e-05 | C106: =IF('DF raw data'!K111="","",'DF raw data'!K111) -> 0.000120702 | D106: =IF('DF raw data'!L111="","",'DF raw data'!L111) -> -1.70359e-05 | F106: -1.626377078e-05 | G106: 0.0001212572292 | H106: -1.711426514e-05 | J106: -0.0002468000813 | K106: -0.00282429855 | L106: 0.002721678394 | M106: 0.03196180936 | N106: 5.967267764e-05
A107: =IF('DF raw data'!I112="","",'DF raw data'!I112) -> -277.5 | B107: =IF('DF raw data'!J112="","",'DF raw data'!J112) -> -1.64483e-05 | C107: =IF('DF raw data'!K112="","",'DF raw data'!K112) -> 0.000117036 | D107: =IF('DF raw data'!L112="","",'DF raw data'!L112) -> -1.31015e-05 | F107: -1.652396218e-05 | G107: 0.0001175743656 | H107: -1.31617669e-05 | J107: -0.0002550620624 | K107: -0.002951829582 | L107: 0.002780465576 | M107: 0.03335204215 | N107: 6.357070038e-05
A108: =IF('DF raw data'!I113="","",'DF raw data'!I113) -> -277 | B108: =IF('DF raw data'!J113="","",'DF raw data'!J113) -> -1.517e-05 | C108: =IF('DF raw data'!K113="","",'DF raw data'!K113) -> 0.000119964 | D108: =IF('DF raw data'!L113="","",'DF raw data'!L113) -> -7.32137e-06 | F108: -1.5239782e-05 | G108: 0.0001205158344 | H108: -7.355048302e-06 | J108: -0.0002626819534 | K108: -0.003083170558 | L108: 0.002840723494 | M108: 0.03477240389 | N108: 6.764005626e-05
A109: =IF('DF raw data'!I114="","",'DF raw data'!I114) -> -276.5 | B109: =IF('DF raw data'!J114="","",'DF raw data'!J114) -> -5.80734e-06 | C109: =IF('DF raw data'!K114="","",'DF raw data'!K114) -> 0.000119971 | D109: =IF('DF raw data'!L114="","",'DF raw data'!L114) -> -1.29263e-05 | F109: -5.834053764e-06 | G109: 0.0001205228666 | H109: -1.298576098e-05 | J109: -0.0002655989803 | K109: -0.003215970048 | L109: 0.002900984927 | M109: 0.03622289636 | N109: 7.188318445e-05
A110: =IF('DF raw data'!I115="","",'DF raw data'!I115) -> -276 | B110: =IF('DF raw data'!J115="","",'DF raw data'!J115) -> -2.11919e-05 | C110: =IF('DF raw data'!K115="","",'DF raw data'!K115) -> 0.000111881 | D110: =IF('DF raw data'!L115="","",'DF raw data'!L115) -> -1.30687e-05 | F110: -2.128938274e-05 | G110: 0.0001123956526 | H110: -1.312881602e-05 | J110: -0.0002762436716 | K110: -0.003354091884 | L110: 0.002957182753 | M110: 0.03770148773 | N110: 7.629380465e-05
A111: =IF('DF raw data'!I116="","",'DF raw data'!I116) -> -275.5 | B111: =IF('DF raw data'!J116="","",'DF raw data'!J116) -> -1.83067e-05 | C111: =IF('DF raw data'!K116="","",'DF raw data'!K116) -> 0.000116144 | D111: =IF('DF raw data'!L116="","",'DF raw data'!L116) -> -1.40208e-05 | F111: -1.839091082e-05 | G111: 0.0001166782624 | H111: -1.408529568e-05 | J111: -0.000285439127 | K111: -0.003496811448 | L111: 0.003015521884 | M111: 0.03920924868 | N111: 8.088122851e-05
A112: =IF('DF raw data'!I117="","",'DF raw data'!I117) -> -275 | B112: =IF('DF raw data'!J117="","",'DF raw data'!J117) -> -2.10655e-05 | C112: =IF('DF raw data'!K117="","",'DF raw data'!K117) -> 0.000123131 | D112: =IF('DF raw data'!L117="","",'DF raw data'!L117) -> -1.02189e-05 | F112: -2.11624013e-05 | G112: 0.0001236974026 | H112: -1.026590694e-05 | J112: -0.0002960203277 | K112: -0.003644821612 | L112: 0.003077370586 | M112: 0.04074793397 | N112: 8.566014739e-05
A113: =IF('DF raw data'!I118="","",'DF raw data'!I118) -> -274.5 | B113: =IF('DF raw data'!J118="","",'DF raw data'!J118) -> -1.36902e-05 | C113: =IF('DF raw data'!K118="","",'DF raw data'!K118) -> 0.000119724 | D113: =IF('DF raw data'!L118="","",'DF raw data'!L118) -> -1.56425e-05 | F113: -1.375317492e-05 | G113: 0.0001202747304 | H113: -1.57144555e-05 | J113: -0.0003028969152 | K113: -0.003796270069 | L113: 0.003137507951 | M113: 0.04231668794 | N113: 9.062799873e-05
A114: =IF('DF raw data'!I119="","",'DF raw data'!I119) -> -274 | B114: =IF('DF raw data'!J119="","",'DF raw data'!J119) -> -2.00998e-05 | C114: =IF('DF raw data'!K119="","",'DF raw data'!K119) -> 0.000116395 | D114: =IF('DF raw data'!L119="","",'DF raw data'!L119) -> -1.66365e-05 | F114: -2.019225908e-05 | G114: 0.000116930417 | H114: -1.67130279e-05 | J114: -0.0003129930447 | K114: -0.003952766591 | L114: 0.003195973159 | M114: 0.04391467452 | N114: 9.578410327e-05
A115: =IF('DF raw data'!I120="","",'DF raw data'!I120) -> -273.5 | B115: =IF('DF raw data'!J120="","",'DF raw data'!J120) -> -1.31142e-05 | C115: =IF('DF raw data'!K120="","",'DF raw data'!K120) -> 0.000110426 | D115: =IF('DF raw data'!L120="","",'DF raw data'!L120) -> -1.40907e-05 | F115: -1.317452532e-05 | G115: 0.0001109339596 | H115: -1.415551722e-05 | J115: -0.0003195803074 | K115: -0.004112556745 | L115: 0.003251440139 | M115: 0.04554039459 | N115: 0.0001011211005
A116: =IF('DF raw data'!I121="","",'DF raw data'!I121) -> -273 | B116: =IF('DF raw data'!J121="","",'DF raw data'!J121) -> -1.69587e-05 | C116: =IF('DF raw data'!K121="","",'DF raw data'!K121) -> 0.00011125 | D116: =IF('DF raw data'!L121="","",'DF raw data'!L121) -> -1.67853e-05 | F116: -1.703671002e-05 | G116: 0.00011176175 | H116: -1.686251238e-05 | J116: -0.0003280986624 | K116: -0.004276606076 | L116: 0.003307321014 | M116: 0.0471940551 | N116: 0.0001066441111
A117: =IF('DF raw data'!I122="","",'DF raw data'!I122) -> -272.5 | B117: =IF('DF raw data'!J122="","",'DF raw data'!J122) -> -1.74102e-05 | C117: =IF('DF raw data'!K122="","",'DF raw data'!K122) -> 0.00011061 | D117: =IF('DF raw data'!L122="","",'DF raw data'!L122) -> -1.22554e-05 | F117: -1.749028692e-05 | G117: 0.000111118806 | H117: -1.231177484e-05 | J117: -0.0003368438058 | K117: -0.004445027979 | L117: 0.003362880417 | M117: 0.04887549531 | N117: 0.0001123553253
A118: =IF('DF raw data'!I123="","",'DF raw data'!I123) -> -272 | B118: =IF('DF raw data'!J123="","",'DF raw data'!J123) -> -1.58831e-05 | C118: =IF('DF raw data'!K123="","",'DF raw data'!K123) -> 0.000110164 | D118: =IF('DF raw data'!L123="","",'DF raw data'!L123) -> 5.17235e-06 | F118: -1.595616226e-05 | G118: 0.0001106707544 | H118: 5.19614281e-06 | J118: -0.000344821887 | K118: -0.004617438923 | L118: 0.003418215794 | M118: 0.05058460321 | N118: 0.000118256876
A119: =IF('DF raw data'!I124="","",'DF raw data'!I124) -> -271.5 | B119: =IF('DF raw data'!J124="","",'DF raw data'!J124) -> -1.78658e-05 | C119: =IF('DF raw data'!K124="","",'DF raw data'!K124) -> 0.000103705 | D119: =IF('DF raw data'!L124="","",'DF raw data'!L124) -> -1.8247e-06 | F119: -1.794798268e-05 | G119: 0.000104182043 | H119: -1.83309362e-06 | J119: -0.0003537958783 | K119: -0.004794336862 | L119: 0.003470306816 | M119: 0.05231975661 | N119: 0.0001243409764
A120: =IF('DF raw data'!I125="","",'DF raw data'!I125) -> -271 | B120: =IF('DF raw data'!J125="","",'DF raw data'!J125) -> -2.2732e-05 | C120: =IF('DF raw data'!K125="","",'DF raw data'!K125) -> 0.00011104 | D120: =IF('DF raw data'!L125="","",'DF raw data'!L125) -> -1.03456e-05 | F120: -2.28365672e-05 | G120: 0.000111550784 | H120: -1.039318976e-05 | J120: -0.0003652141619 | K120: -0.004976943943 | L120: 0.003526082208 | M120: 0.05408279772 | N120: 0.000130624295
A121: =IF('DF raw data'!I126="","",'DF raw data'!I126) -> -270.5 | B121: =IF('DF raw data'!J126="","",'DF raw data'!J126) -> -1.70307e-05 | C121: =IF('DF raw data'!K126="","",'DF raw data'!K126) -> 0.000115082 | D121: =IF('DF raw data'!L126="","",'DF raw data'!L126) -> -4.28193e-06 | F121: -1.710904122e-05 | G121: 0.0001156113772 | H121: -4.301626878e-06 | J121: -0.0003737686825 | K121: -0.005163828284 | L121: 0.003583887896 | M121: 0.05587474167 | N121: 0.0001371162727
A122: =IF('DF raw data'!I127="","",'DF raw data'!I127) -> -270 | B122: =IF('DF raw data'!J127="","",'DF raw data'!J127) -> -7.79387e-06 | C122: =IF('DF raw data'!K127="","",'DF raw data'!K127) -> 0.000112748 | D122: =IF('DF raw data'!L127="","",'DF raw data'!L127) -> -1.39775e-05 | F122: -7.829721802e-06 | G122: 0.0001132666408 | H122: -1.40417965e-05 | J122: -0.0003776835434 | K122: -0.005352670056 | L122: 0.003640521217 | M122: 0.05769500227 | N122: 0.0001438142925
A123: =IF('DF raw data'!I128="","",'DF raw data'!I128) -> -269.5 | B123: =IF('DF raw data'!J128="","",'DF raw data'!J128) -> -2.20265e-05 | C123: =IF('DF raw data'!K128="","",'DF raw data'!K128) -> 0.000121188 | D123: =IF('DF raw data'!L128="","",'DF raw data'!L128) -> -1.08439e-05 | F123: -2.21278219e-05 | G123: 0.0001217454648 | H123: -1.089378194e-05 | J123: -0.0003887474544 | K123: -0.005547043783 | L123: 0.003701393949 | M123: 0.05954569925 | N123: 0.0001507400134
A124: =IF('DF raw data'!I129="","",'DF raw data'!I129) -> -269 | B124: =IF('DF raw data'!J129="","",'DF raw data'!J129) -> -1.26035e-05 | C124: =IF('DF raw data'!K129="","",'DF raw data'!K129) -> 0.000125636 | D124: =IF('DF raw data'!L129="","",'DF raw data'!L129) -> -1.08568e-05 | F124: -1.26614761e-05 | G124: 0.0001262139256 | H124: -1.090674128e-05 | J124: -0.0003950781924 | K124: -0.005744582879 | L124: 0.003764500912 | M124: 0.0614279497 | N124: 0.0001579037903
A125: =IF('DF raw data'!I130="","",'DF raw data'!I130) -> -268.5 | B125: =IF('DF raw data'!J130="","",'DF raw data'!J130) -> -1.79932e-05 | C125: =IF('DF raw data'!K130="","",'DF raw data'!K130) -> 0.00011967 | D125: =IF('DF raw data'!L130="","",'DF raw data'!L130) -> -3.05639e-06 | F125: -1.807596872e-05 | G125: 0.000120220482 | H125: -3.070449394e-06 | J125: -0.0004041161768 | K125: -0.005946640968 | L125: 0.003824611153 | M125: 0.06334025528 | N125: 0.0001652992705
A126: =IF('DF raw data'!I131="","",'DF raw data'!I131) -> -268 | B126: =IF('DF raw data'!J131="","",'DF raw data'!J131) -> -1.33745e-05 | C126: =IF('DF raw data'!K131="","",'DF raw data'!K131) -> 0.0001204 | D126: =IF('DF raw data'!L131="","",'DF raw data'!L131) -> -7.99723e-06 | F126: -1.34360227e-05 | G126: 0.00012095384 | H126: -8.034017258e-06 | J126: -0.0004108341881 | K126: -0.006152058062 | L126: 0.003885088073 | M126: 0.06528279932 | N126: 0.0001729306176
A127: =IF('DF raw data'!I132="","",'DF raw data'!I132) -> -267.5 | B127: =IF('DF raw data'!J132="","",'DF raw data'!J132) -> -1.8953e-05 | C127: =IF('DF raw data'!K132="","",'DF raw data'!K132) -> 0.000118047 | D127: =IF('DF raw data'!L132="","",'DF raw data'!L132) -> -5.84887e-06 | F127: -1.90401838e-05 | G127: 0.0001185900162 | H127: -5.875774802e-06 | J127: -0.00042035428 | K127: -0.006362235202 | L127: 0.003944383081 | M127: 0.06725499086 | N127: 0.0001807980454
A128: =IF('DF raw data'!I133="","",'DF raw data'!I133) -> -267 | B128: =IF('DF raw data'!J133="","",'DF raw data'!J133) -> -2.20935e-05 | C128: =IF('DF raw data'!K133="","",'DF raw data'!K133) -> 0.000118092 | D128: =IF('DF raw data'!L133="","",'DF raw data'!L133) -> -6.51873e-06 | F128: =(1-$G$1*($B$49-$G$2))*B128 -> -2.21951301e-05 | G128: 0.0001186352232 | H128: -6.548716158e-06 | J128: =F128*$G$3+J127 -> -0.0004314518451 | K128: =J128*$G$3+K127 -> -0.006577961124 | L128: =G128*$G$3+L127 -> 0.004003700693 | M128: =L128*$G$3+M127 -> 0.06925684121 | N128: =(J128^2+L128^2)*$G$3+N127 -> 0.0001889059303
A129: =IF('DF raw data'!I134="","",'DF raw data'!I134) -> -266.5 | B129: =IF('DF raw data'!J134="","",'DF raw data'!J134) -> -2.85031e-05 | C129: =IF('DF raw data'!K134="","",'DF raw data'!K134) -> 0.00012117 | D129: =IF('DF raw data'!L134="","",'DF raw data'!L134) -> -7.49169e-06 | F129: -2.863421426e-05 | G129: 0.000121727382 | H129: -7.526151774e-06 | J129: -0.0004457689522 | K129: -0.0068008456 | L129: 0.004064564384 | M129: 0.0712891234 | N129: 0.0001972656271
A130: =IF('DF raw data'!I135="","",'DF raw data'!I135) -> -266 | B130: =IF('DF raw data'!J135="","",'DF raw data'!J135) -> -2.64542e-05 | C130: =IF('DF raw data'!K135="","",'DF raw data'!K135) -> 0.000122978 | D130: =IF('DF raw data'!L135="","",'DF raw data'!L135) -> -3.59378e-06 | F130: -2.657588932e-05 | G130: 0.0001235436988 | H130: -3.610311388e-06 | J130: -0.0004590568969 | K130: -0.007030374049 | L130: 0.004126336233 | M130: 0.07335229151 | N130: 0.0002058843191
A131: =IF('DF raw data'!I136="","",'DF raw data'!I136) -> -265.5 | B131: =IF('DF raw data'!J136="","",'DF raw data'!J136) -> -2.38831e-05 | C131: =IF('DF raw data'!K136="","",'DF raw data'!K136) -> 0.000118276 | D131: =IF('DF raw data'!L136="","",'DF raw data'!L136) -> -1.45935e-05 | F131: -2.399296226e-05 | G131: 0.0001188200696 | H131: -1.46606301e-05 | J131: -0.000471053378 | K131: -0.007265900738 | L131: 0.004185746268 | M131: 0.07544516465 | N131: 0.0002147555006
A132: =IF('DF raw data'!I137="","",'DF raw data'!I137) -> -265 | B132: =IF('DF raw data'!J137="","",'DF raw data'!J137) -> -3.15757e-05 | C132: =IF('DF raw data'!K137="","",'DF raw data'!K137) -> 0.000122092 | D132: =IF('DF raw data'!L137="","",'DF raw data'!L137) -> -1.39944e-05 | F132: -3.172094822e-05 | G132: 0.0001226536232 | H132: -1.405877424e-05 | J132: -0.0004869138521 | K132: -0.007509357664 | L132: 0.00424707308 | M132: 0.07756870119 | N132: 0.0002238928581
A133: =IF('DF raw data'!I138="","",'DF raw data'!I138) -> -264.5 | B133: =IF('DF raw data'!J138="","",'DF raw data'!J138) -> -2.62603e-05 | C133: =IF('DF raw data'!K138="","",'DF raw data'!K138) -> 0.000124026 | D133: =IF('DF raw data'!L138="","",'DF raw data'!L138) -> -6.2547e-06 | F133: -2.638109738e-05 | G133: 0.0001245965196 | H133: -6.28347162e-06 | J133: -0.0005001044008 | K133: -0.007759409864 | L133: 0.004309371339 | M133: 0.07972338686 | N133: 0.0002333032509
A134: =IF('DF raw data'!I139="","",'DF raw data'!I139) -> -264 | B134: =IF('DF raw data'!J139="","",'DF raw data'!J139) -> -1.22797e-05 | C134: =IF('DF raw data'!K139="","",'DF raw data'!K139) -> 0.000121706 | D134: =IF('DF raw data'!L139="","",'DF raw data'!L139) -> -1.61596e-05 | F134: -1.233618662e-05 | G134: 0.0001222658476 | H134: -1.623393416e-05 | J134: -0.0005062724941 | K134: -0.008012546111 | L134: 0.004370504263 | M134: 0.08190863899 | N134: 0.0002429820606
A135: =IF('DF raw data'!I140="","",'DF raw data'!I140) -> -263.5 | B135: =IF('DF raw data'!J140="","",'DF raw data'!J140) -> -1.52985e-05 | C135: =IF('DF raw data'!K140="","",'DF raw data'!K140) -> 0.00011431 | D135: =IF('DF raw data'!L140="","",'DF raw data'!L140) -> -6.88165e-06 | F135: -1.53688731e-05 | G135: 0.000114835826 | H135: -6.91330559e-06 | J135: -0.0005139569306 | K135: -0.008269524576 | L135: 0.004427922176 | M135: 0.08412260008 | N135: 0.0002529173839
A136: =IF('DF raw data'!I141="","",'DF raw data'!I141) -> -263 | B136: =IF('DF raw data'!J141="","",'DF raw data'!J141) -> -1.83759e-05 | C136: =IF('DF raw data'!K141="","",'DF raw data'!K141) -> 0.000121887 | D136: =IF('DF raw data'!L141="","",'DF raw data'!L141) -> -5.98165e-06 | F136: -1.846042914e-05 | G136: 0.0001224476802 | H136: -6.00916559e-06 | J136: -0.0005231871452 | K136: -0.008531118149 | L136: 0.004489146016 | M136: 0.08636717308 | N136: 0.0002631304623
A137: =IF('DF raw data'!I142="","",'DF raw data'!I142) -> -262.5 | B137: =IF('DF raw data'!J142="","",'DF raw data'!J142) -> -1.49133e-05 | C137: =IF('DF raw data'!K142="","",'DF raw data'!K142) -> 0.000121738 | D137: =IF('DF raw data'!L142="","",'DF raw data'!L142) -> -7.87392e-06 | F137: -1.498190118e-05 | G137: 0.0001222979948 | H137: -7.910140032e-06 | J137: -0.0005306780958 | K137: -0.008796457197 | L137: 0.004550295014 | M137: 0.08864232059 | N137: 0.0002736238642
A138: =IF('DF raw data'!I143="","",'DF raw data'!I143) -> -262 | B138: =IF('DF raw data'!J143="","",'DF raw data'!J143) -> -2.0164e-05 | C138: =IF('DF raw data'!K143="","",'DF raw data'!K143) -> 0.000117545 | D138: =IF('DF raw data'!L143="","",'DF raw data'!L143) -> -1.61682e-05 | F138: -2.02567544e-05 | G138: 0.000118085707 | H138: -1.624257372e-05 | J138: -0.000540806473 | K138: -0.009066860433 | L138: 0.004609337867 | M138: 0.09094698953 | N138: 0.0002843930978
A139: =IF('DF raw data'!I144="","",'DF raw data'!I144) -> -261.5 | B139: =IF('DF raw data'!J144="","",'DF raw data'!J144) -> -1.95344e-05 | C139: =IF('DF raw data'!K144="","",'DF raw data'!K144) -> 0.000121721 | D139: =IF('DF raw data'!L144="","",'DF raw data'!L144) -> 1.2823e-06 | F139: -1.962425824e-05 | G139: 0.0001222809166 | H139: 1.28819858e-06 | J139: -0.0005506186021 | K139: -0.009342169735 | L139: 0.004670478325 | M139: 0.09328222869 | N139: 0.0002954513722
A140: =IF('DF raw data'!I145="","",'DF raw data'!I145) -> -261 | B140: =IF('DF raw data'!J145="","",'DF raw data'!J145) -> -1.48508e-05 | C140: =IF('DF raw data'!K145="","",'DF raw data'!K145) -> 0.000123437 | D140: =IF('DF raw data'!L145="","",'DF raw data'!L145) -> -5.17412e-06 | F140: -1.491911368e-05 | G140: 0.0001240048102 | H140: -5.197920952e-06 | J140: -0.000558078159 | K140: -0.009621208814 | L140: 0.004732480731 | M140: 0.09564846905 | N140: 0.0003068052847
A141: =IF('DF raw data'!I146="","",'DF raw data'!I146) -> -260.5 | B141: =IF('DF raw data'!J146="","",'DF raw data'!J146) -> -2.34451e-05 | C141: =IF('DF raw data'!K146="","",'DF raw data'!K146) -> 0.000119254 | D141: =IF('DF raw data'!L146="","",'DF raw data'!L146) -> 2.06288e-06 | F141: -2.355294746e-05 | G141: 0.0001198025684 | H141: 2.072369248e-06 | J141: -0.0005698546327 | K141: -0.00990613613 | L141: 0.004792382015 | M141: 0.09804466006 | N141: 0.0003184511145
A142: =IF('DF raw data'!I147="","",'DF raw data'!I147) -> -260 | B142: =IF('DF raw data'!J147="","",'DF raw data'!J147) -> -2.56194e-05 | C142: =IF('DF raw data'!K147="","",'DF raw data'!K147) -> 0.000112297 | D142: =IF('DF raw data'!L147="","",'DF raw data'!L147) -> -6.10693e-06 | F142: -2.573724924e-05 | G142: 0.0001128135662 | H142: -6.135021878e-06 | J142: -0.0005827232573 | K142: -0.01019749776 | L142: 0.004848788798 | M142: 0.1004690545 | N142: 0.0003303762741
A143: =IF('DF raw data'!I148="","",'DF raw data'!I148) -> -259.5 | B143: =IF('DF raw data'!J148="","",'DF raw data'!J148) -> -2.49845e-05 | C143: =IF('DF raw data'!K148="","",'DF raw data'!K148) -> 0.000109456 | D143: =IF('DF raw data'!L148="","",'DF raw data'!L148) -> 3.30233e-06 | F143: -2.50994287e-05 | G143: 0.0001099594976 | H143: 3.317520718e-06 | J143: -0.0005952729717 | K143: -0.01049513424 | L143: 0.004903768547 | M143: 0.1029209387 | N143: 0.0003425769221
A144: =IF('DF raw data'!I149="","",'DF raw data'!I149) -> -259 | B144: =IF('DF raw data'!J149="","",'DF raw data'!J149) -> -1.36277e-05 | C144: =IF('DF raw data'!K149="","",'DF raw data'!K149) -> 0.000113899 | D144: =IF('DF raw data'!L149="","",'DF raw data'!L149) -> -1.30106e-05 | F144: -1.369038742e-05 | G144: 0.0001144229354 | H144: -1.307044876e-05 | J144: -0.0006021181654 | K144: -0.01079619333 | L144: 0.004960980014 | M144: 0.1054014287 | N144: 0.0003550638566
A145: =IF('DF raw data'!I150="","",'DF raw data'!I150) -> -258.5 | B145: =IF('DF raw data'!J150="","",'DF raw data'!J150) -> -1.13283e-05 | C145: =IF('DF raw data'!K150="","",'DF raw data'!K150) -> 0.000112665 | D145: =IF('DF raw data'!L150="","",'DF raw data'!L150) -> -3.7381e-07 | F145: -1.138041018e-05 | G145: 0.000113183259 | H145: -3.75529526e-07 | J145: -0.0006078083705 | K145: -0.01110009751 | L145: 0.005017571644 | M145: 0.1079102146 | N145: 0.0003678365847
A146: =IF('DF raw data'!I151="","",'DF raw data'!I151) -> -258 | B146: =IF('DF raw data'!J151="","",'DF raw data'!J151) -> -6.63284e-06 | C146: =IF('DF raw data'!K151="","",'DF raw data'!K151) -> 0.000113236 | D146: =IF('DF raw data'!L151="","",'DF raw data'!L151) -> -2.5152e-05 | F146: -6.663351064e-06 | G146: 0.0001137568856 | H146: -2.52676992e-05 | J146: -0.000611140046 | K146: -0.01140566754 | L146: 0.005074450087 | M146: 0.1104474396 | N146: 0.0003808983526
A147: =IF('DF raw data'!I152="","",'DF raw data'!I152) -> -257.5 | B147: =IF('DF raw data'!J152="","",'DF raw data'!J152) -> -2.80591e-05 | C147: =IF('DF raw data'!K152="","",'DF raw data'!K152) -> 0.000113661 | D147: =IF('DF raw data'!L152="","",'DF raw data'!L152) -> -6.17501e-08 | F147: -2.818817186e-05 | G147: 0.0001141838406 | H147: -6.203415046e-08 | J147: -0.0006252341319 | K147: -0.0117182846 | L147: 0.005131542007 | M147: 0.1130132106 | N147: 0.0003942601731
A148: =IF('DF raw data'!I153="","",'DF raw data'!I153) -> -257 | B148: =IF('DF raw data'!J153="","",'DF raw data'!J153) -> -4.90783e-06 | C148: =IF('DF raw data'!K153="","",'DF raw data'!K153) -> 0.000121408 | D148: =IF('DF raw data'!L153="","",'DF raw data'!L153) -> -1.61907e-05 | F148: -4.930406018e-06 | G148: 0.0001219664768 | H148: -1.626517722e-05 | J148: -0.0006276993349 | K148: -0.01203213427 | L148: 0.005192525245 | M148: 0.1156094732 | N148: 0.0004079383356
A149: =IF('DF raw data'!I154="","",'DF raw data'!I154) -> -256.5 | B149: =IF('DF raw data'!J154="","",'DF raw data'!J154) -> -1.49107e-05 | C149: =IF('DF raw data'!K154="","",'DF raw data'!K154) -> 0.000123731 | D149: =IF('DF raw data'!L154="","",'DF raw data'!L154) -> -1.18769e-05 | F149: -1.497928922e-05 | G149: 0.0001243001626 | H149: -1.193153374e-05 | J149: -0.0006351889795 | K149: -0.01234972876 | L149: 0.005254675327 | M149: 0.1182368109 | N149: 0.0004219458745
A150: =IF('DF raw data'!I155="","",'DF raw data'!I155) -> -256 | B150: =IF('DF raw data'!J155="","",'DF raw data'!J155) -> -2.06801e-05 | C150: =IF('DF raw data'!K155="","",'DF raw data'!K155) -> 0.000125672 | D150: =IF('DF raw data'!L155="","",'DF raw data'!L155) -> -1.10959e-05 | F150: -2.077522846e-05 | G150: 0.0001262500912 | H150: -1.114694114e-05 | J150: -0.0006455765938 | K150: -0.01267251706 | L150: 0.005317800372 | M150: 0.1208957111 | N150: 0.0004362937595
A151: =IF('DF raw data'!I156="","",'DF raw data'!I156) -> -255.5 | B151: =IF('DF raw data'!J156="","",'DF raw data'!J156) -> -1.49161e-05 | C151: =IF('DF raw data'!K156="","",'DF raw data'!K156) -> 0.000121371 | D151: =IF('DF raw data'!L156="","",'DF raw data'!L156) -> -3.47961e-06 | F151: -1.498471406e-05 | G151: 0.0001219293066 | H151: -3.495616206e-06 | J151: -0.0006530689508 | K151: -0.01299905153 | L151: 0.005378765026 | M151: 0.1235850936 | N151: 0.0004509725656
A152: =IF('DF raw data'!I157="","",'DF raw data'!I157) -> -255 | B152: =IF('DF raw data'!J157="","",'DF raw data'!J157) -> -1.26022e-05 | C152: =IF('DF raw data'!K157="","",'DF raw data'!K157) -> 0.000131878 | D152: =IF('DF raw data'!L157="","",'DF raw data'!L157) -> -1.29078e-05 | F152: -1.266017012e-05 | G152: 0.0001324846388 | H152: -1.296717588e-05 | J152: -0.0006593990359 | K152: -0.01332875105 | L152: 0.005445007345 | M152: 0.1263075973 | N152: 0.0004660140216
A153: =IF('DF raw data'!I158="","",'DF raw data'!I158) -> -254.5 | B153: =IF('DF raw data'!J158="","",'DF raw data'!J158) -> -2.8628e-05 | C153: =IF('DF raw data'!K158="","",'DF raw data'!K158) -> 0.000126485 | D153: =IF('DF raw data'!L158="","",'DF raw data'!L158) -> -1.26827e-05 | F153: -2.87596888e-05 | G153: 0.000127066831 | H153: -1.274104042e-05 | J153: -0.0006737788803 | K153: -0.01366564049 | L153: 0.00550854076 | M153: 0.1290618676 | N153: 0.0004814130213
A154: =IF('DF raw data'!I159="","",'DF raw data'!I159) -> -254 | B154: =IF('DF raw data'!J159="","",'DF raw data'!J159) -> -3.19686e-05 | C154: =IF('DF raw data'!K159="","",'DF raw data'!K159) -> 0.000120614 | D154: =IF('DF raw data'!L159="","",'DF raw data'!L159) -> -1.1319e-06 | F154: -3.211565556e-05 | G154: 0.0001211688244 | H154: -1.13710674e-06 | J154: -0.000689836708 | K154: -0.01401055884 | L154: 0.005569125173 | M154: 0.1318464302 | N154: 0.0004971585362
A155: =IF('DF raw data'!I160="","",'DF raw data'!I160) -> -253.5 | B155: =IF('DF raw data'!J160="","",'DF raw data'!J160) -> -1.97836e-05 | C155: =IF('DF raw data'!K160="","",'DF raw data'!K160) -> 0.000125336 | D155: =IF('DF raw data'!L160="","",'DF raw data'!L160) -> -9.76475e-06 | F155: -1.987460456e-05 | G155: 0.0001259125456 | H155: -9.80966785e-06 | J155: -0.0006997740103 | K155: -0.01436044585 | L155: 0.005632081445 | M155: 0.134662471 | N155: 0.0005132635487
A156: =IF('DF raw data'!I161="","",'DF raw data'!I161) -> -253 | B156: =IF('DF raw data'!J161="","",'DF raw data'!J161) -> -2.4534e-05 | C156: =IF('DF raw data'!K161="","",'DF raw data'!K161) -> 0.000136494 | D156: =IF('DF raw data'!L161="","",'DF raw data'!L161) -> 6.59262e-07 | F156: -2.46468564e-05 | G156: 0.0001371218724 | H156: 6.622946052e-07 | J156: -0.0007120974385 | K156: -0.01471649457 | L156: 0.005700642382 | M156: 0.1375127921 | N156: 0.0005297657519
A157: =IF('DF raw data'!I162="","",'DF raw data'!I162) -> -252.5 | B157: =IF('DF raw data'!J162="","",'DF raw data'!J162) -> -2.38199e-05 | C157: =IF('DF raw data'!K162="","",'DF raw data'!K162) -> 0.000132029 | D157: =IF('DF raw data'!L162="","",'DF raw data'!L162) -> -1.29575e-05 | F157: -2.392947154e-05 | G157: 0.0001326363334 | H157: -1.30171045e-05 | J157: -0.0007240621743 | K157: -0.01507852565 | L157: 0.005766960548 | M157: 0.1403962724 | N157: 0.0005466568019
A158: =IF('DF raw data'!I163="","",'DF raw data'!I163) -> -252 | B158: =IF('DF raw data'!J163="","",'DF raw data'!J163) -> -1.32393e-05 | C158: =IF('DF raw data'!K163="","",'DF raw data'!K163) -> 0.000127737 | D158: =IF('DF raw data'!L163="","",'DF raw data'!L163) -> -1.88263e-05 | F158: -1.330020078e-05 | G158: 0.0001283245902 | H158: -1.891290098e-05 | J158: -0.0007307122747 | K158: -0.01544388179 | L158: 0.005831122843 | M158: 0.1433118338 | N158: 0.0005639247689
A159: =IF('DF raw data'!I164="","",'DF raw data'!I164) -> -251.5 | B159: =IF('DF raw data'!J164="","",'DF raw data'!J164) -> -2.84393e-05 | C159: =IF('DF raw data'!K164="","",'DF raw data'!K164) -> 0.000116219 | D159: =IF('DF raw data'!L164="","",'DF raw data'!L164) -> -6.91839e-06 | F159: -2.857012078e-05 | G159: 0.0001167536074 | H159: -6.950214594e-06 | J159: -0.0007449973351 | K159: -0.01581638046 | L159: 0.005889499647 | M159: 0.1462565837 | N159: 0.0005815453825
A160: =IF('DF raw data'!I165="","",'DF raw data'!I165) -> -251 | B160: =IF('DF raw data'!J165="","",'DF raw data'!J165) -> -2.21557e-05 | C160: =IF('DF raw data'!K165="","",'DF raw data'!K165) -> 0.000119849 | D160: =IF('DF raw data'!L165="","",'DF raw data'!L165) -> -9.36791e-06 | F160: -2.225761622e-05 | G160: 0.0001204003054 | H160: -9.411002386e-06 | J160: -0.0007561261432 | K160: -0.01619444353 | L160: 0.0059496998 | M160: 0.1492314336 | N160: 0.0005995307097
A161: =IF('DF raw data'!I166="","",'DF raw data'!I166) -> -250.5 | B161: =IF('DF raw data'!J166="","",'DF raw data'!J166) -> -2.2994e-05 | C161: =IF('DF raw data'!K166="","",'DF raw data'!K166) -> 0.000129613 | D161: =IF('DF raw data'!L166="","",'DF raw data'!L166) -> -1.80867e-06 | F161: -2.30997724e-05 | G161: 0.0001302092198 | H161: -1.816989882e-06 | J161: -0.0007676760294 | K161: -0.01657828155 | L161: 0.00601480441 | M161: 0.1522388358 | N161: 0.000617914309
A162: =IF('DF raw data'!I167="","",'DF raw data'!I167) -> -250 | B162: =IF('DF raw data'!J167="","",'DF raw data'!J167) -> -2.26029e-05 | C162: =IF('DF raw data'!K167="","",'DF raw data'!K167) -> 0.00012202 | D162: =IF('DF raw data'!L167="","",'DF raw data'!L167) -> -1.17799e-05 | F162: -2.270687334e-05 | G162: 0.000122581292 | H162: -1.183408754e-05 | J162: -0.0007790294661 | K162: -0.01696779628 | L162: 0.006076095056 | M162: 0.1552768833 | N162: 0.000636677218
A163: =IF('DF raw data'!I168="","",'DF raw data'!I168) -> -249.5 | B163: =IF('DF raw data'!J168="","",'DF raw data'!J168) -> -2.43995e-05 | C163: =IF('DF raw data'!K168="","",'DF raw data'!K168) -> 0.000113894 | D163: =IF('DF raw data'!L168="","",'DF raw data'!L168) -> -8.97275e-06 | F163: -2.45117377e-05 | G163: 0.0001144179124 | H163: -9.01402465e-06 | J163: -0.0007912853349 | K163: -0.01736343895 | L163: 0.006133304012 | M163: 0.1583435353 | N163: 0.0006557989933
A164: =IF('DF raw data'!I169="","",'DF raw data'!I169) -> -249 | B164: =IF('DF raw data'!J169="","",'DF raw data'!J169) -> -2.33785e-05 | C164: =IF('DF raw data'!K169="","",'DF raw data'!K169) -> 0.000120098 | D164: =IF('DF raw data'!L169="","",'DF raw data'!L169) -> -1.90222e-06 | F164: -2.34860411e-05 | G164: 0.0001206504508 | H164: -1.910970212e-06 | J164: -0.0008030283555 | K164: -0.01776495312 | L164: 0.006193629237 | M164: 0.1614403499 | N164: 0.0006753019422
A165: =IF('DF raw data'!I170="","",'DF raw data'!I170) -> -248.5 | B165: =IF('DF raw data'!J170="","",'DF raw data'!J170) -> -1.03609e-05 | C165: =IF('DF raw data'!K170="","",'DF raw data'!K170) -> 0.000124795 | D165: =IF('DF raw data'!L170="","",'DF raw data'!L170) -> -9.28864e-06 | F165: -1.040856014e-05 | G165: 0.000125369057 | H165: -9.331367744e-06 | J165: -0.0008082326355 | K165: -0.01816906944 | L165: 0.006256313766 | M165: 0.1645685068 | N165: 0.0006951992931
A166: =IF('DF raw data'!I171="","",'DF raw data'!I171) -> -248 | B166: =IF('DF raw data'!J171="","",'DF raw data'!J171) -> -2.0556e-05 | C166: =IF('DF raw data'!K171="","",'DF raw data'!K171) -> 0.000123976 | D166: =IF('DF raw data'!L171="","",'DF raw data'!L171) -> -4.80031e-06 | F166: -2.06505576e-05 | G166: 0.0001245462896 | H166: -4.822391426e-06 | J166: -0.0008185579143 | K166: -0.0185783484 | L166: 0.006318586911 | M166: 0.1677278003 | N166: 0.0007154965819
A167: =IF('DF raw data'!I172="","",'DF raw data'!I172) -> -247.5 | B167: =IF('DF raw data'!J172="","",'DF raw data'!J172) -> -2.15176e-05 | C167: =IF('DF raw data'!K172="","",'DF raw data'!K172) -> 0.000133114 | D167: =IF('DF raw data'!L172="","",'DF raw data'!L172) -> -4.81634e-06 | F167: -2.161658096e-05 | G167: 0.0001337263244 | H167: -4.838495164e-06 | J167: -0.0008293662048 | K167: -0.0189930315 | L167: 0.006385450073 | M167: 0.1709205253 | N167: 0.0007362274924
A168: =IF('DF raw data'!I173="","",'DF raw data'!I173) -> -247 | B168: =IF('DF raw data'!J173="","",'DF raw data'!J173) -> -1.12593e-05 | C168: =IF('DF raw data'!K173="","",'DF raw data'!K173) -> 0.000130981 | D168: =IF('DF raw data'!L173="","",'DF raw data'!L173) -> -7.67337e-06 | F168: -1.131109278e-05 | G168: 0.0001315835126 | H168: -7.708667502e-06 | J168: -0.0008350217512 | K168: -0.01941054238 | L168: 0.006451241829 | M168: 0.1741461462 | N168: 0.0007573853836
A169: =IF('DF raw data'!I174="","",'DF raw data'!I174) -> -246.5 | B169: =IF('DF raw data'!J174="","",'DF raw data'!J174) -> -2.13924e-05 | C169: =IF('DF raw data'!K174="","",'DF raw data'!K174) -> 0.000117357 | D169: =IF('DF raw data'!L174="","",'DF raw data'!L174) -> -2.06966e-07 | F169: -2.149080504e-05 | G169: 0.0001178968422 | H169: -2.079180436e-07 | J169: -0.0008457671537 | K169: -0.01983342595 | L169: 0.00651019025 | M169: 0.1774012413 | N169: 0.0007789343332
A170: =IF('DF raw data'!I175="","",'DF raw data'!I175) -> -246 | B170: =IF('DF raw data'!J175="","",'DF raw data'!J175) -> -4.59688e-06 | C170: =IF('DF raw data'!K175="","",'DF raw data'!K175) -> 0.000124245 | D170: =IF('DF raw data'!L175="","",'DF raw data'!L175) -> -1.26435e-06 | F170: -4.618025648e-06 | G170: 0.000124816527 | H170: -1.27016601e-06 | J170: -0.0008480761665 | K170: -0.02025746404 | L170: 0.006572598514 | M170: 0.1806875406 | N170: 0.0008008934754
A171: =IF('DF raw data'!I176="","",'DF raw data'!I176) -> -245.5 | B171: =IF('DF raw data'!J176="","",'DF raw data'!J176) -> -1.0675e-05 | C171: =IF('DF raw data'!K176="","",'DF raw data'!K176) -> 0.000122239 | D171: =IF('DF raw data'!L176="","",'DF raw data'!L176) -> -1.94168e-05 | F171: -1.0724105e-05 | G171: 0.0001228012994 | H171: -1.950611728e-05 | J171: -0.000853438219 | K171: -0.02068418315 | L171: 0.006633999163 | M171: 0.1840045402 | N171: 0.0008232626263
A172: =IF('DF raw data'!I177="","",'DF raw data'!I177) -> -245 | B172: =IF('DF raw data'!J177="","",'DF raw data'!J177) -> -1.56141e-05 | C172: =IF('DF raw data'!K177="","",'DF raw data'!K177) -> 0.000126172 | D172: =IF('DF raw data'!L177="","",'DF raw data'!L177) -> -1.41727e-05 | F172: -1.568592486e-05 | G172: 0.0001267523912 | H172: -1.423789442e-05 | J172: -0.0008612811815 | K172: -0.02111482374 | L172: 0.006697375359 | M172: 0.1873532279 | N172: 0.0008460609472
A173: =IF('DF raw data'!I178="","",'DF raw data'!I178) -> -244.5 | B173: =IF('DF raw data'!J178="","",'DF raw data'!J178) -> -1.0552e-05 | C173: =IF('DF raw data'!K178="","",'DF raw data'!K178) -> 0.000125415 | D173: =IF('DF raw data'!L178="","",'DF raw data'!L178) -> -1.13714e-05 | F173: -1.06005392e-05 | G173: 0.000125991909 | H173: -1.142370844e-05 | J173: -0.0008665814511 | K173: -0.02154811446 | L173: 0.006760371314 | M173: 0.1907334135 | N173: 0.0008692877391
A174: =IF('DF raw data'!I179="","",'DF raw data'!I179) -> -244 | B174: =IF('DF raw data'!J179="","",'DF raw data'!J179) -> -1.99826e-05 | C174: =IF('DF raw data'!K179="","",'DF raw data'!K179) -> 0.000126027 | D174: =IF('DF raw data'!L179="","",'DF raw data'!L179) -> 3.44368e-07 | F174: -2.007451996e-05 | G174: 0.0001266067242 | H174: 3.459520928e-07 | J174: -0.000876618711 | K174: -0.02198642382 | L174: 0.006823674676 | M174: 0.1941452509 | N174: 0.0008929532373
A175: =IF('DF raw data'!I180="","",'DF raw data'!I180) -> -243.5 | B175: =IF('DF raw data'!J180="","",'DF raw data'!J180) -> -2.82552e-05 | C175: =IF('DF raw data'!K180="","",'DF raw data'!K180) -> 0.000125634 | D175: =IF('DF raw data'!L180="","",'DF raw data'!L180) -> 5.51421e-06 | F175: -2.838517392e-05 | G175: 0.0001262119164 | H175: 5.539575366e-06 | J175: -0.000890811298 | K175: -0.02243182947 | L175: 0.006886780634 | M175: 0.1975886412 | N175: 0.0009170638835
A176: =IF('DF raw data'!I181="","",'DF raw data'!I181) -> -243 | B176: =IF('DF raw data'!J181="","",'DF raw data'!J181) -> -1.43409e-05 | C176: =IF('DF raw data'!K181="","",'DF raw data'!K181) -> 0.000122592 | D176: =IF('DF raw data'!L181="","",'DF raw data'!L181) -> -7.32362e-07 | F176: -1.440686814e-05 | G176: 0.0001231559232 | H176: -7.357308652e-07 | J176: -0.0008980147321 | K176: -0.02288083683 | L176: 0.006948358595 | M176: 0.2010628205 | N176: 0.0009416069423
A177: =IF('DF raw data'!I182="","",'DF raw data'!I182) -> -242.5 | B177: =IF('DF raw data'!J182="","",'DF raw data'!J182) -> -2.99122e-05 | C177: =IF('DF raw data'!K182="","",'DF raw data'!K182) -> 0.000114701 | D177: =IF('DF raw data'!L182="","",'DF raw data'!L182) -> -9.16244e-06 | F177: -3.004979612e-05 | G177: 0.0001152286246 | H177: -9.204587224e-06 | J177: -0.0009130396301 | K177: -0.02333735665 | L177: 0.007005972908 | M177: 0.2045658069 | N177: 0.0009665655912
A178: =IF('DF raw data'!I183="","",'DF raw data'!I183) -> -242 | B178: =IF('DF raw data'!J183="","",'DF raw data'!J183) -> -1.91358e-05 | C178: =IF('DF raw data'!K183="","",'DF raw data'!K183) -> 0.000112184 | D178: =IF('DF raw data'!L183="","",'DF raw data'!L183) -> -2.01702e-05 | F178: -1.922382468e-05 | G178: 0.0001127000464 | H178: -2.026298292e-05 | J178: -0.0009226515425 | K178: -0.02379868242 | L178: 0.007062322931 | M178: 0.2080969684 | N178: 0.0009919294367
A179: =IF('DF raw data'!I184="","",'DF raw data'!I184) -> -241.5 | B179: =IF('DF raw data'!J184="","",'DF raw data'!J184) -> -2.74076e-05 | C179: =IF('DF raw data'!K184="","",'DF raw data'!K184) -> 0.000116105 | D179: =IF('DF raw data'!L184="","",'DF raw data'!L184) -> -1.63086e-05 | F179: -2.753367496e-05 | G179: 0.000116639083 | H179: -1.638361956e-05 | J179: -0.00093641838 | K179: -0.02426689161 | L179: 0.007120642472 | M179: 0.2116572896 | N179: 0.001017719651
A180: =IF('DF raw data'!I185="","",'DF raw data'!I185) -> -241 | B180: =IF('DF raw data'!J185="","",'DF raw data'!J185) -> -4.78242e-06 | C180: =IF('DF raw data'!K185="","",'DF raw data'!K185) -> 0.000122247 | D180: =IF('DF raw data'!L185="","",'DF raw data'!L185) -> -1.18952e-05 | F180: -4.804419132e-06 | G180: 0.0001228093362 | H180: -1.194991792e-05 | J180: -0.0009388205895 | K180: -0.0247363019 | L180: 0.007182047141 | M180: 0.2152483132 | N180: 0.001043951244
A181: =IF('DF raw data'!I186="","",'DF raw data'!I186) -> -240.5 | B181: =IF('DF raw data'!J186="","",'DF raw data'!J186) -> -2.20265e-05 | C181: =IF('DF raw data'!K186="","",'DF raw data'!K186) -> 0.00011752 | D181: =IF('DF raw data'!L186="","",'DF raw data'!L186) -> -1.08926e-05 | F181: -2.21278219e-05 | G181: 0.000118060592 | H181: -1.094270596e-05 | J181: -0.0009498845005 | K181: -0.02521124415 | L181: 0.007241077437 | M181: 0.2188688519 | N181: 0.001070618985
A182: =IF('DF raw data'!I187="","",'DF raw data'!I187) -> -240 | B182: =IF('DF raw data'!J187="","",'DF raw data'!J187) -> -1.67628e-05 | C182: =IF('DF raw data'!K187="","",'DF raw data'!K187) -> 0.000123701 | D182: =IF('DF raw data'!L187="","",'DF raw data'!L187) -> -2.21339e-05 | F182: -1.683990888e-05 | G182: 0.0001242700246 | H182: -2.223571594e-05 | J182: -0.0009583044549 | K182: -0.02569039638 | L182: 0.007303212449 | M182: 0.2225204581 | N182: 0.001097746615
A183: =IF('DF raw data'!I188="","",'DF raw data'!I188) -> -239.5 | B183: =IF('DF raw data'!J188="","",'DF raw data'!J188) -> -2.41431e-05 | C183: =IF('DF raw data'!K188="","",'DF raw data'!K188) -> 0.000126924 | D183: =IF('DF raw data'!L188="","",'DF raw data'!L188) -> -8.95497e-06 | F183: -2.425415826e-05 | G183: 0.0001275078504 | H183: -8.996162862e-06 | J183: -0.000970431534 | K183: -0.02617561215 | L183: 0.007366966374 | M183: 0.2262039413 | N183: 0.00112535358
A184: =IF('DF raw data'!I189="","",'DF raw data'!I189) -> -239 | B184: =IF('DF raw data'!J189="","",'DF raw data'!J189) -> -3.09451e-05 | C184: =IF('DF raw data'!K189="","",'DF raw data'!K189) -> 0.000126218 | D184: =IF('DF raw data'!L189="","",'DF raw data'!L189) -> 2.13614e-06 | F184: -3.108744746e-05 | G184: 0.0001267986028 | H184: 2.145966244e-06 | J184: -0.0009859752578 | K184: -0.02666859978 | L184: 0.007430365675 | M184: 0.2299191242 | N184: 0.001153444821
A185: =IF('DF raw data'!I190="","",'DF raw data'!I190) -> -238.5 | B185: =IF('DF raw data'!J190="","",'DF raw data'!J190) -> -1.7544e-05 | C185: =IF('DF raw data'!K190="","",'DF raw data'!K190) -> 0.000132784 | D185: =IF('DF raw data'!L190="","",'DF raw data'!L190) -> -3.60016e-06 | F185: -1.76247024e-05 | G185: 0.0001333948064 | H185: -3.616720736e-06 | J185: -0.000994787609 | K185: -0.02716599358 | L185: 0.007497063079 | M185: 0.2336676557 | N185: 0.0011820426
A186: =IF('DF raw data'!I191="","",'DF raw data'!I191) -> -238 | B186: =IF('DF raw data'!J191="","",'DF raw data'!J191) -> -1.14604e-05 | C186: =IF('DF raw data'!K191="","",'DF raw data'!K191) -> 0.000126839 | D186: =IF('DF raw data'!L191="","",'DF raw data'!L191) -> 5.67323e-06 | F186: -1.151311784e-05 | G186: 0.0001274224594 | H186: 5.699326858e-06 | J186: -0.001000544168 | K186: -0.02766626567 | L186: 0.007560774308 | M186: 0.2374480429 | N186: 0.001211125798
A187: =IF('DF raw data'!I192="","",'DF raw data'!I192) -> -237.5 | B187: =IF('DF raw data'!J192="","",'DF raw data'!J192) -> -2.12673e-05 | C187: =IF('DF raw data'!K192="","",'DF raw data'!K192) -> 0.000128735 | D187: =IF('DF raw data'!L192="","",'DF raw data'!L192) -> 4.48325e-06 | F187: -2.136512958e-05 | G187: 0.000129327181 | H187: 4.50387295e-06 | J187: -0.001011226733 | K187: -0.02817187903 | L187: 0.007625437899 | M187: 0.2412607618 | N187: 0.001240710739
A188: =IF('DF raw data'!I193="","",'DF raw data'!I193) -> -237 | B188: =IF('DF raw data'!J193="","",'DF raw data'!J193) -> -2.99856e-05 | C188: =IF('DF raw data'!K193="","",'DF raw data'!K193) -> 0.000130457 | D188: =IF('DF raw data'!L193="","",'DF raw data'!L193) -> 5.34007e-06 | F188: -3.012353376e-05 | G188: 0.0001310571022 | H188: 5.364634322e-06 | J188: -0.0010262885 | K188: -0.02868502328 | L188: 0.00769096645 | M188: 0.245106245 | N188: 0.001270812856
A189: =IF('DF raw data'!I194="","",'DF raw data'!I194) -> -236.5 | B189: =IF('DF raw data'!J194="","",'DF raw data'!J194) -> -3.03635e-05 | C189: =IF('DF raw data'!K194="","",'DF raw data'!K194) -> 0.000125172 | D189: =IF('DF raw data'!L194="","",'DF raw data'!L194) -> -4.91487e-06 | F189: -3.05031721e-05 | G189: 0.0001257477912 | H189: -4.937478402e-06 | J189: -0.001041540086 | K189: -0.02920579333 | L189: 0.007753840346 | M189: 0.2489831652 | N189: 0.001301416279
A190: =IF('DF raw data'!I195="","",'DF raw data'!I195) -> -236 | B190: =IF('DF raw data'!J195="","",'DF raw data'!J195) -> -3.96648e-05 | C190: =IF('DF raw data'!K195="","",'DF raw data'!K195) -> 0.000113321 | D190: =IF('DF raw data'!L195="","",'DF raw data'!L195) -> 5.05513e-06 | F190: -3.984725808e-05 | G190: 0.0001138422766 | H190: 5.078383598e-06 | J190: -0.001061463715 | K190: -0.02973652518 | L190: 0.007810761484 | M190: 0.2528885459 | N190: 0.001332483629
A191: =IF('DF raw data'!I196="","",'DF raw data'!I196) -> -235.5 | B191: =IF('DF raw data'!J196="","",'DF raw data'!J196) -> -2.37632e-05 | C191: =IF('DF raw data'!K196="","",'DF raw data'!K196) -> 0.000113269 | D191: =IF('DF raw data'!L196="","",'DF raw data'!L196) -> -1.80057e-06 | F191: -2.387251072e-05 | G191: 0.0001137900374 | H191: -1.808852622e-06 | J191: -0.00107339997 | K191: -0.03027322517 | L191: 0.007867656503 | M191: 0.2568223742 | N191: 0.001364009732
A192: =IF('DF raw data'!I197="","",'DF raw data'!I197) -> -235 | B192: =IF('DF raw data'!J197="","",'DF raw data'!J197) -> -3.45348e-05 | C192: =IF('DF raw data'!K197="","",'DF raw data'!K197) -> 0.000116939 | D192: =IF('DF raw data'!L197="","",'DF raw data'!L197) -> 1.83208e-06 | F192: =(1-$G$1*($B$49-$G$2))*B192 -> -3.469366008e-05 | G192: 0.0001174769194 | H192: 1.840507568e-06 | J192: =F192*$G$3+J191 -> -0.0010907468 | K192: =J192*$G$3+K191 -> -0.03081859857 | L192: =G192*$G$3+L191 -> 0.007926394962 | M192: =L192*$G$3+M191 -> 0.2607855717 | N192: =(J192^2+L192^2)*$G$3+N191 -> 0.001396018465
A193: =IF('DF raw data'!I198="","",'DF raw data'!I198) -> -234.5 | B193: =IF('DF raw data'!J198="","",'DF raw data'!J198) -> -2.34514e-05 | C193: =IF('DF raw data'!K198="","",'DF raw data'!K198) -> 0.000116888 | D193: =IF('DF raw data'!L198="","",'DF raw data'!L198) -> 1.17624e-05 | F193: -2.355927644e-05 | G193: 0.0001174256848 | H193: 1.181650704e-05 | J193: -0.001102526438 | K193: -0.03136986179 | L193: 0.007985107805 | M193: 0.2647781256 | N193: 0.00142850722
A194: =IF('DF raw data'!I199="","",'DF raw data'!I199) -> -234 | B194: =IF('DF raw data'!J199="","",'DF raw data'!J199) -> -2.36952e-05 | C194: =IF('DF raw data'!K199="","",'DF raw data'!K199) -> 0.00011919 | D194: =IF('DF raw data'!L199="","",'DF raw data'!L199) -> -7.58681e-06 | F194: -2.380419792e-05 | G194: 0.000119738274 | H194: -7.621709326e-06 | J194: -0.001114428537 | K194: -0.03192707606 | L194: 0.008044976942 | M194: 0.268800614 | N194: 0.001461489023
A195: =IF('DF raw data'!I200="","",'DF raw data'!I200) -> -233.5 | B195: =IF('DF raw data'!J200="","",'DF raw data'!J200) -> -1.93396e-05 | C195: =IF('DF raw data'!K200="","",'DF raw data'!K200) -> 0.000129074 | D195: =IF('DF raw data'!L200="","",'DF raw data'!L200) -> -2.80345e-06 | F195: -1.942856216e-05 | G195: 0.0001296677404 | H195: -2.81634587e-06 | J195: -0.001124142818 | K195: -0.03248914746 | L195: 0.008109810812 | M195: 0.2728555195 | N195: 0.001495005387
A196: =IF('DF raw data'!I201="","",'DF raw data'!I201) -> -233 | B196: =IF('DF raw data'!J201="","",'DF raw data'!J201) -> -2.98486e-05 | C196: =IF('DF raw data'!K201="","",'DF raw data'!K201) -> 0.00012112 | D196: =IF('DF raw data'!L201="","",'DF raw data'!L201) -> -8.13135e-06 | F196: -2.998590356e-05 | G196: 0.000121677152 | H196: -8.16875421e-06 | J196: -0.00113913577 | K196: -0.03305871535 | L196: 0.008170649388 | M196: 0.2769408441 | N196: 0.001529033958
A197: =IF('DF raw data'!I202="","",'DF raw data'!I202) -> -232.5 | B197: =IF('DF raw data'!J202="","",'DF raw data'!J202) -> -3.04297e-05 | C197: =IF('DF raw data'!K202="","",'DF raw data'!K202) -> 0.00012281 | D197: =IF('DF raw data'!L202="","",'DF raw data'!L202) -> -1.96355e-06 | F197: -3.056967662e-05 | G197: 0.000123374926 | H197: -1.97258233e-06 | J197: -0.001154420608 | K197: -0.03363592565 | L197: 0.008232336851 | M197: 0.2810570126 | N197: 0.001563585986
A198: =IF('DF raw data'!I203="","",'DF raw data'!I203) -> -232 | B198: =IF('DF raw data'!J203="","",'DF raw data'!J203) -> -2.4915e-05 | C198: =IF('DF raw data'!K203="","",'DF raw data'!K203) -> 0.00012392 | D198: =IF('DF raw data'!L203="","",'DF raw data'!L203) -> -4.91053e-06 | F198: -2.5029609e-05 | G198: 0.000124490032 | H198: -4.933118438e-06 | J198: -0.001166935413 | K198: -0.03421939336 | L198: 0.008294581867 | M198: 0.2852043035 | N198: 0.0015986669
A199: =IF('DF raw data'!I204="","",'DF raw data'!I204) -> -231.5 | B199: =IF('DF raw data'!J204="","",'DF raw data'!J204) -> -2.8967e-05 | C199: =IF('DF raw data'!K204="","",'DF raw data'!K204) -> 0.000122415 | D199: =IF('DF raw data'!L204="","",'DF raw data'!L204) -> 1.61568e-05 | F199: -2.91002482e-05 | G199: 0.000122978109 | H199: 1.623112128e-05 | J199: -0.001181485537 | K199: -0.03481013613 | L199: 0.008356070921 | M199: 0.289382339 | N199: 0.001634276814
A200: =IF('DF raw data'!I205="","",'DF raw data'!I205) -> -231 | B200: =IF('DF raw data'!J205="","",'DF raw data'!J205) -> -2.25453e-05 | C200: =IF('DF raw data'!K205="","",'DF raw data'!K205) -> 0.000124856 | D200: =IF('DF raw data'!L205="","",'DF raw data'!L205) -> -1.53585e-06 | F200: -2.264900838e-05 | G200: 0.0001254303376 | H200: -1.54291491e-06 | J200: -0.001192810041 | K200: -0.03540654115 | L200: 0.00841878609 | M200: 0.293591732 | N200: 0.001670426192
A201: =IF('DF raw data'!I206="","",'DF raw data'!I206) -> -230.5 | B201: =IF('DF raw data'!J206="","",'DF raw data'!J206) -> -3.4788e-05 | C201: =IF('DF raw data'!K206="","",'DF raw data'!K206) -> 0.000119745 | D201: =IF('DF raw data'!L206="","",'DF raw data'!L206) -> -3.13597e-06 | F201: -3.49480248e-05 | G201: 0.000120295827 | H201: -3.150395462e-06 | J201: -0.001210284054 | K201: -0.03601168318 | L201: 0.008478934004 | M201: 0.297831199 | N201: 0.001707104747
... 1061 more rows

Sheet 10 x=1
A1: =IF('DF raw data'!M1="","",'DF raw data'!M1) -> Number of header lines | B1: =IF('DF raw data'!N1="","",'DF raw data'!N1) -> 54 | C1: =IF('DF raw data'!O1="","",'DF raw data'!O1) ->  | D1: =IF('DF raw data'!P1="","",'DF raw data'!P1) ->  | F1: T_coeff | G1: -0.001 | H1: /degC | J1: ='10 x=-2'!J1 -> IBy total | K1: ='10 x=-2'!K1 -> 1.988671837 | L1: ='10 x=-2'!L1 -> muTm | R1: ='10 x=-2'!R1 -> DF ref | S1: ='10 x=-2'!S1 -> 1
A2: =IF('DF raw data'!M2="","",'DF raw data'!M2) -> Measured by | B2: =IF('DF raw data'!N2="","",'DF raw data'!N2) -> Danfysik | C2: =IF('DF raw data'!O2="","",'DF raw data'!O2) ->  | D2: =IF('DF raw data'!P2="","",'DF raw data'!P2) ->  | F2: Tcorr | G2: 20 | H2: degC | J2: JBy total | K2: =K1262 -> -1.39725888 | L2: muTm^2 | M2: =M1262 -> 28.26322603
A3: =IF('DF raw data'!M3="","",'DF raw data'!M3) -> Operator | B3: =IF('DF raw data'!N3="","",'DF raw data'!N3) -> PMHA | C3: =IF('DF raw data'!O3="","",'DF raw data'!O3) ->  | D3: =IF('DF raw data'!P3="","",'DF raw data'!P3) ->  | F3: Step | G3: =A63-A62 -> 0.5 | H3: mm | J3: PI total | K3: =N1262 -> 10594.52506 | L3: T^2mm^3
A4: =IF('DF raw data'!M4="","",'DF raw data'!M4) -> Data-time | B4: =IF('DF raw data'!N4="","",'DF raw data'!N4) -> 29-08-2024, 12:12:10 | C4: =IF('DF raw data'!O4="","",'DF raw data'!O4) ->  | D4: =IF('DF raw data'!P4="","",'DF raw data'!P4) -> 
A5: =IF('DF raw data'!M5="","",'DF raw data'!M5) -> Project | B5: =IF('DF raw data'!N5="","",'DF raw data'!N5) -> 504314 | C5: =IF('DF raw data'!O5="","",'DF raw data'!O5) ->  | D5: =IF('DF raw data'!P5="","",'DF raw data'!P5) -> 
A6: =IF('DF raw data'!M6="","",'DF raw data'!M6) -> Magnet type | B6: =IF('DF raw data'!N6="","",'DF raw data'!N6) -> Dipole | C6: =IF('DF raw data'!O6="","",'DF raw data'!O6) ->  | D6: =IF('DF raw data'!P6="","",'DF raw data'!P6) -> 
A7: =IF('DF raw data'!M7="","",'DF raw data'!M7) -> Magnet nr. | B7: =IF('DF raw data'!N7="","",'DF raw data'!N7) -> 2410087 | C7: =IF('DF raw data'!O7="","",'DF raw data'!O7) ->  | D7: =IF('DF raw data'!P7="","",'DF raw data'!P7) -> 
A8: =IF('DF raw data'!M8="","",'DF raw data'!M8) -> Meas. number | B8: =IF('DF raw data'!N8="","",'DF raw data'!N8) -> 244 | C8: =IF('DF raw data'!O8="","",'DF raw data'!O8) ->  | D8: =IF('DF raw data'!P8="","",'DF raw data'!P8) -> 
A9: =IF('DF raw data'!M9="","",'DF raw data'!M9) -> Add. info | B9: =IF('DF raw data'!N9="","",'DF raw data'!N9) -> X-alignment scan 4) | C9: =IF('DF raw data'!O9="","",'DF raw data'!O9) ->  | D9: =IF('DF raw data'!P9="","",'DF raw data'!P9) -> 
A10: =IF('DF raw data'!M10="","",'DF raw data'!M10) -> Device | B10: =IF('DF raw data'!N10="","",'DF raw data'!N10) -> (HAL) HALL-PROBE | C10: =IF('DF raw data'!O10="","",'DF raw data'!O10) ->  | D10: =IF('DF raw data'!P10="","",'DF raw data'!P10) -> 
A11: =IF('DF raw data'!M11="","",'DF raw data'!M11) -> Goal | B11: =IF('DF raw data'!N11="","",'DF raw data'!N11) -> (AXI) AXis Integral (Line, EFB) | C11: =IF('DF raw data'!O11="","",'DF raw data'!O11) ->  | D11: =IF('DF raw data'!P11="","",'DF raw data'!P11) -> 
A12: =IF('DF raw data'!M12="","",'DF raw data'!M12) -> Power supply mode | B12: =IF('DF raw data'!N12="","",'DF raw data'!N12) -> (PM) Permanent Magnet (no MPS in use) | C12: =IF('DF raw data'!O12="","",'DF raw data'!O12) ->  | D12: =IF('DF raw data'!P12="","",'DF raw data'!P12) -> 
A13: =IF('DF raw data'!M13="","",'DF raw data'!M13) -> Data format | B13: =IF('DF raw data'!N13="","",'DF raw data'!N13) -> Raw data text file | C13: =IF('DF raw data'!O13="","",'DF raw data'!O13) ->  | D13: =IF('DF raw data'!P13="","",'DF raw data'!P13) -> 
A14: =IF('DF raw data'!M14="","",'DF raw data'!M14) -> Direction of the pos. x-axis | B14: =IF('DF raw data'!N14="","",'DF raw data'!N14) -> See test program | C14: =IF('DF raw data'!O14="","",'DF raw data'!O14) ->  | D14: =IF('DF raw data'!P14="","",'DF raw data'!P14) -> 
A15: =IF('DF raw data'!M15="","",'DF raw data'!M15) -> Direction of the pos. y-axis | B15: =IF('DF raw data'!N15="","",'DF raw data'!N15) -> Vertical up | C15: =IF('DF raw data'!O15="","",'DF raw data'!O15) ->  | D15: =IF('DF raw data'!P15="","",'DF raw data'!P15) -> 
A16: =IF('DF raw data'!M16="","",'DF raw data'!M16) -> Direction of the pos. z-axis | B16: =IF('DF raw data'!N16="","",'DF raw data'!N16) -> See test program | C16: =IF('DF raw data'!O16="","",'DF raw data'!O16) ->  | D16: =IF('DF raw data'!P16="","",'DF raw data'!P16) -> 
A17: =IF('DF raw data'!M17="","",'DF raw data'!M17) -> Mapper type | B17: =IF('DF raw data'!N17="","",'DF raw data'!N17) -> Precision Hall Mapper | C17: =IF('DF raw data'!O17="","",'DF raw data'!O17) ->  | D17: =IF('DF raw data'!P17="","",'DF raw data'!P17) -> 
A18: =IF('DF raw data'!M18="","",'DF raw data'!M18) -> Mapper Danfysik Reg. Number | B18: =IF('DF raw data'!N18="","",'DF raw data'!N18) -> 2033-D (mapper 1) | C18: =IF('DF raw data'!O18="","",'DF raw data'!O18) ->  | D18: =IF('DF raw data'!P18="","",'DF raw data'!P18) -> 
A19: =IF('DF raw data'!M19="","",'DF raw data'!M19) -> Measurement consept | B19: =IF('DF raw data'!N19="","",'DF raw data'!N19) -> Square line grid | C19: =IF('DF raw data'!O19="","",'DF raw data'!O19) ->  | D19: =IF('DF raw data'!P19="","",'DF raw data'!P19) -> 
A20: =IF('DF raw data'!M20="","",'DF raw data'!M20) -> Mode | B20: =IF('DF raw data'!N20="","",'DF raw data'!N20) -> On-the-fly measurement | C20: =IF('DF raw data'!O20="","",'DF raw data'!O20) ->  | D20: =IF('DF raw data'!P20="","",'DF raw data'!P20) -> 
A21: =IF('DF raw data'!M21="","",'DF raw data'!M21) ->  | B21: =IF('DF raw data'!N21="","",'DF raw data'!N21) ->  | C21: =IF('DF raw data'!O21="","",'DF raw data'!O21) ->  | D21: =IF('DF raw data'!P21="","",'DF raw data'!P21) -> 
A22: =IF('DF raw data'!M22="","",'DF raw data'!M22) -> Probe Name | B22: =IF('DF raw data'!N22="","",'DF raw data'!N22) -> ID12_By | C22: =IF('DF raw data'!O22="","",'DF raw data'!O22) ->  | D22: =IF('DF raw data'!P22="","",'DF raw data'!P22) -> 
A23: =IF('DF raw data'!M23="","",'DF raw data'!M23) -> Probe Type | B23: =IF('DF raw data'!N23="","",'DF raw data'!N23) -> DF_ID_3D_Bxyz | C23: =IF('DF raw data'!O23="","",'DF raw data'!O23) ->  | D23: =IF('DF raw data'!P23="","",'DF raw data'!P23) -> 
A24: =IF('DF raw data'!M24="","",'DF raw data'!M24) -> Probe Danfysik Reg. Number | B24: =IF('DF raw data'!N24="","",'DF raw data'!N24) -> 2277 | C24: =IF('DF raw data'!O24="","",'DF raw data'!O24) ->  | D24: =IF('DF raw data'!P24="","",'DF raw data'!P24) -> 
A25: =IF('DF raw data'!M25="","",'DF raw data'!M25) -> Probe Axis | B25: =IF('DF raw data'!N25="","",'DF raw data'!N25) -> By | C25: =IF('DF raw data'!O25="","",'DF raw data'!O25) ->  | D25: =IF('DF raw data'!P25="","",'DF raw data'!P25) -> 
A26: =IF('DF raw data'!M26="","",'DF raw data'!M26) -> Probe Current Supply | B26: =IF('DF raw data'!N26="","",'DF raw data'!N26) -> 1825-D | C26: =IF('DF raw data'!O26="","",'DF raw data'!O26) ->  | D26: =IF('DF raw data'!P26="","",'DF raw data'!P26) -> 
A27: =IF('DF raw data'!M27="","",'DF raw data'!M27) -> Probe Gain Correction | B27: =IF('DF raw data'!N27="","",'DF raw data'!N27) -> 0.99617 | C27: =IF('DF raw data'!O27="","",'DF raw data'!O27) ->  | D27: =IF('DF raw data'!P27="","",'DF raw data'!P27) -> 
A28: =IF('DF raw data'!M28="","",'DF raw data'!M28) -> Probe Offset Correction | B28: =IF('DF raw data'!N28="","",'DF raw data'!N28) -> 0.0027239 | C28: =IF('DF raw data'!O28="","",'DF raw data'!O28) ->  | D28: =IF('DF raw data'!P28="","",'DF raw data'!P28) -> 
A29: =IF('DF raw data'!M29="","",'DF raw data'!M29) -> DVM Number | B29: =IF('DF raw data'!N29="","",'DF raw data'!N29) -> 2 | C29: =IF('DF raw data'!O29="","",'DF raw data'!O29) ->  | D29: =IF('DF raw data'!P29="","",'DF raw data'!P29) -> 
A30: =IF('DF raw data'!M30="","",'DF raw data'!M30) -> DVM Type | B30: =IF('DF raw data'!N30="","",'DF raw data'!N30) -> K2701 | C30: =IF('DF raw data'!O30="","",'DF raw data'!O30) ->  | D30: =IF('DF raw data'!P30="","",'DF raw data'!P30) -> 
A31: =IF('DF raw data'!M31="","",'DF raw data'!M31) -> DVM Danfysik Reg. Number | B31: =IF('DF raw data'!N31="","",'DF raw data'!N31) -> 1743-D | C31: =IF('DF raw data'!O31="","",'DF raw data'!O31) ->  | D31: =IF('DF raw data'!P31="","",'DF raw data'!P31) -> 
A32: =IF('DF raw data'!M32="","",'DF raw data'!M32) -> Probe Name | B32: =IF('DF raw data'!N32="","",'DF raw data'!N32) -> ID12_Bx | C32: =IF('DF raw data'!O32="","",'DF raw data'!O32) ->  | D32: =IF('DF raw data'!P32="","",'DF raw data'!P32) -> 
A33: =IF('DF raw data'!M33="","",'DF raw data'!M33) -> Probe Type | B33: =IF('DF raw data'!N33="","",'DF raw data'!N33) -> DF_ID_3D_Bxyz | C33: =IF('DF raw data'!O33="","",'DF raw data'!O33) ->  | D33: =IF('DF raw data'!P33="","",'DF raw data'!P33) -> 
A34: =IF('DF raw data'!M34="","",'DF raw data'!M34) -> Probe Danfysik Reg. Number | B34: =IF('DF raw data'!N34="","",'DF raw data'!N34) -> 2277 | C34: =IF('DF raw data'!O34="","",'DF raw data'!O34) ->  | D34: =IF('DF raw data'!P34="","",'DF raw data'!P34) -> 
A35: =IF('DF raw data'!M35="","",'DF raw data'!M35) -> Probe Axis | B35: =IF('DF raw data'!N35="","",'DF raw data'!N35) -> Bx | C35: =IF('DF raw data'!O35="","",'DF raw data'!O35) ->  | D35: =IF('DF raw data'!P35="","",'DF raw data'!P35) -> 
A36: =IF('DF raw data'!M36="","",'DF raw data'!M36) -> Probe Current Supply | B36: =IF('DF raw data'!N36="","",'DF raw data'!N36) -> 1825-D | C36: =IF('DF raw data'!O36="","",'DF raw data'!O36) ->  | D36: =IF('DF raw data'!P36="","",'DF raw data'!P36) -> 
A37: =IF('DF raw data'!M37="","",'DF raw data'!M37) -> Probe Gain Correction | B37: =IF('DF raw data'!N37="","",'DF raw data'!N37) -> 1 | C37: =IF('DF raw data'!O37="","",'DF raw data'!O37) ->  | D37: =IF('DF raw data'!P37="","",'DF raw data'!P37) -> 
A38: =IF('DF raw data'!M38="","",'DF raw data'!M38) -> Probe Offset Correction | B38: =IF('DF raw data'!N38="","",'DF raw data'!N38) -> -0.17561 | C38: =IF('DF raw data'!O38="","",'DF raw data'!O38) ->  | D38: =IF('DF raw data'!P38="","",'DF raw data'!P38) -> 
A39: =IF('DF raw data'!M39="","",'DF raw data'!M39) -> DVM Number | B39: =IF('DF raw data'!N39="","",'DF raw data'!N39) -> 3 | C39: =IF('DF raw data'!O39="","",'DF raw data'!O39) ->  | D39: =IF('DF raw data'!P39="","",'DF raw data'!P39) -> 
A40: =IF('DF raw data'!M40="","",'DF raw data'!M40) -> DVM Type | B40: =IF('DF raw data'!N40="","",'DF raw data'!N40) -> K2701 | C40: =IF('DF raw data'!O40="","",'DF raw data'!O40) ->  | D40: =IF('DF raw data'!P40="","",'DF raw data'!P40) -> 
A41: =IF('DF raw data'!M41="","",'DF raw data'!M41) -> DVM Danfysik Reg. Number | B41: =IF('DF raw data'!N41="","",'DF raw data'!N41) -> 1744-D | C41: =IF('DF raw data'!O41="","",'DF raw data'!O41) ->  | D41: =IF('DF raw data'!P41="","",'DF raw data'!P41) -> 
A42: =IF('DF raw data'!M42="","",'DF raw data'!M42) -> Probe Name | B42: =IF('DF raw data'!N42="","",'DF raw data'!N42) -> ID12_Bz | C42: =IF('DF raw data'!O42="","",'DF raw data'!O42) ->  | D42: =IF('DF raw data'!P42="","",'DF raw data'!P42) -> 
A43: =IF('DF raw data'!M43="","",'DF raw data'!M43) -> Probe Type | B43: =IF('DF raw data'!N43="","",'DF raw data'!N43) -> DF_ID_3D_Bxyz | C43: =IF('DF raw data'!O43="","",'DF raw data'!O43) ->  | D43: =IF('DF raw data'!P43="","",'DF raw data'!P43) -> 
A44: =IF('DF raw data'!M44="","",'DF raw data'!M44) -> Probe Danfysik Reg. Number | B44: =IF('DF raw data'!N44="","",'DF raw data'!N44) -> 2277 | C44: =IF('DF raw data'!O44="","",'DF raw data'!O44) ->  | D44: =IF('DF raw data'!P44="","",'DF raw data'!P44) -> 
A45: =IF('DF raw data'!M45="","",'DF raw data'!M45) -> Probe Axis | B45: =IF('DF raw data'!N45="","",'DF raw data'!N45) -> Bz | C45: =IF('DF raw data'!O45="","",'DF raw data'!O45) ->  | D45: =IF('DF raw data'!P45="","",'DF raw data'!P45) -> 
A46: =IF('DF raw data'!M46="","",'DF raw data'!M46) -> Probe Current Supply | B46: =IF('DF raw data'!N46="","",'DF raw data'!N46) -> 1825-D | C46: =IF('DF raw data'!O46="","",'DF raw data'!O46) ->  | D46: =IF('DF raw data'!P46="","",'DF raw data'!P46) -> 
A47: =IF('DF raw data'!M47="","",'DF raw data'!M47) -> Probe Gain Correction | B47: =IF('DF raw data'!N47="","",'DF raw data'!N47) -> 1 | C47: =IF('DF raw data'!O47="","",'DF raw data'!O47) ->  | D47: =IF('DF raw data'!P47="","",'DF raw data'!P47) -> 
A48: =IF('DF raw data'!M53="","",'DF raw data'!M53) -> PS-Gap: | B48: =IF('DF raw data'!N53="","",'DF raw data'!N53) -> 10 | C48: =IF('DF raw data'!O53="","",'DF raw data'!O53) ->  | D48: =IF('DF raw data'!P53="","",'DF raw data'!P53) -> 
A49: =IF('DF raw data'!M54="","",'DF raw data'!M54) -> PS-Temperature: | B49: =IF('DF raw data'!N54="","",'DF raw data'!N54) -> 24.6 | C49: =IF('DF raw data'!O54="","",'DF raw data'!O54) ->  | D49: =IF('DF raw data'!P54="","",'DF raw data'!P54) -> 
A50: =IF('DF raw data'!M55="","",'DF raw data'!M55) -> PS-Encoder: | B50: =IF('DF raw data'!N55="","",'DF raw data'!N55) -> 20.0459 | C50: =IF('DF raw data'!O55="","",'DF raw data'!O55) ->  | D50: =IF('DF raw data'!P55="","",'DF raw data'!P55) -> 
A51: =IF('DF raw data'!M56="","",'DF raw data'!M56) ->  | B51: =IF('DF raw data'!N56="","",'DF raw data'!N56) ->  | C51: =IF('DF raw data'!O56="","",'DF raw data'!O56) ->  | D51: =IF('DF raw data'!P56="","",'DF raw data'!P56) -> 
A52: =IF('DF raw data'!M57="","",'DF raw data'!M57) -> Monitor-Index | B52: =IF('DF raw data'!N57="","",'DF raw data'!N57) -> [1,1,4] | C52: =IF('DF raw data'!O57="","",'DF raw data'!O57) ->  | D52: =IF('DF raw data'!P57="","",'DF raw data'!P57) -> 
A53: =IF('DF raw data'!M58="","",'DF raw data'!M58) ->  | B53: =IF('DF raw data'!N58="","",'DF raw data'!N58) ->  | C53: =IF('DF raw data'!O58="","",'DF raw data'!O58) ->  | D53: =IF('DF raw data'!P58="","",'DF raw data'!P58) -> 
A54: =IF('DF raw data'!M59="","",'DF raw data'!M59) -> Time [s] | B54: =IF('DF raw data'!N59="","",'DF raw data'!N59) -> Y [mm] | C54: =IF('DF raw data'!O59="","",'DF raw data'!O59) -> X [mm] | D54: =IF('DF raw data'!P59="","",'DF raw data'!P59) -> Nominal current [A]
A55: =IF('DF raw data'!M60="","",'DF raw data'!M60) ->  | B55: =IF('DF raw data'!N60="","",'DF raw data'!N60) ->  | C55: =IF('DF raw data'!O60="","",'DF raw data'!O60) ->  | D55: =IF('DF raw data'!P60="","",'DF raw data'!P60) -> 
A56: =IF('DF raw data'!M61="","",'DF raw data'!M61) -> 207.9 | B56: =IF('DF raw data'!N61="","",'DF raw data'!N61) -> 31.16 | C56: =IF('DF raw data'!O61="","",'DF raw data'!O61) -> 302.8 | D56: =IF('DF raw data'!P61="","",'DF raw data'!P61) -> 0
A57: =IF('DF raw data'!M62="","",'DF raw data'!M62) ->  | B57: =IF('DF raw data'!N62="","",'DF raw data'!N62) ->  | C57: =IF('DF raw data'!O62="","",'DF raw data'!O62) ->  | D57: =IF('DF raw data'!P62="","",'DF raw data'!P62) -> 
A58: =IF('DF raw data'!M63="","",'DF raw data'!M63) -> Measurement-Index | B58: =IF('DF raw data'!N63="","",'DF raw data'!N63) -> [1,1,1201,2] | C58: =IF('DF raw data'!O63="","",'DF raw data'!O63) ->  | D58: =IF('DF raw data'!P63="","",'DF raw data'!P63) -> 
A59: =IF('DF raw data'!M64="","",'DF raw data'!M64) ->  | B59: =IF('DF raw data'!N64="","",'DF raw data'!N64) ->  | C59: =IF('DF raw data'!O64="","",'DF raw data'!O64) ->  | D59: =IF('DF raw data'!P64="","",'DF raw data'!P64) -> 
A60: =IF('DF raw data'!M65="","",'DF raw data'!M65) -> Z [mm] | B60: By [T] | C60: Bx [T] | D60: Bz [T] | F60: By_corr | G60: Bx_corr | H60: Bz_corr | J60: Iy | K60: Jy | L60: Ix | M60: Jx | N60: PI
A62: =IF('DF raw data'!M67="","",'DF raw data'!M67) -> -300 | B62: =IF('DF raw data'!N67="","",'DF raw data'!N67) -> -1.72933e-05 | C62: =IF('DF raw data'!O67="","",'DF raw data'!O67) -> 0.000174569 | D62: =IF('DF raw data'!P67="","",'DF raw data'!P67) -> 7.62034e-06 | F62: =(1-$G$1*($B$49))*B62 -> -1.771871518e-05 | G62: =(1-$G$1*($B$49-$G$2))*C62 -> 0.0001753720174 | H62: =(1-$G$1*($B$49-$G$2))*D62 -> 7.655393564e-06 | J62: =F62*$G$3 -> -8.85935759e-06 | K62: =J62*$G$3 -> -4.429678795e-06 | L62: =G62*$G$3 -> 8.76860087e-05 | M62: =L62*$G$3 -> 4.384300435e-05 | N62: =(J62^2+L62^2)*$G$3 -> 3.883662169e-09
A63: =IF('DF raw data'!M68="","",'DF raw data'!M68) -> -299.5 | B63: =IF('DF raw data'!N68="","",'DF raw data'!N68) -> -5.04961e-06 | C63: =IF('DF raw data'!O68="","",'DF raw data'!O68) -> 0.000171608 | D63: =IF('DF raw data'!P68="","",'DF raw data'!P68) -> 6.60711e-06 | F63: =(1-$G$1*($B$49-$G$2))*B63 -> -5.072838206e-06 | G63: =(1-$G$1*($B$49-$G$2))*C63 -> 0.0001723973968 | H63: 6.637502706e-06 | J63: =F63*$G$3+J62 -> -1.139577669e-05 | K63: =J63*$G$3+K62 -> -1.012756714e-05 | L63: =G63*$G$3+L62 -> 0.0001738847071 | M63: =L63*$G$3+M62 -> 0.0001307853579 | N63: =(J63^2+L63^2)*$G$3+N62 -> 1.906653971e-08
A64: =IF('DF raw data'!M69="","",'DF raw data'!M69) -> -299 | B64: =IF('DF raw data'!N69="","",'DF raw data'!N69) -> -8.44585e-06 | C64: =IF('DF raw data'!O69="","",'DF raw data'!O69) -> 0.000177586 | D64: =IF('DF raw data'!P69="","",'DF raw data'!P69) -> 4.97845e-06 | F64: =(1-$G$1*($B$49-$G$2))*B64 -> -8.48470091e-06 | G64: 0.0001784028956 | H64: 5.00135087e-06 | J64: =F64*$G$3+J63 -> -1.563812715e-05 | K64: =J64*$G$3+K63 -> -1.794663072e-05 | L64: =G64*$G$3+L63 -> 0.0002630861549 | M64: =L64*$G$3+M63 -> 0.0002623284354 | N64: =(J64^2+L64^2)*$G$3+N63 -> 5.379597767e-08
A65: =IF('DF raw data'!M70="","",'DF raw data'!M70) -> -298.5 | B65: =IF('DF raw data'!N70="","",'DF raw data'!N70) -> -1.91502e-05 | C65: =IF('DF raw data'!O70="","",'DF raw data'!O70) -> 0.000184717 | D65: =IF('DF raw data'!P70="","",'DF raw data'!P70) -> 4.55075e-06 | F65: -1.923829092e-05 | G65: 0.0001855666982 | H65: 4.57168345e-06 | J65: -2.525727261e-05 | K65: -3.057526702e-05 | L65: 0.000355869504 | M65: 0.0004402631873 | N65: 1.174364945e-07
A66: =IF('DF raw data'!M71="","",'DF raw data'!M71) -> -298 | B66: =IF('DF raw data'!N71="","",'DF raw data'!N71) -> -1.93432e-05 | C66: =IF('DF raw data'!O71="","",'DF raw data'!O71) -> 0.000182423 | D66: =IF('DF raw data'!P71="","",'DF raw data'!P71) -> 5.33553e-06 | F66: -1.943217872e-05 | G66: 0.0001832621458 | H66: 5.360073438e-06 | J66: -3.497336197e-05 | K66: -4.8061948e-05 | L66: 0.0004475005769 | M66: 0.0006640134758 | N66: 2.181764457e-07
A67: =IF('DF raw data'!M72="","",'DF raw data'!M72) -> -297.5 | B67: =IF('DF raw data'!N72="","",'DF raw data'!N72) -> -2.12025e-05 | C67: =IF('DF raw data'!O72="","",'DF raw data'!O72) -> 0.000178805 | D67: =IF('DF raw data'!P72="","",'DF raw data'!P72) -> 6.33701e-06 | F67: -2.13000315e-05 | G67: 0.000179627503 | H67: 6.366160246e-06 | J67: -4.562337772e-05 | K67: -7.087363686e-05 | L67: 0.0005373143284 | M67: 0.00093267064 | N67: 3.635705358e-07
A68: =IF('DF raw data'!M73="","",'DF raw data'!M73) -> -297 | B68: =IF('DF raw data'!N73="","",'DF raw data'!N73) -> -1.44081e-05 | C68: =IF('DF raw data'!O73="","",'DF raw data'!O73) -> 0.000177082 | D68: =IF('DF raw data'!P73="","",'DF raw data'!P73) -> 6.65694e-06 | F68: -1.447437726e-05 | G68: 0.0001778965772 | H68: 6.687561924e-06 | J68: -5.286056635e-05 | K68: -9.730392004e-05 | L68: 0.000626262617 | M68: 0.001245801948 | N68: 5.610700882e-07
A69: =IF('DF raw data'!M74="","",'DF raw data'!M74) -> -296.5 | B69: =IF('DF raw data'!N74="","",'DF raw data'!N74) -> -9.21576e-06 | C69: =IF('DF raw data'!O74="","",'DF raw data'!O74) -> 0.000174474 | D69: =IF('DF raw data'!P74="","",'DF raw data'!P74) -> 6.13129e-06 | F69: -9.258152496e-06 | G69: 0.0001752765804 | H69: 6.159493934e-06 | J69: -5.74896426e-05 | K69: -0.0001260487413 | L69: 0.0007139009072 | M69: 0.001602752402 | N69: 8.175498704e-07
A70: =IF('DF raw data'!M75="","",'DF raw data'!M75) -> -296 | B70: =IF('DF raw data'!N75="","",'DF raw data'!N75) -> -1.21641e-05 | C70: =IF('DF raw data'!O75="","",'DF raw data'!O75) -> 0.000176388 | D70: =IF('DF raw data'!P75="","",'DF raw data'!P75) -> 5.43823e-06 | F70: -1.222005486e-05 | G70: 0.0001771993848 | H70: 5.463245858e-06 | J70: -6.359967003e-05 | K70: -0.0001578485763 | L70: 0.0008025005996 | M70: 0.002004002702 | N70: 1.141575936e-06
A71: =IF('DF raw data'!M76="","",'DF raw data'!M76) -> -295.5 | B71: =IF('DF raw data'!N76="","",'DF raw data'!N76) -> -1.31895e-05 | C71: =IF('DF raw data'!O76="","",'DF raw data'!O76) -> 0.000179202 | D71: =IF('DF raw data'!P76="","",'DF raw data'!P76) -> 5.32407e-06 | F71: -1.32501717e-05 | G71: 0.0001800263292 | H71: 5.348560722e-06 | J71: -7.022475588e-05 | K71: -0.0001929609543 | L71: 0.0008925137642 | M71: 0.002450259584 | N71: 1.542332103e-06
A72: =IF('DF raw data'!M77="","",'DF raw data'!M77) -> -295 | B72: =IF('DF raw data'!N77="","",'DF raw data'!N77) -> -1.86382e-05 | C72: =IF('DF raw data'!O77="","",'DF raw data'!O77) -> 0.000180025 | D72: =IF('DF raw data'!P77="","",'DF raw data'!P77) -> 5.68027e-06 | F72: -1.872393572e-05 | G72: 0.000180853115 | H72: 5.706399242e-06 | J72: -7.958672374e-05 | K72: -0.0002327543162 | L72: 0.0009829403217 | M72: 0.002941729745 | N72: 2.028584965e-06
A73: =IF('DF raw data'!M78="","",'DF raw data'!M78) -> -294.5 | B73: =IF('DF raw data'!N78="","",'DF raw data'!N78) -> -1.02411e-05 | C73: =IF('DF raw data'!O78="","",'DF raw data'!O78) -> 0.000179332 | D73: =IF('DF raw data'!P78="","",'DF raw data'!P78) -> 5.84109e-06 | F73: -1.028820906e-05 | G73: 0.0001801569272 | H73: 5.867959014e-06 | J73: -8.473082827e-05 | K73: -0.0002751197303 | L73: 0.001073018785 | M73: 0.003478239137 | N73: 2.607859278e-06
A74: =IF('DF raw data'!M79="","",'DF raw data'!M79) -> -294 | B74: =IF('DF raw data'!N79="","",'DF raw data'!N79) -> -1.54335e-05 | C74: =IF('DF raw data'!O79="","",'DF raw data'!O79) -> 0.000174502 | D74: =IF('DF raw data'!P79="","",'DF raw data'!P79) -> 5.89662e-06 | F74: -1.55044941e-05 | G74: 0.0001753047092 | H74: 5.923744452e-06 | J74: -9.248307532e-05 | K74: -0.0003213612679 | L74: 0.00116067114 | M74: 0.004058574707 | N74: 3.285714585e-06
A75: =IF('DF raw data'!M80="","",'DF raw data'!M80) -> -293.5 | B75: =IF('DF raw data'!N80="","",'DF raw data'!N80) -> -1.4664e-05 | C75: =IF('DF raw data'!O80="","",'DF raw data'!O80) -> 0.000171491 | D75: =IF('DF raw data'!P80="","",'DF raw data'!P80) -> 5.9097e-06 | F75: -1.47314544e-05 | G75: 0.0001722798586 | H75: 5.93688462e-06 | J75: -9.984880252e-05 | K75: -0.0003712856692 | L75: 0.001246811069 | M75: 0.004681980242 | N75: 4.067968398e-06
A76: =IF('DF raw data'!M81="","",'DF raw data'!M81) -> -293 | B76: =IF('DF raw data'!N81="","",'DF raw data'!N81) -> -7.48473e-06 | C76: =IF('DF raw data'!O81="","",'DF raw data'!O81) -> 0.000173354 | D76: =IF('DF raw data'!P81="","",'DF raw data'!P81) -> 5.71447e-06 | F76: -7.519159758e-06 | G76: 0.0001741514284 | H76: 5.740756562e-06 | J76: -0.0001036083824 | K76: -0.0004230898604 | L76: 0.001333886783 | M76: 0.005348923634 | N76: 4.962962722e-06
A77: =IF('DF raw data'!M82="","",'DF raw data'!M82) -> -292.5 | B77: =IF('DF raw data'!N82="","",'DF raw data'!N82) -> -1.69716e-05 | C77: =IF('DF raw data'!O82="","",'DF raw data'!O82) -> 0.000183319 | D77: =IF('DF raw data'!P82="","",'DF raw data'!P82) -> 5.60992e-06 | F77: -1.704966936e-05 | G77: 0.0001841622674 | H77: 5.635725632e-06 | J77: -0.0001121332171 | K77: -0.0004791564689 | L77: 0.001425967917 | M77: 0.006061907592 | N77: 5.985941901e-06
A78: =IF('DF raw data'!M83="","",'DF raw data'!M83) -> -292 | B78: =IF('DF raw data'!N83="","",'DF raw data'!N83) -> -1.12026e-05 | C78: =IF('DF raw data'!O83="","",'DF raw data'!O83) -> 0.000178736 | D78: =IF('DF raw data'!P83="","",'DF raw data'!P83) -> 5.62224e-06 | F78: -1.125413196e-05 | G78: 0.0001795581856 | H78: 5.648102304e-06 | J78: -0.0001177602831 | K78: -0.0005380366105 | L78: 0.00151574701 | M78: 0.006819781097 | N78: 7.141620143e-06
A79: =IF('DF raw data'!M84="","",'DF raw data'!M84) -> -291.5 | B79: =IF('DF raw data'!N84="","",'DF raw data'!N84) -> -1.25354e-05 | C79: =IF('DF raw data'!O84="","",'DF raw data'!O84) -> 0.000177901 | D79: =IF('DF raw data'!P84="","",'DF raw data'!P84) -> -1.49752e-05 | F79: -1.259306284e-05 | G79: 0.0001787193446 | H79: -1.504408592e-05 | J79: -0.0001240568145 | K79: -0.0006000650177 | L79: 0.001605106682 | M79: 0.007622334438 | N79: 8.43749892e-06
A80: =IF('DF raw data'!M85="","",'DF raw data'!M85) -> -291 | B80: =IF('DF raw data'!N85="","",'DF raw data'!N85) -> -1.55496e-05 | C80: =IF('DF raw data'!O85="","",'DF raw data'!O85) -> 0.000176748 | D80: =IF('DF raw data'!P85="","",'DF raw data'!P85) -> -1.26875e-05 | F80: -1.562112816e-05 | G80: 0.0001775610408 | H80: -1.27458625e-05 | J80: -0.0001318673786 | K80: -0.000665998707 | L80: 0.001693887203 | M80: 0.00846927804 | N80: 9.88082035e-06
A81: =IF('DF raw data'!M86="","",'DF raw data'!M86) -> -290.5 | B81: =IF('DF raw data'!N86="","",'DF raw data'!N86) -> -1.16981e-05 | C81: =IF('DF raw data'!O86="","",'DF raw data'!O86) -> 0.000174279 | D81: =IF('DF raw data'!P86="","",'DF raw data'!P86) -> -2.09675e-05 | F81: -1.175191126e-05 | G81: 0.0001750806834 | H81: -2.10639505e-05 | J81: -0.0001377433342 | K81: -0.0007348703741 | L81: 0.001781427544 | M81: 0.009359991812 | N81: 1.147704901e-05
A82: =IF('DF raw data'!M87="","",'DF raw data'!M87) -> -290 | B82: =IF('DF raw data'!N87="","",'DF raw data'!N87) -> -1.74654e-05 | C82: =IF('DF raw data'!O87="","",'DF raw data'!O87) -> 0.000179473 | D82: =IF('DF raw data'!P87="","",'DF raw data'!P87) -> -2.36328e-05 | F82: -1.754574084e-05 | G82: 0.0001802985758 | H82: -2.374151088e-05 | J82: -0.0001465162046 | K82: -0.0008081284764 | L82: 0.001871576832 | M82: 0.01029578023 | N82: 1.323918243e-05
A83: =IF('DF raw data'!M88="","",'DF raw data'!M88) -> -289.5 | B83: =IF('DF raw data'!N88="","",'DF raw data'!N88) -> -6.38745e-06 | C83: =IF('DF raw data'!O88="","",'DF raw data'!O88) -> 0.000173559 | D83: =IF('DF raw data'!P88="","",'DF raw data'!P88) -> -6.23559e-06 | F83: -6.41683227e-06 | G83: 0.0001743573714 | H83: -6.264273714e-06 | J83: -0.0001497246207 | K83: -0.0008829907867 | L83: 0.001958755518 | M83: 0.01127515799 | N83: 1.516875275e-05
A84: =IF('DF raw data'!M89="","",'DF raw data'!M89) -> -289 | B84: =IF('DF raw data'!N89="","",'DF raw data'!N89) -> -1.22806e-05 | C84: =IF('DF raw data'!O89="","",'DF raw data'!O89) -> 0.000174981 | D84: =IF('DF raw data'!P89="","",'DF raw data'!P89) -> -1.25061e-05 | F84: -1.233709076e-05 | G84: 0.0001757859126 | H84: -1.256362806e-05 | J84: -0.0001558931661 | K84: -0.0009609373698 | L84: 0.002046648474 | M84: 0.01229848222 | N84: 1.727528908e-05
A85: =IF('DF raw data'!M90="","",'DF raw data'!M90) -> -288.5 | B85: =IF('DF raw data'!N90="","",'DF raw data'!N90) -> -7.34076e-06 | C85: =IF('DF raw data'!O90="","",'DF raw data'!O90) -> 0.000179576 | D85: =IF('DF raw data'!P90="","",'DF raw data'!P90) -> -1.86073e-05 | F85: -7.374527496e-06 | G85: 0.0001804020496 | H85: -1.869289358e-05 | J85: -0.0001595804299 | K85: -0.001040727585 | L85: 0.002136849499 | M85: 0.01336690697 | N85: 1.957108493e-05
A86: =IF('DF raw data'!M91="","",'DF raw data'!M91) -> -288 | B86: =IF('DF raw data'!N91="","",'DF raw data'!N91) -> -1.31808e-05 | C86: =IF('DF raw data'!O91="","",'DF raw data'!O91) -> 0.000180941 | D86: =IF('DF raw data'!P91="","",'DF raw data'!P91) -> -8.17226e-06 | F86: -1.324143168e-05 | G86: 0.0001817733286 | H86: -8.209852396e-06 | J86: -0.0001662011457 | K86: -0.001123828158 | L86: 0.002227736163 | M86: 0.01448077506 | N86: 2.206630054e-05
A87: =IF('DF raw data'!M92="","",'DF raw data'!M92) -> -287.5 | B87: =IF('DF raw data'!N92="","",'DF raw data'!N92) -> -8.62189e-06 | C87: =IF('DF raw data'!O92="","",'DF raw data'!O92) -> 0.00016955 | D87: =IF('DF raw data'!P92="","",'DF raw data'!P92) -> -1.98662e-05 | F87: -8.661550694e-06 | G87: 0.00017032993 | H87: -1.995758452e-05 | J87: -0.0001705319211 | K87: -0.001209094118 | L87: 0.002312901128 | M87: 0.01563722562 | N87: 2.475559693e-05
A88: =IF('DF raw data'!M93="","",'DF raw data'!M93) -> -287 | B88: =IF('DF raw data'!N93="","",'DF raw data'!N93) -> 1.24311e-06 | C88: =IF('DF raw data'!O93="","",'DF raw data'!O93) -> 0.000168744 | D88: =IF('DF raw data'!P93="","",'DF raw data'!P93) -> -1.0194e-05 | F88: 1.248828306e-06 | G88: 0.0001695202224 | H88: -1.02408924e-05 | J88: -0.0001699075069 | K88: -0.001294047872 | L88: 0.002397661239 | M88: 0.01683605624 | N88: 2.764442092e-05
A89: =IF('DF raw data'!M94="","",'DF raw data'!M94) -> -286.5 | B89: =IF('DF raw data'!N94="","",'DF raw data'!N94) -> -9.77964e-06 | C89: =IF('DF raw data'!O94="","",'DF raw data'!O94) -> 0.00017417 | D89: =IF('DF raw data'!P94="","",'DF raw data'!P94) -> -1.41146e-05 | F89: -9.824626344e-06 | G89: 0.000174971182 | H89: -1.417952716e-05 | J89: -0.0001748198201 | K89: -0.001381457782 | L89: 0.00248514683 | M89: 0.01807862965 | N89: 3.074767928e-05
A90: =IF('DF raw data'!M95="","",'DF raw data'!M95) -> -286 | B90: =IF('DF raw data'!N95="","",'DF raw data'!N95) -> -1.92042e-05 | C90: =IF('DF raw data'!O95="","",'DF raw data'!O95) -> 0.000169872 | D90: =IF('DF raw data'!P95="","",'DF raw data'!P95) -> -1.13136e-05 | F90: -1.929253932e-05 | G90: 0.0001706534112 | H90: -1.136564256e-05 | J90: -0.0001844660897 | K90: -0.001473690826 | L90: 0.002570473536 | M90: 0.01936386642 | N90: 3.406836025e-05
A91: =IF('DF raw data'!M96="","",'DF raw data'!M96) -> -285.5 | B91: =IF('DF raw data'!N96="","",'DF raw data'!N96) -> -2.24675e-05 | C91: =IF('DF raw data'!O96="","",'DF raw data'!O96) -> 0.000162923 | D91: =IF('DF raw data'!P96="","",'DF raw data'!P96) -> -2.02262e-05 | F91: -2.25708505e-05 | G91: 0.0001636724458 | H91: -2.031924052e-05 | J91: -0.000195751515 | K91: -0.001571566584 | L91: 0.002652309759 | M91: 0.0206900213 | N91: 3.760489311e-05
A92: =IF('DF raw data'!M97="","",'DF raw data'!M97) -> -285 | B92: =IF('DF raw data'!N97="","",'DF raw data'!N97) -> -1.22136e-05 | C92: =IF('DF raw data'!O97="","",'DF raw data'!O97) -> 0.000164299 | D92: =IF('DF raw data'!P97="","",'DF raw data'!P97) -> -1.6798e-05 | F92: -1.226978256e-05 | G92: 0.0001650547754 | H92: -1.68752708e-05 | J92: -0.0002018864063 | K92: -0.001672509787 | L92: 0.002734837147 | M92: 0.02205743988 | N92: 4.136493928e-05
A93: =IF('DF raw data'!M98="","",'DF raw data'!M98) -> -284.5 | B93: =IF('DF raw data'!N98="","",'DF raw data'!N98) -> -2.08056e-05 | C93: =IF('DF raw data'!O98="","",'DF raw data'!O98) -> 0.000172091 | D93: =IF('DF raw data'!P98="","",'DF raw data'!P98) -> -1.2701e-05 | F93: -2.090130576e-05 | G93: 0.0001728826186 | H93: -1.27594246e-05 | J93: -0.0002123370591 | K93: -0.001778678317 | L93: 0.002821278456 | M93: 0.0234680791 | N93: 4.536728886e-05
A94: =IF('DF raw data'!M99="","",'DF raw data'!M99) -> -284 | B94: =IF('DF raw data'!N99="","",'DF raw data'!N99) -> -1.99707e-05 | C94: =IF('DF raw data'!O99="","",'DF raw data'!O99) -> 0.000163671 | D94: =IF('DF raw data'!P99="","",'DF raw data'!P99) -> -1.54494e-05 | F94: -2.006256522e-05 | G94: 0.0001644238866 | H94: -1.552046724e-05 | J94: -0.0002223683418 | K94: -0.001889862488 | L94: 0.002903490399 | M94: 0.0249198243 | N94: 4.960714095e-05
A95: =IF('DF raw data'!M100="","",'DF raw data'!M100) -> -283.5 | B95: =IF('DF raw data'!N100="","",'DF raw data'!N100) -> -1.0295e-05 | C95: =IF('DF raw data'!O100="","",'DF raw data'!O100) -> 0.000164325 | D95: =IF('DF raw data'!P100="","",'DF raw data'!P100) -> -1.00977e-05 | F95: -1.0342357e-05 | G95: 0.000165080895 | H95: -1.014414942e-05 | J95: -0.0002275395203 | K95: -0.002003632248 | L95: 0.002986030847 | M95: 0.02641283973 | N95: 5.409121817e-05
A96: =IF('DF raw data'!M101="","",'DF raw data'!M101) -> -283 | B96: =IF('DF raw data'!N101="","",'DF raw data'!N101) -> -1.72783e-05 | C96: =IF('DF raw data'!O101="","",'DF raw data'!O101) -> 0.000165497 | D96: =IF('DF raw data'!P101="","",'DF raw data'!P101) -> -1.53935e-05 | F96: -1.735778018e-05 | G96: 0.0001662582862 | H96: -1.54643101e-05 | J96: -0.0002362184103 | K96: -0.002121741453 | L96: 0.00306915999 | M96: 0.02794741972 | N96: 5.882898926e-05
A97: =IF('DF raw data'!M102="","",'DF raw data'!M102) -> -282.5 | B97: =IF('DF raw data'!N102="","",'DF raw data'!N102) -> -1.60678e-05 | C97: =IF('DF raw data'!O102="","",'DF raw data'!O102) -> 0.000164995 | D97: =IF('DF raw data'!P102="","",'DF raw data'!P102) -> -4.30676e-06 | F97: -1.614171188e-05 | G97: 0.000165753977 | H97: -4.326571096e-06 | J97: -0.0002442892663 | K97: -0.002243886086 | L97: 0.003152036978 | M97: 0.02952343821 | N97: 6.382649644e-05
A98: =IF('DF raw data'!M103="","",'DF raw data'!M103) -> -282 | B98: =IF('DF raw data'!N103="","",'DF raw data'!N103) -> -1.78517e-05 | C98: =IF('DF raw data'!O103="","",'DF raw data'!O103) -> 0.000165279 | D98: =IF('DF raw data'!P103="","",'DF raw data'!P103) -> -2.09503e-05 | F98: -1.793381782e-05 | G98: 0.0001660392834 | H98: -2.104667138e-05 | J98: -0.0002532561752 | K98: -0.002370514174 | L98: 0.00323505662 | M98: 0.03114096652 | N98: 6.909136145e-05
A99: =IF('DF raw data'!M104="","",'DF raw data'!M104) -> -281.5 | B99: =IF('DF raw data'!N104="","",'DF raw data'!N104) -> -6.83243e-06 | C99: =IF('DF raw data'!O104="","",'DF raw data'!O104) -> 0.000164557 | D99: =IF('DF raw data'!P104="","",'DF raw data'!P104) -> -1.17395e-05 | F99: -6.863859178e-06 | G99: 0.0001653139622 | H99: -1.17935017e-05 | J99: -0.0002566881048 | K99: -0.002498858226 | L99: 0.003317713601 | M99: 0.03279982332 | N99: 7.462791762e-05
A100: =IF('DF raw data'!M105="","",'DF raw data'!M105) -> -281 | B100: =IF('DF raw data'!N105="","",'DF raw data'!N105) -> -7.67265e-06 | C100: =IF('DF raw data'!O105="","",'DF raw data'!O105) -> 0.00017208 | D100: =IF('DF raw data'!P105="","",'DF raw data'!P105) -> -1.22748e-06 | F100: -7.70794419e-06 | G100: 0.000172871568 | H100: -1.233126408e-06 | J100: -0.0002605420769 | K100: -0.002629129264 | L100: 0.003404149385 | M100: 0.03450189801 | N100: 8.045597522e-05
A101: =IF('DF raw data'!M106="","",'DF raw data'!M106) -> -280.5 | B101: =IF('DF raw data'!N106="","",'DF raw data'!N106) -> -7.86312e-06 | C101: =IF('DF raw data'!O106="","",'DF raw data'!O106) -> 0.000172601 | D101: =IF('DF raw data'!P106="","",'DF raw data'!P106) -> -3.82402e-06 | F101: -7.899290352e-06 | G101: 0.0001733949646 | H101: -3.841610492e-06 | J101: -0.0002644917221 | K101: -0.002761375125 | L101: 0.003490846868 | M101: 0.03624732145 | N101: 8.658395908e-05
A102: =IF('DF raw data'!M107="","",'DF raw data'!M107) -> -280 | B102: =IF('DF raw data'!N107="","",'DF raw data'!N107) -> -6.0639e-06 | C102: =IF('DF raw data'!O107="","",'DF raw data'!O107) -> 0.000171473 | D102: =IF('DF raw data'!P107="","",'DF raw data'!P107) -> -1.07485e-05 | F102: -6.09179394e-06 | G102: 0.0001722617758 | H102: -1.07979431e-05 | J102: -0.000267537619 | K102: -0.002895143935 | L102: 0.003576977755 | M102: 0.03803581033 | N102: 9.30171322e-05
A103: =IF('DF raw data'!M108="","",'DF raw data'!M108) -> -279.5 | B103: =IF('DF raw data'!N108="","",'DF raw data'!N108) -> -1.13221e-05 | C103: =IF('DF raw data'!O108="","",'DF raw data'!O108) -> 0.000174882 | D103: =IF('DF raw data'!P108="","",'DF raw data'!P108) -> -7.71057e-06 | F103: -1.137418166e-05 | G103: 0.0001756864572 | H103: -7.746038622e-06 | J103: -0.0002732247099 | K103: -0.00303175629 | L103: 0.003664820984 | M103: 0.03986822082 | N103: 9.97699145e-05
A104: =IF('DF raw data'!M109="","",'DF raw data'!M109) -> -279 | B104: =IF('DF raw data'!N109="","",'DF raw data'!N109) -> -1.04236e-05 | C104: =IF('DF raw data'!O109="","",'DF raw data'!O109) -> 0.000174305 | D104: =IF('DF raw data'!P109="","",'DF raw data'!P109) -> -9.50162e-06 | F104: -1.047154856e-05 | G104: 0.000175106803 | H104: -9.545327452e-06 | J104: -0.0002784604841 | K104: -0.003170986532 | L104: 0.003752374386 | M104: 0.04174440801 | N104: 0.0001068488414
A105: =IF('DF raw data'!M110="","",'DF raw data'!M110) -> -278.5 | B105: =IF('DF raw data'!N110="","",'DF raw data'!N110) -> -1.66448e-05 | C105: =IF('DF raw data'!O110="","",'DF raw data'!O110) -> 0.000174107 | D105: =IF('DF raw data'!P110="","",'DF raw data'!P110) -> -3.98424e-06 | F105: -1.672136608e-05 | G105: 0.0001749078922 | H105: -4.002567504e-06 | J105: -0.0002868211672 | K105: -0.003314397116 | L105: 0.003839828332 | M105: 0.04366432218 | N105: 0.0001142621154
A106: =IF('DF raw data'!M111="","",'DF raw data'!M111) -> -278 | B106: =IF('DF raw data'!N111="","",'DF raw data'!N111) -> -1.69627e-05 | C106: =IF('DF raw data'!O111="","",'DF raw data'!O111) -> 0.00017718 | D106: =IF('DF raw data'!P111="","",'DF raw data'!P111) -> -8.13364e-06 | F106: -1.704072842e-05 | G106: 0.000177995028 | H106: -8.171054744e-06 | J106: -0.0002953415314 | K106: -0.003462067881 | L106: 0.003928825846 | M106: 0.0456287351 | N106: 0.000122023565
A107: =IF('DF raw data'!M112="","",'DF raw data'!M112) -> -277.5 | B107: =IF('DF raw data'!N112="","",'DF raw data'!N112) -> -9.58579e-06 | C107: =IF('DF raw data'!O112="","",'DF raw data'!O112) -> 0.000177783 | D107: =IF('DF raw data'!P112="","",'DF raw data'!P112) -> -1.63123e-05 | F107: -9.629884634e-06 | G107: 0.0001786008018 | H107: -1.638733658e-05 | J107: -0.0003001564737 | K107: -0.003612146118 | L107: 0.004018126247 | M107: 0.04763779822 | N107: 0.0001301412812
A108: =IF('DF raw data'!M113="","",'DF raw data'!M113) -> -277 | B108: =IF('DF raw data'!N113="","",'DF raw data'!N113) -> -9.0782e-06 | C108: =IF('DF raw data'!O113="","",'DF raw data'!O113) -> 0.000179208 | D108: =IF('DF raw data'!P113="","",'DF raw data'!P113) -> -8.30173e-06 | F108: -9.11995972e-06 | G108: 0.0001800323568 | H108: -8.339917958e-06 | J108: -0.0003047164536 | K108: -0.003764504345 | L108: 0.004108142425 | M108: 0.04969186943 | N108: 0.0001386261243
A109: =IF('DF raw data'!M114="","",'DF raw data'!M114) -> -276.5 | B109: =IF('DF raw data'!N114="","",'DF raw data'!N114) -> -1.17612e-05 | C109: =IF('DF raw data'!O114="","",'DF raw data'!O114) -> 0.000178716 | D109: =IF('DF raw data'!P114="","",'DF raw data'!P114) -> -2.22919e-05 | F109: -1.181530152e-05 | G109: 0.0001795380936 | H109: -2.239444274e-05 | J109: -0.0003106241043 | K109: -0.003919816397 | L109: 0.004197911472 | M109: 0.05179082517 | N109: 0.0001474855984
A110: =IF('DF raw data'!M115="","",'DF raw data'!M115) -> -276 | B110: =IF('DF raw data'!N115="","",'DF raw data'!N115) -> -2.04213e-05 | C110: =IF('DF raw data'!O115="","",'DF raw data'!O115) -> 0.000168261 | D110: =IF('DF raw data'!P115="","",'DF raw data'!P115) -> -1.22332e-05 | F110: -2.051523798e-05 | G110: 0.0001690350006 | H110: -1.228947272e-05 | J110: -0.0003208817233 | K110: -0.004080257259 | L110: 0.004282428972 | M110: 0.05393203966 | N110: 0.0001567066798
A111: =IF('DF raw data'!M116="","",'DF raw data'!M116) -> -275.5 | B111: =IF('DF raw data'!N116="","",'DF raw data'!N116) -> -2.79834e-05 | C111: =IF('DF raw data'!O116="","",'DF raw data'!O116) -> 0.00015973 | D111: =IF('DF raw data'!P116="","",'DF raw data'!P116) -> -1.52337e-05 | F111: -2.811212364e-05 | G111: 0.000160464758 | H111: -1.530377502e-05 | J111: -0.0003349377851 | K111: -0.004247726151 | L111: 0.004362661351 | M111: 0.05611337033 | N111: 0.0001662791785
A112: =IF('DF raw data'!M117="","",'DF raw data'!M117) -> -275 | B112: =IF('DF raw data'!N117="","",'DF raw data'!N117) -> -1.91409e-05 | C112: =IF('DF raw data'!O117="","",'DF raw data'!O117) -> 0.00016652 | D112: =IF('DF raw data'!P117="","",'DF raw data'!P117) -> -9.74861e-06 | F112: -1.922894814e-05 | G112: 0.000167285992 | H112: -9.793453606e-06 | J112: -0.0003445522592 | K112: -0.004420002281 | L112: 0.004446304347 | M112: 0.0583365225 | N112: 0.0001762233478
A113: =IF('DF raw data'!M118="","",'DF raw data'!M118) -> -274.5 | B113: =IF('DF raw data'!N118="","",'DF raw data'!N118) -> -1.67057e-05 | C113: =IF('DF raw data'!O118="","",'DF raw data'!O118) -> 0.000175144 | D113: =IF('DF raw data'!P118="","",'DF raw data'!P118) -> -9.05115e-06 | F113: -1.678254622e-05 | G113: 0.0001759496624 | H113: -9.09278529e-06 | J113: -0.0003529435323 | K113: -0.004596474047 | L113: 0.004534279178 | M113: 0.06060366209 | N113: 0.0001865654762
A114: =IF('DF raw data'!M119="","",'DF raw data'!M119) -> -274 | B114: =IF('DF raw data'!N119="","",'DF raw data'!N119) -> -1.70217e-05 | C114: =IF('DF raw data'!O119="","",'DF raw data'!O119) -> 0.000178193 | D114: =IF('DF raw data'!P119="","",'DF raw data'!P119) -> -1.57711e-05 | F114: -1.709999982e-05 | G114: 0.0001790126878 | H114: -1.584364706e-05 | J114: -0.0003614935322 | K114: -0.004777220813 | L114: 0.004623785522 | M114: 0.06291555486 | N114: 0.0001973205113
A115: =IF('DF raw data'!M120="","",'DF raw data'!M120) -> -273.5 | B115: =IF('DF raw data'!N120="","",'DF raw data'!N120) -> -2.1572e-05 | C115: =IF('DF raw data'!O120="","",'DF raw data'!O120) -> 0.0001707 | D115: =IF('DF raw data'!P120="","",'DF raw data'!P120) -> -1.73816e-05 | F115: -2.16712312e-05 | G115: 0.00017148522 | H115: -1.746155536e-05 | J115: -0.0003723291478 | K115: -0.004963385387 | L115: 0.004709528132 | M115: 0.06527031892 | N115: 0.0002084796534
A116: =IF('DF raw data'!M121="","",'DF raw data'!M121) -> -273 | B116: =IF('DF raw data'!N121="","",'DF raw data'!N121) -> -1.86301e-05 | C116: =IF('DF raw data'!O121="","",'DF raw data'!O121) -> 0.0001694 | D116: =IF('DF raw data'!P121="","",'DF raw data'!P121) -> -6.84065e-06 | F116: -1.871579846e-05 | G116: 0.00017017924 | H116: -6.87211699e-06 | J116: -0.0003816870471 | K116: -0.005154228911 | L116: 0.004794617752 | M116: 0.0676676278 | N116: 0.0002200466756
A117: =IF('DF raw data'!M122="","",'DF raw data'!M122) -> -272.5 | B117: =IF('DF raw data'!N122="","",'DF raw data'!N122) -> -1.24777e-05 | C117: =IF('DF raw data'!O122="","",'DF raw data'!O122) -> 0.000170894 | D117: =IF('DF raw data'!P122="","",'DF raw data'!P122) -> -4.9281e-06 | F117: -1.253509742e-05 | G117: 0.0001716801124 | H117: -4.95076926e-06 | J117: -0.0003879545958 | K117: -0.005348206208 | L117: 0.004880457808 | M117: 0.0701078567 | N117: 0.0002320313642
A118: =IF('DF raw data'!M123="","",'DF raw data'!M123) -> -272 | B118: =IF('DF raw data'!N123="","",'DF raw data'!N123) -> -8.24166e-06 | C118: =IF('DF raw data'!O123="","",'DF raw data'!O123) -> 0.000178327 | D118: =IF('DF raw data'!P123="","",'DF raw data'!P123) -> -1.31393e-05 | F118: -8.279571636e-06 | G118: 0.0001791473042 | H118: -1.319974078e-05 | J118: -0.0003920943816 | K118: -0.005544253399 | L118: 0.00497003146 | M118: 0.07259287243 | N118: 0.0002444588396
A119: =IF('DF raw data'!M124="","",'DF raw data'!M124) -> -271.5 | B119: =IF('DF raw data'!N124="","",'DF raw data'!N124) -> -1.78507e-05 | C119: =IF('DF raw data'!O124="","",'DF raw data'!O124) -> 0.000178362 | D119: =IF('DF raw data'!P124="","",'DF raw data'!P124) -> -2.25973e-05 | F119: -1.793281322e-05 | G119: 0.0001791824652 | H119: -2.270124758e-05 | J119: -0.0004010607882 | K119: -0.005744783793 | L119: 0.005059622693 | M119: 0.07512268378 | N119: 0.0002573391553
A120: =IF('DF raw data'!M125="","",'DF raw data'!M125) -> -271 | B120: =IF('DF raw data'!N125="","",'DF raw data'!N125) -> -1.99734e-05 | C120: =IF('DF raw data'!O125="","",'DF raw data'!O125) -> 0.000170855 | D120: =IF('DF raw data'!P125="","",'DF raw data'!P125) -> -1.12369e-05 | F120: -2.006527764e-05 | G120: 0.000171640933 | H120: -1.128858974e-05 | J120: -0.000411093427 | K120: -0.005950330507 | L120: 0.005145443159 | M120: 0.07769540536 | N120: 0.0002706614469
A121: =IF('DF raw data'!M126="","",'DF raw data'!M126) -> -270.5 | B121: =IF('DF raw data'!N126="","",'DF raw data'!N126) -> -1.22856e-05 | C121: =IF('DF raw data'!O126="","",'DF raw data'!O126) -> 0.000181924 | D121: =IF('DF raw data'!P126="","",'DF raw data'!P126) -> -4.79325e-06 | F121: -1.234211376e-05 | G121: 0.0001827608504 | H121: -4.81529895e-06 | J121: -0.0004172644839 | K121: -0.006158962749 | L121: 0.005236823585 | M121: 0.08031381715 | N121: 0.0002844606623
A122: =IF('DF raw data'!M127="","",'DF raw data'!M127) -> -270 | B122: =IF('DF raw data'!N127="","",'DF raw data'!N127) -> -1.68946e-05 | C122: =IF('DF raw data'!O127="","",'DF raw data'!O127) -> 0.000182623 | D122: =IF('DF raw data'!P127="","",'DF raw data'!P127) -> -1.41358e-05 | F122: -1.697231516e-05 | G122: 0.0001834630658 | H122: -1.420082468e-05 | J122: -0.0004257506415 | K122: -0.006371838069 | L122: 0.005328555118 | M122: 0.08297809471 | N122: 0.000298748044
A123: =IF('DF raw data'!M128="","",'DF raw data'!M128) -> -269.5 | B123: =IF('DF raw data'!N128="","",'DF raw data'!N128) -> -2.4464e-05 | C123: =IF('DF raw data'!O128="","",'DF raw data'!O128) -> 0.000174906 | D123: =IF('DF raw data'!P128="","",'DF raw data'!P128) -> -5.36175e-06 | F123: -2.45765344e-05 | G123: 0.0001757105676 | H123: -5.38641405e-06 | J123: -0.0004380389087 | K123: -0.006590857524 | L123: 0.005416410401 | M123: 0.08568629991 | N123: 0.0003135127338
A124: =IF('DF raw data'!M129="","",'DF raw data'!M129) -> -269 | B124: =IF('DF raw data'!N129="","",'DF raw data'!N129) -> -1.50334e-05 | C124: =IF('DF raw data'!O129="","",'DF raw data'!O129) -> 0.000178147 | D124: =IF('DF raw data'!P129="","",'DF raw data'!P129) -> -1.74567e-05 | F124: -1.510255364e-05 | G124: 0.0001789664762 | H124: -1.753700082e-05 | J124: -0.0004455901855 | K124: -0.006813652617 | L124: 0.005505893639 | M124: 0.08843924673 | N124: 0.0003287694415
A125: =IF('DF raw data'!M130="","",'DF raw data'!M130) -> -268.5 | B125: =IF('DF raw data'!N130="","",'DF raw data'!N130) -> -1.64394e-05 | C125: =IF('DF raw data'!O130="","",'DF raw data'!O130) -> 0.000179429 | D125: =IF('DF raw data'!P130="","",'DF raw data'!P130) -> -2.42893e-05 | F125: -1.651502124e-05 | G125: 0.0001802543734 | H125: -2.440103078e-05 | J125: -0.0004538476961 | K125: -0.007040576465 | L125: 0.005596020826 | M125: 0.09123725714 | N125: 0.0003445301549
A126: =IF('DF raw data'!M131="","",'DF raw data'!M131) -> -268 | B126: =IF('DF raw data'!N131="","",'DF raw data'!N131) -> -6.38972e-06 | C126: =IF('DF raw data'!O131="","",'DF raw data'!O131) -> 0.000181863 | D126: =IF('DF raw data'!P131="","",'DF raw data'!P131) -> -2.72447e-06 | F126: -6.419112712e-06 | G126: 0.0001826995698 | H126: -2.737002562e-06 | J126: -0.0004570572525 | K126: -0.007269105091 | L126: 0.005687370611 | M126: 0.09408094245 | N126: 0.0003608076978
A127: =IF('DF raw data'!M132="","",'DF raw data'!M132) -> -267.5 | B127: =IF('DF raw data'!N132="","",'DF raw data'!N132) -> -1.83079e-05 | C127: =IF('DF raw data'!O132="","",'DF raw data'!O132) -> 0.000181872 | D127: =IF('DF raw data'!P132="","",'DF raw data'!P132) -> -9.15662e-06 | F127: -1.839211634e-05 | G127: 0.0001827086112 | H127: -9.198740452e-06 | J127: -0.0004662533106 | K127: -0.007502231746 | L127: 0.005778724917 | M127: 0.09697030491 | N127: 0.0003776132247
A128: =IF('DF raw data'!M133="","",'DF raw data'!M133) -> -267 | B128: =IF('DF raw data'!N133="","",'DF raw data'!N133) -> -1.08086e-05 | C128: =IF('DF raw data'!O133="","",'DF raw data'!O133) -> 0.000177691 | D128: =IF('DF raw data'!P133="","",'DF raw data'!P133) -> -8.89606e-06 | F128: =(1-$G$1*($B$49-$G$2))*B128 -> -1.085831956e-05 | G128: 0.0001785083786 | H128: -8.936981876e-06 | J128: =F128*$G$3+J127 -> -0.0004716824704 | K128: =J128*$G$3+K127 -> -0.007738072981 | L128: =G128*$G$3+L127 -> 0.005867979106 | M128: =L128*$G$3+M127 -> 0.09990429446 | N128: =(J128^2+L128^2)*$G$3+N127 -> 0.0003949410563
A129: =IF('DF raw data'!M134="","",'DF raw data'!M134) -> -266.5 | B129: =IF('DF raw data'!N134="","",'DF raw data'!N134) -> -7.28e-06 | C129: =IF('DF raw data'!O134="","",'DF raw data'!O134) -> 0.000174609 | D129: =IF('DF raw data'!P134="","",'DF raw data'!P134) -> -1.36553e-05 | F129: -7.313488e-06 | G129: 0.0001754122014 | H129: -1.371811438e-05 | J129: -0.0004753392144 | K129: -0.007975742589 | L129: 0.005955685207 | M129: 0.1028821371 | N129: 0.0004127891231
A130: =IF('DF raw data'!M135="","",'DF raw data'!M135) -> -266 | B130: =IF('DF raw data'!N135="","",'DF raw data'!N135) -> -2.24706e-05 | C130: =IF('DF raw data'!O135="","",'DF raw data'!O135) -> 0.000165397 | D130: =IF('DF raw data'!P135="","",'DF raw data'!P135) -> -1.54173e-05 | F130: -2.257396476e-05 | G130: 0.0001661578262 | H130: -1.548821958e-05 | J130: -0.0004866261968 | K130: -0.008219055687 | L130: 0.00603876412 | M130: 0.1059015191 | N130: 0.0004311408617
A131: =IF('DF raw data'!M136="","",'DF raw data'!M136) -> -265.5 | B131: =IF('DF raw data'!N136="","",'DF raw data'!N136) -> -5.80822e-06 | C131: =IF('DF raw data'!O136="","",'DF raw data'!O136) -> 0.000179503 | D131: =IF('DF raw data'!P136="","",'DF raw data'!P136) -> -9.65919e-06 | F131: -5.834937812e-06 | G131: 0.0001803287138 | H131: -9.703622274e-06 | J131: -0.0004895436657 | K131: -0.00846382752 | L131: 0.006128928477 | M131: 0.1089659834 | N131: 0.0004500425703
A132: =IF('DF raw data'!M137="","",'DF raw data'!M137) -> -265 | B132: =IF('DF raw data'!N137="","",'DF raw data'!N137) -> -9.98355e-06 | C132: =IF('DF raw data'!O137="","",'DF raw data'!O137) -> 0.00018366 | D132: =IF('DF raw data'!P137="","",'DF raw data'!P137) -> 4.03774e-06 | F132: -1.002947433e-05 | G132: 0.000184504836 | H132: 4.056313604e-06 | J132: -0.0004945584029 | K132: -0.008711106721 | L132: 0.006221180895 | M132: 0.1120765738 | N132: 0.0004695164102
A133: =IF('DF raw data'!M138="","",'DF raw data'!M138) -> -264.5 | B133: =IF('DF raw data'!N138="","",'DF raw data'!N138) -> -1.47877e-05 | C133: =IF('DF raw data'!O138="","",'DF raw data'!O138) -> 0.000174312 | D133: =IF('DF raw data'!P138="","",'DF raw data'!P138) -> -1.02467e-06 | F133: -1.485572342e-05 | G133: 0.0001751138352 | H133: -1.029383482e-06 | J133: -0.0005019862646 | K133: -0.008962099854 | L133: 0.006308737812 | M133: 0.1152309427 | N133: 0.0004895424917
A134: =IF('DF raw data'!M139="","",'DF raw data'!M139) -> -264 | B134: =IF('DF raw data'!N139="","",'DF raw data'!N139) -> -8.75021e-06 | C134: =IF('DF raw data'!O139="","",'DF raw data'!O139) -> 0.000172022 | D134: =IF('DF raw data'!P139="","",'DF raw data'!P139) -> -1.96563e-05 | F134: -8.790460966e-06 | G134: 0.0001728133012 | H134: -1.974671898e-05 | J134: -0.0005063814951 | K134: -0.009215290601 | L134: 0.006395144463 | M134: 0.1184285149 | N134: 0.0005101196392
A135: =IF('DF raw data'!M140="","",'DF raw data'!M140) -> -263.5 | B135: =IF('DF raw data'!N140="","",'DF raw data'!N140) -> -2.04802e-05 | C135: =IF('DF raw data'!O140="","",'DF raw data'!O140) -> 0.000174235 | D135: =IF('DF raw data'!P140="","",'DF raw data'!P140) -> -2.04726e-05 | F135: -2.057440892e-05 | G135: 0.000175036481 | H135: -2.056677396e-05 | J135: -0.0005166686995 | K135: -0.009473624951 | L135: 0.006482662703 | M135: 0.1216698463 | N135: 0.0005312655703
A136: =IF('DF raw data'!M141="","",'DF raw data'!M141) -> -263 | B136: =IF('DF raw data'!N141="","",'DF raw data'!N141) -> -1.31173e-05 | C136: =IF('DF raw data'!O141="","",'DF raw data'!O141) -> 0.000167891 | D136: =IF('DF raw data'!P141="","",'DF raw data'!P141) -> -7.00359e-06 | F136: -1.317763958e-05 | G136: 0.0001686632986 | H136: -7.035806514e-06 | J136: -0.0005232575193 | K136: -0.009735253711 | L136: 0.006566994353 | M136: 0.1249533435 | N136: 0.0005529651769
A137: =IF('DF raw data'!M142="","",'DF raw data'!M142) -> -262.5 | B137: =IF('DF raw data'!N142="","",'DF raw data'!N142) -> -1.38296e-05 | C137: =IF('DF raw data'!O142="","",'DF raw data'!O142) -> 0.000176388 | D137: =IF('DF raw data'!P142="","",'DF raw data'!P142) -> 3.92665e-06 | F137: -1.389321616e-05 | G137: 0.0001771993848 | H137: 3.94471259e-06 | J137: -0.0005302041274 | K137: -0.01000035577 | L137: 0.006655594045 | M137: 0.1282811405 | N137: 0.0005752542012
A138: =IF('DF raw data'!M143="","",'DF raw data'!M143) -> -262 | B138: =IF('DF raw data'!N143="","",'DF raw data'!N143) -> -1.40189e-05 | C138: =IF('DF raw data'!O143="","",'DF raw data'!O143) -> 0.0001831 | D138: =IF('DF raw data'!P143="","",'DF raw data'!P143) -> -4.51909e-07 | F138: -1.408338694e-05 | G138: 0.00018394226 | H138: -4.539877814e-07 | J138: -0.0005372458209 | K138: -0.01026897868 | L138: 0.006747565175 | M138: 0.1316549231 | N138: 0.0005981633356
A139: =IF('DF raw data'!M144="","",'DF raw data'!M144) -> -261.5 | B139: =IF('DF raw data'!N144="","",'DF raw data'!N144) -> -1.54895e-05 | C139: =IF('DF raw data'!O144="","",'DF raw data'!O144) -> 0.000181526 | D139: =IF('DF raw data'!P144="","",'DF raw data'!P144) -> -6.22262e-06 | F139: -1.55607517e-05 | G139: 0.0001823610196 | H139: -6.251244052e-06 | J139: -0.0005450261967 | K139: -0.01054149178 | L139: 0.006838745685 | M139: 0.1350742959 | N139: 0.0006216960837
A140: =IF('DF raw data'!M145="","",'DF raw data'!M145) -> -261 | B140: =IF('DF raw data'!N145="","",'DF raw data'!N145) -> -1.46505e-05 | C140: =IF('DF raw data'!O145="","",'DF raw data'!O145) -> 0.000166398 | D140: =IF('DF raw data'!P145="","",'DF raw data'!P145) -> -1.48585e-05 | F140: -1.47178923e-05 | G140: 0.0001671634308 | H140: -1.49268491e-05 | J140: -0.0005523851429 | K140: -0.01081768435 | L140: 0.0069223274 | M140: 0.1385354596 | N140: 0.0006458079567
A141: =IF('DF raw data'!M146="","",'DF raw data'!M146) -> -260.5 | B141: =IF('DF raw data'!N146="","",'DF raw data'!N146) -> -2.37591e-05 | C141: =IF('DF raw data'!O146="","",'DF raw data'!O146) -> 0.000164961 | D141: =IF('DF raw data'!P146="","",'DF raw data'!P146) -> -5.30543e-06 | F141: -2.386839186e-05 | G141: 0.0001657198206 | H141: -5.329834978e-06 | J141: -0.0005643193388 | K141: -0.01109984402 | L141: 0.007005187311 | M141: 0.1420380533 | N141: 0.0006705035095
A142: =IF('DF raw data'!M147="","",'DF raw data'!M147) -> -260 | B142: =IF('DF raw data'!N147="","",'DF raw data'!N147) -> -1.83754e-05 | C142: =IF('DF raw data'!O147="","",'DF raw data'!O147) -> 0.000162202 | D142: =IF('DF raw data'!P147="","",'DF raw data'!P147) -> -4.11915e-06 | F142: -1.845992684e-05 | G142: 0.0001629481292 | H142: -4.13809809e-06 | J142: -0.0005735493022 | K142: -0.01138661867 | L142: 0.007086661375 | M142: 0.145581384 | N142: 0.0006957783736
A143: =IF('DF raw data'!M148="","",'DF raw data'!M148) -> -259.5 | B143: =IF('DF raw data'!N148="","",'DF raw data'!N148) -> -2.49831e-05 | C143: =IF('DF raw data'!O148="","",'DF raw data'!O148) -> 0.000163278 | D143: =IF('DF raw data'!P148="","",'DF raw data'!P148) -> 3.98558e-06 | F143: -2.509802226e-05 | G143: 0.0001640290788 | H143: 4.003913668e-06 | J143: -0.0005860983133 | K143: -0.01167966783 | L143: 0.007168675915 | M143: 0.1491657219 | N143: 0.0007216450864
